Workbook

Sheet LDC Info
AA3: Algoma Power Inc.
AA4: Atikokan Hydro Inc.
AA5: Attawapiskat Power Corporation
AA6: Bluewater Power Distribution Corp.
AA7: Brant County Power
AA8: Brantford Power Inc.
AA9: Burlington Hydro Inc.
AA10: Cambridge and North Dumfries Hydro
AA11: Canadian Niagara Power Inc. – Eastern Ontario Power/Fort Erie/Port Colborne
AA12: Centre Wellington Hydro Ltd.
AA13: Chapleau Public Utilities Corporation
D14: Utility Name | E14: Hearst Power Distribution Company Limited | AA14: COLLUS Power Corp.
AA15: Cooperative Hydro Embrun Inc.
D16: Assigned EB Number | E16: EB-2014-0080 | AA16: E.L.K. Energy Inc.
AA17: Enersource Hydro Mississauga Inc.
D18: Name of Contact and Title | E18: Jessy Richard | AA18: Entegrus Powerlines Inc.
AA19: ENWIN Utilities Ltd.
D20: Phone Number | AA20: Erie Thames Powerlines Corp.
AA21: Espanola Regional Hydro Distribution Corporation
D22: Email Address | AA22: Essex Powerlines Corporation
AA23: Festival Hydro Inc.
D24: Test Year | E24: 2015 | AA24: Fort Albany Power Corporation
AA25: Fort Frances Power Corporation
D26: Bridge Year | E26: =IF(ISBLANK(E24), "", E24-1) -> 2014 | AA26: Greater Sudbury Hydro Inc.
AA27: Grimsby Power Inc.
D28: Last Rebasing Year | E28: 2010 | AA28: Guelph Hydro Electric Systems Inc.
AA29: Haldimand County Hydro Inc.
A30: Identify the accounting standard used for the test year
E31: MIFRS
A33: Did you update your depreciation and capitalization policies?
E34: Yes
A36: When did you update your depreciation and capitalization policies?
E37: 2001-01-01 | F37: 2013
A39: Identify the year that the applicant has adopted or is expected to adopt IFRS for financial reporting purposes
E40: 2014
A43: Are you applying for cost recovery for the test and/or future year(s) for Green Energy initiatives?
E44: No
A46: ="Is " & E14 & " an embedded distributor?" -> Is Hearst Power Distribution Company Limited an embedded distributor? | E46: Yes
B49: Notes | AA49: Guelph Hydro Electric Systems Inc.
AA50: Halton Hills Hydro Inc.
C51: Pale green cells represent input cells. | AA51: Hearst Power Distribution Co. Ltd.
AA52: Horizon Utilities Corporation
C53: Pale blue cells represent drop-down lists. The applicant should select the appropriate item from the drop-down list. | AA53: Hydro 2000 Inc.
AA54: Hydro Hawkesbury Inc.
C55: White cells contain fixed values, automatically generated values or formulae. | AA55: Hydro One Brampton Networks Inc.
AA56: Hydro One Networks Inc.
AA57: Hydro One Remote Communities Inc.
AA58: Hydro Ottawa Limited
AA59: Innisfil Hydro Dist. Systems Limited
AA60: Kashechewan Power Corporation
AA61: Kenora Hydro Electric Corporation Ltd.
AA62: Kingston Hydro Corporation
AA63: Kitchener-Wilmot Hydro Inc.
AA64: Lakefront Utilities Inc.
AA65: Lakeland Power Distribution Ltd.
AA66: London Hydro Inc.
AA67: Midland Power Utility Corporation
AA68: Milton Hydro Distribution Inc.
AA69: Newmarket – Tay Power Distribution Ltd.
AA70: Niagara Peninsula Energy Inc.
AA71: Niagara-on-the-Lake Hydro Inc.
AA72: Norfolk Power Distribution Ltd.
AA73: North Bay Hydro Distribution Limited
AA74: Northern Ontario Wires Inc.
AA75: Oakville Hydro Distribution Inc.
AA76: Orangeville Hydro Limited
AA77: Orillia Power Distribution Corp.
AA78: Oshawa PUC Networks Inc.
AA79: Ottawa River Power Corporation
AA80: Parry Sound Power Corporation
AA81: Peterborough Distribution Inc.
AA82: PowerStream Inc.
AA83: PUC Distribution Inc.
AA84: Renfrew Hydro Inc.
AA85: Rideau St. Lawrence Distribution Inc.
AA86: St. Thomas Energy Inc.
AA87: Sioux Lookout Hydro Inc.
AA88: Thunder Bay Hydro Electricity Distribution
AA89: Tillsonburg Hydro Inc.
AA90: Toronto Hydro-Electric System Limited
AA91: Veridian Connections Inc.
AA92: Wasaga Distribution Inc.
AA93: Waterloo North Hydro Inc.
AA94: Welland Hydro Electric System Corp.
AA95: Wellington North Power Inc.
AA96: West Coast Huron Energy Inc.
AA97: Westario Power Inc.
AA98: Whitby Hydro Electric Corporation
AA99: Woodstock Hydro Services Inc.

Sheet Table of Contents
A15: 1 | B15: LDC Information Sheet | E15: 26 | F15: App.2-FC: Calculation of Renewable Generation Connection Direct Benefits/Provincial Amount: Renewable Expansion Investments
A16: 2 | B16: Index | E16: 27 | F16: App.2-G: Service Reliability Indicators
A17: 3 | B17: Cost of Service Application Flowchart | E17: 28 | F17: App.2-H: Other Operating Revenue
A18: 4 | B18: List of Key References | E18: 29 | F18: App.2-I: Load Forecast CDM Adjustment Workform
A19: 5 | B19: App.2-AA: Capital Projects Table | E19: 30 | F19: App.2-IA: Actual and Forecast Load and Customer Data
A20: 6 | B20: App.2-AB: Capital Expenditures | E20: 31 | F20: App.2-JA: OM&A Summary Analysis
A21: 7 | B21: App. 2-AC: Customer Engagement Worksheet | E21: 32 | F21: App.2-JB: Recoverable OM&A Cost Driver Table
A22: 8 | B22: App.2-B: General Accounting Instructions | E22: 33 | F22: App.2-JC: OMA Programs Table
A23: 9 | B23: App.2-BA: Fixed Asset Continuity Schedule | E23: 34 | F23: App.2-K: Employee Costs
A24: 10 | B24: Appendix 2-BB: Service Life Comparison | E24: 35 | F24: App.2-L: Recoverable OM&A Cost per Customer and per FTE
A25: 11 | B25: App.2-CA: 2012 Depreciation and Amortization Expense (Old CGAAP) | E25: 36 | F25: App.2-M: Regulatory Costs Schedule
A26: 12 | B26: App.2-CB: 2012 Depreciation and Amortization Expense (New CGAAP) | E26: 37 | F26: App.2-N: Shared Servcies and Corporate Cost Allocation
A27: 13 | B27: App.2-CC: 2013 Depreciation and Amortization Expense (New CGAAP) | E27: 38 | F27: App.2-OA: Capital Structure and Cost of Capital
A28: 14 | B28: App.2-CD: 2014 Depreciation and Amortization Expense (MIFRS) | E28: 39 | F28: App.2-OB: Debt Instruments
A29: 15 | B29: App.2-CE: 2015 Depreciation and Amortization Expense (MIFRS) | E29: 40 | F29: App.2-P: Cost Allocation
A30: 16 | B30: App.2-CF: 2013 Depreciation and Amortization Expense (Old CGAAP) | E30: 41 | F30: App.2-Q: Cost of Serving Embedded Distributor(s)
A31: 17 | B31: App.2-CG: 2013 Depreciation and Amortization Expense (New CGAAP) | E31: 42 | F31: App.2-R: Loss Factors
A32: 18 | B32: App.2-CH: 2014 Depreciation and Amortization Expense (MIFRS) | E32: 43 | F32: App.2-S: Stranded Meter Treatment
A33: 19 | B33: App.2-CI: 2015 Depreciation and Amortization Expense (MIFRS) | E33: 44 | F33: App.2-TA: Account 1592, PILs and Tax Variances
A34: 20 | B34: App.2-D: Overhead Expenses | E34: 45 | F34: App.2-TB: Account 1592, HST-OVAT Input Tax Credits
A35: 21 | B35: App.2-EA: Account 1575 PP&E Deferral Account (2015 IFRS Adopters) | E35: 46 | F35: App.2-U: One-Time Incremental IFRS Transition Costs
A36: 22 | B36: App.2-EB: Account 1576 - Accounting Changes Under CGAAP (2012 Changes) | E36: 47 | F36: App.2-V: Revenue Reconciliation
A37: 23 | B37: App.2-EC: Account 1576 - Accounting Changes Under CGAAP (2013 Changes) | E37: 48 | F37: App.2-W: Bill Impacts
A38: 24 | B38: App.2-FA: Renewable Generation Connection Investment Summary | E38: 49 | F38: App.2-Y: Transition to MIFRS Summary Impact
A39: 25 | B39: App.2-FB: Calculation of Renewable Generation Connection Direct Benefits/Provincial Amount: Renewable Enabling Improvement Investments | E39: 50 | F39: App. 2-Z: Tariff Schedule

Sheet COS Flowchart
B4: Cost of Service Rate Application Schematic
B6: The Cost of Service Rate Application Schematic is a flowchart appended to Chapter 2 of the Filing Requirements as a guide for the components of an application and how demand and costs interrelate to derive the revenue requirement and then how the revenue requirement is allocated between classes and through fixed/variable splits to derive rates that will be compensatory for the annual revenue requirement, based on the the forecasted demand. There is no form to be filled out; therefore, this Schedule is not required to be filed.

Sheet List of Key References
B3: List of Key References
A5: A list of key references for understanding the Filing Requirements has been embedded in the document below. To access the list of references and associated hyperlinks doublt click the icon below.

Sheet App.2-AA_Capital Projects
F1: File Number: | G1: =EBNUMBER -> EB-2014-0080
F2: Exhibit:
F3: Tab:
F4: Schedule:
F5: Page:
F7: Date:
A9: Appendix 2-AA
A10: Capital Projects Table
A13: Reporting Basis | B13: Reporting Basis | C13: CGAAP | D13: CGAAP | E13: CGAAP | F13: CGAAP | G13: CGAAP | H13: NEWGAAP | I13: NEWGAAP | J13: NEWGAAP
A14: Projects | B14: Projects | C14: 2008 | D14: 2009 | E14: 2010 | F14: 2011 | G14: 2012 | H14: 2013 | I14: 2014 | J14: 2015
A16: System Access | B16: System Access
D17: 0 | E17: 0 | F17: 0 | G17: 0 | H17: 0 | I17: 0 | J17: 0
D18: 0 | E18: 0 | F18: 0 | G18: 0 | H18: 0 | I18: 0 | J18: 0
D19: 0 | E19: 0 | F19: 0 | G19: 0 | H19: 0 | I19: 0 | J19: 0
D20: 0 | E20: 0 | F20: 0 | G20: 0 | H20: 0 | I20: 0 | J20: 0
A23: Contributed Capital
B25: Sub-Total System Access - Contributed Capital
A26: Sub-Total System Access | B26: Sub-Total System Access | C26: =SUM(C17:C25) -> 0 | D26: 0 | E26: 0 | F26: 0 | G26: 0 | H26: 0 | I26: 0 | J26: 0
A29: System Renewal | B29: System Renewal | C29: 2008 | D29: 2009 | E29: 2010 | F29: 2011 | G29: 2012 | H29: 2013 | I29: 2014 | J29: 2015
B30: 1830/1835 - Distribution Overhead - Replace Poles | C30: 12523 | D30: 4329 | E30: 4782 | F30: 7571 | G30: 22120 | H30: 9735 | I30: 0 | J30: 0
B31: 1830 - Distribution Overhead - Replace Poles | C31: 0 | D31: 0 | E31: 0 | F31: 0 | G31: 0 | H31: 0 | I31: 12464 | J31: 0
B32: 1835 - Distribution Overhead - Overhead Conduits | C32: 0 | D32: 0 | E32: 0 | F32: 0 | G32: 0 | H32: 0 | I32: 13750 | J32: 0
B33: 1830 - Distribution Overhead - Replace Poles | C33: 0 | D33: 0 | E33: 0 | F33: 0 | G33: 0 | H33: 0 | I33: 0 | J33: 70000
B34: 1835 - Distribution Overhead - Overhead Conduits | C34: 0 | D34: 0 | E34: 0 | F34: 0 | G34: 0 | H34: 0 | I34: 0 | J34: 5000
B35: 1845 - U/G conductors and devices - Install new base | C35: 3888 | D35: 2691 | E35: 2690 | F35: 484 | G35: 1196 | H35: 10036 | I35: 10161 | J35: 5430.916667
B36: 1850 - Line Transformers - Replace transformer | C36: 4590 | D36: 2377.7 | E36: 10782.2 | F36: 5806 | G36: 0 | H36: 0 | I36: 11120 | J36: 6017.18
C37: 0 | D37: 0 | E37: 0 | F37: 0 | G37: 0 | H37: 0 | I37: 0 | J37: 0
A38: Contributed Capital
B40: Sub-Total System Renewal - Contributed Capital
A41: Sub-Total System Renewal | B41: Sub-Total System Renewal | C41: =SUM(C30:C40) -> 21001 | D41: 9397.7 | E41: 18254.2 | F41: 13861 | G41: 23316 | H41: 19771 | I41: 47495 | J41: 86448.09667
A44: System Service | B44: System Service | C44: 2008 | D44: 2009 | E44: 2010 | F44: 2011 | G44: 2012 | H44: 2013 | I44: 2014 | J44: 2015
B45: 1860 - Meters - New meters | C45: 1058 | D45: 0 | E45: 0 | F45: 5338 | G45: 0 | H45: 7258 | I45: 0 | J45: 2625
B46: 1855 - Services | C46: 0 | D46: 0 | E46: 0 | F46: 0 | G46: 142 | H46: 0 | I46: 0 | J46: 0
B47: 1860 - Meters - New PT, CT transformers for meters | C47: 0 | D47: 0 | E47: 0 | F47: 0 | G47: 197 | H47: 0 | I47: 0 | J47: 0
B48: 1835 - Overhead Conductors & Devices - Replace porcelain surge arrestors | C48: 0 | D48: 0 | E48: 0 | F48: 0 | G48: 0 | H48: 0 | I48: 0 | J48: 13000
B49: 1835 - Overhead Conductors & Devices - New solid blade switch | C49: 0 | D49: 0 | E49: 0 | F49: 0 | G49: 0 | H49: 0 | I49: 0 | J49: 3000
A50: Contributed Capital
B51: OPA - CDM incentive (bi-directionnal meteres for net-metering program) | E51: 0 | F51: 0 | G51: 0 | H51: 0 | I51: 0 | J51: 0
B53: Sub-Total System Service - Contributed Capital
A54: Sub-Total System Service | B54: Sub-Total System Service | C54: =SUM(C45:C53) -> 1058 | D54: 0 | E54: 0 | F54: 5338 | G54: 339 | H54: 7258 | I54: 0 | J54: 18625
A57: General Plant | B57: General Plant | C57: 2008 | D57: 2009 | E57: 2010 | F57: 2011 | G57: 2012 | H57: 2013 | I57: 2014 | J57: 2015
B58: 1908 - Building & Fixtures - New roof cover on warehouse | C58: 0 | D58: 13009 | E58: 0 | F58: 0 | G58: 0 | H58: 0 | I58: 0 | J58: 0
B59: 1908 - Building & Fixtures - New overhead door | C59: 0 | D59: 0 | E59: 0 | F59: 0 | G59: 13597 | H59: 0 | I59: 0 | J59: 0
B60: 1908 - Building & Fixtures - New sidewalk and pavement | C60: 0 | D60: 0 | E60: 0 | F60: 0 | G60: 4294 | H60: 0 | I60: 0 | J60: 0
B61: 1908 - Building & Fixtures - New exterior siding, insulation, windows & doors | C61: 0 | D61: 0 | E61: 0 | F61: 0 | G61: 0 | H61: 0 | I61: 70000 | J61: 0
B62: 1908 - Building & Fixtures - New natural gas furnace + Bulding sign | C62: 0 | D62: 0 | E62: 0 | F62: 0 | G62: 0 | H62: 0 | I62: 0 | J62: 7500
B63: 1915 - Office Furniture Equipment - Laser Jet Printer | C63: 0 | D63: 5965.92 | E63: 0 | F63: 0 | G63: 0 | H63: 0 | I63: 0 | J63: 0
B64: 1915 - Office Furniture Equipment - | C64: 0 | D64: 0 | E64: 5236 | F64: 0 | G64: 0 | H64: 0 | I64: 0 | J64: 0
B65: 1915 - Office Furniture Equipment - New desktops | C65: 0 | D65: 0 | E65: 0 | F65: 0 | G65: 0 | H65: 3732 | I65: 0 | J65: 0
B66: 1915 - Office Furniture Equipment - New desk & cabinets for new employee | C66: 0 | D66: 0 | E66: 0 | F66: 0 | G66: 0 | H66: 0 | I66: 2500 | J66: 0
B67: 1915 - Office Furniture Equipment - New phone system | C67: 0 | D67: 0 | E67: 0 | F67: 0 | G67: 0 | H67: 0 | I67: 0 | J67: 2500
B68: 1920 - Computer Equipment Hardware | C68: 14157 | D68: 0 | E68: 0 | F68: 0 | G68: 0 | H68: 0 | I68: 0 | J68: 0
B69: 1920 - Computer Equipment Hardware - New server and laptop | C69: 0 | D69: 0 | E69: 0 | F69: 0 | G69: 0 | H69: 0 | I69: 11250 | J69: 0
B70: 1920 - Computer Equipment Hardware - New desktop at warehouse (3,000$) + New laser printer for billing (7,000$) | C70: 0 | D70: 0 | E70: 0 | F70: 0 | G70: 0 | H70: 0 | I70: 0 | J70: 10000
B71: 1925 - Computer Software - Harris Software | C71: 60975 | D71: 0 | E71: 0 | F71: 0 | G71: 0 | H71: 0 | I71: 0 | J71: 0
B72: 1925 - Computer Software - Billing software update | C72: 0 | D72: 0 | E72: 0 | F72: 0 | G72: 5795 | H72: 0 | I72: 0 | J72: 0
B73: 1925 - Computer Software - Billing software upgrade | C73: 0 | D73: 0 | E73: 0 | F73: 0 | G73: 0 | H73: 0 | I73: 11500 | J73: 0
B74: 1925 - Computer Software - GIS software, billing software upgrades | C74: 0 | D74: 0 | E74: 0 | F74: 0 | G74: 0 | H74: 0 | I74: 0 | J74: 5000
B75: 1930 - Transportation - Pole Trailer | C75: 14472 | D75: 0 | E75: 0 | F75: 0 | G75: 0 | H75: 0 | I75: 0 | J75: 0
B76: 1930 - Transportation - New boom insert installed on bucket truck T95-1 | C76: 0 | D76: 0 | E76: 0 | F76: 25129 | G76: 0 | H76: 0 | I76: 0 | J76: 0
B77: 1930 - Transportation - New Bucket & Boom truck | C77: 0 | D77: 0 | E77: 0 | F77: 0 | G77: 218139 | H77: 0 | I77: 0 | J77: 0
B78: 1930 - Transportation - New pickup | C78: 0 | D78: 0 | E78: 0 | F78: 0 | G78: 0 | H78: 28201 | I78: 0 | J78: 0
B79: 1930 - Transportation - | C79: 0 | D79: 0 | E79: 0 | F79: 0 | G79: 0 | H79: 0 | I79: 0 | J79: 0
B80: 1930 - Transportation - New pickup | C80: 0 | D80: 0 | E80: 0 | F80: 0 | G80: 0 | H80: 0 | I80: 0 | J80: 28000
B81: 1940 - Tools & Equipment - Pressure washer | C81: 2822 | D81: 0 | E81: 0 | F81: 0 | G81: 0 | H81: 0 | I81: 0 | J81: 0
B82: 1940 - Tools & Equipment - New tools | C82: 0 | D82: 0 | E82: 0 | F82: 1651 | G82: 0 | H82: 0 | I82: 0 | J82: 0
B83: 1940 - Tools & Equipment - Hydraulic Press, new tools | C83: 0 | D83: 0 | E83: 0 | F83: 0 | G83: 0 | H83: 0 | I83: 8450 | J83: 0
B84: 1940 - Tools & Equipment - New Locator | C84: 0 | D84: 0 | E84: 0 | F84: 0 | G84: 0 | H84: 0 | I84: 0 | J84: 7000
A86: Contributed Capital
B89: Sub-Total General Plant - Contributed Capital
A90: Sub-Total General Plant | B90: Sub-Total General Plant | C90: =SUM(C58:C89) -> 92426 | D90: 18974.92 | E90: 5236 | F90: 26780 | G90: 241825 | H90: 31933 | I90: 103700 | J90: 60000
A92: Total Capital Expenditures | C92: =C90+C54+C41+C26 -> 114485 | D92: 28372.62 | E92: 23490.2 | F92: 45979 | G92: 265480 | H92: 58962 | I92: 151195 | J92: 165073.0967

Sheet App.2-AB_Capital Expenditures
S1: File Number: | U1: =EBNUMBER -> EB-2014-0080
S2: Exhibit:
S3: Tab:
S4: Schedule:
S5: Page:
S7: Date:
A9: Appendix 2-AB
A10: Table 2 - Capital Expenditure Summary from Chapter 5 Consolidated Distribution System Plan Filing Requirements
A12: First year of Forecast Period: | B12: =TestYear -> 2015
A13: CATEGORY | B13: Historical Period (previous plan1 & actual) | Q13: Forecast Period (planned)
B14: =E14-1 -> 2010 | E14: =H14-1 -> 2011 | H14: =K14-1 -> 2012 | K14: =N14-1 -> 2013 | N14: =Q14-1 -> 2014 | Q14: =B12 -> 2015 | R14: =Q14+1 -> 2016 | S14: =R14+1 -> 2017 | T14: 2018 | U14: 2019
B15: Plan | C15: Actual | D15: Var | E15: Plan | F15: Actual | G15: Var | H15: Plan | I15: Actual | J15: Var | K15: Plan | L15: Actual | M15: Var | N15: Plan | O15: Actual2 | P15: Var
B16: $ '000 | D16: % | E16: $ '000 | G16: % | H16: $ '000 | J16: % | K16: $ '000 | M16: % | N16: $ '000 | P16: % | Q16: $ '000
A17: System Access | D17: =IF(ISERROR((C17-B17)/B17),"--",(C17-B17)/B17) -> -- | G17: =IF(ISERROR((F17-E17)/E17),"--",(F17-E17)/E17) -> -- | J17: =IF(ISERROR((I17-H17)/H17),"--",(I17-H17)/H17) -> -- | M17: =IF(ISERROR((L17-K17)/K17),"--",(L17-K17)/K17) -> -- | P17: =IF(ISERROR((O17-N17)/N17),"--",(O17-N17)/N17) -> -- | Q17: 11 | R17: 12 | S17: 13 | T17: 14 | U17: 15
A18: System Renewal | B18: 53 | C18: 18 | D18: =IF(ISERROR((C18-B18)/B18),"--",(C18-B18)/B18) -> -0.6603773585 | E18: 58 | F18: 13 | G18: =IF(ISERROR((F18-E18)/E18),"--",(F18-E18)/E18) -> -0.775862069 | H18: 58 | I18: 22 | J18: =IF(ISERROR((I18-H18)/H18),"--",(I18-H18)/H18) -> -0.6206896552 | K18: 58 | L18: 50 | M18: =IF(ISERROR((L18-K18)/K18),"--",(L18-K18)/K18) -> -0.1379310345 | N18: 47 | O18: 64 | P18: =IF(ISERROR((O18-N18)/N18),"--",(O18-N18)/N18) -> 0.3617021277 | Q18: 86 | R18: 95 | S18: 100 | T18: 105 | U18: 110
A19: System Service | B19: 30 | D19: -1 | E19: 5 | F19: 5 | G19: 0 | H19: 3 | J19: -1 | K19: 3 | L19: 7 | M19: 1.333333333 | N19: 0 | O19: 2 | P19: -- | Q19: 19 | R19: 21 | S19: 6 | T19: 6 | U19: 7
A20: General Plant | B20: 68 | C20: 5 | D20: -0.9264705882 | E20: 206 | F20: 27 | G20: -0.8689320388 | H20: 67 | I20: 242 | J20: 2.611940299 | K20: 44 | L20: 32 | M20: -0.2727272727 | N20: 104 | O20: 80 | P20: -0.2307692308 | Q20: 668 | R20: 48 | S20: 39 | T20: 51 | U20: 67
A21: TOTAL EXPENDITURE | B21: =SUM(B17:B20) -> 151 | C21: =SUM(C17:C20) -> 23 | D21: -0.8476821192 | E21: 269 | F21: 45 | G21: -0.8327137546 | H21: 128 | I21: 264 | J21: 1.0625 | K21: 105 | L21: 89 | M21: -0.1523809524 | N21: 151 | O21: 146 | P21: -0.03311258278 | Q21: 784 | R21: 176 | S21: 158 | T21: 176 | U21: =SUM(U17:U20) -> 199
A22: System O&M | B22: 380 | C22: 385 | D22: 0.01315789474 | E22: 392 | F22: 418 | G22: 0.06632653061 | H22: 456 | I22: 479 | J22: 0.05043859649 | K22: 462 | L22: 473 | M22: 0.02380952381 | N22: 512 | O22: 515 | P22: 0.005859375 | Q22: 552 | R22: 525 | S22: 550 | T22: 580 | U22: 620
A24: Notes to the Table:
A25: 1. Historical “previous plan” data is not required unless a plan has previously been filed
A26: 2. Indicate the number of months of 'actual' data included in the last year of the Historical Period (normally a 'bridge' year):
A28: Explanatory Notes on Variances (complete only if applicable)
A29: Notes on shifts in forecast vs. historical budgets by category
A32: Notes on year over year Plan vs. Actual variances for Total Expenditures
A35: Notes on Plan vs. Actual variance trends for individual expenditure categories

Sheet App. 2-AC_Customer Engagement
B1: File Number: | C1: =EBNUMBER -> EB-2014-0080
B2: Exhibit:
B3: Tab:
B4: Schedule:
B5: Page:
B7: Date:
A9: Appendix 2-AC
A10: Customer Engagement Activities Summary
A12: Provide a list of customer engagement activities | B12: Provide a list of customer needs and preferences identified through each engagement activity | C12: Actions taken to respond to identified needs and preferences. If no action was taken, explain why.
A13: E-Billing - Online account services | B13: Customer needs online access to their consumption data, invoice and details, as well as their historical data. | C13: HPDC created the E-billing account service which provides access to customer invoices in electronic copies and consumption data, current and historical. Customers may also leave feedback using links provided in their individual web accounts, which assists HPDC in enhancing its online portal.
A14: CDM and SaveOnEnergy programs - Inform and assist customer on IESO conservation and demand management programs | B14: Customers express the need for consultation and assistance with these programs. Greater details and conditions of RetroFit and SaveOnEngergy programs were requested. | C14: Marketing of programs through HPDC's online website and newspaper ads, as well as group and one-on-one consultations. Burman Energy was contracted to assist and simplify with application process for conservation programs.
A15: Bi-annual customer survey - Identify customer needs and opinions | B15: Customers were given a possibility to express their needs and opinions by completing an online or hard copy survey. Fifteen percent (15%) of HPDC's residential customers responded to the survey. The results identified an overall good or better performance. | C15: As the survey identified possible areas where HPDC could improve, the following actions were taken: - Educational publications on various energy subjects; - Build database of customers opinions and establish trends; - Promote and inform on HPDC's various services offered; - Facilitate access to customer energy data and behind the meter services.
A16: Christmas lights and Canada Day festivities | B16: HPDC customers seek to have lights during Christmas time, and assistance for Canada Day festivities and entertainment. Customers are looking for HPDC to participate and give back to the community. | C16: HPDC volunteer crew sets up Christmas lights, and provides assistance during Canada Day festivities.
A17: Financial assistance program (LEAP) | B17: Low-income customers need assistance to pay for higher costs of heating during winter months. | C17: HPDC continues to promote verbally, through educational publications as well as on their website, on emergency financial assistance programs that are designed to help low-income customers having difficulty making their electricity bill payments.
A18: Educational publications | B18: Customers need to be kept informed on the fast changing electrical sector. | C18: Bi-monthly written educational publications on various electrical subjects via newspapers and the online portal were established to keep customers educated & informed, and provide some background on the complex electrical sector.
A45: Note: Use "ALT-ENTER" to go to the next line within a cell

Sheet App.2-B_Acct Instructions
A1: General Instructions to MIFRS Appendices
A2: Types of Schedules to File
A4: The purpose of this tab is to provide general instructions. The specific instructions to each appendix are listed in footnotes of each appendix.
A6: The typical applicant is expected to have made capitalization and depreciation policy changes under CGAAP as permitted by the Board on January 1, 2012 or mandated by the Board by January 1, 2013, and adopts IFRS for reporting purposes on January 1, 2015 (transition date January 1, 2014). In general, applicants under the two scenarios should provide the following information in the appendices:
E9: Accounting Policy Changes in 2012 and Adopts IFRS in 2015 | F9: Accounting Policy Changes in 2013 and Adopts IFRS in 2015
E10: (Date of Transition to IFRS 2014)
A11: Information to be filed in 2015 CoS Application | B11: 2015 | C11: Test | E11: MIFRS | F11: MIFRS
B12: 2014 | C12: Bridge | E12: MIFRS and Revised CGAAP* | F12: MIFRS and Revised CGAAP*
B13: 2013 | C13: Historical | E13: Revised CGAAP | F13: CGAAP and Revised CGAAP
B14: 2012 | C14: Historical | E14: CGAAP and Revised CGAAP | F14: CGAAP
B15: 2011 and Prior | C15: Historical | E15: CGAAP | F15: CGAAP
A17: 1) For the year that the applicant implemented changes to its capitalization and depreciation policies (2012 or 2013), the applicant must file two appendices, one before and one after the policy changes.
A20: 2) For the transition year (2014), the applicant may file two appendices, one under Revised CGAAP and one under MIFRS depending, on the materiality of impacts. See the specific instructions under each appendix below for further details.
A25: Appendix 2-BA - Fixed Asset Schedule
A27: Applicants are to provide Appendix 2-BA in accordance with the years and corresponding accounting standards noted in the above table to provide a year over year continuity in fixed assets.
A28: *For the transition year (2014), the applicant should file two appendices, one under Revised CGAAP and one under MIFRS if the change between Revised CGAAP and MIFRS is material. If the change from the accounting standards is not material, the applicant may choose to only provide one appendix under MIFRS. The applicant must also indicate the fixed asset net book value balance under Revised CGAAP, the total dollar value of the change and explain why it is not material.
A32: Regulatory Gross Assets of Property, Plant and Equipment
A34: For an applicant that is adopting IFRS on January 1, 2015 for financial reporting purposes, the applicant must establish the continuity of historic cost by using the December 31, 2013 regulatory gross assets of property, plant and equipment as the opening January 1, 2014 regulatory gross assets. The applicant must provide schedules (including Appendix 2-BA, Fixed Asset Continuity Schedule) which must identify the following details to substantiate the continuity of historic cost for regulatory purposes:
A37: · December 31, 2013 regulatory gross assets of property, plant and equipment, by asset class; and
A38: · January 1, 2014 regulatory gross assets of property, plant and equipment, by asset class.
A40: Accumulated Depreciation
A42: For an applicant that is adopting IFRS on January 1, 2015 for financial reporting purposes, the applicant must establish the continuity of historic cost by using the December 31, 2013 regulatory accumulated depreciation as the opening January 1, 2014 regulatory accumulated depreciation. The applicant must provide schedules (including Appendix 2-BA, Fixed Asset Continuity Schedule) which must identify the following details to substantiate the continuity of historic cost for regulatory purposes:
A45: · December 31, 2013 regulatory accumulated depreciation, by asset class; and
A46: · January 1, 2014 regulatory accumulated depreciation, by asset class.
A48: Appendix 2-C - Depreciation and Amortization
A50: Applicants are to provide Appendix 2-C starting in the year capitalization and depreciation policy changes were implemented in accordance with the years and corresponding accounting standards listed in the above table.
A51: If an applicant changed capitalization and depreciation policies effective January 1, 2012 and will adopt IFRS for reporting purposes effective January 1, 2015, the applicant must complete Appendix 2-CA to 2-CE (inclusive).
A52: If an applicant changed capitalization and depreciation policies effective January 1, 2013 and will adopt IFRS for reporting purposes effective January 1, 2015, the applicant must complete Appendix 2-CF to 2-CI (inclusive).
A53: *Depreciation accounting policy changes were mandated by the Board by January 1, 2013. These accounting changes should be implemented consistent with the Board’s regulatory accounting policies as set out for MIFRS as contained in the Report of the Board, Transition to International Financial Reporting Standards (EB-2008-0408), the Depreciation Study for Use by Electricity Distributors (EB-2010-0178) and the Revised 2012 Accounting Procedures Handbook for Electricity Distributors. In general, no further changes to an applicant's depreciation policy (i.e. assets' service lives) are expected after the Board mandated changes by January 1, 2013. The set of Appendix CA to CI assumes this to be the case. If the applicant has made any changes to its depreciation policy subsequent to the Board mandated changes, applicants must identify the change, explain the nature of the change, the reason for the change, quantify the impact of the change, and quantify the depreciation expense before and after the change.
A56: Appendix 2-E - Account 1575, IFRS-CGAAP Transitional PP&E Amounts (2-EA), Account 1576, Accounting Changes Under CGAAP (2-EB, 2-EC)
A58: If an applicant changed capitalization and depreciation policies effective January 1, 2012 and will adopt IFRS for reporting purposes effective January 1, 2015, the applicant must complete Appendix 2-EA and 2-EB. If the applicant does not make any further PP&E accounting policy changes beyond the capitalization and depreciation policy changes as permitted by the Board on January 1, 2012 (i.e. no further changes made on transition to IFRS), the applicant must indicate this and does not need to complete Appendix 2-EA.
A60: If an applicant changed capitalization and depreciation policies effective January 1, 2013 and will adopt IFRS for reporting purposes effective January 1, 2015, the applicant must complete Appendix 2-EA and 2-EC. If the applicant does not make any further PP&E accounting policy changes beyond the capitalization and depreciation policy changes as mandated by the Board by January 1, 2013 (i.e. no further changes made on transition to IFRS), the applicant must indicate this and does not need to complete Appendix 2-EA.
A62: Please refer to section 2.12.4 and 2.12.5 of the Filing Requirements for further details.
A64: Appendix 2-YA - Summary of Impacts to Revenue Requirement from Transition to MIFRS
A66: For applicants adopting MIFRS, the applicants must provide a summary of the dollar impacts of MIFRS to each component of the revenue requirement (e.g. rate base, operating costs, etc), including the overall impact on the proposed revenue requirement. Accordingly, the applicants must identify financial differences and resulting revenue requirement impacts arising from the adoption of MIFRS as compared to CGAAP prior to capitalization and depreciation policy changes.

Sheet App.2-BA_FA Cont_2010 OldCGAAP
B10: Fixed Asset Continuity Schedule
F12: Accounting Standard | G12: CGAAP | H12: Old CGAAP
F13: Year | G13: 2010
E15: Cost | K15: Accumulated Depreciation
B16: CCA Class | C16: OEB | D16: Description | E16: Opening Balance | F16: Additions | G16: Disposals | H16: Closing Balance | J16: Opening Balance | K16: Additions | L16: Disposals | M16: Closing Balance | N16: Net Book Value
B17: 12 | C17: 1611 | D17: Computer Software (Formally known as Account 1925) | E17: 115957.33 | H17: =E17+F17+G17 -> 115957.33 | J17: -79372 | K17: -12195 | M17: =J17+K17+L17 -> -91567 | N17: =H17+M17 -> 24390.33
B18: CEC | C18: 1612 | D18: Land Rights (Formally known as Account 1906) | E18: 4232 | H18: =E18+F18+G18 -> 4232 | J18: -3512 | K18: -180 | M18: =J18+K18+L18 -> -3692 | N18: =H18+M18 -> 540
B19: N/A | C19: 1805 | D19: Land | E19: 0 | H19: =E19+F19+G19 -> 0 | M19: =J19+K19+L19 -> 0 | N19: =H19+M19 -> 0
B20: 47 | C20: 1808 | D20: Buildings | H20: =E20+F20+G20 -> 0 | M20: =J20+K20+L20 -> 0 | N20: =H20+M20 -> 0
B21: 13 | C21: 1810 | D21: Leasehold Improvements | H21: 0 | M21: 0 | N21: 0
B22: 47 | C22: 1815 | D22: Transformer Station Equipment >50 kV | H22: 0 | M22: 0 | N22: 0
B23: 47 | C23: 1820 | D23: Distribution Station Equipment <50 kV | H23: 0 | M23: 0 | N23: 0
B24: 47 | C24: 1825 | D24: Storage Battery Equipment | H24: 0 | M24: 0 | N24: 0
B25: 47 | C25: 1830 | D25: Poles, Towers & Fixtures | E25: 666633 | F25: 2203 | H25: 668836 | J25: -510491 | K25: -16032 | M25: -526523 | N25: 142313
B26: 47 | C26: 1835 | D26: Overhead Conductors & Devices | E26: 947944 | F26: 2579 | H26: 950523 | J26: -715017 | K26: -22456 | M26: -737473 | N26: 213050
B27: 47 | C27: 1840 | D27: Underground Conduit | E27: 5873 | F27: 1881 | H27: 7754 | J27: -1147 | K27: -294 | M27: -1441 | N27: 6313
B28: 47 | C28: 1845 | D28: Underground Conductors & Devices | E28: 423391 | F28: 809 | H28: 424200 | J28: -352402 | K28: -14121 | M28: -366523 | N28: 57677
B29: 47 | C29: 1850 | D29: Line Transformers | E29: 544950 | F29: 10201 | H29: 555151 | J29: -457900 | K29: -8540 | M29: -466440 | N29: 88711
B30: 47 | C30: 1855 | D30: Services (Overhead & Underground) | E30: 9766 | F30: 581 | H30: 10347 | J30: -1857 | K30: -414 | M30: -2271 | N30: 8076
B31: 47 | C31: 1860 | D31: Meters | E31: 132180 | H31: 132180 | J31: -79557 | K31: -3593 | M31: -83150 | N31: 49030
B32: 47 | C32: 1860 | D32: Meters (Smart Meters) | H32: 0 | M32: 0 | N32: 0
B33: N/A | C33: 1905 | D33: Land | E33: 7600 | H33: 7600 | M33: 0 | N33: 7600
B34: 47 | C34: 1908 | D34: Buildings & Fixtures | E34: 214579 | H34: 214579 | J34: -78998 | K34: -4022 | M34: -83020 | N34: 131559
B35: 13 | C35: 1910 | D35: Leasehold Improvements | H35: 0 | M35: 0 | N35: 0
B36: 8 | C36: 1915 | D36: Office Furniture & Equipment (10 years) | E36: 42114 | H36: 42114 | J36: -32903 | K36: -2873 | M36: -35776 | N36: 6338
B37: 8 | C37: 1915 | D37: Office Furniture & Equipment (5 years) | H37: 0 | M37: 0 | N37: 0
B38: 10 | C38: 1920 | D38: Computer Equipment - Hardware | E38: 77302 | F38: 0 | H38: 77302 | J38: -77302 | M38: -77302 | N38: 0
B39: 45 | C39: 1920 | D39: Computer Equip.-Hardware(Post Mar. 22/04) | E39: 2220 | H39: 2220 | J39: -1985 | K39: -235 | M39: -2220 | N39: 0
B40: 45.1 | C40: 1920 | D40: Computer Equip.-Hardware(Post Mar. 19/07) | E40: 20122 | F40: 5236 | H40: 25358 | J40: -5663 | K40: -3952 | M40: -9615 | N40: 15743
B41: 10 | C41: 1930 | D41: Transportation Equipment | E41: =309626.28+176808.34 -> 486434.62 | F41: 0 | H41: 486434.62 | J41: -465420.86 | K41: -9059.68 | M41: -474480.54 | N41: 11954.08
B42: 8 | C42: 1935 | D42: Stores Equipment | E42: 1855 | H42: 1855 | J42: -1855 | M42: -1855 | N42: 0
B43: 8 | C43: 1940 | D43: Tools, Shop & Garage Equipment | E43: 96771 | H43: 96771 | J43: -85841 | K43: -1582 | M43: -87423 | N43: 9348
B44: 8 | C44: 1945 | D44: Measurement & Testing Equipment | H44: 0 | M44: 0 | N44: 0
B45: 8 | C45: 1950 | D45: Power Operated Equipment | H45: 0 | M45: 0 | N45: 0
B46: 8 | C46: 1955 | D46: Communications Equipment | E46: 3546 | H46: 3546 | J46: -1773 | K46: -355 | M46: -2128 | N46: 1418
B47: 8 | C47: 1955 | D47: Communication Equipment (Smart Meters) | H47: 0 | M47: 0 | N47: 0
B48: 8 | C48: 1960 | D48: Miscellaneous Equipment | H48: 0 | M48: 0 | N48: 0
B49: 47 | C49: 1970 | D49: Load Management Controls Customer Premises | H49: 0 | M49: 0 | N49: 0
B50: 47 | C50: 1975 | D50: Load Management Controls Utility Premises | H50: 0 | M50: 0 | N50: 0
B51: 47 | C51: 1980 | D51: System Supervisor Equipment | H51: 0 | M51: 0 | N51: 0
B52: 47 | C52: 1985 | D52: Miscellaneous Fixed Assets | H52: 0 | M52: 0 | N52: 0
B53: 47 | C53: 1990 | D53: Other Tangible Property | H53: 0 | M53: 0 | N53: 0
B54: 47 | C54: 1995 | D54: Contributions & Grants | H54: 0 | M54: 0 | N54: 0
B55: 47 | C55: 2440 | D55: Deferred Revenue5
H56: 0 | M56: 0 | N56: 0
D57: Sub-Total | E57: =SUM(E17:E56) -> 3803469.95 | F57: =SUM(F17:F56) -> 23490 | G57: =SUM(G17:G56) -> 0 | H57: =SUM(H17:H56) -> 3826959.95 | J57: =SUM(J17:J56) -> -2952995.86 | K57: =SUM(K17:K56) -> -99903.68 | L57: =SUM(L17:L56) -> 0 | M57: =SUM(M17:M56) -> -3052899.54 | N57: =SUM(N17:N56) -> 774060.41
D58: Less Socialized Renewable Energy Generation Investments (input as negative) | H58: =E58+F58+G58 -> 0 | M58: =J58+K58+L58 -> 0 | N58: =H58+M58 -> 0
D59: Less Other Non Rate-Regulated Utility Assets (input as negative) | H59: 0 | M59: =J59+K59+L59 -> 0 | N59: 0
D60: Total PP&E | E60: =SUM(E57:E59) -> 3803469.95 | F60: =SUM(F57:F59) -> 23490 | G60: =SUM(G57:G59) -> 0 | H60: =SUM(H57:H59) -> 3826959.95 | J60: =SUM(J57:J59) -> -2952995.86 | K60: =SUM(K57:K59) -> -99903.68 | L60: =SUM(L57:L59) -> 0 | M60: =SUM(M57:M59) -> -3052899.54 | N60: =SUM(N57:N59) -> 774060.41
D61: Depreciation Expense adj. from gain or loss on the retirement of assets (pool of like assets), if applicable6
D62: Total | K62: =K60+K61 -> -99903.68
J64: Less: Fully Allocated Depreciation
B65: 10 | D65: Transportation | J65: Transportation | L65: 0
B66: 8 | D66: Stores Equipment | J66: Stores Equipment | L66: 0
J67: Net Depreciation | L67: =K62-L65-L66 -> -99903.68
B69: Notes:
B71: 1 | C71: Tables in the format outlined above covering all fixed asset accounts should be submitted for the Test Year, Bridge Year and all relevant historical years. At a minimum , the applicant must provide data for the earlier of: 1) all historical years back to its last rebasing; or 2) at least three years of historical actuals, in addition to Bridge Year and Test Year forecasts.
B74: 2 | C74: The "CCA Class" for fixed assets should agree with the CCA Class used for tax purposes in Tax Returns. Fixed Assets sub-components may be used where the underlying asset components are classified under multiple CCA Classes for tax purposes. If an applicant uses any different classes from those shown in the table, an explanation should be provided. (also see note 3 below).
B77: 3 | C77: The table may need to be customized for a utility's asset categories or for any new asset accounts announced or authorized by the Board.
B79: 4 | C79: The additions column (E) must not include construction work in progress (CWIP).
B81: 5 | C81: Effective on the date of IFRS adoption, customer contributions will no longer be recorded in Account 1995 Contributions & Grants, but will be recorded in Account 2440, Deferred Revenues.
B83: 6 | C83: Where a distributor for general financial reporting purposes under IFRS has accounted for the amount of gain or loss on the retirement of assets in a pool of like assets as a charge or credit to income, for reporting and rate application filings the distributor shall reclassify such gains and losses as depreciation expense, and disclose the amount separately.

Sheet App.2-CA DepExp_2010 OldCGAAP
B10: Depreciation and Amortization Expense
C11: Assumes the applicant made capitalization and depreciation expense accounting policy changes under CGAAP effective January 1, 2013 and will adopt IFRS for financial reporting purposes effective January 1, 2015.
D13: Year | E13: 2010 | F13: Former CGAAP
B14: Account | C14: Description | D14: Opening Regulatory Gross PP&E as at Jan 1, 2010 | E14: Less Fully Depreciated | F14: Net for Depreciation | G14: Additions | H14: Total for Depreciation | I14: Years | J14: Depreciation Rate | K14: 2010 Depreciation Expense | L14: 2010 Depreciation Expense per Appendix 2-B Fixed Assets, Column K (l) | M14: Variance 2
D15: (a) | E15: (b) | F15: (c) | G15: (d) | H15: (e) = (c) + ½ x (d) 1 | I15: (f) | J15: (g) = 1 / (f) | K15: (h) = (e) / (f) | M15: (m) = (h) - (l)
B16: 1611 | C16: Computer Software (Formally known as Account 1925) | D16: 115957 | E16: 54982 | F16: =D16-E16 -> 60975 | H16: =F16+0.5*G16 -> 60975 | I16: 5 | J16: =IF(I16=0,"",1/I16) -> 0.2 | K16: =IF(I16=0,0,H16/I16) -> 12195 | L16: 12195 | M16: =IF(ISERROR(+K16-L16), "", +K16-L16) -> 0
B17: 1612 | C17: Land Rights (Formally known as Account 1906) | D17: 4232 | E17: 2432 | F17: =D17-E17 -> 1800 | H17: =F17+0.5*G17 -> 1800 | I17: 10 | J17: 0.1 | K17: 180 | L17: 180 | M17: =IF(ISERROR(+K17-L17), "", +K17-L17) -> 0
B18: 1612 | C18: Land Rights (Formally known as Account 1906) | F18: 0 | H18: 0 | I18: 0 | K18: 0 | M18: 0
B19: 1805 | C19: Land | F19: 0 | H19: 0 | I19: 0 | K19: 0 | M19: 0
B20: 1808 | C20: Buildings - Equipment | F20: 0 | H20: 0 | I20: 0 | K20: 0 | M20: 0
B21: 1808 | C21: Buildings - Equipment | F21: 0 | H21: 0 | I21: 0 | K21: 0
B22: 1808 | C22: Buildings - Major Repairs | F22: 0 | H22: 0 | K22: 0 | M22: 0
B23: 1808 | C23: Buildings - Major Repairs | F23: 0 | H23: 0 | I23: 0 | K23: 0 | M23: 0
B24: 1808 | C24: Buildings - Brick, Stone, Concrete and Steel | F24: 0 | H24: 0 | K24: 0 | M24: 0
B25: 1810 | C25: Leasehold Improvements | F25: 0 | H25: 0 | K25: 0 | M25: 0
B26: 1815 | C26: Transformer Station Equipment >50 kV | F26: 0 | H26: 0 | K26: 0 | M26: 0
B27: 1820 | C27: Distribution Station Equipment <50 kV | F27: 0 | H27: 0 | I27: 30 | J27: 0.03333333333 | K27: 0 | M27: 0
B28: 1825 | C28: Storage Battery Equipment | F28: 0 | H28: 0 | K28: 0 | M28: 0
B29: 1830 | C29: Poles, Towers & Fixtures | D29: 666633 | E29: 266934.5 | F29: 399698.5 | G29: 2203 | H29: 400800 | I29: 25 | J29: 0.04 | K29: 16032 | L29: 16032 | M29: 0
B30: 1835 | C30: Overhead Conductors & Devices | D30: 947944 | E30: 387834 | F30: 560110 | G30: 2579 | H30: 561399.5 | I30: 25 | J30: 0.04 | K30: 22455.98 | L30: 22456 | M30: -0.02
B31: 1840 | C31: Underground Conduit | D31: 5873 | E31: 405 | F31: 5468 | G31: 1881 | H31: 6408.5 | I31: 25 | J31: 0.04 | K31: 256.34 | L31: 294 | M31: -37.66 | N31: Causé par le 1/2 taux non utilisé par HPDC, commencé dans les années à venir
B32: 1845 | C32: Underground Conductors & Devices | D32: 423391 | E32: 70777.5 | F32: 352613.5 | G32: 809 | H32: 353018 | I32: 25 | J32: 0.04 | K32: 14120.72 | L32: 14121 | M32: -0.28
B33: 1850 | C33: Line Transformers | D33: 544950 | E33: 341651 | F33: 203299 | G33: 10201 | H33: 208399.5 | I33: 25 | J33: 0.04 | K33: 8335.98 | L33: 8540 | M33: -204.02 | N33: Causé par le 1/2 taux non utilisé par HPDC, commencé dans les années à venir
B34: 1855 | C34: Services (Overhead & Underground) | D34: 9766 | F34: 9766 | G34: 581 | H34: 10056.5 | I34: 25 | J34: 0.04 | K34: 402.26 | L34: 414 | M34: -11.74 | N34: Causé par le 1/2 taux non utilisé par HPDC, commencé dans les années à venir
B35: 1860 | C35: Meters | D35: 132180 | E35: 42355 | F35: 89825 | H35: 89825 | I35: 25 | J35: 0.04 | K35: 3593 | L35: 3593 | M35: 0
B36: 1860 | C36: Meters (Smart Meters) | F36: 0 | H36: 0 | K36: 0 | M36: 0
B37: 1905 | C37: Land | D37: 7600 | F37: 7600 | H37: 7600 | I37: 0 | K37: 0 | M37: 0
B38: 1908 | C38: Buildings & Fixtures - Equipment | F38: 0 | H38: 0 | I38: 10 | J38: 0.1 | K38: 0 | M38: 0
B39: 1908 | C39: Buildings & Fixtures - Driveways | F39: 0 | H39: 0 | I39: 20 | J39: 0.05 | K39: 0 | M39: 0
B40: 1908 | C40: Buildings & Fixtures - Major Repairs | D40: 119617 | F40: 119617 | H40: 119617 | I40: 50 | J40: 0.02 | K40: 2392.34 | L40: 2392.34 | M40: 0
B41: 1908 | C41: Buildings & Fixtures - Brick Store etc | D41: 94962 | E41: 13474 | F41: 81488 | H41: 81488 | I41: 50 | J41: 0.02 | K41: 1629.76 | L41: 1629.76 | M41: 0
B42: 1910 | C42: Leasehold Improvements | F42: 0 | H42: 0 | K42: 0 | M42: 0
B43: 1915 | C43: Office Furniture & Equipment (10 years) | D43: 42114 | E43: 13380 | F43: 28734 | H43: 28734 | I43: 10 | J43: 0.1 | K43: 2873.4 | L43: 2873 | M43: 0.4
B44: 1915 | C44: Office Furniture & Equipment (5 years) | F44: 0 | H44: 0 | K44: 0 | M44: 0
B45: 1920 | C45: Computer Equipment - Hardware | D45: 77302 | E45: 77302 | F45: 0 | H45: 0 | I45: 5 | J45: 0.2 | K45: 0 | L45: 0 | M45: 0
B46: 1920 | C46: Computer Equip.-Hardware(Post Mar. 22/04) | D46: 2220 | E46: 1044 | F46: 1176 | H46: 1176 | I46: 5 | J46: 0.2 | K46: 235.2 | L46: 235 | M46: 0.2
B47: 1920 | C47: Computer Equip.-Hardware(Post Mar. 19/07) | D47: 20122 | F47: 20122 | G47: 5236 | H47: 22740 | I47: 5 | J47: 0.2 | K47: 4548 | L47: 3952 | M47: 596 | N47: Printer reclassifier dans computer mais a été amorti sur 10 ans de 2010-2013
B48: 1930 | C48: Transportation Equipment - under 3 Tons | D48: 176808 | E48: 131510 | F48: 45298 | H48: 45298 | I48: 5 | J48: 0.2 | K48: 9059.6 | L48: 9060 | M48: -0.4
B49: 1930 | C49: Transportation Equipment - 3 Tons & Over | D49: 309627 | E49: 309627 | F49: 0 | H49: 0 | I49: 8 | K49: 0 | M49: 0
B50: 1935 | C50: Stores Equipment | D50: 1855 | E50: 1855 | F50: 0 | H50: 0 | I50: 10 | J50: 0.1 | K50: 0 | M50: 0
B51: 1940 | C51: Tools, Shop & Garage Equipment | D51: 96771 | E51: 80950 | F51: 15821 | H51: 15821 | I51: 10 | J51: 0.1 | K51: 1582.1 | L51: 1582 | M51: 0.1
B52: 1945 | C52: Measurement & Testing Equipment | F52: 0 | H52: 0 | I52: 10 | J52: 0.1 | K52: 0 | M52: 0
B53: 1950 | C53: Power Operated Equipment | F53: 0 | H53: 0 | K53: 0 | M53: 0
B54: 1955 | C54: Communications Equipment | D54: 3546 | F54: 3546 | H54: 3546 | I54: 10 | J54: 0.1 | K54: 354.6 | L54: 355 | M54: -0.4
B55: 1955 | C55: Communication Equipment (Smart Meters) | F55: 0 | H55: 0 | K55: 0 | M55: 0
B56: 1960 | C56: Miscellaneous Equipment | F56: 0 | H56: 0 | K56: 0 | M56: 0
B57: 1970 | C57: Load Management Controls Customer Premises | F57: =D57-E57 -> 0 | H57: =F57+0.5*G57 -> 0 | I57: 10 | J57: =IF(I57=0,"",1/I57) -> 0.1 | K57: =IF(I57=0,0,H57/I57) -> 0 | M57: =IF(ISERROR(+K57-L57), "", +K57-L57) -> 0
B58: 1975 | C58: Load Management Controls Utility Premises | F58: 0 | H58: =F58+0.5*G58 -> 0 | I58: 10 | J58: 0.1 | K58: 0 | M58: 0
B59: 1980 | C59: System Supervisor Equipment | F59: 0 | H59: =F59+0.5*G59 -> 0 | I59: 15 | J59: 0.06666666667 | K59: 0 | M59: 0
B60: 1985 | C60: Miscellaneous Fixed Assets | F60: 0 | H60: 0 | K60: 0 | M60: 0
B61: 1990 | C61: Other Tangible Property | F61: =D61-E61 -> 0 | H61: =F61+0.5*G61 -> 0 | J61: =IF(I61=0,"",1/I61) ->  | K61: =IF(I61=0,0,H61/I61) -> 0 | M61: =IF(ISERROR(+K61-L61), "", +K61-L61) -> 0
B62: 1995 | C62: Contributions & Grants | F62: 0 | H62: 0 | I62: 25 | J62: 0.04 | K62: 0 | M62: 0
C64: Total | D64: =SUM(D16:D63) -> 3803470 | E64: =SUM(E16:E63) -> 1796513 | F64: =SUM(F16:F63) -> 2006957 | G64: =SUM(G16:G63) -> 23490 | H64: =SUM(H16:H63) -> 2018702 | K64: =SUM(K16:K63) -> 100246.28 | L64: =SUM(L16:L63) -> 99904.1 | M64: =SUM(M16:M63) -> 342.18

Sheet App.2-BA_FA Cont_2011_OldCGAAP
B10: Fixed Asset Continuity Schedule
F12: Accounting Standard | G12: CGAAP | H12: Old CGAAP
F13: Year | G13: 2011
E15: Cost | K15: Accumulated Depreciation
B16: CCA Class | C16: OEB | D16: Description | E16: Opening Balance | F16: Additions | G16: Disposals | H16: Closing Balance | J16: Opening Balance | K16: Additions | L16: Disposals | M16: Closing Balance | N16: Net Book Value
B17: 12 | C17: 1611 | D17: Computer Software (Formally known as Account 1925) | E17: ='App.2-BA_FA Cont_2010 OldCGAAP'!H17 -> 115957.33 | H17: =E17+F17+G17 -> 115957.33 | J17: ='App.2-BA_FA Cont_2010 OldCGAAP'!M17 -> -91567 | K17: -12195 | M17: =J17+K17+L17 -> -103762 | N17: =H17+M17 -> 12195.33
B18: CEC | C18: 1612 | D18: Land Rights (Formally known as Account 1906) | E18: ='App.2-BA_FA Cont_2010 OldCGAAP'!H18 -> 4232 | H18: =E18+F18+G18 -> 4232 | J18: ='App.2-BA_FA Cont_2010 OldCGAAP'!M18 -> -3692 | K18: -180 | M18: =J18+K18+L18 -> -3872 | N18: =H18+M18 -> 360
B19: N/A | C19: 1805 | D19: Land | E19: ='App.2-BA_FA Cont_2010 OldCGAAP'!H19 -> 0 | H19: =E19+F19+G19 -> 0 | J19: ='App.2-BA_FA Cont_2010 OldCGAAP'!M19 -> 0 | M19: =J19+K19+L19 -> 0 | N19: =H19+M19 -> 0
B20: 47 | C20: 1808 | D20: Buildings | E20: ='App.2-BA_FA Cont_2010 OldCGAAP'!H20 -> 0 | H20: =E20+F20+G20 -> 0 | J20: ='App.2-BA_FA Cont_2010 OldCGAAP'!M20 -> 0 | M20: =J20+K20+L20 -> 0 | N20: =H20+M20 -> 0
B21: 13 | C21: 1810 | D21: Leasehold Improvements | E21: ='App.2-BA_FA Cont_2010 OldCGAAP'!H21 -> 0 | H21: 0 | J21: ='App.2-BA_FA Cont_2010 OldCGAAP'!M21 -> 0 | M21: 0 | N21: 0
B22: 47 | C22: 1815 | D22: Transformer Station Equipment >50 kV | E22: ='App.2-BA_FA Cont_2010 OldCGAAP'!H22 -> 0 | H22: 0 | J22: ='App.2-BA_FA Cont_2010 OldCGAAP'!M22 -> 0 | M22: 0 | N22: 0
B23: 47 | C23: 1820 | D23: Distribution Station Equipment <50 kV | E23: ='App.2-BA_FA Cont_2010 OldCGAAP'!H23 -> 0 | H23: 0 | J23: ='App.2-BA_FA Cont_2010 OldCGAAP'!M23 -> 0 | M23: 0 | N23: 0
B24: 47 | C24: 1825 | D24: Storage Battery Equipment | E24: ='App.2-BA_FA Cont_2010 OldCGAAP'!H24 -> 0 | H24: 0 | J24: ='App.2-BA_FA Cont_2010 OldCGAAP'!M24 -> 0 | M24: 0 | N24: 0
B25: 47 | C25: 1830 | D25: Poles, Towers & Fixtures | E25: ='App.2-BA_FA Cont_2010 OldCGAAP'!H25 -> 668836 | F25: 5045.32 | H25: 673881.32 | J25: -526523 | K25: -15479 | M25: -542002 | N25: 131879.32
B26: 47 | C26: 1835 | D26: Overhead Conductors & Devices | E26: ='App.2-BA_FA Cont_2010 OldCGAAP'!H26 -> 950523 | F26: 2525 | H26: 953048 | J26: -737473 | K26: -21680 | M26: -759153 | N26: 193895
B27: 47 | C27: 1840 | D27: Underground Conduit | E27: ='App.2-BA_FA Cont_2010 OldCGAAP'!H27 -> 7754 | F27: 484 | H27: 8238 | J27: ='App.2-BA_FA Cont_2010 OldCGAAP'!M27 -> -1441 | K27: -304 | M27: -1745 | N27: 6493
B28: 47 | C28: 1845 | D28: Underground Conductors & Devices | E28: ='App.2-BA_FA Cont_2010 OldCGAAP'!H28 -> 424200 | H28: 424200 | J28: ='App.2-BA_FA Cont_2010 OldCGAAP'!M28 -> -366523 | K28: -8112 | M28: -374635 | N28: 49565
B29: 47 | C29: 1850 | D29: Line Transformers | E29: ='App.2-BA_FA Cont_2010 OldCGAAP'!H29 -> 555151 | F29: 2766 | H29: 557917 | J29: ='App.2-BA_FA Cont_2010 OldCGAAP'!M29 -> -466440 | K29: -8630 | M29: -475070 | N29: 82847
B30: 47 | C30: 1855 | D30: Services (Overhead & Underground) | E30: ='App.2-BA_FA Cont_2010 OldCGAAP'!H30 -> 10347 | F30: 3040 | H30: 13387 | J30: ='App.2-BA_FA Cont_2010 OldCGAAP'!M30 -> -2271 | K30: -475 | M30: -2746 | N30: 10641
B31: 47 | C31: 1860 | D31: Meters | E31: ='App.2-BA_FA Cont_2010 OldCGAAP'!H31 -> 132180 | F31: 5338 | H31: 137518 | J31: ='App.2-BA_FA Cont_2010 OldCGAAP'!M31 -> -83150 | K31: -3554 | M31: -86704 | N31: 50814
B32: 47 | C32: 1860 | D32: Meters (Smart Meters) | E32: ='App.2-BA_FA Cont_2010 OldCGAAP'!H32 -> 0 | H32: 0 | J32: ='App.2-BA_FA Cont_2010 OldCGAAP'!M32 -> 0 | M32: 0 | N32: 0
B33: N/A | C33: 1905 | D33: Land | E33: ='App.2-BA_FA Cont_2010 OldCGAAP'!H33 -> 7600 | H33: 7600 | J33: ='App.2-BA_FA Cont_2010 OldCGAAP'!M33 -> 0 | M33: 0 | N33: 7600
B34: 47 | C34: 1908 | D34: Buildings & Fixtures | E34: ='App.2-BA_FA Cont_2010 OldCGAAP'!H34 -> 214579 | H34: 214579 | J34: ='App.2-BA_FA Cont_2010 OldCGAAP'!M34 -> -83020 | K34: -4023 | M34: -87043 | N34: 127536
B35: 13 | C35: 1910 | D35: Leasehold Improvements | E35: ='App.2-BA_FA Cont_2010 OldCGAAP'!H35 -> 0 | H35: 0 | J35: ='App.2-BA_FA Cont_2010 OldCGAAP'!M35 -> 0 | M35: 0 | N35: 0
B36: 8 | C36: 1915 | D36: Office Furniture & Equipment (10 years) | E36: ='App.2-BA_FA Cont_2010 OldCGAAP'!H36 -> 42114 | H36: 42114 | J36: ='App.2-BA_FA Cont_2010 OldCGAAP'!M36 -> -35776 | K36: -2873 | M36: -38649 | N36: 3465
B37: 8 | C37: 1915 | D37: Office Furniture & Equipment (5 years) | E37: ='App.2-BA_FA Cont_2010 OldCGAAP'!H37 -> 0 | H37: 0 | J37: ='App.2-BA_FA Cont_2010 OldCGAAP'!M37 -> 0 | M37: 0 | N37: 0
B38: 10 | C38: 1920 | D38: Computer Equipment - Hardware | E38: ='App.2-BA_FA Cont_2010 OldCGAAP'!H38 -> 77302 | H38: 77302 | J38: ='App.2-BA_FA Cont_2010 OldCGAAP'!M38 -> -77302 | K38: 0 | M38: -77302 | N38: 0
B39: 45 | C39: 1920 | D39: Computer Equip.-Hardware(Post Mar. 22/04) | E39: ='App.2-BA_FA Cont_2010 OldCGAAP'!H39 -> 2220 | H39: 2220 | J39: ='App.2-BA_FA Cont_2010 OldCGAAP'!M39 -> -2220 | K39: 0 | M39: -2220 | N39: 0
B40: 45.1 | C40: 1920 | D40: Computer Equip.-Hardware(Post Mar. 19/07) | E40: ='App.2-BA_FA Cont_2010 OldCGAAP'!H40 -> 25358 | H40: 25358 | J40: ='App.2-BA_FA Cont_2010 OldCGAAP'!M40 -> -9615 | K40: -4476 | M40: -14091 | N40: 11267
B41: 10 | C41: 1930 | D41: Transportation Equipment | E41: ='App.2-BA_FA Cont_2010 OldCGAAP'!H41 -> 486434.62 | F41: 25129 | H41: 511563.62 | J41: ='App.2-BA_FA Cont_2010 OldCGAAP'!M41 -> -474480.54 | K41: -11573 | M41: -486053.54 | N41: 25510.08
B42: 8 | C42: 1935 | D42: Stores Equipment | E42: ='App.2-BA_FA Cont_2010 OldCGAAP'!H42 -> 1855 | H42: 1855 | J42: ='App.2-BA_FA Cont_2010 OldCGAAP'!M42 -> -1855 | M42: -1855 | N42: 0
B43: 8 | C43: 1940 | D43: Tools, Shop & Garage Equipment | E43: ='App.2-BA_FA Cont_2010 OldCGAAP'!H43 -> 96771 | F43: 1651 | H43: 98422 | J43: ='App.2-BA_FA Cont_2010 OldCGAAP'!M43 -> -87423 | K43: -1665 | M43: -89088 | N43: 9334
B44: 8 | C44: 1945 | D44: Measurement & Testing Equipment | E44: ='App.2-BA_FA Cont_2010 OldCGAAP'!H44 -> 0 | H44: 0 | J44: ='App.2-BA_FA Cont_2010 OldCGAAP'!M44 -> 0 | M44: 0 | N44: 0
B45: 8 | C45: 1950 | D45: Power Operated Equipment | E45: ='App.2-BA_FA Cont_2010 OldCGAAP'!H45 -> 0 | H45: 0 | J45: ='App.2-BA_FA Cont_2010 OldCGAAP'!M45 -> 0 | M45: 0 | N45: 0
B46: 8 | C46: 1955 | D46: Communications Equipment | E46: ='App.2-BA_FA Cont_2010 OldCGAAP'!H46 -> 3546 | H46: 3546 | J46: ='App.2-BA_FA Cont_2010 OldCGAAP'!M46 -> -2128 | K46: -355 | M46: -2483 | N46: 1063
B47: 8 | C47: 1955 | D47: Communication Equipment (Smart Meters) | E47: ='App.2-BA_FA Cont_2010 OldCGAAP'!H47 -> 0 | H47: 0 | J47: ='App.2-BA_FA Cont_2010 OldCGAAP'!M47 -> 0 | M47: 0 | N47: 0
B48: 8 | C48: 1960 | D48: Miscellaneous Equipment | E48: ='App.2-BA_FA Cont_2010 OldCGAAP'!H48 -> 0 | H48: 0 | J48: ='App.2-BA_FA Cont_2010 OldCGAAP'!M48 -> 0 | M48: 0 | N48: 0
B49: 47 | C49: 1970 | D49: Load Management Controls Customer Premises | E49: ='App.2-BA_FA Cont_2010 OldCGAAP'!H49 -> 0 | H49: 0 | J49: ='App.2-BA_FA Cont_2010 OldCGAAP'!M49 -> 0 | M49: 0 | N49: 0
B50: 47 | C50: 1975 | D50: Load Management Controls Utility Premises | E50: ='App.2-BA_FA Cont_2010 OldCGAAP'!H50 -> 0 | H50: 0 | J50: ='App.2-BA_FA Cont_2010 OldCGAAP'!M50 -> 0 | M50: 0 | N50: 0
B51: 47 | C51: 1980 | D51: System Supervisor Equipment | E51: ='App.2-BA_FA Cont_2010 OldCGAAP'!H51 -> 0 | H51: 0 | J51: ='App.2-BA_FA Cont_2010 OldCGAAP'!M51 -> 0 | M51: 0 | N51: 0
B52: 47 | C52: 1985 | D52: Miscellaneous Fixed Assets | E52: ='App.2-BA_FA Cont_2010 OldCGAAP'!H52 -> 0 | H52: 0 | J52: ='App.2-BA_FA Cont_2010 OldCGAAP'!M52 -> 0 | M52: 0 | N52: 0
B53: 47 | C53: 1990 | D53: Other Tangible Property | E53: ='App.2-BA_FA Cont_2010 OldCGAAP'!H53 -> 0 | H53: 0 | J53: ='App.2-BA_FA Cont_2010 OldCGAAP'!M53 -> 0 | M53: 0 | N53: 0
B54: 47 | C54: 1995 | D54: Contributions & Grants | E54: ='App.2-BA_FA Cont_2010 OldCGAAP'!H54 -> 0 | H54: 0 | J54: ='App.2-BA_FA Cont_2010 OldCGAAP'!M54 -> 0 | M54: 0 | N54: 0
B55: 47 | C55: 2440 | D55: Deferred Revenue5 | E55: ='App.2-BA_FA Cont_2010 OldCGAAP'!H55 -> 0 | J55: ='App.2-BA_FA Cont_2010 OldCGAAP'!M55 -> 0
E56: ='App.2-BA_FA Cont_2010 OldCGAAP'!H56 -> 0 | H56: 0 | M56: 0 | N56: 0
D57: Sub-Total | E57: =SUM(E17:E56) -> 3826959.95 | F57: =SUM(F17:F56) -> 45978.32 | G57: =SUM(G17:G56) -> 0 | H57: =SUM(H17:H56) -> 3872938.27 | J57: =SUM(J17:J56) -> -3052899.54 | K57: =SUM(K17:K56) -> -95574 | L57: =SUM(L17:L56) -> 0 | M57: =SUM(M17:M56) -> -3148473.54 | N57: =SUM(N17:N56) -> 724464.73
D58: Less Socialized Renewable Energy Generation Investments (input as negative) | H58: =E58+F58+G58 -> 0 | M58: =J58+K58+L58 -> 0 | N58: =H58+M58 -> 0
D59: Less Other Non Rate-Regulated Utility Assets (input as negative) | H59: 0 | M59: =J59+K59+L59 -> 0 | N59: 0
D60: Total PP&E | E60: =SUM(E57:E59) -> 3826959.95 | F60: =SUM(F57:F59) -> 45978.32 | G60: =SUM(G57:G59) -> 0 | H60: =SUM(H57:H59) -> 3872938.27 | J60: =SUM(J57:J59) -> -3052899.54 | K60: =SUM(K57:K59) -> -95574 | L60: =SUM(L57:L59) -> 0 | M60: =SUM(M57:M59) -> -3148473.54 | N60: =SUM(N57:N59) -> 724464.73
D61: Depreciation Expense adj. from gain or loss on the retirement of assets (pool of like assets), if applicable6
D62: Total | K62: =K60+K61 -> -95574
J64: Less: Fully Allocated Depreciation
B65: 10 | D65: Transportation | J65: Transportation | L65: 0
B66: 8 | D66: Stores Equipment | J66: Stores Equipment | L66: 0
J67: Net Depreciation | L67: =K62-L65-L66 -> -95574
B69: Notes:
B71: 1 | C71: Tables in the format outlined above covering all fixed asset accounts should be submitted for the Test Year, Bridge Year and all relevant historical years. At a minimum , the applicant must provide data for the earlier of: 1) all historical years back to its last rebasing; or 2) at least three years of historical actuals, in addition to Bridge Year and Test Year forecasts.
B74: 2 | C74: The "CCA Class" for fixed assets should agree with the CCA Class used for tax purposes in Tax Returns. Fixed Assets sub-components may be used where the underlying asset components are classified under multiple CCA Classes for tax purposes. If an applicant uses any different classes from those shown in the table, an explanation should be provided. (also see note 3 below).
B77: 3 | C77: The table may need to be customized for a utility's asset categories or for any new asset accounts announced or authorized by the Board.
B79: 4 | C79: The additions column (E) must not include construction work in progress (CWIP).
B81: 5 | C81: Effective on the date of IFRS adoption, customer contributions will no longer be recorded in Account 1995 Contributions & Grants, but will be recorded in Account 2440, Deferred Revenues.
B83: 6 | C83: Where a distributor for general financial reporting purposes under IFRS has accounted for the amount of gain or loss on the retirement of assets in a pool of like assets as a charge or credit to income, for reporting and rate application filings the distributor shall reclassify such gains and losses as depreciation expense, and disclose the amount separately.

Sheet App.2-CA DepExp_2011_OldCGAAP
B10: Depreciation and Amortization Expense
C11: Assumes the applicant made capitalization and depreciation expense accounting policy changes under CGAAP effective January 1, 2013 and will adopt IFRS for financial reporting purposes effective January 1, 2015.
D13: Year | E13: 2011 | F13: Former CGAAP
B14: Account | C14: Description | D14: Opening Regulatory Gross PP&E as at Jan 1, 2011 | E14: Less Fully Depreciated | F14: Net for Depreciation | G14: Additions | H14: Total for Depreciation | I14: Years | J14: Depreciation Rate | K14: 2011 Depreciation Expense | L14: 2011 Depreciation Expense per Appendix 2-B Fixed Assets, Column K (l) | M14: Variance 2
D15: (a) | E15: (b) | F15: (c) | G15: (d) | H15: (e) = (c) + ½ x (d) 1 | I15: (f) | J15: (g) = 1 / (f) | K15: (h) = (e) / (f) | M15: (m) = (h) - (l)
B16: 1611 | C16: Computer Software (Formally known as Account 1925) | D16: 115957 | E16: 54982 | F16: =D16-E16 -> 60975 | H16: =F16+0.5*G16 -> 60975 | I16: 5 | J16: =IF(I16=0,"",1/I16) -> 0.2 | K16: =IF(I16=0,0,H16/I16) -> 12195 | L16: 12195 | M16: =IF(ISERROR(+K16-L16), "", +K16-L16) -> 0
B17: 1612 | C17: Land Rights (Formally known as Account 1906) | D17: 4232 | E17: 2432 | F17: =D17-E17 -> 1800 | H17: =F17+0.5*G17 -> 1800 | I17: 10 | J17: 0.1 | K17: 180 | L17: 180 | M17: =IF(ISERROR(+K17-L17), "", +K17-L17) -> 0
B18: 1612 | C18: Land Rights (Formally known as Account 1906) | F18: 0 | H18: 0 | I18: 25 | J18: 0.04 | K18: 0 | M18: 0
B19: 1805 | C19: Land | F19: 0 | H19: 0 | I19: 0 | K19: 0 | M19: 0
B20: 1808 | C20: Buildings - Equipment | F20: 0 | H20: 0 | I20: 10 | J20: 0.1 | K20: 0 | M20: 0
B21: 1808 | C21: Buildings - Equipment | F21: 0 | H21: =F21+0.5*G21 -> 0 | I21: 20 | J21: 0.05 | K21: 0
B22: 1808 | C22: Buildings - Equipment | F22: 0 | H22: =F22+0.5*G22 -> 0 | I22: 25 | J22: 0.04 | K22: 0
B23: 1808 | C23: Buildings - Major Repairs | F23: 0 | H23: 0 | I23: 30 | J23: 0.03333333333 | K23: 0 | M23: 0
B24: 1808 | C24: Buildings - Major Repairs | F24: 0 | H24: 0 | I24: 25 | J24: 0.04 | K24: 0
B25: 1808 | C25: Buildings - Brick, Stone, Concrete and Steel | F25: 0 | H25: 0 | I25: 25 | J25: 0.04 | K25: 0 | M25: 0
B26: 1810 | C26: Leasehold Improvements | F26: 0 | H26: 0 | K26: 0 | M26: 0
B27: 1815 | C27: Transformer Station Equipment >50 kV | F27: 0 | H27: 0 | I27: 30 | J27: 0.03333333333 | K27: 0 | M27: 0
B28: 1820 | C28: Distribution Station Equipment <50 kV | F28: 0 | H28: 0 | I28: 30 | J28: 0.03333333333 | K28: 0 | M28: 0
B29: 1825 | C29: Storage Battery Equipment | F29: 0 | H29: 0 | K29: 0 | M29: 0
B30: 1830 | C30: Poles, Towers & Fixtures | D30: 668836 | E30: 284384 | F30: 384452 | G30: 5045 | H30: 386974.5 | I30: 25 | J30: 0.04 | K30: 15478.98 | L30: 15479 | M30: -0.02
B31: 1835 | C31: Overhead Conductors & Devices | D31: 950523 | E31: 409786 | F31: 540737 | G31: 2525 | H31: 541999.5 | I31: 25 | J31: 0.04 | K31: 21679.98 | L31: 21680 | M31: -0.02
B32: 1840 | C32: Underground Conduit | D32: 7754 | E32: 405 | F32: 7349 | G32: 484 | H32: 7591 | I32: 25 | J32: 0.04 | K32: 303.64 | L32: 304 | M32: -0.36
B33: 1845 | C33: Underground Conductors & Devices | D33: 424200 | E33: 221407 | F33: 202793 | H33: 202793 | I33: 25 | J33: 0.04 | K33: 8111.72 | L33: 8112 | M33: -0.28
B34: 1850 | C34: Line Transformers | D34: 555151 | E34: 342284 | F34: 212867 | G34: 5766 | H34: 215750 | I34: 25 | J34: 0.04 | K34: 8630 | L34: 8630 | M34: 0
B35: 1855 | C35: Services (Overhead & Underground) | D35: 10347 | F35: 10347 | G35: 3040 | H35: 11867 | I35: 25 | J35: 0.04 | K35: 474.68 | L35: 475 | M35: -0.32
B36: 1860 | C36: Meters | D36: 132180 | E36: 46005 | F36: 86175 | G36: 5338 | H36: 88844 | I36: 25 | J36: 0.04 | K36: 3553.76 | L36: 3554 | M36: -0.24
B37: 1860 | C37: Meters (Smart Meters) | F37: 0 | H37: 0 | K37: 0 | M37: 0
B38: 1905 | C38: Land | D38: 7600 | F38: 7600 | H38: 7600 | I38: 0 | K38: 0 | M38: 0
B39: 1908 | C39: Buildings & Fixtures - Equipment | F39: 0 | H39: 0 | I39: 10 | J39: 0.1 | K39: 0 | M39: 0
B40: 1908 | C40: Buildings & Fixtures - Equipment | H40: 0 | I40: 20 | J40: 0.05 | K40: 0
B41: 1908 | C41: Buildings & Fixtures - Driveways | F41: 0 | H41: 0 | I41: 25 | J41: 0.04 | K41: 0 | M41: 0
B42: 1908 | C42: Buildings & Fixtures - Major Repairs | D42: 119617 | F42: 119617 | H42: 119617 | I42: 50 | J42: 0.02 | K42: 2392.34 | L42: 2393 | M42: -0.66
B43: 1908 | C43: Buildings & Fixtures - Brick Store etc | D43: 94962 | E43: 13474 | F43: 81488 | H43: 81488 | I43: 50 | J43: 0.02 | K43: 1629.76 | L43: 1630 | M43: -0.24
B44: 1910 | C44: Leasehold Improvements | F44: 0 | H44: 0 | I44: 10 | J44: 0.1 | K44: 0 | M44: 0
B45: 1915 | C45: Office Furniture & Equipment (10 years) | D45: 42114 | E45: 13380 | F45: 28734 | H45: 28734 | I45: 10 | J45: 0.1 | K45: 2873.4 | L45: 2873 | M45: 0.4
B46: 1915 | C46: Office Furniture & Equipment (5 years) | F46: 0 | H46: 0 | K46: 0 | M46: 0
B47: 1920 | C47: Computer Equipment - Hardware | D47: 77302 | E47: 77302 | F47: 0 | H47: 0 | I47: 5 | J47: 0.2 | K47: 0 | M47: 0
B48: 1920 | C48: Computer Equip.-Hardware(Post Mar. 22/04) | D48: 2220 | E48: 2220 | F48: 0 | H48: 0 | I48: 5 | J48: 0.2 | K48: 0 | L48: 0 | M48: 0
B49: 1920 | C49: Computer Equip.-Hardware(Post Mar. 19/07) | D49: 25358 | F49: 25358 | H49: 25358 | I49: 5 | J49: 0.2 | K49: 5071.6 | L49: 4476 | M49: 595.6 | N49: Printer reclassifier dans computer mais a été amorti sur 10 ans de 2010-2013
B50: 1930 | C50: Transportation Equipment - under 3 Tons | D50: 176808 | E50: 131510 | F50: 45298 | G50: 25129 | H50: 57862.5 | I50: 5 | J50: 0.2 | K50: 11572.5 | L50: 11573 | M50: -0.5
B51: 1930 | C51: Transportation Equipment - 3 Tons & Over | D51: 309627 | E51: 309627 | F51: 0 | H51: 0 | I51: 8 | J51: 0.125 | K51: 0 | M51: 0
B52: 1935 | C52: Stores Equipment | D52: 1855 | E52: 1855 | F52: 0 | H52: 0 | I52: 10 | J52: 0.1 | K52: 0 | M52: 0
B53: 1940 | C53: Tools, Shop & Garage Equipment | D53: 96771 | E53: 80950 | F53: 15821 | G53: 1651 | H53: 16646.5 | I53: 10 | J53: 0.1 | K53: 1664.65 | L53: 1665 | M53: -0.35
B54: 1945 | C54: Measurement & Testing Equipment | F54: 0 | H54: 0 | I54: 10 | J54: 0.1 | K54: 0 | M54: 0
B55: 1950 | C55: Power Operated Equipment | F55: 0 | H55: 0 | K55: 0 | M55: 0
B56: 1955 | C56: Communications Equipment | D56: 3546 | F56: 3546 | H56: 3546 | I56: 10 | J56: 0.1 | K56: 354.6 | L56: 355 | M56: -0.4
B57: 1955 | C57: Communication Equipment (Smart Meters) | F57: 0 | H57: 0 | K57: 0 | M57: 0
B58: 1960 | C58: Miscellaneous Equipment | F58: 0 | H58: 0 | K58: 0 | M58: 0
B59: 1970 | C59: Load Management Controls Customer Premises | F59: =D59-E59 -> 0 | H59: =F59+0.5*G59 -> 0 | I59: 10 | J59: =IF(I59=0,"",1/I59) -> 0.1 | K59: =IF(I59=0,0,H59/I59) -> 0 | M59: =IF(ISERROR(+K59-L59), "", +K59-L59) -> 0
B60: 1975 | C60: Load Management Controls Utility Premises | F60: 0 | H60: 0 | I60: 10 | J60: 0.1 | K60: 0 | M60: 0
B61: 1980 | C61: System Supervisor Equipment | F61: 0 | H61: 0 | I61: 15 | J61: 0.06666666667 | K61: 0 | M61: 0
B62: 1985 | C62: Miscellaneous Fixed Assets | F62: 0 | H62: 0 | K62: 0 | M62: 0
B63: 1990 | C63: Other Tangible Property | F63: =D63-E63 -> 0 | H63: =F63+0.5*G63 -> 0 | J63: =IF(I63=0,"",1/I63) ->  | K63: =IF(I63=0,0,H63/I63) -> 0 | M63: =IF(ISERROR(+K63-L63), "", +K63-L63) -> 0
B64: 1995 | C64: Contributions & Grants | F64: 0 | H64: 0 | I64: 25 | J64: 0.04 | K64: 0 | M64: 0
B65: 1609 | C65: Other Tangible Property | F65: 0 | H65: 0 | K65: 0 | M65: 0
F66: 0 | H66: 0 | K66: 0 | M66: 0
C67: Total | D67: =SUM(D16:D66) -> 3826960 | E67: =SUM(E16:E66) -> 1992003 | F67: =SUM(F16:F66) -> 1834957 | G67: =SUM(G16:G66) -> 48978 | H67: =SUM(H16:H66) -> 1859446 | K67: =SUM(K16:K66) -> 96166.61 | L67: =SUM(L16:L66) -> 95574 | M67: =SUM(M16:M66) -> 592.61

Sheet App.2-BA_FA Cont_2012_OldCGAAP
B10: Fixed Asset Continuity Schedule
F12: Accounting Standard | G12: CGAAP | H12: Old CGAAP
F13: Year | G13: 2012
E15: Cost | K15: Accumulated Depreciation
B16: CCA Class | C16: OEB | D16: Description | E16: Opening Balance | F16: Additions | G16: Disposals | H16: Closing Balance | J16: Opening Balance | K16: Additions | L16: Disposals | M16: Closing Balance | N16: Net Book Value
B17: 12 | C17: 1611 | D17: Computer Software (Formally known as Account 1925) | E17: ='App.2-BA_FA Cont_2011_OldCGAAP'!H17 -> 115957.33 | F17: 5795 | H17: =E17+F17+G17 -> 121752.33 | J17: ='App.2-BA_FA Cont_2011_OldCGAAP'!M17 -> -103762 | K17: -13353 | M17: =J17+K17+L17 -> -117115 | N17: =H17+M17 -> 4637.33
B18: CEC | C18: 1612 | D18: Land Rights (Formally known as Account 1906) | E18: ='App.2-BA_FA Cont_2011_OldCGAAP'!H18 -> 4232 | H18: =E18+F18+G18 -> 4232 | J18: ='App.2-BA_FA Cont_2011_OldCGAAP'!M18 -> -3872 | K18: -180 | M18: =J18+K18+L18 -> -4052 | N18: =H18+M18 -> 180
B19: N/A | C19: 1805 | D19: Land | E19: ='App.2-BA_FA Cont_2011_OldCGAAP'!H19 -> 0 | H19: =E19+F19+G19 -> 0 | J19: ='App.2-BA_FA Cont_2011_OldCGAAP'!M19 -> 0 | M19: =J19+K19+L19 -> 0 | N19: =H19+M19 -> 0
B20: 47 | C20: 1808 | D20: Buildings | E20: ='App.2-BA_FA Cont_2011_OldCGAAP'!H20 -> 0 | H20: =E20+F20+G20 -> 0 | J20: ='App.2-BA_FA Cont_2011_OldCGAAP'!M20 -> 0 | M20: =J20+K20+L20 -> 0 | N20: =H20+M20 -> 0
B21: 13 | C21: 1810 | D21: Leasehold Improvements | E21: ='App.2-BA_FA Cont_2011_OldCGAAP'!H21 -> 0 | H21: 0 | J21: ='App.2-BA_FA Cont_2011_OldCGAAP'!M21 -> 0 | M21: 0 | N21: 0
B22: 47 | C22: 1815 | D22: Transformer Station Equipment >50 kV | E22: ='App.2-BA_FA Cont_2011_OldCGAAP'!H22 -> 0 | H22: 0 | J22: ='App.2-BA_FA Cont_2011_OldCGAAP'!M22 -> 0 | M22: 0 | N22: 0
B23: 47 | C23: 1820 | D23: Distribution Station Equipment <50 kV | E23: ='App.2-BA_FA Cont_2011_OldCGAAP'!H23 -> 0 | H23: 0 | J23: ='App.2-BA_FA Cont_2011_OldCGAAP'!M23 -> 0 | M23: 0 | N23: 0
B24: 47 | C24: 1825 | D24: Storage Battery Equipment | E24: ='App.2-BA_FA Cont_2011_OldCGAAP'!H24 -> 0 | H24: 0 | J24: ='App.2-BA_FA Cont_2011_OldCGAAP'!M24 -> 0 | M24: 0 | N24: 0
B25: 47 | C25: 1830 | D25: Poles, Towers & Fixtures | E25: ='App.2-BA_FA Cont_2011_OldCGAAP'!H25 -> 673881.32 | F25: 13038 | H25: 686919.32 | J25: -542002 | K25: -15109 | M25: -557111 | N25: 129808.32
B26: 47 | C26: 1835 | D26: Overhead Conductors & Devices | E26: ='App.2-BA_FA Cont_2011_OldCGAAP'!H26 -> 953048 | F26: 9083 | H26: 962131 | J26: -759153 | K26: -21163 | M26: -780316 | N26: 181815
B27: 47 | C27: 1840 | D27: Underground Conduit | E27: ='App.2-BA_FA Cont_2011_OldCGAAP'!H27 -> 8238 | G27: -1190 | H27: 7048 | J27: ='App.2-BA_FA Cont_2011_OldCGAAP'!M27 -> -1745 | K27: -280 | M27: -2025 | N27: 5023
B28: 47 | C28: 1845 | D28: Underground Conductors & Devices | E28: ='App.2-BA_FA Cont_2011_OldCGAAP'!H28 -> 424200 | F28: 1196 | H28: 425396 | J28: ='App.2-BA_FA Cont_2011_OldCGAAP'!M28 -> -374635 | K28: -7209 | M28: -381844 | N28: 43552
B29: 47 | C29: 1850 | D29: Line Transformers | E29: ='App.2-BA_FA Cont_2011_OldCGAAP'!H29 -> 557917 | G29: 0 | H29: 557917 | J29: ='App.2-BA_FA Cont_2011_OldCGAAP'!M29 -> -475070 | K29: -9462 | M29: -484532 | N29: 73385
B30: 47 | C30: 1855 | D30: Services (Overhead & Underground) | E30: ='App.2-BA_FA Cont_2011_OldCGAAP'!H30 -> 13387 | F30: 142 | H30: 13529 | J30: ='App.2-BA_FA Cont_2011_OldCGAAP'!M30 -> -2746 | K30: -538 | M30: -3284 | N30: 10245
B31: 47 | C31: 1860 | D31: Meters | E31: ='App.2-BA_FA Cont_2011_OldCGAAP'!H31 -> 137518 | F31: 197 | H31: 137715 | J31: ='App.2-BA_FA Cont_2011_OldCGAAP'!M31 -> -86704 | K31: -3413 | M31: -90117 | N31: 47598
B32: 47 | C32: 1860 | D32: Meters (Smart Meters) | E32: ='App.2-BA_FA Cont_2011_OldCGAAP'!H32 -> 0 | H32: 0 | J32: ='App.2-BA_FA Cont_2011_OldCGAAP'!M32 -> 0 | M32: 0 | N32: 0
B33: N/A | C33: 1905 | D33: Land | E33: ='App.2-BA_FA Cont_2011_OldCGAAP'!H33 -> 7600 | H33: 7600 | J33: ='App.2-BA_FA Cont_2011_OldCGAAP'!M33 -> 0 | M33: 0 | N33: 7600
B34: 47 | C34: 1908 | D34: Buildings & Fixtures | E34: ='App.2-BA_FA Cont_2011_OldCGAAP'!H34 -> 214579 | F34: 17890 | H34: 232469 | J34: ='App.2-BA_FA Cont_2011_OldCGAAP'!M34 -> -87043 | K34: -4201 | M34: -91244 | N34: 141225
B35: 13 | C35: 1910 | D35: Leasehold Improvements | E35: ='App.2-BA_FA Cont_2011_OldCGAAP'!H35 -> 0 | H35: 0 | J35: ='App.2-BA_FA Cont_2011_OldCGAAP'!M35 -> 0 | M35: 0 | N35: 0
B36: 8 | C36: 1915 | D36: Office Furniture & Equipment (10 years) | E36: ='App.2-BA_FA Cont_2011_OldCGAAP'!H36 -> 42114 | H36: 42114 | J36: ='App.2-BA_FA Cont_2011_OldCGAAP'!M36 -> -38649 | K36: -1578 | M36: -40227 | N36: 1887
B37: 8 | C37: 1915 | D37: Office Furniture & Equipment (5 years) | E37: ='App.2-BA_FA Cont_2011_OldCGAAP'!H37 -> 0 | H37: 0 | J37: ='App.2-BA_FA Cont_2011_OldCGAAP'!M37 -> 0 | M37: 0 | N37: 0
B38: 10 | C38: 1920 | D38: Computer Equipment - Hardware | E38: ='App.2-BA_FA Cont_2011_OldCGAAP'!H38 -> 77302 | H38: 77302 | J38: ='App.2-BA_FA Cont_2011_OldCGAAP'!M38 -> -77302 | M38: -77302 | N38: 0
B39: 45 | C39: 1920 | D39: Computer Equip.-Hardware(Post Mar. 22/04) | E39: ='App.2-BA_FA Cont_2011_OldCGAAP'!H39 -> 2220 | H39: 2220 | J39: ='App.2-BA_FA Cont_2011_OldCGAAP'!M39 -> -2220 | M39: -2220 | N39: 0
B40: 45.1 | C40: 1920 | D40: Computer Equip.-Hardware(Post Mar. 19/07) | E40: ='App.2-BA_FA Cont_2011_OldCGAAP'!H40 -> 25358 | H40: 25358 | J40: ='App.2-BA_FA Cont_2011_OldCGAAP'!M40 -> -14091 | K40: -4476 | M40: -18567 | N40: 6791
B41: 10 | C41: 1930 | D41: Transportation Equipment | E41: ='App.2-BA_FA Cont_2011_OldCGAAP'!H41 -> 511563.62 | F41: 218140 | G41: -25704 | H41: 703999.62 | J41: ='App.2-BA_FA Cont_2011_OldCGAAP'!M41 -> -486053.54 | K41: -29734 | L41: 25704 | M41: -490083.54 | N41: 213916.08
B42: 8 | C42: 1935 | D42: Stores Equipment | E42: ='App.2-BA_FA Cont_2011_OldCGAAP'!H42 -> 1855 | H42: 1855 | J42: ='App.2-BA_FA Cont_2011_OldCGAAP'!M42 -> -1855 | M42: -1855 | N42: 0
B43: 8 | C43: 1940 | D43: Tools, Shop & Garage Equipment | E43: ='App.2-BA_FA Cont_2011_OldCGAAP'!H43 -> 98422 | H43: 98422 | J43: ='App.2-BA_FA Cont_2011_OldCGAAP'!M43 -> -89088 | K43: -1461 | M43: -90549 | N43: 7873
B44: 8 | C44: 1945 | D44: Measurement & Testing Equipment | E44: ='App.2-BA_FA Cont_2011_OldCGAAP'!H44 -> 0 | H44: 0 | J44: ='App.2-BA_FA Cont_2011_OldCGAAP'!M44 -> 0 | M44: 0 | N44: 0
B45: 8 | C45: 1950 | D45: Power Operated Equipment | E45: ='App.2-BA_FA Cont_2011_OldCGAAP'!H45 -> 0 | H45: 0 | J45: ='App.2-BA_FA Cont_2011_OldCGAAP'!M45 -> 0 | M45: 0 | N45: 0
B46: 8 | C46: 1955 | D46: Communications Equipment | E46: ='App.2-BA_FA Cont_2011_OldCGAAP'!H46 -> 3546 | H46: 3546 | J46: ='App.2-BA_FA Cont_2011_OldCGAAP'!M46 -> -2483 | K46: -355 | M46: -2838 | N46: 708
B47: 8 | C47: 1955 | D47: Communication Equipment (Smart Meters) | E47: ='App.2-BA_FA Cont_2011_OldCGAAP'!H47 -> 0 | H47: 0 | J47: ='App.2-BA_FA Cont_2011_OldCGAAP'!M47 -> 0 | M47: 0 | N47: 0
B48: 8 | C48: 1960 | D48: Miscellaneous Equipment | E48: ='App.2-BA_FA Cont_2011_OldCGAAP'!H48 -> 0 | H48: 0 | J48: ='App.2-BA_FA Cont_2011_OldCGAAP'!M48 -> 0 | M48: 0 | N48: 0
B49: 47 | C49: 1970 | D49: Load Management Controls Customer Premises | E49: ='App.2-BA_FA Cont_2011_OldCGAAP'!H49 -> 0 | H49: 0 | J49: ='App.2-BA_FA Cont_2011_OldCGAAP'!M49 -> 0 | M49: 0 | N49: 0
B50: 47 | C50: 1975 | D50: Load Management Controls Utility Premises | E50: ='App.2-BA_FA Cont_2011_OldCGAAP'!H50 -> 0 | H50: 0 | J50: ='App.2-BA_FA Cont_2011_OldCGAAP'!M50 -> 0 | M50: 0 | N50: 0
B51: 47 | C51: 1980 | D51: System Supervisor Equipment | E51: ='App.2-BA_FA Cont_2011_OldCGAAP'!H51 -> 0 | H51: 0 | J51: ='App.2-BA_FA Cont_2011_OldCGAAP'!M51 -> 0 | M51: 0 | N51: 0
B52: 47 | C52: 1985 | D52: Miscellaneous Fixed Assets | E52: ='App.2-BA_FA Cont_2011_OldCGAAP'!H52 -> 0 | H52: 0 | J52: ='App.2-BA_FA Cont_2011_OldCGAAP'!M52 -> 0 | M52: 0 | N52: 0
B53: 47 | C53: 1990 | D53: Other Tangible Property | E53: ='App.2-BA_FA Cont_2011_OldCGAAP'!H53 -> 0 | H53: 0 | J53: ='App.2-BA_FA Cont_2011_OldCGAAP'!M53 -> 0 | M53: 0 | N53: 0
B54: 47 | C54: 1995 | D54: Contributions & Grants | E54: ='App.2-BA_FA Cont_2011_OldCGAAP'!H54 -> 0 | H54: 0 | J54: ='App.2-BA_FA Cont_2011_OldCGAAP'!M54 -> 0 | M54: 0 | N54: 0
B55: 47 | C55: 2440 | D55: Deferred Revenue5 | E55: ='App.2-BA_FA Cont_2011_OldCGAAP'!H55 -> 0 | J55: ='App.2-BA_FA Cont_2011_OldCGAAP'!M55 -> 0
H56: 0 | M56: 0 | N56: 0
D57: Sub-Total | E57: =SUM(E17:E56) -> 3872938.27 | F57: =SUM(F17:F56) -> 265481 | G57: =SUM(G17:G56) -> -26894 | H57: =SUM(H17:H56) -> 4111525.27 | J57: =SUM(J17:J56) -> -3148473.54 | K57: =SUM(K17:K56) -> -112512 | L57: =SUM(L17:L56) -> 25704 | M57: =SUM(M17:M56) -> -3235281.54 | N57: =SUM(N17:N56) -> 876243.73
D58: Less Socialized Renewable Energy Generation Investments (input as negative) | H58: =E58+F58+G58 -> 0 | M58: =J58+K58+L58 -> 0 | N58: =H58+M58 -> 0
D59: Less Other Non Rate-Regulated Utility Assets (input as negative) | H59: 0 | M59: =J59+K59+L59 -> 0 | N59: 0
D60: Total PP&E | E60: =SUM(E57:E59) -> 3872938.27 | F60: =SUM(F57:F59) -> 265481 | G60: =SUM(G57:G59) -> -26894 | H60: =SUM(H57:H59) -> 4111525.27 | J60: =SUM(J57:J59) -> -3148473.54 | K60: =SUM(K57:K59) -> -112512 | L60: =SUM(L57:L59) -> 25704 | M60: =SUM(M57:M59) -> -3235281.54 | N60: =SUM(N57:N59) -> 876243.73
D61: Depreciation Expense adj. from gain or loss on the retirement of assets (pool of like assets), if applicable6
D62: Total | K62: =K60+K61 -> -112512
J64: Less: Fully Allocated Depreciation
B65: 10 | D65: Transportation | J65: Transportation | L65: 0
B66: 8 | D66: Stores Equipment | J66: Stores Equipment | L66: 0
J67: Net Depreciation | L67: =K62-L65-L66 -> -112512
B69: Notes:
B71: 1 | C71: Tables in the format outlined above covering all fixed asset accounts should be submitted for the Test Year, Bridge Year and all relevant historical years. At a minimum , the applicant must provide data for the earlier of: 1) all historical years back to its last rebasing; or 2) at least three years of historical actuals, in addition to Bridge Year and Test Year forecasts.
B74: 2 | C74: The "CCA Class" for fixed assets should agree with the CCA Class used for tax purposes in Tax Returns. Fixed Assets sub-components may be used where the underlying asset components are classified under multiple CCA Classes for tax purposes. If an applicant uses any different classes from those shown in the table, an explanation should be provided. (also see note 3 below).
B77: 3 | C77: The table may need to be customized for a utility's asset categories or for any new asset accounts announced or authorized by the Board.
B79: 4 | C79: The additions column (E) must not include construction work in progress (CWIP).
B81: 5 | C81: Effective on the date of IFRS adoption, customer contributions will no longer be recorded in Account 1995 Contributions & Grants, but will be recorded in Account 2440, Deferred Revenues.
B83: 6 | C83: Where a distributor for general financial reporting purposes under IFRS has accounted for the amount of gain or loss on the retirement of assets in a pool of like assets as a charge or credit to income, for reporting and rate application filings the distributor shall reclassify such gains and losses as depreciation expense, and disclose the amount separately.

Sheet App.2-CA DepExp_2012 OldCGAAP
B10: Depreciation and Amortization Expense
C11: Assumes the applicant made capitalization and depreciation expense accounting policy changes under CGAAP effective January 1, 2013 and will adopt IFRS for financial reporting purposes effective January 1, 2015.
D13: Year | E13: 2012 | F13: Former CGAAP
B14: Account | C14: Description | D14: Opening Regulatory Gross PP&E as at Jan 1, 2012 | E14: Less Fully Depreciated | F14: Net for Depreciation | G14: Additions | H14: Total for Depreciation | I14: Years | J14: Depreciation Rate | K14: 2012 Depreciation Expense | L14: 2012 Depreciation Expense per Appendix 2-B Fixed Assets, Column K (l) | M14: Variance 2
D15: (a) | E15: (b) | F15: (c) | G15: (d) | H15: (e) = (c) + ½ x (d) 1 | I15: (f) | J15: (g) = 1 / (f) | K15: (h) = (e) / (f) | M15: (m) = (h) - (l)
B16: 1611 | C16: Computer Software (Formally known as Account 1925) | D16: 115957 | E16: 54982 | F16: =D16-E16 -> 60975 | G16: 5795 | H16: =F16+0.5*G16 -> 63872.5 | I16: 5 | J16: =IF(I16=0,"",1/I16) -> 0.2 | K16: =IF(I16=0,0,H16/I16) -> 12774.5 | L16: 13353 | M16: =IF(ISERROR(+K16-L16), "", +K16-L16) -> -578.5
B17: 1612 | C17: Land Rights (Formally known as Account 1906) | D17: 4232 | E17: 2432 | F17: =D17-E17 -> 1800 | H17: =F17+0.5*G17 -> 1800 | I17: 10 | J17: 0.1 | K17: 180 | L17: 180 | M17: =IF(ISERROR(+K17-L17), "", +K17-L17) -> 0
B18: 1612 | C18: Land Rights (Formally known as Account 1906) | F18: 0 | H18: 0 | I18: 25 | J18: 0.04 | K18: 0 | M18: 0
B19: 1805 | C19: Land | F19: 0 | H19: 0 | I19: 0 | K19: 0 | M19: 0
B20: 1808 | C20: Buildings | F20: 0 | H20: 0 | K20: 0 | M20: 0
B21: 1808 | C21: Buildings | F21: 0 | H21: 0 | K21: 0 | M21: 0
B22: 1808 | C22: Buildings | F22: 0 | H22: 0 | K22: 0 | M22: 0
B23: 1808 | C23: Buildings | F23: 0 | H23: 0 | K23: 0 | M23: 0
B24: 1808 | C24: Buildings | F24: 0 | H24: 0 | I24: 25 | J24: 0.04 | K24: 0 | M24: 0
B25: 1808 | C25: Buildings | F25: 0 | H25: 0 | K25: 0 | M25: 0
B26: 1810 | C26: Leasehold Improvements | F26: 0 | H26: 0 | K26: 0 | M26: 0
B27: 1815 | C27: Transformer Station Equipment >50 kV | F27: 0 | H27: 0 | K27: 0 | M27: 0
B28: 1820 | C28: Distribution Station Equipment <50 kV | F28: 0 | H28: 0 | I28: 30 | J28: 0.03333333333 | K28: 0 | M28: 0
B29: 1825 | C29: Storage Battery Equipment | F29: 0 | H29: 0 | K29: 0 | M29: 0
B30: 1830 | C30: Poles, Towers & Fixtures | D30: 673881 | E30: 302675 | F30: 371206 | G30: 13038 | H30: 377725 | I30: 25 | J30: 0.04 | K30: 15109 | L30: 15109 | M30: 0
B31: 1835 | C31: Overhead Conductors & Devices | D31: 953048 | E31: 428515 | F31: 524533 | G31: 9083 | H31: 529074.5 | I31: 25 | J31: 0.04 | K31: 21162.98 | L31: 21163 | M31: -0.02
B32: 1840 | C32: Underground Conduit | D32: 8238 | E32: 1190 | F32: 7048 | H32: 7048 | I32: 25 | J32: 0.04 | K32: 281.92 | L32: 280 | M32: 1.92
B33: 1845 | C33: Underground Conductors & Devices | D33: 424200 | E33: 244573 | F33: 179627 | G33: 1196 | H33: 180225 | I33: 25 | J33: 0.04 | K33: 7209 | L33: 7209 | M33: 0
B34: 1850 | C34: Line Transformers | D34: 557917 | E34: 321367 | F34: 236550 | H34: 236550 | I34: 25 | J34: 0.04 | K34: 9462 | L34: 9462 | M34: 0
B35: 1855 | C35: Services (Overhead & Underground) | D35: 13387 | F35: 13387 | G35: 142 | H35: 13458 | I35: 25 | J35: 0.04 | K35: 538.32 | L35: 538 | M35: 0.32
B36: 1860 | C36: Meters | D36: 137518 | E36: 52295 | F36: 85223 | G36: 197 | H36: 85321.5 | I36: 25 | J36: 0.04 | K36: 3412.86 | L36: 3413 | M36: -0.14
B37: 1860 | C37: Meters (Smart Meters) | F37: 0 | H37: 0 | K37: 0 | M37: 0
B38: 1905 | C38: Land | D38: 7600 | F38: 7600 | H38: 7600 | I38: 0 | K38: 0 | M38: 0
B39: 1908 | C39: Buildings & Fixtures | D39: 214579 | E39: 13474 | F39: 201105 | G39: 17890 | H39: 210050 | I39: 50 | J39: 0.02 | K39: 4201 | L39: 4201 | M39: 0
B40: 1908 | C40: Buildings & Fixtures | F40: 0 | H40: 0 | K40: 0 | M40: 0
B41: 1908 | C41: Buildings & Fixtures | F41: 0 | H41: 0 | K41: 0 | L41: 0 | M41: 0
B42: 1908 | C42: Buildings & Fixtures | F42: 0 | H42: 0 | K42: 0 | M42: 0
B43: 1908 | C43: Buildings & Fixtures | F43: 0 | H43: 0 | K43: 0 | M43: 0
B44: 1908 | C44: Buildings & Fixtures | F44: 0 | H44: 0 | K44: 0 | M44: 0
B45: 1910 | C45: Leasehold Improvements | F45: 0 | H45: 0 | K45: 0 | M45: 0
B46: 1915 | C46: Office Furniture & Equipment (10 years) | D46: 42114 | E46: =13380+12955 -> 26335 | F46: 15779 | H46: 15779 | I46: 10 | J46: 0.1 | K46: 1577.9 | L46: 1578 | M46: -0.1
B47: 1915 | C47: Office Furniture & Equipment (5 years) | F47: 0 | H47: 0 | K47: 0 | M47: 0
B48: 1920 | C48: Computer Equipment - Hardware | D48: 77302 | E48: 77302 | F48: 0 | H48: 0 | I48: 10 | J48: 0.1 | K48: 0 | M48: 0
B49: 1920 | C49: Computer Equip.-Hardware(Post Mar. 22/04) | D49: 2220 | E49: 2220 | F49: 0 | H49: 0 | I49: 10 | J49: 0.1 | K49: 0 | M49: 0
B50: 1920 | C50: Computer Equip.-Hardware(Post Mar. 19/07) | D50: 25358 | F50: 25358 | H50: 25358 | I50: 5 | J50: 0.2 | K50: 5071.6 | L50: 4476 | M50: 595.6 | N50: Printer reclassifier dans computer mais a été amorti sur 10 ans de 2010-2013
B51: 1930 | C51: Transportation Equipment | D51: 511564 | E51: 471963 | F51: 39601 | G51: 218140 | H51: 148671 | I51: 5 | J51: 0.2 | K51: 29734.2 | L51: 29734 | M51: 0.2
B52: 1930 | C52: Transportation Equipment | F52: 0 | H52: 0 | I52: 8 | J52: 0.125 | K52: 0 | M52: 0
B53: 1935 | C53: Stores Equipment | D53: 1855 | E53: 1855 | F53: 0 | H53: 0 | I53: 10 | J53: 0.1 | K53: 0 | M53: 0
B54: 1940 | C54: Tools, Shop & Garage Equipment | D54: 98422 | E54: 83809 | F54: 14613 | H54: 14613 | I54: 10 | J54: 0.1 | K54: 1461.3 | L54: 1461 | M54: 0.3
B55: 1945 | C55: Measurement & Testing Equipment | F55: 0 | H55: 0 | K55: 0 | M55: 0
B56: 1950 | C56: Power Operated Equipment | F56: 0 | H56: 0 | K56: 0 | M56: 0
B57: 1955 | C57: Communications Equipment | D57: 3546 | F57: 3546 | H57: 3546 | I57: 10 | J57: 0.1 | K57: 354.6 | L57: 355 | M57: -0.4
B58: 1955 | C58: Communication Equipment (Smart Meters) | F58: 0 | H58: 0 | K58: 0 | M58: 0
B59: 1960 | C59: Miscellaneous Equipment | F59: 0 | H59: 0 | K59: 0 | M59: 0
B60: 1970 | C60: Load Management Controls Customer Premises | F60: =D60-E60 -> 0 | H60: =F60+0.5*G60 -> 0 | I60: 10 | J60: =IF(I60=0,"",1/I60) -> 0.1 | K60: =IF(I60=0,0,H60/I60) -> 0 | M60: 0
B61: 1975 | C61: Load Management Controls Utility Premises | F61: 0 | H61: 0 | I61: 10 | J61: 0.1 | K61: 0 | M61: 0
B62: 1980 | C62: System Supervisor Equipment | F62: 0 | H62: 0 | I62: 15 | J62: 0.06666666667 | K62: 0 | M62: 0
B63: 1985 | C63: Miscellaneous Fixed Assets | F63: 0 | H63: 0 | K63: 0 | M63: 0
B64: 1990 | C64: Other Tangible Property | F64: =D64-E64 -> 0 | H64: =F64+0.5*G64 -> 0 | J64: =IF(I64=0,"",1/I64) ->  | K64: =IF(I64=0,0,H64/I64) -> 0 | M64: 0
B65: 1995 | C65: Contributions & Grants | F65: 0 | H65: 0 | I65: 25 | J65: 0.04 | K65: 0 | M65: 0
B66: 1609 | C66: Other Tangible Property | F66: 0 | H66: 0 | K66: 0 | M66: 0
C68: Total | D68: =SUM(D16:D67) -> 3872938 | E68: =SUM(E16:E67) -> 2084987 | F68: =SUM(F16:F67) -> 1787951 | G68: =SUM(G16:G67) -> 265481 | H68: =SUM(H16:H67) -> 1920691.5 | K68: =SUM(K16:K67) -> 112531.18 | L68: =SUM(L16:L67) -> 112512 | M68: =SUM(M16:M67) -> 19.18

Sheet App.2-BA_FA Cont_2013_OldCGAAP
B10: Fixed Asset Continuity Schedule
F12: Accounting Standard | G12: CGAAP | H12: Old CGAAP
F13: Year | G13: 2013
E15: Cost | K15: Accumulated Depreciation
B16: CCA Class | C16: OEB | D16: Description | E16: Opening Balance | F16: Additions | G16: Disposals | H16: Closing Balance | J16: Opening Balance | K16: Additions | L16: Disposals | M16: Closing Balance | N16: Net Book Value
B17: 12 | C17: 1611 | D17: Computer Software (Formally known as Account 1925) | E17: =+'App.2-BA_FA Cont_2012_OldCGAAP'!H17 -> 121752.33 | H17: =E17+F17+G17 -> 121752.33 | J17: ='App.2-BA_FA Cont_2012_OldCGAAP'!M17 -> -117115 | K17: -1159 | M17: =J17+K17+L17 -> -118274 | N17: =H17+M17 -> 3478.33
B18: CEC | C18: 1612 | D18: Land Rights (Formally known as Account 1906) | E18: =+'App.2-BA_FA Cont_2012_OldCGAAP'!H18 -> 4232 | H18: =E18+F18+G18 -> 4232 | J18: ='App.2-BA_FA Cont_2012_OldCGAAP'!M18 -> -4052 | K18: -180 | M18: =J18+K18+L18 -> -4232 | N18: =H18+M18 -> 0
B19: N/A | C19: 1805 | D19: Land | E19: =+'App.2-BA_FA Cont_2012_OldCGAAP'!H19 -> 0 | H19: =E19+F19+G19 -> 0 | J19: ='App.2-BA_FA Cont_2012_OldCGAAP'!M19 -> 0 | M19: =J19+K19+L19 -> 0 | N19: =H19+M19 -> 0
B20: 47 | C20: 1808 | D20: Buildings | E20: =+'App.2-BA_FA Cont_2012_OldCGAAP'!H20 -> 0 | H20: =E20+F20+G20 -> 0 | J20: ='App.2-BA_FA Cont_2012_OldCGAAP'!M20 -> 0 | M20: =J20+K20+L20 -> 0 | N20: =H20+M20 -> 0
B21: 13 | C21: 1810 | D21: Leasehold Improvements | E21: =+'App.2-BA_FA Cont_2012_OldCGAAP'!H21 -> 0 | H21: 0 | J21: ='App.2-BA_FA Cont_2012_OldCGAAP'!M21 -> 0 | M21: 0 | N21: 0
B22: 47 | C22: 1815 | D22: Transformer Station Equipment >50 kV | E22: =+'App.2-BA_FA Cont_2012_OldCGAAP'!H22 -> 0 | H22: 0 | J22: ='App.2-BA_FA Cont_2012_OldCGAAP'!M22 -> 0 | M22: 0 | N22: 0
B23: 47 | C23: 1820 | D23: Distribution Station Equipment <50 kV | E23: =+'App.2-BA_FA Cont_2012_OldCGAAP'!H23 -> 0 | H23: 0 | J23: ='App.2-BA_FA Cont_2012_OldCGAAP'!M23 -> 0 | M23: 0 | N23: 0
B25: 47 | C25: 1825 | D25: Storage Battery Equipment | E25: =+'App.2-BA_FA Cont_2012_OldCGAAP'!H24 -> 0 | H25: 0 | J25: ='App.2-BA_FA Cont_2012_OldCGAAP'!M24 -> 0 | M25: 0 | N25: 0
B26: 47 | C26: 1830 | D26: Poles, Towers & Fixtures | E26: =+'App.2-BA_FA Cont_2012_OldCGAAP'!H25 -> 686919.32 | F26: 3127 | H26: 690046.32 | J26: ='App.2-BA_FA Cont_2012_OldCGAAP'!M25 -> -557111 | K26: -14682 | M26: -571793 | N26: 118253.32
B27: 47 | C27: 1835 | D27: Overhead Conductors & Devices | E27: =+'App.2-BA_FA Cont_2012_OldCGAAP'!H26 -> 962131 | F27: 6608 | H27: 968739 | J27: ='App.2-BA_FA Cont_2012_OldCGAAP'!M26 -> -780316 | K27: -20564 | M27: -800880 | N27: 167859
B28: 47 | C28: 1840 | D28: Underground Conduit | E28: =+'App.2-BA_FA Cont_2012_OldCGAAP'!H27 -> 7048 | F28: 633 | H28: 7681 | J28: ='App.2-BA_FA Cont_2012_OldCGAAP'!M27 -> -2025 | K28: -294 | M28: -2319 | N28: 5362
B29: 47 | C29: 1845 | D29: Underground Conductors & Devices | E29: =+'App.2-BA_FA Cont_2012_OldCGAAP'!H28 -> 425396 | F29: 9403 | H29: 434799 | J29: ='App.2-BA_FA Cont_2012_OldCGAAP'!M28 -> -381844 | K29: -6415 | M29: -388259 | N29: 46540
B30: 47 | C30: 1850 | D30: Line Transformers | E30: =+'App.2-BA_FA Cont_2012_OldCGAAP'!H29 -> 557917 | H30: 557917 | J30: ='App.2-BA_FA Cont_2012_OldCGAAP'!M29 -> -484532 | K30: -8801 | M30: -493333 | N30: 64584
B31: 47 | C31: 1855 | D31: Services (Overhead & Underground) | E31: =+'App.2-BA_FA Cont_2012_OldCGAAP'!H30 -> 13529 | H31: 13529 | J31: ='App.2-BA_FA Cont_2012_OldCGAAP'!M30 -> -3284 | K31: -541 | M31: -3825 | N31: 9704
B32: 47 | C32: 1860 | D32: Meters | E32: =+'App.2-BA_FA Cont_2012_OldCGAAP'!H31 -> 137715 | F32: 7258 | H32: 144973 | J32: ='App.2-BA_FA Cont_2012_OldCGAAP'!M31 -> -90117 | K32: -3544 | M32: -93661 | N32: 51312
B33: 47 | C33: 1860 | D33: Meters (Smart Meters) | E33: =+'App.2-BA_FA Cont_2012_OldCGAAP'!H32 -> 0 | H33: 0 | J33: ='App.2-BA_FA Cont_2012_OldCGAAP'!M32 -> 0 | M33: 0 | N33: 0
B34: N/A | C34: 1905 | D34: Land | E34: =+'App.2-BA_FA Cont_2012_OldCGAAP'!H33 -> 7600 | H34: 7600 | J34: ='App.2-BA_FA Cont_2012_OldCGAAP'!M33 -> 0 | M34: 0 | N34: 7600
B35: 47 | C35: 1908 | D35: Buildings & Fixtures | E35: =+'App.2-BA_FA Cont_2012_OldCGAAP'!H34 -> 232469 | H35: 232469 | J35: ='App.2-BA_FA Cont_2012_OldCGAAP'!M34 -> -91244 | K35: -4379 | M35: -95623 | N35: 136846
B36: 13 | C36: 1910 | D36: Leasehold Improvements | E36: =+'App.2-BA_FA Cont_2012_OldCGAAP'!H35 -> 0 | H36: 0 | J36: ='App.2-BA_FA Cont_2012_OldCGAAP'!M35 -> 0 | M36: 0 | N36: 0
B37: 8 | C37: 1915 | D37: Office Furniture & Equipment (10 years) | E37: =+'App.2-BA_FA Cont_2012_OldCGAAP'!H36 -> 42114 | H37: 42114 | J37: ='App.2-BA_FA Cont_2012_OldCGAAP'!M36 -> -40227 | K37: -1168 | M37: -41395 | N37: 719
B38: 8 | C38: 1915 | D38: Office Furniture & Equipment (5 years) | E38: =+'App.2-BA_FA Cont_2012_OldCGAAP'!H37 -> 0 | H38: 0 | J38: ='App.2-BA_FA Cont_2012_OldCGAAP'!M37 -> 0 | M38: 0 | N38: 0
B39: 10 | C39: 1920 | D39: Computer Equipment - Hardware | E39: =+'App.2-BA_FA Cont_2012_OldCGAAP'!H38 -> 77302 | H39: 77302 | J39: ='App.2-BA_FA Cont_2012_OldCGAAP'!M38 -> -77302 | M39: -77302 | N39: 0
B40: 45 | C40: 1920 | D40: Computer Equip.-Hardware(Post Mar. 22/04) | E40: =+'App.2-BA_FA Cont_2012_OldCGAAP'!H39 -> 2220 | H40: 2220 | J40: ='App.2-BA_FA Cont_2012_OldCGAAP'!M39 -> -2220 | M40: -2220 | N40: 0
B41: 45.1 | C41: 1920 | D41: Computer Equip.-Hardware(Post Mar. 19/07) | E41: =+'App.2-BA_FA Cont_2012_OldCGAAP'!H40 -> 25358 | F41: 3732 | H41: 29090 | J41: ='App.2-BA_FA Cont_2012_OldCGAAP'!M40 -> -18567 | K41: -2017 | M41: -20584 | N41: 8506
B42: 10 | C42: 1930 | D42: Transportation Equipment | E42: =+'App.2-BA_FA Cont_2012_OldCGAAP'!H41 -> 703999.62 | F42: 28201 | H42: 732200.62 | J42: ='App.2-BA_FA Cont_2012_OldCGAAP'!M41 -> -490083.54 | K42: -51474 | M42: -541557.54 | N42: 190643.08
B43: 8 | C43: 1935 | D43: Stores Equipment | E43: =+'App.2-BA_FA Cont_2012_OldCGAAP'!H42 -> 1855 | H43: 1855 | J43: ='App.2-BA_FA Cont_2012_OldCGAAP'!M42 -> -1855 | M43: -1855 | N43: 0
B44: 8 | C44: 1940 | D44: Tools, Shop & Garage Equipment | E44: =+'App.2-BA_FA Cont_2012_OldCGAAP'!H43 -> 98422 | H44: 98422 | J44: ='App.2-BA_FA Cont_2012_OldCGAAP'!M43 -> -90549 | K44: -1461 | M44: -92010 | N44: 6412
B45: 8 | C45: 1945 | D45: Measurement & Testing Equipment | E45: =+'App.2-BA_FA Cont_2012_OldCGAAP'!H44 -> 0 | H45: 0 | J45: ='App.2-BA_FA Cont_2012_OldCGAAP'!M44 -> 0 | M45: 0 | N45: 0
B46: 8 | C46: 1950 | D46: Power Operated Equipment | E46: =+'App.2-BA_FA Cont_2012_OldCGAAP'!H45 -> 0 | H46: 0 | J46: ='App.2-BA_FA Cont_2012_OldCGAAP'!M45 -> 0 | M46: 0 | N46: 0
B47: 8 | C47: 1955 | D47: Communications Equipment | E47: =+'App.2-BA_FA Cont_2012_OldCGAAP'!H46 -> 3546 | H47: 3546 | J47: ='App.2-BA_FA Cont_2012_OldCGAAP'!M46 -> -2838 | K47: -355 | M47: -3193 | N47: 353
B48: 8 | C48: 1955 | D48: Communication Equipment (Smart Meters) | E48: =+'App.2-BA_FA Cont_2012_OldCGAAP'!H47 -> 0 | H48: 0 | J48: ='App.2-BA_FA Cont_2012_OldCGAAP'!M47 -> 0 | M48: 0 | N48: 0
B49: 8 | C49: 1960 | D49: Miscellaneous Equipment | E49: =+'App.2-BA_FA Cont_2012_OldCGAAP'!H48 -> 0 | H49: 0 | J49: ='App.2-BA_FA Cont_2012_OldCGAAP'!M48 -> 0 | M49: 0 | N49: 0
B50: 47 | C50: 1970 | D50: Load Management Controls Customer Premises | E50: =+'App.2-BA_FA Cont_2012_OldCGAAP'!H49 -> 0 | H50: 0 | J50: ='App.2-BA_FA Cont_2012_OldCGAAP'!M49 -> 0 | M50: 0 | N50: 0
B51: 47 | C51: 1975 | D51: Load Management Controls Utility Premises | E51: =+'App.2-BA_FA Cont_2012_OldCGAAP'!H50 -> 0 | H51: 0 | J51: ='App.2-BA_FA Cont_2012_OldCGAAP'!M50 -> 0 | M51: 0 | N51: 0
B52: 47 | C52: 1980 | D52: System Supervisor Equipment | E52: =+'App.2-BA_FA Cont_2012_OldCGAAP'!H51 -> 0 | H52: 0 | J52: ='App.2-BA_FA Cont_2012_OldCGAAP'!M51 -> 0 | M52: 0 | N52: 0
B53: 47 | C53: 1985 | D53: Miscellaneous Fixed Assets | E53: =+'App.2-BA_FA Cont_2012_OldCGAAP'!H52 -> 0 | H53: 0 | J53: ='App.2-BA_FA Cont_2012_OldCGAAP'!M52 -> 0 | M53: 0 | N53: 0
B54: 47 | C54: 1990 | D54: Other Tangible Property | E54: =+'App.2-BA_FA Cont_2012_OldCGAAP'!H53 -> 0 | H54: 0 | J54: ='App.2-BA_FA Cont_2012_OldCGAAP'!M53 -> 0 | M54: 0 | N54: 0
B55: 47 | C55: 1995 | D55: Contributions & Grants | E55: =+'App.2-BA_FA Cont_2012_OldCGAAP'!H54 -> 0 | H55: 0 | J55: ='App.2-BA_FA Cont_2012_OldCGAAP'!M54 -> 0 | M55: 0 | N55: 0
B56: 47 | C56: 2440 | D56: Deferred Revenue5 | E56: =+'App.2-BA_FA Cont_2012_OldCGAAP'!H55 -> 0 | J56: ='App.2-BA_FA Cont_2012_OldCGAAP'!M55 -> 0
H57: 0 | J57: ='App.2-BA_FA Cont_2011_OldCGAAP'!M56 -> 0 | M57: 0 | N57: 0
D58: Sub-Total | E58: =SUM(E17:E57) -> 4111525.27 | F58: =SUM(F17:F57) -> 58962 | G58: =SUM(G17:G57) -> 0 | H58: =SUM(H17:H57) -> 4170487.27 | J58: =SUM(J17:J57) -> -3235281.54 | K58: =SUM(K17:K57) -> -117034 | L58: =SUM(L17:L57) -> 0 | M58: =SUM(M17:M57) -> -3352315.54 | N58: =SUM(N17:N57) -> 818171.73
D59: Less Socialized Renewable Energy Generation Investments (input as negative) | H59: =E59+F59+G59 -> 0 | M59: =J59+K59+L59 -> 0 | N59: =H59+M59 -> 0
D60: Less Other Non Rate-Regulated Utility Assets (input as negative) | H60: 0 | M60: =J60+K60+L60 -> 0 | N60: 0
D61: Total PP&E | E61: =SUM(E58:E60) -> 4111525.27 | F61: =SUM(F58:F60) -> 58962 | G61: =SUM(G58:G60) -> 0 | H61: =SUM(H58:H60) -> 4170487.27 | J61: =SUM(J58:J60) -> -3235281.54 | K61: =SUM(K58:K60) -> -117034 | L61: =SUM(L58:L60) -> 0 | M61: =SUM(M58:M60) -> -3352315.54 | N61: =SUM(N58:N60) -> 818171.73
D62: Depreciation Expense adj. from gain or loss on the retirement of assets (pool of like assets), if applicable6
D63: Total | K63: =K61+K62 -> -117034
J65: Less: Fully Allocated Depreciation
B66: 10 | D66: Transportation | J66: Transportation
B67: 8 | D67: Stores Equipment | J67: Stores Equipment
J68: Net Depreciation | L68: =K63-L66-L67 -> -117034
B70: Notes:
B72: 1 | C72: Tables in the format outlined above covering all fixed asset accounts should be submitted for the Test Year, Bridge Year and all relevant historical years. At a minimum , the applicant must provide data for the earlier of: 1) all historical years back to its last rebasing; or 2) at least three years of historical actuals, in addition to Bridge Year and Test Year forecasts.
B75: 2 | C75: The "CCA Class" for fixed assets should agree with the CCA Class used for tax purposes in Tax Returns. Fixed Assets sub-components may be used where the underlying asset components are classified under multiple CCA Classes for tax purposes. If an applicant uses any different classes from those shown in the table, an explanation should be provided. (also see note 3 below).
B78: 3 | C78: The table may need to be customized for a utility's asset categories or for any new asset accounts announced or authorized by the Board.
B80: 4 | C80: The additions column (E) must not include construction work in progress (CWIP).
B82: 5 | C82: Effective on the date of IFRS adoption, customer contributions will no longer be recorded in Account 1995 Contributions & Grants, but will be recorded in Account 2440, Deferred Revenues.
B84: 6 | C84: Where a distributor for general financial reporting purposes under IFRS has accounted for the amount of gain or loss on the retirement of assets in a pool of like assets as a charge or credit to income, for reporting and rate application filings the distributor shall reclassify such gains and losses as depreciation expense, and disclose the amount separately.

Sheet App.2-CA DepExp_2013 OldCGAAP
B10: Depreciation and Amortization Expense
C11: Assumes the applicant made capitalization and depreciation expense accounting policy changes under CGAAP effective January 1, 2013 and will adopt IFRS for financial reporting purposes effective January 1, 2015.
D13: Year | E13: 2013 | F13: Former CGAAP
B14: Account | C14: Description | D14: Opening Regulatory Gross PP&E as at Jan 1, 2013 | E14: Less Fully Depreciated | F14: Net for Depreciation | G14: Additions | H14: Total for Depreciation | I14: Years | J14: Depreciation Rate | K14: 2013 Depreciation Expense | L14: 2013 Depreciation Expense per Appendix 2-B Fixed Assets, Column K (l) | M14: Variance 2
D15: (a) | E15: (b) | F15: (c) | G15: (d) | H15: (e) = (c) + ½ x (d) 1 | I15: (f) | J15: (g) = 1 / (f) | K15: (h) = (e) / (f) | M15: (m) = (h) - (l)
B16: 1611 | C16: Computer Software (Formally known as Account 1925) | D16: 121752 | E16: 115957 | F16: =D16-E16 -> 5795 | H16: =F16+0.5*G16 -> 5795 | I16: 5 | J16: =IF(I16=0,"",1/I16) -> 0.2 | K16: =IF(I16=0,0,H16/I16) -> 1159 | L16: 1159 | M16: =IF(ISERROR(+K16-L16), "", +K16-L16) -> 0
B17: 1612 | C17: Land Rights (Formally known as Account 1906) | D17: 4232 | E17: 2432 | F17: =D17-E17 -> 1800 | H17: =F17+0.5*G17 -> 1800 | I17: 10 | J17: 0.1 | K17: 180 | L17: 180 | M17: =IF(ISERROR(+K17-L17), "", +K17-L17) -> 0 | N17: L'amortissement n'a pas été prie en 2013
B18: 1612 | C18: Land Rights (Formally known as Account 1906) | F18: 0 | H18: 0 | I18: 25 | J18: 0.04 | K18: 0 | M18: 0
B19: 1805 | C19: Land | F19: 0 | H19: 0 | I19: 0 | K19: 0 | M19: 0
B20: 1808 | C20: Buildings | F20: 0 | H20: 0 | K20: 0 | M20: 0
B21: 1808 | C21: Buildings | F21: 0 | H21: 0 | K21: 0 | M21: 0
B22: 1808 | C22: Buildings | F22: 0 | H22: 0 | K22: 0 | M22: 0
B23: 1808 | C23: Buildings | F23: 0 | H23: 0 | K23: 0 | M23: 0
B24: 1808 | C24: Buildings | F24: 0 | H24: 0 | I24: 25 | J24: 0.04 | K24: 0 | M24: 0
B25: 1808 | C25: Buildings | F25: 0 | H25: 0 | K25: 0 | M25: 0
B26: 1810 | C26: Leasehold Improvements | F26: 0 | H26: 0 | K26: 0 | M26: 0
B27: 1815 | C27: Transformer Station Equipment >50 kV | F27: 0 | H27: 0 | K27: 0 | M27: 0
B28: 1820 | C28: Distribution Station Equipment <50 kV | F28: 0 | H28: 0 | I28: 30 | J28: 0.03333333333 | K28: 0 | M28: 0
B29: 1825 | C29: Storage Battery Equipment | F29: 0 | H29: 0 | K29: 0 | M29: 0
B30: 1830 | C30: Poles, Towers & Fixtures | D30: 686919 | E30: 321404 | F30: 365515 | G30: 3127 | H30: 367078.5 | I30: 25 | J30: 0.04 | K30: 14683.14 | L30: 14682 | M30: 1.14
B31: 1835 | C31: Overhead Conductors & Devices | D31: 962131 | E31: 451325 | F31: 510806 | G31: 6608 | H31: 514110 | I31: 25 | J31: 0.04 | K31: 20564.4 | L31: 20564 | M31: 0.4
B32: 1840 | C32: Underground Conduit | D32: 7048 | E32: 0 | F32: 7048 | G32: 633 | H32: 7364.5 | I32: 25 | J32: 0.04 | K32: 294.58 | L32: 294 | M32: 0.58
B33: 1845 | C33: Underground Conductors & Devices | D33: 425396 | E33: 269722 | F33: 155674 | G33: 9403 | H33: 160375.5 | I33: 25 | J33: 0.04 | K33: 6415.02 | L33: 6415 | M33: 0.02
B34: 1850 | C34: Line Transformers | D34: 557917 | E34: 337892 | F34: 220025 | H34: 220025 | I34: 25 | J34: 0.04 | K34: 8801 | L34: 8801 | M34: 0
B35: 1855 | C35: Services (Overhead & Underground) | D35: 13529 | F35: 13529 | H35: 13529 | I35: 25 | J35: 0.04 | K35: 541.16 | L35: 541 | M35: 0.16
B36: 1860 | C36: Meters | D36: 137715 | E36: 52720 | F36: 84995 | G36: 7258 | H36: 88624 | I36: 25 | J36: 0.04 | K36: 3544.96 | L36: 3544 | M36: 0.96
B37: 1860 | C37: Meters (Smart Meters) | F37: 0 | H37: 0 | K37: 0 | M37: 0
B38: 1905 | C38: Land | D38: 7600 | F38: 7600 | H38: 7600 | I38: 0 | K38: 0 | M38: 0
B39: 1908 | C39: Buildings & Fixtures | D39: 232469 | E39: 13474 | F39: 218995 | H39: 218995 | I39: 50 | J39: 0.02 | K39: 4379.9 | L39: 4379 | M39: 0.9
B40: 1908 | C40: Buildings & Fixtures | F40: 0 | H40: 0 | K40: 0 | M40: 0
B41: 1908 | C41: Buildings & Fixtures | F41: 0 | H41: 0 | K41: 0 | M41: 0
B42: 1908 | C42: Buildings & Fixtures | F42: 0 | H42: 0 | K42: 0 | M42: 0
B43: 1908 | C43: Buildings & Fixtures | F43: 0 | H43: 0 | K43: 0 | M43: 0
B44: 1908 | C44: Buildings & Fixtures | F44: 0 | H44: 0 | K44: 0 | M44: 0
B45: 1910 | C45: Leasehold Improvements | F45: 0 | H45: 0 | K45: 0 | M45: 0
B46: 1915 | C46: Office Furniture & Equipment (10 years) | D46: 42114 | E46: 30432 | F46: 11682 | H46: 11682 | I46: 10 | J46: 0.1 | K46: 1168.2 | L46: 1168 | M46: 0.2
B47: 1915 | C47: Office Furniture & Equipment (5 years) | D47: 0 | F47: 0 | H47: 0 | K47: 0 | M47: 0
B48: 1920 | C48: Computer Equipment - Hardware | D48: 77302 | E48: 77302 | F48: 0 | H48: 0 | I48: 5 | J48: 0.2 | K48: 0 | M48: 0
B49: 1920 | C49: Computer Equip.-Hardware(Post Mar. 22/04) | D49: 2220 | E49: 2220 | F49: 0 | H49: 0 | I49: 5 | J49: 0.2 | K49: 0 | M49: 0
B50: 1920 | C50: Computer Equip.-Hardware(Post Mar. 19/07) | D50: 25358 | E50: 14157 | F50: 11201 | G50: 3732 | H50: 13067 | I50: 5 | J50: 0.2 | K50: 2613.4 | L50: 2017 | M50: 596.4 | N50: Printer reclassifier dans computer mais a été amorti sur 10 ans de 2010-2013
B51: 1930 | C51: Transportation Equipment | D51: 704000 | E51: 460731 | F51: 243269 | G51: 28201 | H51: 257369.5 | I51: 5 | J51: 0.2 | K51: 51473.9 | L51: 51474 | M51: -0.1
B52: 1930 | C52: Transportation Equipment | F52: 0 | H52: 0 | I52: 8 | J52: 0.125 | K52: 0 | M52: 0
B53: 1935 | C53: Stores Equipment | D53: 1855 | E53: 1855 | F53: 0 | H53: 0 | I53: 10 | J53: 0.1 | K53: 0 | M53: 0
B54: 1940 | C54: Tools, Shop & Garage Equipment | D54: 98422 | E54: 83809 | F54: 14613 | H54: 14613 | I54: 10 | J54: 0.1 | K54: 1461.3 | L54: 1461 | M54: 0.3
B55: 1945 | C55: Measurement & Testing Equipment | F55: 0 | H55: 0 | I55: 10 | J55: 0.1 | K55: 0 | M55: 0
B56: 1950 | C56: Power Operated Equipment | F56: 0 | H56: 0 | K56: 0 | M56: 0
B57: 1955 | C57: Communications Equipment | D57: 3546 | F57: 3546 | H57: 3546 | I57: 10 | J57: 0.1 | K57: 354.6 | L57: 355 | M57: -0.4
B58: 1955 | C58: Communication Equipment (Smart Meters) | F58: 0 | H58: 0 | K58: 0 | M58: 0
B59: 1960 | C59: Miscellaneous Equipment | F59: 0 | H59: 0 | I59: 10 | J59: 0.1 | K59: 0 | M59: 0
B60: 1970 | C60: Load Management Controls Customer Premises | F60: =D60-E60 -> 0 | H60: =F60+0.5*G60 -> 0 | I60: 10 | J60: =IF(I60=0,"",1/I60) -> 0.1 | K60: =IF(I60=0,0,H60/I60) -> 0 | M60: 0
B61: 1975 | C61: Load Management Controls Utility Premises | F61: 0 | H61: 0 | I61: 10 | J61: 0.1 | K61: 0 | M61: 0
B62: 1980 | C62: System Supervisor Equipment | F62: 0 | H62: 0 | I62: 5 | J62: 0.2 | K62: 0 | M62: 0
B63: 1985 | C63: Miscellaneous Fixed Assets | F63: 0 | H63: 0 | K63: 0 | M63: 0
B64: 1990 | C64: Other Tangible Property | F64: =D64-E64 -> 0 | H64: =F64+0.5*G64 -> 0 | J64: =IF(I64=0,"",1/I64) ->  | K64: =IF(I64=0,0,H64/I64) -> 0 | M64: 0
B65: 1995 | C65: Contributions & Grants | F65: 0 | H65: 0 | I65: 25 | J65: 0.04 | K65: 0 | M65: 0
B66: 1609 | C66: Other Tangible Property | F66: 0 | H66: 0 | K66: 0 | M66: 0
C68: Total | D68: =SUM(D16:D67) -> 4111525 | E68: =SUM(E16:E67) -> 2235432 | F68: =SUM(F16:F67) -> 1876093 | G68: =SUM(G16:G67) -> 58962 | H68: =SUM(H16:H67) -> 1905574 | K68: =SUM(K16:K67) -> 117634.56 | L68: =SUM(L16:L67) -> 117034 | M68: =SUM(M16:M67) -> 600.56

Sheet App.2-BA_FA Cont_2013_NewCGAAP
B10: Fixed Asset Continuity Schedule
F12: Accounting Standard | G12: MIFRS | H12: New CGAAP
F13: Year | G13: 2013
E15: Cost | K15: Accumulated Depreciation
B16: CCA Class | C16: OEB | D16: Description | E16: Opening Balance | F16: Additions | G16: Disposals | H16: Closing Balance | J16: Opening Balance | K16: Additions | L16: Disposals | M16: Closing Balance | N16: Net Book Value
B17: 12 | C17: 1611 | D17: Computer Software (Formally known as Account 1925) | E17: =+'App.2-BA_FA Cont_2012_OldCGAAP'!H17 -> 121752.33 | H17: =E17+F17+G17 -> 121752.33 | J17: =+'App.2-BA_FA Cont_2012_OldCGAAP'!M17 -> -117115 | K17: -1159 | M17: =J17+K17+L17 -> -118274 | N17: =H17+M17 -> 3478.33
B18: CEC | C18: 1612 | D18: Land Rights (Formally known as Account 1906) | E18: =+'App.2-BA_FA Cont_2012_OldCGAAP'!H18 -> 4232 | H18: =E18+F18+G18 -> 4232 | J18: =+'App.2-BA_FA Cont_2012_OldCGAAP'!M18 -> -4052 | K18: -180 | M18: =J18+K18+L18 -> -4232 | N18: =H18+M18 -> 0
B19: N/A | C19: 1805 | D19: Land | E19: =+'App.2-BA_FA Cont_2012_OldCGAAP'!H19 -> 0 | H19: =E19+F19+G19 -> 0 | J19: ='App.2-BA_FA Cont_2013_OldCGAAP'!M19 -> 0 | M19: =J19+K19+L19 -> 0 | N19: =H19+M19 -> 0
B20: 47 | C20: 1808 | D20: Buildings | E20: =+'App.2-BA_FA Cont_2012_OldCGAAP'!H20 -> 0 | H20: =E20+F20+G20 -> 0 | J20: =+'App.2-BA_FA Cont_2012_OldCGAAP'!M20 -> 0 | M20: =J20+K20+L20 -> 0 | N20: =H20+M20 -> 0
B21: 13 | C21: 1810 | D21: Leasehold Improvements | E21: =+'App.2-BA_FA Cont_2012_OldCGAAP'!H21 -> 0 | H21: 0 | J21: ='App.2-BA_FA Cont_2013_OldCGAAP'!M21 -> 0 | M21: 0 | N21: 0
B22: 47 | C22: 1815 | D22: Transformer Station Equipment >50 kV | E22: =+'App.2-BA_FA Cont_2012_OldCGAAP'!H22 -> 0 | H22: 0 | J22: ='App.2-BA_FA Cont_2013_OldCGAAP'!M22 -> 0 | M22: 0 | N22: 0
B23: 47 | C23: 1820 | D23: Distribution Station Equipment <50 kV | E23: =+'App.2-BA_FA Cont_2012_OldCGAAP'!H23 -> 0 | H23: 0 | J23: =+'App.2-BA_FA Cont_2012_OldCGAAP'!M23 -> 0 | M23: 0 | N23: 0
B24: 47 | C24: 1825 | D24: Storage Battery Equipment | E24: =+'App.2-BA_FA Cont_2012_OldCGAAP'!H24 -> 0 | H24: 0 | J24: ='App.2-BA_FA Cont_2013_OldCGAAP'!M25 -> 0 | M24: 0 | N24: 0
B25: 47 | C25: 1830 | D25: Poles, Towers & Fixtures | E25: =+'App.2-BA_FA Cont_2012_OldCGAAP'!H25 -> 686919.32 | F25: 3127 | H25: 690046.32 | J25: =+'App.2-BA_FA Cont_2012_OldCGAAP'!M25 -> -557111 | K25: -3669 | M25: -560780 | N25: 129266.32
B26: 47 | C26: 1835 | D26: Overhead Conductors & Devices | E26: =+'App.2-BA_FA Cont_2012_OldCGAAP'!H26 -> 962131 | F26: 6608 | H26: 968739 | J26: =+'App.2-BA_FA Cont_2012_OldCGAAP'!M26 -> -780316 | K26: -18735 | M26: -799051 | N26: 169688
B27: 47 | C27: 1840 | D27: Underground Conduit | E27: =+'App.2-BA_FA Cont_2012_OldCGAAP'!H27 -> 7048 | F27: 633 | H27: 7681 | J27: =+'App.2-BA_FA Cont_2012_OldCGAAP'!M27 -> -2025 | K27: -278 | M27: -2303 | N27: 5378
B28: 47 | C28: 1845 | D28: Underground Conductors & Devices | E28: =+'App.2-BA_FA Cont_2012_OldCGAAP'!H28 -> 425396 | F28: 9403 | H28: 434799 | J28: =+'App.2-BA_FA Cont_2012_OldCGAAP'!M28 -> -381844 | K28: -2067 | M28: -383911 | N28: 50888
B29: 47 | C29: 1850 | D29: Line Transformers | E29: =+'App.2-BA_FA Cont_2012_OldCGAAP'!H29 -> 557917 | H29: 557917 | J29: =+'App.2-BA_FA Cont_2012_OldCGAAP'!M29 -> -484532 | K29: -2515 | M29: -487047 | N29: 70870
B30: 47 | C30: 1855 | D30: Services (Overhead & Underground) | E30: =+'App.2-BA_FA Cont_2012_OldCGAAP'!H30 -> 13529 | H30: 13529 | J30: =+'App.2-BA_FA Cont_2012_OldCGAAP'!M30 -> -3284 | K30: -539 | M30: -3823 | N30: 9706
B31: 47 | C31: 1860 | D31: Meters | E31: =+'App.2-BA_FA Cont_2012_OldCGAAP'!H31 -> 137715 | F31: 7258 | H31: 144973 | J31: =+'App.2-BA_FA Cont_2012_OldCGAAP'!M31 -> -90117 | K31: -9091 | M31: -99208 | N31: 45765
B32: 47 | C32: 1860 | D32: Meters (Smart Meters) | E32: =+'App.2-BA_FA Cont_2012_OldCGAAP'!H32 -> 0 | H32: 0 | J32: =+'App.2-BA_FA Cont_2012_OldCGAAP'!M32 -> 0 | M32: 0 | N32: 0
B33: N/A | C33: 1905 | D33: Land | E33: =+'App.2-BA_FA Cont_2012_OldCGAAP'!H33 -> 7600 | H33: 7600 | J33: =+'App.2-BA_FA Cont_2012_OldCGAAP'!M33 -> 0 | M33: 0 | N33: 7600
B34: 47 | C34: 1908 | D34: Buildings & Fixtures | E34: =+'App.2-BA_FA Cont_2012_OldCGAAP'!H34 -> 232469 | H34: 232469 | J34: =+'App.2-BA_FA Cont_2012_OldCGAAP'!M34 -> -91244 | K34: -5532 | M34: -96776 | N34: 135693
B35: 13 | C35: 1910 | D35: Leasehold Improvements | E35: =+'App.2-BA_FA Cont_2012_OldCGAAP'!H35 -> 0 | H35: 0 | J35: =+'App.2-BA_FA Cont_2012_OldCGAAP'!M35 -> 0 | M35: 0 | N35: 0
B36: 8 | C36: 1915 | D36: Office Furniture & Equipment (10 years) | E36: =+'App.2-BA_FA Cont_2012_OldCGAAP'!H36 -> 42114 | H36: 42114 | J36: =+'App.2-BA_FA Cont_2012_OldCGAAP'!M36 -> -40227 | K36: -315 | M36: -40542 | N36: 1572
B37: 8 | C37: 1915 | D37: Office Furniture & Equipment (5 years) | E37: =+'App.2-BA_FA Cont_2012_OldCGAAP'!H37 -> 0 | H37: 0 | J37: =+'App.2-BA_FA Cont_2012_OldCGAAP'!M37 -> 0 | M37: 0 | N37: 0
B38: 10 | C38: 1920 | D38: Computer Equipment - Hardware | E38: =+'App.2-BA_FA Cont_2012_OldCGAAP'!H38 -> 77302 | H38: 77302 | J38: =+'App.2-BA_FA Cont_2012_OldCGAAP'!M38 -> -77302 | M38: -77302 | N38: 0
B39: 45 | C39: 1920 | D39: Computer Equip.-Hardware(Post Mar. 22/04) | E39: =+'App.2-BA_FA Cont_2012_OldCGAAP'!H39 -> 2220 | H39: 2220 | J39: =+'App.2-BA_FA Cont_2012_OldCGAAP'!M39 -> -2220 | M39: -2220 | N39: 0
B40: 45.1 | C40: 1920 | D40: Computer Equip.-Hardware(Post Mar. 19/07) | E40: =+'App.2-BA_FA Cont_2012_OldCGAAP'!H40 -> 25358 | F40: 3732 | H40: 29090 | J40: =+'App.2-BA_FA Cont_2012_OldCGAAP'!M40 -> -18567 | K40: -3566 | M40: -22133 | N40: 6957
B41: 10 | C41: 1930 | D41: Transportation Equipment | E41: =+'App.2-BA_FA Cont_2012_OldCGAAP'!H41 -> 703999.62 | F41: 28201 | H41: 732200.62 | J41: =+'App.2-BA_FA Cont_2012_OldCGAAP'!M41 -> -490083.54 | K41: -27848 | M41: -517931.54 | N41: 214269.08
B42: 8 | C42: 1935 | D42: Stores Equipment | E42: =+'App.2-BA_FA Cont_2012_OldCGAAP'!H42 -> 1855 | H42: 1855 | J42: =+'App.2-BA_FA Cont_2012_OldCGAAP'!M42 -> -1855 | M42: -1855 | N42: 0
B43: 8 | C43: 1940 | D43: Tools, Shop & Garage Equipment | E43: =+'App.2-BA_FA Cont_2012_OldCGAAP'!H43 -> 98422 | H43: 98422 | J43: =+'App.2-BA_FA Cont_2012_OldCGAAP'!M43 -> -90549 | K43: -2230 | M43: -92779 | N43: 5643
B44: 8 | C44: 1945 | D44: Measurement & Testing Equipment | E44: =+'App.2-BA_FA Cont_2012_OldCGAAP'!H44 -> 0 | H44: 0 | J44: =+'App.2-BA_FA Cont_2012_OldCGAAP'!M44 -> 0 | M44: 0 | N44: 0
B45: 8 | C45: 1950 | D45: Power Operated Equipment | E45: =+'App.2-BA_FA Cont_2012_OldCGAAP'!H45 -> 0 | H45: 0 | J45: =+'App.2-BA_FA Cont_2012_OldCGAAP'!M45 -> 0 | M45: 0 | N45: 0
B46: 8 | C46: 1955 | D46: Communications Equipment | E46: =+'App.2-BA_FA Cont_2012_OldCGAAP'!H46 -> 3546 | H46: 3546 | J46: =+'App.2-BA_FA Cont_2012_OldCGAAP'!M46 -> -2838 | K46: -354 | M46: -3192 | N46: 354
B47: 8 | C47: 1955 | D47: Communication Equipment (Smart Meters) | E47: =+'App.2-BA_FA Cont_2012_OldCGAAP'!H47 -> 0 | H47: 0 | J47: ='App.2-BA_FA Cont_2013_OldCGAAP'!M48 -> 0 | M47: 0 | N47: 0
B48: 8 | C48: 1960 | D48: Miscellaneous Equipment | E48: =+'App.2-BA_FA Cont_2012_OldCGAAP'!H48 -> 0 | H48: 0 | J48: =+'App.2-BA_FA Cont_2012_OldCGAAP'!M48 -> 0 | M48: 0 | N48: 0
B49: 47 | C49: 1970 | D49: Load Management Controls Customer Premises | E49: =+'App.2-BA_FA Cont_2012_OldCGAAP'!H49 -> 0 | H49: 0 | J49: =+'App.2-BA_FA Cont_2012_OldCGAAP'!M49 -> 0 | M49: 0 | N49: 0
B50: 47 | C50: 1975 | D50: Load Management Controls Utility Premises | E50: =+'App.2-BA_FA Cont_2012_OldCGAAP'!H50 -> 0 | H50: 0 | J50: =+'App.2-BA_FA Cont_2012_OldCGAAP'!M50 -> 0 | M50: 0 | N50: 0
B51: 47 | C51: 1980 | D51: System Supervisor Equipment | E51: =+'App.2-BA_FA Cont_2012_OldCGAAP'!H51 -> 0 | H51: 0 | J51: =+'App.2-BA_FA Cont_2012_OldCGAAP'!M51 -> 0 | M51: 0 | N51: 0
B52: 47 | C52: 1985 | D52: Miscellaneous Fixed Assets | E52: =+'App.2-BA_FA Cont_2012_OldCGAAP'!H52 -> 0 | H52: 0 | J52: =+'App.2-BA_FA Cont_2012_OldCGAAP'!M52 -> 0 | M52: 0 | N52: 0
B53: 47 | C53: 1990 | D53: Other Tangible Property | E53: =+'App.2-BA_FA Cont_2012_OldCGAAP'!H53 -> 0 | H53: 0 | J53: =+'App.2-BA_FA Cont_2012_OldCGAAP'!M53 -> 0 | M53: 0 | N53: 0
B54: 47 | C54: 1995 | D54: Contributions & Grants | E54: =+'App.2-BA_FA Cont_2012_OldCGAAP'!H54 -> 0 | H54: 0 | J54: =+'App.2-BA_FA Cont_2012_OldCGAAP'!M54 -> 0 | M54: 0 | N54: 0
B55: 47 | C55: 2440 | D55: Deferred Revenue5 | E55: =+'App.2-BA_FA Cont_2012_OldCGAAP'!H55 -> 0 | J55: =+'App.2-BA_FA Cont_2012_OldCGAAP'!M55 -> 0
H56: 0 | M56: 0 | N56: 0
D57: Sub-Total | E57: =SUM(E17:E56) -> 4111525.27 | F57: =SUM(F17:F56) -> 58962 | G57: =SUM(G17:G56) -> 0 | H57: =SUM(H17:H56) -> 4170487.27 | J57: =SUM(J17:J56) -> -3235281.54 | K57: =SUM(K17:K56) -> -78078 | L57: =SUM(L17:L56) -> 0 | M57: =SUM(M17:M56) -> -3313359.54 | N57: =SUM(N17:N56) -> 857127.73
D58: Less Socialized Renewable Energy Generation Investments (input as negative) | H58: =E58+F58+G58 -> 0 | M58: =J58+K58+L58 -> 0 | N58: =H58+M58 -> 0
D59: Less Other Non Rate-Regulated Utility Assets (input as negative) | H59: 0 | M59: =J59+K59+L59 -> 0 | N59: 0
D60: Total PP&E | E60: =SUM(E57:E59) -> 4111525.27 | F60: =SUM(F57:F59) -> 58962 | G60: =SUM(G57:G59) -> 0 | H60: =SUM(H57:H59) -> 4170487.27 | J60: =SUM(J57:J59) -> -3235281.54 | K60: =SUM(K57:K59) -> -78078 | L60: =SUM(L57:L59) -> 0 | M60: =SUM(M57:M59) -> -3313359.54 | N60: =SUM(N57:N59) -> 857127.73
D61: Depreciation Expense adj. from gain or loss on the retirement of assets (pool of like assets), if applicable6
D62: Total | K62: =K60+K61 -> -78078
J64: Less: Fully Allocated Depreciation
B65: 10 | D65: Transportation | J65: Transportation
B66: 8 | D66: Stores Equipment | J66: Stores Equipment
J67: Net Depreciation | L67: =K62-L65-L66 -> -78078
B69: Notes:
B71: 1 | C71: Tables in the format outlined above covering all fixed asset accounts should be submitted for the Test Year, Bridge Year and all relevant historical years. At a minimum , the applicant must provide data for the earlier of: 1) all historical years back to its last rebasing; or 2) at least three years of historical actuals, in addition to Bridge Year and Test Year forecasts.
B74: 2 | C74: The "CCA Class" for fixed assets should agree with the CCA Class used for tax purposes in Tax Returns. Fixed Assets sub-components may be used where the underlying asset components are classified under multiple CCA Classes for tax purposes. If an applicant uses any different classes from those shown in the table, an explanation should be provided. (also see note 3 below).
B77: 3 | C77: The table may need to be customized for a utility's asset categories or for any new asset accounts announced or authorized by the Board.
B79: 4 | C79: The additions column (E) must not include construction work in progress (CWIP).
B81: 5 | C81: Effective on the date of IFRS adoption, customer contributions will no longer be recorded in Account 1995 Contributions & Grants, but will be recorded in Account 2440, Deferred Revenues.
B83: 6 | C83: Where a distributor for general financial reporting purposes under IFRS has accounted for the amount of gain or loss on the retirement of assets in a pool of like assets as a charge or credit to income, for reporting and rate application filings the distributor shall reclassify such gains and losses as depreciation expense, and disclose the amount separately.

Sheet App.2-CC DepExp_2013 NewCGAAP
B10: Depreciation and Amortization Expense
B11: Assumes the applicant made capitalization and depreciation expense accounting policy changes under CGAAP effective January 1, 2013 and will adopt IFRS for financial reporting purposes effective January 1, 2015.
D13: Year | E13: 2013 | F13: Revised CGAAP
B15: Account | C15: Description | D15: Opening NBV as at Jan 1, 2013 5 | E15: Additions | F15: Average Remaining Life of Opening NBV 4 | G15: Years (new additions only) 3 | H15: Depreciation Rate on New Additions | I15: Depreciation Expense on Opening NBV | J15: Depreciation Expense on Additions 1 | K15: 2013 Depreciation Expense | L15: 2013 Depreciation Expense per Appendix 2-BA Fixed Assets, Column J (l) | M15: Variance 2 | N15: Depreciation Expense on 2013 Full Year Additions | O15: Less Depreciation Expense on Assets Fully Depreciated during the year (o) | P15: 2013 Full Year Depreciation 6
D16: (a) | E16: (d) | F16: (i) | G16: (f) | H16: (g) = 1 / (f) | I16: (j) = (a) / (i) | J16: (h)=((d)*0.5)/(f) | K16: (k) = (j) + (h) | M16: (m) = (k) - (l) | N16: (n) = (d)/(f) | P16: (p) = (j) + (n) - (o)
B17: 1611 | C17: Computer Software (Formally known as Account 1925) | D17: 4637 | F17: 4 | G17: 5 | H17: =IF(G17=0,0,1/G17) -> 0.2 | I17: =IF(F17=0,0,+D17/F17) -> 1159.25 | J17: =IF(G17=0,0,+(E17*0.5)/G17) -> 0 | K17: =IF(ISERROR(+I17+J17), 0, +I17+J17) -> 1159.25 | L17: 1159 | M17: =IF(ISERROR(+K17-L17), 0, +K17-L17) -> 0.25 | N17: =IF(G17=0,0,+(E17)/G17) -> 0 | P17: =IF(ISERROR(+N17+I17-O17), 0, +N17+I17-O17) -> 1159.25
B18: 1612 | C18: Land Rights (Formally known as Account 1906) | D18: 180 | F18: 1 | G18: 10 | H18: 0.1 | I18: 180 | J18: 0 | K18: 180 | L18: 180 | M18: 0 | N18: 0 | P18: =IF(ISERROR(+N18+I18-O18), 0, +N18+I18-O18) -> 180
B19: 1805 | C19: Land | H19: 0 | I19: 0 | J19: 0 | K19: 0 | M19: 0 | N19: 0 | P19: 0
B20: 1808 | C20: Buildings - Other | G20: 25 | H20: 0.04 | I20: 0 | J20: 0 | K20: 0 | M20: 0 | N20: 0 | P20: 0
B21: 1808 | C21: Buildings - Brick and Stone | G21: 50 | H21: =IF(G21=0,0,1/G21) -> 0.02 | I21: =IF(F21=0,0,+D21/F21) -> 0 | J21: =IF(G21=0,0,+(E21*0.5)/G21) -> 0 | K21: =IF(ISERROR(+I21+J21), 0, +I21+J21) -> 0 | M21: =IF(ISERROR(+K21-L21), 0, +K21-L21) -> 0 | N21: =IF(G21=0,0,+(E21)/G21) -> 0 | P21: 0
B22: 1810 | C22: Leasehold Improvements | H22: 0 | I22: 0 | J22: 0 | K22: 0 | M22: 0 | N22: 0 | P22: 0
B23: 1815 | C23: Transformer Station Equipment >50 kV | H23: 0 | I23: 0 | J23: 0 | K23: 0 | M23: 0 | N23: 0 | P23: 0
B24: 1820 | C24: Distribution Station Equipment <50 kV | G24: 30 | H24: 0.03333333333 | I24: 0 | J24: 0 | K24: 0 | M24: 0 | N24: 0 | P24: 0
B25: 1820 | C25: Distribution Station Equipment <50 kV | G25: 40 | H25: 0.025 | I25: 0 | J25: 0 | K25: 0 | M25: 0 | N25: 0 | P25: 0
B26: 1820 | C26: Distribution Station Equipment <50 kV | G26: 45 | H26: 0.02222222222 | I26: 0 | J26: 0 | K26: 0 | M26: 0 | N26: 0 | P26: 0
B27: 1825 | C27: Storage Battery Equipment | H27: 0 | I27: 0 | J27: 0 | K27: 0 | M27: 0 | N27: 0 | P27: 0
B28: 1830 | C28: Poles, Towers & Fixtures | H28: 0 | I28: 0 | J28: 0 | K28: 0 | M28: 0 | N28: 0 | P28: 0
B29: 1830 | C29: Poles, Towers & Fixtures | D29: 129808 | E29: 3127 | F29: 35.72 | G29: 45 | H29: 0.02222222222 | I29: 3634.042553 | J29: =IF(G29=0,0,+(E29*0.5)/G29) -> 34.74444444 | K29: =IF(ISERROR(+I29+J29), 0, +I29+J29) -> 3668.786998 | L29: 3669 | M29: -0.2130023641 | N29: 69.48888889 | P29: 3703.531442
B30: 1835 | C30: Overhead Conductors & Devices | I30: 0 | K30: 0 | M30: 0 | N30: 0 | P30: 0
B31: 1835 | C31: Overhead Conductors & Devices | G31: 60 | H31: 0.01666666667 | I31: 0 | J31: 0 | K31: 0 | M31: 0 | N31: 0 | P31: 0
B32: 1835 | C32: Overhead Conductors & Devices | D32: 181815 | E32: 6608 | F32: 9.743 | G32: 45 | H32: =IF(G32=0,0,1/G32) -> 0.02222222222 | I32: =IF(F32=0,0,+D32/F32) -> 18661.09001 | J32: =IF(G32=0,0,+(E32*0.5)/G32) -> 73.42222222 | K32: =IF(ISERROR(+I32+J32), 0, +I32+J32) -> 18734.51224 | L32: 18735 | M32: =IF(ISERROR(+K32-L32), 0, +K32-L32) -> -0.4877644349 | N32: =IF(G32=0,0,+(E32)/G32) -> 146.8444444 | P32: =IF(ISERROR(+N32+I32-O32), 0, +N32+I32-O32) -> 18807.93446
B33: 1835 | C33: Overhead Conductors & Devices | G33: 40 | H33: =IF(G33=0,0,1/G33) -> 0.025 | J33: =IF(G33=0,0,+(E33*0.5)/G33) -> 0 | K33: =IF(ISERROR(+I33+J33), 0, +I33+J33) -> 0 | M33: =IF(ISERROR(+K33-L33), 0, +K33-L33) -> 0 | N33: =IF(G33=0,0,+(E33)/G33) -> 0 | P33: =IF(ISERROR(+N33+I33-O33), 0, +N33+I33-O33) -> 0
B34: 1840 | C34: Underground Conduit | D34: 5023 | E34: 633 | F34: 18.47 | G34: 50 | H34: 0.02 | I34: 271.9545208 | J34: 6.33 | K34: 278.2845208 | L34: 278 | M34: 0.2845208446 | N34: 12.66 | P34: 284.6145208
B35: 1840 | C35: Underground Conduit | G35: 50 | H35: 0.02 | I35: =IF(F35=0,0,+D35/F35) -> 0 | J35: =IF(G35=0,0,+(E35*0.5)/G35) -> 0 | K35: =IF(ISERROR(+I35+J35), 0, +I35+J35) -> 0 | M35: =IF(ISERROR(+K35-L35), 0, +K35-L35) -> 0 | N35: =IF(G35=0,0,+(E35)/G35) -> 0 | P35: =IF(ISERROR(+N35+I35-O35), 0, +N35+I35-O35) -> 0
B36: 1845 | C36: Underground Conductors & Devices | D36: 43552 | E36: 9403 | F36: 22.34 | G36: 40 | H36: 0.025 | I36: 1949.50761 | J36: 117.5375 | K36: 2067.04511 | L36: 2067 | M36: 0.04510966876 | N36: 235.075 | P36: 2184.58261
B37: 1845 | C37: Underground Conductors & Devices | G37: 40 | H37: =IF(G37=0,0,1/G37) -> 0.025 | I37: =IF(F37=0,0,+D37/F37) -> 0 | J37: =IF(G37=0,0,+(E37*0.5)/G37) -> 0 | K37: =IF(ISERROR(+I37+J37), 0, +I37+J37) -> 0 | M37: =IF(ISERROR(+K37-L37), 0, +K37-L37) -> 0 | N37: =IF(G37=0,0,+(E37)/G37) -> 0 | P37: =IF(ISERROR(+N37+I37-O37), 0, +N37+I37-O37) -> 0
B38: 1850 | C38: Line Transformers | D38: 73385 | F38: 29.1742 | G38: 25 | H38: 0.04 | I38: 2515.407449 | J38: 0 | K38: 2515 | L38: 2515 | M38: 0 | N38: 0 | P38: 2515.407449
B39: 1850 | C39: Line Transformers | G39: 40 | H39: =IF(G39=0,0,1/G39) -> 0.025 | I39: =IF(F39=0,0,+D39/F39) -> 0 | J39: =IF(G39=0,0,+(E39*0.5)/G39) -> 0 | K39: =IF(ISERROR(+I39+J39), 0, +I39+J39) -> 0 | M39: =IF(ISERROR(+K39-L39), 0, +K39-L39) -> 0 | N39: =IF(G39=0,0,+(E39)/G39) -> 0 | P39: =IF(ISERROR(+N39+I39-O39), 0, +N39+I39-O39) -> 0
B40: 1855 | C40: Services (Overhead & Underground) | D40: 10245 | F40: 19 | G40: 40 | H40: 0.025 | I40: 539.2105263 | J40: 0 | K40: 539.2105263 | L40: 539 | M40: 0.2105263158 | N40: 0 | P40: 539.2105263
B41: 1855 | C41: Services (Overhead & Underground) | G41: 60 | H41: =IF(G41=0,0,1/G41) -> 0.01666666667 | I41: =IF(F41=0,0,+D41/F41) -> 0 | J41: =IF(G41=0,0,+(E41*0.5)/G41) -> 0 | K41: =IF(ISERROR(+I41+J41), 0, +I41+J41) -> 0 | M41: =IF(ISERROR(+K41-L41), 0, +K41-L41) -> 0 | N41: =IF(G41=0,0,+(E41)/G41) -> 0 | P41: =IF(ISERROR(+N41+I41-O41), 0, +N41+I41-O41) -> 0
B42: 1855 | C42: Services (Overhead & Underground) | G42: 40 | H42: =IF(G42=0,0,1/G42) -> 0.025 | I42: =IF(F42=0,0,+D42/F42) -> 0 | J42: =IF(G42=0,0,+(E42*0.5)/G42) -> 0 | K42: =IF(ISERROR(+I42+J42), 0, +I42+J42) -> 0 | M42: =IF(ISERROR(+K42-L42), 0, +K42-L42) -> 0 | N42: =IF(G42=0,0,+(E42)/G42) -> 0 | P42: =IF(ISERROR(+N42+I42-O42), 0, +N42+I42-O42) -> 0
B43: 1860 | C43: Meters | D43: 47598 | E43: 7258 | F43: 5.378955696 | G43: 15 | H43: =IF(G43=0,0,1/G43) -> 0.06666666667 | I43: =IF(F43=0,0,+D43/F43) -> 8848.929548 | J43: =IF(G43=0,0,+(E43*0.5)/G43) -> 241.9333333 | K43: =IF(ISERROR(+I43+J43), 0, +I43+J43) -> 9090.862882 | L43: 9091 | M43: =IF(ISERROR(+K43-L43), 0, +K43-L43) -> -0.1371181995 | N43: =IF(G43=0,0,+(E43)/G43) -> 483.8666667 | P43: =IF(ISERROR(+N43+I43-O43), 0, +N43+I43-O43) -> 9332.796215
B44: 1860 | C44: Meters | G44: 25 | H44: 0.04 | I44: 0 | J44: 0 | K44: 0 | M44: 0 | N44: 0 | P44: 0
B45: 1860 | C45: Meters (Smart Meters) | H45: 0 | I45: 0 | J45: 0 | K45: 0 | M45: 0 | N45: 0 | P45: 0
B46: 1905 | C46: Land | D46: 7600 | H46: 0 | I46: 0 | J46: 0 | K46: 0 | M46: 0 | N46: 0 | P46: 0
B47: 1908 | C47: Buildings & Fixtures | D47: 141225 | F47: 25.531 | H47: 0 | I47: 5531.510712 | J47: 0 | K47: 5531.510712 | L47: 5532 | M47: -0.4892875328 | N47: 0 | P47: 5531.510712
B48: 1910 | C48: Leasehold Improvements | H48: 0 | I48: 0 | J48: 0 | K48: 0 | M48: 0 | N48: 0 | P48: 0
B49: 1915 | C49: Office Furniture & Equipment (10 years) | D49: 1887 | F49: 6 | G49: 10 | H49: 0.1 | I49: 314.5 | J49: 0 | K49: 314.5 | L49: 315 | M49: -0.5 | N49: 0 | P49: 314.5
B50: 1915 | C50: Office Furniture & Equipment (5 years) | H50: 0 | I50: 0 | J50: 0 | K50: 0 | M50: 0 | N50: 0 | P50: 0
B51: 1920 | C51: Computer Equipment - Hardware | H51: 0 | I51: 0 | J51: 0 | K51: 0 | M51: 0 | N51: 0 | P51: 0
B52: 1920 | C52: Computer Equip.-Hardware(Post Mar. 22/04) | H52: 0 | I52: 0 | J52: 0 | K52: 0 | M52: 0 | N52: 0 | P52: 0
B53: 1920 | C53: Computer Equip.-Hardware(Post Mar. 19/07) | D53: 6494 | E53: 3732 | F53: 2.0339 | G53: 5 | H53: 0.2 | I53: 3192.880673 | J53: 373.2 | K53: 3566.080673 | L53: 3566 | M53: 0.08067259944 | N53: 746.4 | O53: 1299 | P53: 2640.280673
B54: 1930 | C54: Transportation Equipment | G54: 8 | H54: 0.125 | I54: 0 | J54: 0 | K54: 0 | M54: 0 | N54: 0 | P54: 0
B55: 1930 | C55: Transportation Equipment | D55: 213916 | E55: 28201 | F55: 8.547 | G55: 5 | H55: =IF(G55=0,0,1/G55) -> 0.2 | I55: =IF(F55=0,0,+D55/F55) -> 25028.19703 | J55: =IF(G55=0,0,+(E55*0.5)/G55) -> 2820.1 | K55: =IF(ISERROR(+I55+J55), 0, +I55+J55) -> 27848.29703 | L55: 27848 | M55: =IF(ISERROR(+K55-L55), 0, +K55-L55) -> 0.297028197 | N55: =IF(G55=0,0,+(E55)/G55) -> 5640.2 | P55: =IF(ISERROR(+N55+I55-O55), 0, +N55+I55-O55) -> 30668.39703
B56: 1930 | C56: Transportation Equipment | G56: 8 | H56: =IF(G56=0,0,1/G56) -> 0.125 | I56: =IF(F56=0,0,+D56/F56) -> 0 | J56: =IF(G56=0,0,+(E56*0.5)/G56) -> 0 | K56: =IF(ISERROR(+I56+J56), 0, +I56+J56) -> 0 | M56: =IF(ISERROR(+K56-L56), 0, +K56-L56) -> 0 | N56: =IF(G56=0,0,+(E56)/G56) -> 0 | P56: =IF(ISERROR(+N56+I56-O56), 0, +N56+I56-O56) -> 0
B57: 1935 | C57: Stores Equipment | D57: 0 | H57: 0 | I57: 0 | J57: 0 | K57: 0 | M57: 0 | N57: 0 | P57: 0
B58: 1940 | C58: Tools, Shop & Garage Equipment | D58: 7873 | F58: 3.53 | G58: 10 | H58: 0.1 | I58: 2230.311615 | J58: 0 | K58: 2230.311615 | L58: 2230 | M58: 0.3116147309 | N58: 0 | P58: 2230.311615
B59: 1945 | C59: Measurement & Testing Equipment | G59: 10 | H59: 0.1 | I59: 0 | J59: 0 | K59: 0 | M59: 0 | N59: 0 | P59: 0
B60: 1950 | C60: Power Operated Equipment | H60: 0 | I60: 0 | J60: 0 | K60: 0 | M60: 0 | N60: 0 | P60: 0
B61: 1955 | C61: Communications Equipment | D61: 708 | F61: 2 | G61: 5 | H61: 0.2 | I61: 354 | J61: 0 | K61: 354 | L61: 354 | M61: 0 | N61: 0 | P61: 354
B62: 1955 | C62: Communication Equipment (Smart Meters) | H62: 0 | I62: 0 | J62: 0 | K62: 0 | M62: 0 | N62: 0 | P62: 0
B63: 1960 | C63: Miscellaneous Equipment | G63: 10 | H63: 0.1 | I63: 0 | J63: 0 | K63: 0 | M63: 0 | N63: 0 | P63: 0
B64: 1970 | C64: Load Management Controls Customer Premises | G64: 10 | H64: 0.1 | I64: 0 | J64: 0 | K64: 0 | M64: 0 | N64: 0 | P64: 0
B65: 1975 | C65: Load Management Controls Utility Premises | G65: 10 | H65: 0.1 | I65: 0 | J65: 0 | K65: 0 | M65: 0 | N65: 0 | P65: 0
B66: 1980 | C66: System Supervisor Equipment | G66: 3 | H66: 0.3333333333 | I66: 0 | J66: 0 | K66: 0 | M66: 0 | N66: 0 | P66: 0
B67: 1985 | C67: Miscellaneous Fixed Assets | H67: 0 | I67: 0 | J67: 0 | K67: 0 | M67: 0 | N67: 0 | P67: 0
B68: 1990 | C68: Other Tangible Property | H68: 0 | I68: 0 | J68: 0 | K68: 0 | M68: 0 | N68: 0 | P68: 0
B69: 1995 | C69: Contributions & Grants | G69: 40 | H69: 0.025 | I69: 0 | J69: 0 | K69: 0 | M69: 0 | N69: 0 | P69: 0
C70: Total | D70: =SUM(D17:D69) -> 875946 | E70: =SUM(E17:E69) -> 58962 | I70: =SUM(I17:I69) -> 74410.79225 | J70: 3667.2675 | K70: 78077.6523 | L70: 78078 | M70: -0.3477001747 | N70: 7334.535 | O70: 1299 | P70: 80446.32725
B72: Notes:
B74: 1 | C74: Board policy of the "half-year" rule - the applicant must ensure that additions in the year attract a half-year depreciation expense in the first year. Deviations from this standard practice must be supported in the application.
B75: 2 | C75: The applicant must provide an explanation of material variances in evidence.
B76: 3 | C76: The applicant should ensure that the years for new additions of assets are the asset useful lives determined by management in accordance with the Board's regulatory accounting policies. The capitalization and depreciation expense accounting changes should be implemented consistent with the Board’s regulatory accounting policies as set out for modified IFRS as contained in the Report of the Board, Transition to International Financial Reporting Standards, EB-2008-0408, the Kinectrics Report, and the Revised 2012 Accounting Procedures Handbook for Electricity Distributors (“APH”).
B77: 4 | C77: A recalculation should be performed to determine the average remaining life of opening balance of assets (i.e. excluding 2012 additions) under the change in policies under CGAAP. For example, Asset A had a useful life of 20 years under CGAAP without the change in policies. On January 1, 2012, the effective date of the changes in policies, Asset A was 3 years depreciated. As a result, Asset A would have a remaining service life of 17 years (20 years less 3 years) as of January 1, 2012. Due to making the change in policies under CGAAP, management re-assessed the asset useful lives and concluded that the revised useful life of Asset A is now 30 years. Therefore, the average remaining useful life of the opening balance of Asset A is determined to be 27 years (30 years less 3 years) under the revised CGAAP as of January 1, 2012.
B78: 5 | C78: NBV must exclude assets still on the books but which have been fully amortized or depreciated.
B79: 6 | C79: This column refers to the calculated full year depreciation but excludes the depreciation expense on assets fully depreciated during the year. This column is used for the purpose of calculating depreciation expense in the following year on the next worksheet.
B81: General: | C81: Applicants must provide a breakdown of depreciation and amortization expense in the above format for all relevant accounts. Asset Retirement Obligations (AROs), depreciation and accretion expense should be disclosed separately consistent with the Notes of historical Audited Financial Statements.

Sheet App.2-BA_FA Cont_2014_NewCGAAP
B10: Fixed Asset Continuity Schedule
F12: Accounting Standard | G12: CGAAP | H12: New CGAAP
F13: Year | G13: 2014
E15: Cost | K15: Accumulated Depreciation
B16: CCA Class | C16: OEB | D16: Description | E16: Opening Balance | F16: Additions | G16: Disposals | H16: Closing Balance | J16: Opening Balance | K16: Additions | L16: Disposals | M16: Closing Balance | N16: Net Book Value
B17: 12 | C17: 1611 | D17: Computer Software (Formally known as Account 1925) | E17: ='App.2-BA_FA Cont_2013_NewCGAAP'!H17 -> 121752.33 | F17: 11500 | H17: =E17+F17+G17 -> 133252.33 | J17: ='App.2-BA_FA Cont_2013_NewCGAAP'!M17 -> -118274 | K17: -2309 | M17: =J17+K17+L17 -> -120583 | N17: =H17+M17 -> 12669.33
B18: CEC | C18: 1612 | D18: Land Rights (Formally known as Account 1906) | E18: ='App.2-BA_FA Cont_2013_NewCGAAP'!H18 -> 4232 | H18: =E18+F18+G18 -> 4232 | J18: ='App.2-BA_FA Cont_2013_NewCGAAP'!M18 -> -4232 | M18: =J18+K18+L18 -> -4232 | N18: =H18+M18 -> 0
B19: N/A | C19: 1805 | D19: Land | E19: ='App.2-BA_FA Cont_2013_NewCGAAP'!H19 -> 0 | H19: =E19+F19+G19 -> 0 | J19: ='App.2-BA_FA Cont_2013_NewCGAAP'!M19 -> 0 | M19: =J19+K19+L19 -> 0 | N19: =H19+M19 -> 0
B20: 47 | C20: 1808 | D20: Buildings | E20: ='App.2-BA_FA Cont_2013_NewCGAAP'!H20 -> 0 | H20: =E20+F20+G20 -> 0 | J20: ='App.2-BA_FA Cont_2013_NewCGAAP'!M20 -> 0 | M20: =J20+K20+L20 -> 0 | N20: =H20+M20 -> 0
B21: 13 | C21: 1810 | D21: Leasehold Improvements | E21: ='App.2-BA_FA Cont_2013_NewCGAAP'!H21 -> 0 | H21: 0 | J21: ='App.2-BA_FA Cont_2013_NewCGAAP'!M21 -> 0 | M21: 0 | N21: 0
B22: 47 | C22: 1815 | D22: Transformer Station Equipment >50 kV | E22: ='App.2-BA_FA Cont_2013_NewCGAAP'!H22 -> 0 | H22: 0 | J22: ='App.2-BA_FA Cont_2013_NewCGAAP'!M22 -> 0 | M22: 0 | N22: 0
B23: 47 | C23: 1820 | D23: Distribution Station Equipment <50 kV | E23: ='App.2-BA_FA Cont_2013_NewCGAAP'!H23 -> 0 | H23: 0 | J23: ='App.2-BA_FA Cont_2013_NewCGAAP'!M23 -> 0 | M23: 0 | N23: 0
B24: 47 | C24: 1825 | D24: Storage Battery Equipment | E24: ='App.2-BA_FA Cont_2013_NewCGAAP'!H24 -> 0 | H24: 0 | J24: ='App.2-BA_FA Cont_2013_NewCGAAP'!M24 -> 0 | M24: 0 | N24: 0
B25: 47 | C25: 1830 | D25: Poles, Towers & Fixtures | E25: ='App.2-BA_FA Cont_2013_NewCGAAP'!H25 -> 690046.32 | F25: 12464 | H25: 702510.32 | J25: ='App.2-BA_FA Cont_2013_NewCGAAP'!M25 -> -560780 | K25: -3842 | M25: -564622 | N25: 137888.32
B26: 47 | C26: 1835 | D26: Overhead Conductors & Devices | E26: ='App.2-BA_FA Cont_2013_NewCGAAP'!H26 -> 968739 | F26: 13750 | H26: 982489 | J26: ='App.2-BA_FA Cont_2013_NewCGAAP'!M26 -> -799051 | K26: -18961 | M26: -818012 | N26: 164477
B27: 47 | C27: 1840 | D27: Underground Conduit | E27: ='App.2-BA_FA Cont_2013_NewCGAAP'!H27 -> 7681 | H27: 7681 | J27: ='App.2-BA_FA Cont_2013_NewCGAAP'!M27 -> -2303 | K27: -285 | M27: -2588 | N27: 5093
B28: 47 | C28: 1845 | D28: Underground Conductors & Devices | E28: ='App.2-BA_FA Cont_2013_NewCGAAP'!H28 -> 434799 | F28: 10161 | H28: 444960 | J28: ='App.2-BA_FA Cont_2013_NewCGAAP'!M28 -> -383911 | K28: -2311 | M28: -386222 | N28: 58738
B29: 47 | C29: 1850 | D29: Line Transformers | E29: ='App.2-BA_FA Cont_2013_NewCGAAP'!H29 -> 557917 | F29: 11120 | H29: 569037 | J29: ='App.2-BA_FA Cont_2013_NewCGAAP'!M29 -> -487047 | K29: -2654 | M29: -489701 | N29: 79336
B30: 47 | C30: 1855 | D30: Services (Overhead & Underground) | E30: ='App.2-BA_FA Cont_2013_NewCGAAP'!H30 -> 13529 | H30: 13529 | J30: ='App.2-BA_FA Cont_2013_NewCGAAP'!M30 -> -3823 | K30: -539 | M30: -4362 | N30: 9167
B31: 47 | C31: 1860 | D31: Meters | E31: ='App.2-BA_FA Cont_2013_NewCGAAP'!H31 -> 144973 | H31: 144973 | J31: ='App.2-BA_FA Cont_2013_NewCGAAP'!M31 -> -99208 | K31: -9333 | M31: -108541 | N31: 36432
B32: 47 | C32: 1860 | D32: Meters (Smart Meters) | E32: ='App.2-BA_FA Cont_2013_NewCGAAP'!H32 -> 0 | H32: 0 | J32: ='App.2-BA_FA Cont_2013_NewCGAAP'!M32 -> 0 | M32: 0 | N32: 0
B33: N/A | C33: 1905 | D33: Land | E33: ='App.2-BA_FA Cont_2013_NewCGAAP'!H33 -> 7600 | H33: 7600 | J33: ='App.2-BA_FA Cont_2013_NewCGAAP'!M33 -> 0 | M33: 0 | N33: 7600
B34: 47 | C34: 1908 | D34: Buildings & Fixtures | E34: ='App.2-BA_FA Cont_2013_NewCGAAP'!H34 -> 232469 | F34: 70000 | H34: 302469 | J34: ='App.2-BA_FA Cont_2013_NewCGAAP'!M34 -> -96776 | K34: -6032 | M34: -102808 | N34: 199661
B35: 13 | C35: 1910 | D35: Leasehold Improvements | E35: ='App.2-BA_FA Cont_2013_NewCGAAP'!H35 -> 0 | H35: 0 | J35: ='App.2-BA_FA Cont_2013_NewCGAAP'!M35 -> 0 | M35: 0 | N35: 0
B36: 8 | C36: 1915 | D36: Office Furniture & Equipment (10 years) | E36: ='App.2-BA_FA Cont_2013_NewCGAAP'!H36 -> 42114 | F36: 2500 | H36: 44614 | J36: ='App.2-BA_FA Cont_2013_NewCGAAP'!M36 -> -40542 | K36: -440 | M36: -40982 | N36: 3632
B37: 8 | C37: 1915 | D37: Office Furniture & Equipment (5 years) | E37: ='App.2-BA_FA Cont_2013_NewCGAAP'!H37 -> 0 | H37: 0 | J37: ='App.2-BA_FA Cont_2013_NewCGAAP'!M37 -> 0 | M37: 0 | N37: 0
B38: 10 | C38: 1920 | D38: Computer Equipment - Hardware | E38: ='App.2-BA_FA Cont_2013_NewCGAAP'!H38 -> 77302 | H38: 77302 | J38: ='App.2-BA_FA Cont_2013_NewCGAAP'!M38 -> -77302 | M38: -77302 | N38: 0
B39: 45 | C39: 1920 | D39: Computer Equip.-Hardware(Post Mar. 22/04) | E39: ='App.2-BA_FA Cont_2013_NewCGAAP'!H39 -> 2220 | H39: 2220 | J39: ='App.2-BA_FA Cont_2013_NewCGAAP'!M39 -> -2220 | M39: -2220 | N39: 0
B40: 45.1 | C40: 1920 | D40: Computer Equip.-Hardware(Post Mar. 19/07) | E40: ='App.2-BA_FA Cont_2013_NewCGAAP'!H40 -> 29090 | F40: 11250 | H40: 40340 | J40: ='App.2-BA_FA Cont_2013_NewCGAAP'!M40 -> -22133 | K40: -3765 | M40: -25898 | N40: 14442
B41: 10 | C41: 1930 | D41: Transportation Equipment | E41: ='App.2-BA_FA Cont_2013_NewCGAAP'!H41 -> 732200.62 | F41: 0 | H41: 732200.62 | J41: ='App.2-BA_FA Cont_2013_NewCGAAP'!M41 -> -517931.54 | K41: -30668 | M41: -548599.54 | N41: 183601.08
B42: 8 | C42: 1935 | D42: Stores Equipment | E42: ='App.2-BA_FA Cont_2013_NewCGAAP'!H42 -> 1855 | H42: 1855 | J42: ='App.2-BA_FA Cont_2013_NewCGAAP'!M42 -> -1855 | M42: -1855 | N42: 0
B43: 8 | C43: 1940 | D43: Tools, Shop & Garage Equipment | E43: ='App.2-BA_FA Cont_2013_NewCGAAP'!H43 -> 98422 | F43: 8450 | H43: 106872 | J43: ='App.2-BA_FA Cont_2013_NewCGAAP'!M43 -> -92779 | K43: -2653 | M43: -95432 | N43: 11440
B44: 8 | C44: 1945 | D44: Measurement & Testing Equipment | E44: ='App.2-BA_FA Cont_2013_NewCGAAP'!H44 -> 0 | H44: 0 | J44: ='App.2-BA_FA Cont_2013_NewCGAAP'!M44 -> 0 | M44: 0 | N44: 0
B45: 8 | C45: 1950 | D45: Power Operated Equipment | E45: ='App.2-BA_FA Cont_2013_NewCGAAP'!H45 -> 0 | H45: 0 | J45: ='App.2-BA_FA Cont_2013_NewCGAAP'!M45 -> 0 | M45: 0 | N45: 0
B46: 8 | C46: 1955 | D46: Communications Equipment | E46: ='App.2-BA_FA Cont_2013_NewCGAAP'!H46 -> 3546 | H46: 3546 | J46: ='App.2-BA_FA Cont_2013_NewCGAAP'!M46 -> -3192 | K46: -354 | M46: -3546 | N46: 0
B47: 8 | C47: 1955 | D47: Communication Equipment (Smart Meters) | E47: ='App.2-BA_FA Cont_2013_NewCGAAP'!H47 -> 0 | H47: 0 | J47: ='App.2-BA_FA Cont_2013_NewCGAAP'!M47 -> 0 | M47: 0 | N47: 0
B48: 8 | C48: 1960 | D48: Miscellaneous Equipment | E48: ='App.2-BA_FA Cont_2013_NewCGAAP'!H48 -> 0 | H48: 0 | J48: ='App.2-BA_FA Cont_2013_NewCGAAP'!M48 -> 0 | M48: 0 | N48: 0
B49: 47 | C49: 1970 | D49: Load Management Controls Customer Premises | E49: ='App.2-BA_FA Cont_2013_NewCGAAP'!H49 -> 0 | H49: 0 | J49: ='App.2-BA_FA Cont_2013_NewCGAAP'!M49 -> 0 | M49: 0 | N49: 0
B50: 47 | C50: 1975 | D50: Load Management Controls Utility Premises | E50: ='App.2-BA_FA Cont_2013_NewCGAAP'!H50 -> 0 | H50: 0 | J50: ='App.2-BA_FA Cont_2013_NewCGAAP'!M50 -> 0 | M50: 0 | N50: 0
B51: 47 | C51: 1980 | D51: System Supervisor Equipment | E51: ='App.2-BA_FA Cont_2013_NewCGAAP'!H51 -> 0 | H51: 0 | J51: ='App.2-BA_FA Cont_2013_NewCGAAP'!M51 -> 0 | M51: 0 | N51: 0
B52: 47 | C52: 1985 | D52: Miscellaneous Fixed Assets | E52: ='App.2-BA_FA Cont_2013_NewCGAAP'!H52 -> 0 | H52: 0 | J52: ='App.2-BA_FA Cont_2013_NewCGAAP'!M52 -> 0 | M52: 0 | N52: 0
B53: 47 | C53: 1990 | D53: Other Tangible Property | E53: ='App.2-BA_FA Cont_2013_NewCGAAP'!H53 -> 0 | H53: 0 | J53: ='App.2-BA_FA Cont_2013_NewCGAAP'!M53 -> 0 | M53: 0 | N53: 0
B54: 47 | C54: 1995 | D54: Contributions & Grants | E54: ='App.2-BA_FA Cont_2013_NewCGAAP'!H54 -> 0 | H54: 0 | J54: ='App.2-BA_FA Cont_2013_NewCGAAP'!M54 -> 0 | M54: 0 | N54: 0
B55: 47 | C55: 2440 | D55: Deferred Revenue5 | E55: ='App.2-BA_FA Cont_2013_NewCGAAP'!H55 -> 0 | J55: ='App.2-BA_FA Cont_2013_NewCGAAP'!M55 -> 0
H56: 0 | J56: ='App.2-BA_FA Cont_2013_NewCGAAP'!M56 -> 0 | M56: 0 | N56: 0
D57: Sub-Total | E57: =SUM(E17:E56) -> 4170487.27 | F57: =SUM(F17:F56) -> 151195 | G57: =SUM(G17:G56) -> 0 | H57: =SUM(H17:H56) -> 4321682.27 | J57: =SUM(J17:J56) -> -3313359.54 | K57: =SUM(K17:K56) -> -84146 | L57: =SUM(L17:L56) -> 0 | M57: =SUM(M17:M56) -> -3397505.54 | N57: =SUM(N17:N56) -> 924176.73
D58: Less Socialized Renewable Energy Generation Investments (input as negative) | H58: =E58+F58+G58 -> 0 | M58: =J58+K58+L58 -> 0 | N58: =H58+M58 -> 0
D59: Less Other Non Rate-Regulated Utility Assets (input as negative) | H59: 0 | M59: =J59+K59+L59 -> 0 | N59: 0
D60: Total PP&E | E60: =SUM(E57:E59) -> 4170487.27 | F60: =SUM(F57:F59) -> 151195 | G60: =SUM(G57:G59) -> 0 | H60: =SUM(H57:H59) -> 4321682.27 | J60: =SUM(J57:J59) -> -3313359.54 | K60: =SUM(K57:K59) -> -84146 | L60: =SUM(L57:L59) -> 0 | M60: =SUM(M57:M59) -> -3397505.54 | N60: =SUM(N57:N59) -> 924176.73
D61: Depreciation Expense adj. from gain or loss on the retirement of assets (pool of like assets), if applicable6
D62: Total | K62: =K60+K61 -> -84146
J64: Less: Fully Allocated Depreciation
B65: 10 | D65: Transportation | J65: Transportation
B66: 8 | D66: Stores Equipment | J66: Stores Equipment
J67: Net Depreciation | L67: =K62-L65-L66 -> -84146
B69: Notes:
B71: 1 | C71: Tables in the format outlined above covering all fixed asset accounts should be submitted for the Test Year, Bridge Year and all relevant historical years. At a minimum , the applicant must provide data for the earlier of: 1) all historical years back to its last rebasing; or 2) at least three years of historical actuals, in addition to Bridge Year and Test Year forecasts.
B74: 2 | C74: The "CCA Class" for fixed assets should agree with the CCA Class used for tax purposes in Tax Returns. Fixed Assets sub-components may be used where the underlying asset components are classified under multiple CCA Classes for tax purposes. If an applicant uses any different classes from those shown in the table, an explanation should be provided. (also see note 3 below).
B77: 3 | C77: The table may need to be customized for a utility's asset categories or for any new asset accounts announced or authorized by the Board.
B79: 4 | C79: The additions column (E) must not include construction work in progress (CWIP).
B81: 5 | C81: Effective on the date of IFRS adoption, customer contributions will no longer be recorded in Account 1995 Contributions & Grants, but will be recorded in Account 2440, Deferred Revenues.
B83: 6 | C83: Where a distributor for general financial reporting purposes under IFRS has accounted for the amount of gain or loss on the retirement of assets in a pool of like assets as a charge or credit to income, for reporting and rate application filings the distributor shall reclassify such gains and losses as depreciation expense, and disclose the amount separately.

Sheet App.2-BA_FA Cont_2014_MIFRS
B10: Fixed Asset Continuity Schedule
F12: Accounting Standard | G12: MIFRS
F13: Year | G13: 2014
E15: Cost | K15: Accumulated Depreciation
B16: CCA Class | C16: OEB | D16: Description | E16: Opening Balance | F16: Additions | G16: Disposals | H16: Closing Balance | J16: Opening Balance | K16: Additions | L16: Disposals | M16: Closing Balance | N16: Net Book Value
B17: 12 | C17: 1611 | D17: Computer Software (Formally known as Account 1925) | E17: ='App.2-BA_FA Cont_2013_NewCGAAP'!H17 -> 121752.33 | F17: 11500 | H17: =E17+F17+G17 -> 133252.33 | J17: ='App.2-BA_FA Cont_2013_NewCGAAP'!M17 -> -118274 | K17: -2309 | M17: =J17+K17+L17 -> -120583 | N17: =H17+M17 -> 12669.33
B18: CEC | C18: 1612 | D18: Land Rights (Formally known as Account 1906) | E18: ='App.2-BA_FA Cont_2013_NewCGAAP'!H18 -> 4232 | H18: 4232 | J18: ='App.2-BA_FA Cont_2013_NewCGAAP'!M18 -> -4232 | M18: =J18+K18+L18 -> -4232 | N18: =H18+M18 -> 0
B19: N/A | C19: 1805 | D19: Land | E19: ='App.2-BA_FA Cont_2013_NewCGAAP'!H19 -> 0 | H19: 0 | J19: ='App.2-BA_FA Cont_2013_NewCGAAP'!M19 -> 0 | M19: =J19+K19+L19 -> 0 | N19: =H19+M19 -> 0
B20: 47 | C20: 1808 | D20: Buildings | E20: ='App.2-BA_FA Cont_2013_NewCGAAP'!H20 -> 0 | H20: 0 | J20: ='App.2-BA_FA Cont_2013_NewCGAAP'!M20 -> 0 | M20: =J20+K20+L20 -> 0 | N20: =H20+M20 -> 0
B21: 13 | C21: 1810 | D21: Leasehold Improvements | E21: ='App.2-BA_FA Cont_2013_NewCGAAP'!H21 -> 0 | H21: 0 | J21: ='App.2-BA_FA Cont_2013_NewCGAAP'!M21 -> 0 | M21: 0 | N21: 0
B22: 47 | C22: 1815 | D22: Transformer Station Equipment >50 kV | E22: ='App.2-BA_FA Cont_2013_NewCGAAP'!H22 -> 0 | H22: 0 | J22: ='App.2-BA_FA Cont_2013_NewCGAAP'!M22 -> 0 | M22: 0 | N22: 0
B23: 47 | C23: 1820 | D23: Distribution Station Equipment <50 kV | E23: ='App.2-BA_FA Cont_2013_NewCGAAP'!H23 -> 0 | H23: 0 | J23: ='App.2-BA_FA Cont_2013_NewCGAAP'!M23 -> 0 | M23: 0 | N23: 0
B24: 47 | C24: 1825 | D24: Storage Battery Equipment | E24: ='App.2-BA_FA Cont_2013_NewCGAAP'!H24 -> 0 | H24: 0 | J24: ='App.2-BA_FA Cont_2013_NewCGAAP'!M24 -> 0 | M24: 0 | N24: 0
B25: 47 | C25: 1830 | D25: Poles, Towers & Fixtures | E25: ='App.2-BA_FA Cont_2013_NewCGAAP'!H25 -> 690046.32 | F25: 12464 | H25: 702510.32 | J25: ='App.2-BA_FA Cont_2013_NewCGAAP'!M25 -> -560780 | K25: -3842 | M25: -564622 | N25: 137888.32
B26: 47 | C26: 1835 | D26: Overhead Conductors & Devices | E26: ='App.2-BA_FA Cont_2013_NewCGAAP'!H26 -> 968739 | F26: 13750 | H26: 982489 | J26: ='App.2-BA_FA Cont_2013_NewCGAAP'!M26 -> -799051 | K26: -18961 | M26: -818012 | N26: 164477
B27: 47 | C27: 1840 | D27: Underground Conduit | E27: ='App.2-BA_FA Cont_2013_NewCGAAP'!H27 -> 7681 | H27: 7681 | J27: ='App.2-BA_FA Cont_2013_NewCGAAP'!M27 -> -2303 | K27: -285 | M27: -2588 | N27: 5093
B28: 47 | C28: 1845 | D28: Underground Conductors & Devices | E28: ='App.2-BA_FA Cont_2013_NewCGAAP'!H28 -> 434799 | F28: 10161 | H28: 444960 | J28: ='App.2-BA_FA Cont_2013_NewCGAAP'!M28 -> -383911 | K28: -2311 | M28: -386222 | N28: 58738
B29: 47 | C29: 1850 | D29: Line Transformers | E29: ='App.2-BA_FA Cont_2013_NewCGAAP'!H29 -> 557917 | F29: 11120 | H29: 569037 | J29: ='App.2-BA_FA Cont_2013_NewCGAAP'!M29 -> -487047 | K29: -2654 | M29: -489701 | N29: 79336
B30: 47 | C30: 1855 | D30: Services (Overhead & Underground) | E30: ='App.2-BA_FA Cont_2013_NewCGAAP'!H30 -> 13529 | H30: 13529 | J30: ='App.2-BA_FA Cont_2013_NewCGAAP'!M30 -> -3823 | K30: -539 | M30: -4362 | N30: 9167
B31: 47 | C31: 1860 | D31: Meters | E31: ='App.2-BA_FA Cont_2013_NewCGAAP'!H31 -> 144973 | H31: 144973 | J31: ='App.2-BA_FA Cont_2013_NewCGAAP'!M31 -> -99208 | K31: -9333 | M31: -108541 | N31: 36432
B32: 47 | C32: 1860 | D32: Meters (Smart Meters) | E32: ='App.2-BA_FA Cont_2013_NewCGAAP'!H32 -> 0 | H32: 0 | J32: ='App.2-BA_FA Cont_2013_NewCGAAP'!M32 -> 0 | M32: 0 | N32: 0
B33: N/A | C33: 1905 | D33: Land | E33: ='App.2-BA_FA Cont_2013_NewCGAAP'!H33 -> 7600 | H33: 7600 | J33: ='App.2-BA_FA Cont_2013_NewCGAAP'!M33 -> 0 | M33: 0 | N33: 7600
B34: 47 | C34: 1908 | D34: Buildings & Fixtures | E34: ='App.2-BA_FA Cont_2013_NewCGAAP'!H34 -> 232469 | F34: 70000 | H34: 302469 | J34: ='App.2-BA_FA Cont_2013_NewCGAAP'!M34 -> -96776 | K34: -6032 | M34: -102808 | N34: 199661
B35: 13 | C35: 1910 | D35: Leasehold Improvements | E35: ='App.2-BA_FA Cont_2013_NewCGAAP'!H35 -> 0 | H35: 0 | J35: ='App.2-BA_FA Cont_2013_NewCGAAP'!M35 -> 0 | M35: 0 | N35: 0
B36: 8 | C36: 1915 | D36: Office Furniture & Equipment (10 years) | E36: ='App.2-BA_FA Cont_2013_NewCGAAP'!H36 -> 42114 | F36: 2500 | H36: 44614 | J36: ='App.2-BA_FA Cont_2013_NewCGAAP'!M36 -> -40542 | K36: -440 | M36: -40982 | N36: 3632
B37: 8 | C37: 1915 | D37: Office Furniture & Equipment (5 years) | E37: ='App.2-BA_FA Cont_2013_NewCGAAP'!H37 -> 0 | H37: 0 | J37: ='App.2-BA_FA Cont_2013_NewCGAAP'!M37 -> 0 | M37: 0 | N37: 0
B38: 10 | C38: 1920 | D38: Computer Equipment - Hardware | E38: ='App.2-BA_FA Cont_2013_NewCGAAP'!H38 -> 77302 | H38: 77302 | J38: ='App.2-BA_FA Cont_2013_NewCGAAP'!M38 -> -77302 | M38: -77302 | N38: 0
B39: 45 | C39: 1920 | D39: Computer Equip.-Hardware(Post Mar. 22/04) | E39: ='App.2-BA_FA Cont_2013_NewCGAAP'!H39 -> 2220 | H39: 2220 | J39: ='App.2-BA_FA Cont_2013_NewCGAAP'!M39 -> -2220 | M39: -2220 | N39: 0
B40: 45.1 | C40: 1920 | D40: Computer Equip.-Hardware(Post Mar. 19/07) | E40: ='App.2-BA_FA Cont_2013_NewCGAAP'!H40 -> 29090 | F40: 11250 | H40: 40340 | J40: ='App.2-BA_FA Cont_2013_NewCGAAP'!M40 -> -22133 | K40: -3765 | M40: -25898 | N40: 14442
B41: 10 | C41: 1930 | D41: Transportation Equipment | E41: ='App.2-BA_FA Cont_2013_NewCGAAP'!H41 -> 732200.62 | F41: 0 | H41: 732200.62 | J41: ='App.2-BA_FA Cont_2013_NewCGAAP'!M41 -> -517931.54 | K41: -30668 | M41: -548599.54 | N41: 183601.08
B42: 8 | C42: 1935 | D42: Stores Equipment | E42: ='App.2-BA_FA Cont_2013_NewCGAAP'!H42 -> 1855 | H42: 1855 | J42: ='App.2-BA_FA Cont_2013_NewCGAAP'!M42 -> -1855 | M42: -1855 | N42: 0
B43: 8 | C43: 1940 | D43: Tools, Shop & Garage Equipment | E43: ='App.2-BA_FA Cont_2013_NewCGAAP'!H43 -> 98422 | F43: 8450 | H43: 106872 | J43: ='App.2-BA_FA Cont_2013_NewCGAAP'!M43 -> -92779 | K43: -2653 | M43: -95432 | N43: 11440
B44: 8 | C44: 1945 | D44: Measurement & Testing Equipment | E44: ='App.2-BA_FA Cont_2013_NewCGAAP'!H44 -> 0 | H44: 0 | J44: ='App.2-BA_FA Cont_2013_NewCGAAP'!M44 -> 0 | M44: 0 | N44: 0
B45: 8 | C45: 1950 | D45: Power Operated Equipment | E45: ='App.2-BA_FA Cont_2013_NewCGAAP'!H45 -> 0 | H45: 0 | J45: ='App.2-BA_FA Cont_2013_NewCGAAP'!M45 -> 0 | M45: 0 | N45: 0
B46: 8 | C46: 1955 | D46: Communications Equipment | E46: ='App.2-BA_FA Cont_2013_NewCGAAP'!H46 -> 3546 | H46: 3546 | J46: ='App.2-BA_FA Cont_2013_NewCGAAP'!M46 -> -3192 | K46: -354 | M46: -3546 | N46: 0
B47: 8 | C47: 1955 | D47: Communication Equipment (Smart Meters) | E47: ='App.2-BA_FA Cont_2013_NewCGAAP'!H47 -> 0 | H47: 0 | J47: ='App.2-BA_FA Cont_2013_NewCGAAP'!M47 -> 0 | M47: 0 | N47: 0
B48: 8 | C48: 1960 | D48: Miscellaneous Equipment | E48: ='App.2-BA_FA Cont_2013_NewCGAAP'!H48 -> 0 | H48: 0 | J48: ='App.2-BA_FA Cont_2013_NewCGAAP'!M48 -> 0 | M48: 0 | N48: 0
B49: 47 | C49: 1970 | D49: Load Management Controls Customer Premises | E49: ='App.2-BA_FA Cont_2013_NewCGAAP'!H49 -> 0 | H49: 0 | J49: ='App.2-BA_FA Cont_2013_NewCGAAP'!M49 -> 0 | M49: 0 | N49: 0
B50: 47 | C50: 1975 | D50: Load Management Controls Utility Premises | E50: ='App.2-BA_FA Cont_2013_NewCGAAP'!H50 -> 0 | H50: 0 | J50: ='App.2-BA_FA Cont_2013_NewCGAAP'!M50 -> 0 | M50: 0 | N50: 0
B51: 47 | C51: 1980 | D51: System Supervisor Equipment | E51: ='App.2-BA_FA Cont_2013_NewCGAAP'!H51 -> 0 | H51: 0 | J51: ='App.2-BA_FA Cont_2013_NewCGAAP'!M51 -> 0 | M51: 0 | N51: 0
B52: 47 | C52: 1985 | D52: Miscellaneous Fixed Assets | E52: ='App.2-BA_FA Cont_2013_NewCGAAP'!H52 -> 0 | H52: 0 | J52: ='App.2-BA_FA Cont_2013_NewCGAAP'!M52 -> 0 | M52: 0 | N52: 0
B53: 47 | C53: 1990 | D53: Other Tangible Property | E53: ='App.2-BA_FA Cont_2013_NewCGAAP'!H53 -> 0 | H53: 0 | J53: ='App.2-BA_FA Cont_2013_NewCGAAP'!M53 -> 0 | M53: 0 | N53: 0
B54: 47 | C54: 1995 | D54: Contributions & Grants | E54: ='App.2-BA_FA Cont_2013_NewCGAAP'!H54 -> 0 | H54: 0 | J54: ='App.2-BA_FA Cont_2013_NewCGAAP'!M54 -> 0 | M54: 0 | N54: 0
B55: 47 | C55: 2440 | D55: Deferred Revenue5 | E55: ='App.2-BA_FA Cont_2013_NewCGAAP'!H55 -> 0 | H55: 0 | J55: ='App.2-BA_FA Cont_2013_NewCGAAP'!M55 -> 0 | M55: 0 | N55: 0
E56: ='App.2-BA_FA Cont_2013_NewCGAAP'!H56 -> 0 | H56: =E56+F56+G56 -> 0 | M56: 0 | N56: 0
D57: Sub-Total | E57: =SUM(E17:E56) -> 4170487.27 | F57: =SUM(F17:F56) -> 151195 | G57: =SUM(G17:G56) -> 0 | H57: =SUM(H17:H56) -> 4321682.27 | J57: =SUM(J17:J56) -> -3313359.54 | K57: =SUM(K17:K56) -> -84146 | L57: =SUM(L17:L56) -> 0 | M57: =SUM(M17:M56) -> -3397505.54 | N57: =SUM(N17:N56) -> 924176.73
D58: Less Socialized Renewable Energy Generation Investments (input as negative) | H58: =E58+F58+G58 -> 0 | M58: =J58+K58+L58 -> 0 | N58: =H58+M58 -> 0
D59: Less Other Non Rate-Regulated Utility Assets (input as negative) | H59: =E59+F59+G59 -> 0 | M59: =J59+K59+L59 -> 0 | N59: 0
D60: Total PP&E | E60: =SUM(E57:E59) -> 4170487.27 | F60: =SUM(F57:F59) -> 151195 | G60: =SUM(G57:G59) -> 0 | H60: =SUM(H57:H59) -> 4321682.27 | J60: =SUM(J57:J59) -> -3313359.54 | K60: =SUM(K57:K59) -> -84146 | L60: =SUM(L57:L59) -> 0 | M60: =SUM(M57:M59) -> -3397505.54 | N60: =SUM(N57:N59) -> 924176.73
D61: Depreciation Expense adj. from gain or loss on the retirement of assets (pool of like assets), if applicable6
D62: Total | K62: =K60+K61 -> -84146
J64: Less: Fully Allocated Depreciation
B65: 10 | D65: Transportation | J65: Transportation | L65: 0
B66: 8 | D66: Stores Equipment | J66: Stores Equipment | L66: 0
J67: Net Depreciation | L67: =K62-L65-L66 -> -84146
B69: Notes:
B71: 1 | C71: Tables in the format outlined above covering all fixed asset accounts should be submitted for the Test Year, Bridge Year and all relevant historical years. At a minimum , the applicant must provide data for the earlier of: 1) all historical years back to its last rebasing; or 2) at least three years of historical actuals, in addition to Bridge Year and Test Year forecasts.
B74: 2 | C74: The "CCA Class" for fixed assets should agree with the CCA Class used for tax purposes in Tax Returns. Fixed Assets sub-components may be used where the underlying asset components are classified under multiple CCA Classes for tax purposes. If an applicant uses any different classes from those shown in the table, an explanation should be provided. (also see note 3 below).
B77: 3 | C77: The table may need to be customized for a utility's asset categories or for any new asset accounts announced or authorized by the Board.
B79: 4 | C79: The additions column (E) must not include construction work in progress (CWIP).
B81: 5 | C81: Effective on the date of IFRS adoption, customer contributions will no longer be recorded in Account 1995 Contributions & Grants, but will be recorded in Account 2440, Deferred Revenues.
B83: 6 | C83: Where a distributor for general financial reporting purposes under IFRS has accounted for the amount of gain or loss on the retirement of assets in a pool of like assets as a charge or credit to income, for reporting and rate application filings the distributor shall reclassify such gains and losses as depreciation expense, and disclose the amount separately.

Sheet App.2-CD_MIFRS_DepExp_2014
B10: Depreciation and Amortization Expense
B11: Assumes the applicant made capitalization and depreciation expense accounting policy changes under CGAAP effective January 1, 2013 and will adopt IFRS for financial reporting purposes effective January 1, 2015.
F13: 2014 | G13: MIFRS
B15: Account | C15: Description | D15: Additions | E15: Years (new additions only) | F15: Depreciation Rate on New Additions | G15: 2014 Depreciation Expense 1 | H15: 2014 Depreciation Expense per Apppendix 2-BA Fixed Assets, Column J (l) | I15: Variance 2 | J15: Depreciation Expense on 2014 Full Year Additions | K15: Less Depreciation Expense on Assets Fully Depreciated during the year (o) | L15: 2014 Full Year Depreciation 3
D16: (d) | E16: (f) | F16: (g) = 1 / (f) | G16: (h)=2013 Full Year Deprecation + ((d)*0.5)/(f) | I16: (m) = (h) - (l) | J16: (n)=((d))/(f) | L16: (p) = 2013 Full Year Depreciation + (n) - (o)
B17: 1611 | C17: Computer Software (Formally known as Account 1925) | D17: 11500 | E17: 5 | F17: =IF(E17=0,0,1/E17) -> 0.2 | G17: =IF(E17=0,+'App.2-CC DepExp_2013 NewCGAAP'!P17,+'App.2-CC DepExp_2013 NewCGAAP'!P17+((D17*0.5)/E17)) -> 2309.25 | H17: 2309 | I17: =IF(ISERROR(+G17-H17), 0, +G17-H17) -> 0.25 | J17: =IF(E17=0,0,+(D17)/E17) -> 2300 | L17: =IF(ISERROR(+J17+'App.2-CC DepExp_2013 NewCGAAP'!P17-K17), 0, +J17+'App.2-CC DepExp_2013 NewCGAAP'!P17-K17) -> 3459.25
B18: 1612 | C18: Land Rights (Formally known as Account 1906) | F18: 0 | G18: 0 | I18: 0 | J18: 0 | L18: =IF(ISERROR(+J18+'App.2-CC DepExp_2013 NewCGAAP'!P18-K18), 0, +J18+'App.2-CC DepExp_2013 NewCGAAP'!P18-K18) -> 180
B19: 1805 | C19: Land | F19: 0 | G19: =IF(E19=0,+'App.2-CC DepExp_2013 NewCGAAP'!P19,+'App.2-CC DepExp_2013 NewCGAAP'!P19+((D19*0.5)/E19)) -> 0 | I19: 0 | J19: 0 | L19: =IF(ISERROR(+J19+'App.2-CC DepExp_2013 NewCGAAP'!P19-K19), 0, +J19+'App.2-CC DepExp_2013 NewCGAAP'!P19-K19) -> 0
B20: 1808 | C20: Buildings | F20: 0 | G20: =IF(E20=0,+'App.2-CC DepExp_2013 NewCGAAP'!P20,+'App.2-CC DepExp_2013 NewCGAAP'!P20+((D20*0.5)/E20)) -> 0 | I20: 0 | J20: 0 | L20: =IF(ISERROR(+J20+'App.2-CC DepExp_2013 NewCGAAP'!P20-K20), 0, +J20+'App.2-CC DepExp_2013 NewCGAAP'!P20-K20) -> 0
B21: 1808 | C21: Buildings | F21: 0 | G21: =IF(E21=0,+'App.2-CC DepExp_2013 NewCGAAP'!P21,+'App.2-CC DepExp_2013 NewCGAAP'!P21+((D21*0.5)/E21)) -> 0 | I21: 0 | J21: 0 | L21: =IF(ISERROR(+J21+'App.2-CC DepExp_2013 NewCGAAP'!P21-K21), 0, +J21+'App.2-CC DepExp_2013 NewCGAAP'!P21-K21) -> 0
B22: 1810 | C22: Leasehold Improvements | F22: 0 | G22: =IF(E22=0,+'App.2-CC DepExp_2013 NewCGAAP'!P22,+'App.2-CC DepExp_2013 NewCGAAP'!P22+((D22*0.5)/E22)) -> 0 | I22: =IF(ISERROR(+G22-H22), 0, +G22-H22) -> 0 | J22: 0 | L22: 0
B23: 1815 | C23: Transformer Station Equipment >50 kV | F23: 0 | G23: =IF(E23=0,+'App.2-CC DepExp_2013 NewCGAAP'!P23,+'App.2-CC DepExp_2013 NewCGAAP'!P23+((D23*0.5)/E23)) -> 0 | I23: =IF(ISERROR(+G23-H23), 0, +G23-H23) -> 0 | J23: 0 | L23: =IF(ISERROR(+J23+'App.2-CC DepExp_2013 NewCGAAP'!P23-K23), 0, +J23+'App.2-CC DepExp_2013 NewCGAAP'!P23-K23) -> 0
B24: 1820 | C24: Distribution Station Equipment <50 kV | F24: 0 | G24: =IF(E24=0,+'App.2-CC DepExp_2013 NewCGAAP'!P24,+'App.2-CC DepExp_2013 NewCGAAP'!P24+((D24*0.5)/E24)) -> 0 | I24: 0 | J24: 0 | L24: =IF(ISERROR(+J24+'App.2-CC DepExp_2013 NewCGAAP'!P24-K24), 0, +J24+'App.2-CC DepExp_2013 NewCGAAP'!P24-K24) -> 0
B25: 1820 | C25: Distribution Station Equipment <50 kV | F25: 0 | G25: =IF(E25=0,+'App.2-CC DepExp_2013 NewCGAAP'!P25,+'App.2-CC DepExp_2013 NewCGAAP'!P25+((D25*0.5)/E25)) -> 0 | I25: 0 | J25: 0 | L25: =IF(ISERROR(+J25+'App.2-CC DepExp_2013 NewCGAAP'!P25-K25), 0, +J25+'App.2-CC DepExp_2013 NewCGAAP'!P25-K25) -> 0
B26: 1820 | C26: Distribution Station Equipment <50 kV | F26: 0 | G26: =IF(E26=0,+'App.2-CC DepExp_2013 NewCGAAP'!P26,+'App.2-CC DepExp_2013 NewCGAAP'!P26+((D26*0.5)/E26)) -> 0 | I26: 0 | J26: 0 | L26: =IF(ISERROR(+J26+'App.2-CC DepExp_2013 NewCGAAP'!P26-K26), 0, +J26+'App.2-CC DepExp_2013 NewCGAAP'!P26-K26) -> 0
B27: 1825 | C27: Storage Battery Equipment | F27: 0 | G27: =IF(E27=0,+'App.2-CC DepExp_2013 NewCGAAP'!P27,+'App.2-CC DepExp_2013 NewCGAAP'!P27+((D27*0.5)/E27)) -> 0 | I27: 0 | J27: 0 | L27: =IF(ISERROR(+J27+'App.2-CC DepExp_2013 NewCGAAP'!P27-K27), 0, +J27+'App.2-CC DepExp_2013 NewCGAAP'!P27-K27) -> 0
B28: 1830 | C28: Poles, Towers & Fixtures | F28: 0 | G28: =IF(E28=0,+'App.2-CC DepExp_2013 NewCGAAP'!P28,+'App.2-CC DepExp_2013 NewCGAAP'!P28+((D28*0.5)/E28)) -> 0 | I28: 0 | J28: 0 | L28: =IF(ISERROR(+J28+'App.2-CC DepExp_2013 NewCGAAP'!P28-K28), 0, +J28+'App.2-CC DepExp_2013 NewCGAAP'!P28-K28) -> 0
B29: 1830 | C29: Poles, Towers & Fixtures | D29: 12464 | E29: 45 | F29: 0.02222222222 | G29: =IF(E29=0,+'App.2-CC DepExp_2013 NewCGAAP'!P29,+'App.2-CC DepExp_2013 NewCGAAP'!P29+((D29*0.5)/E29)) -> 3842.020331 | H29: 3842 | I29: 0.02033096927 | J29: 276.9777778 | L29: =IF(ISERROR(+J29+'App.2-CC DepExp_2013 NewCGAAP'!P29-K29), 0, +J29+'App.2-CC DepExp_2013 NewCGAAP'!P29-K29) -> 3980.50922
B30: 1835 | C30: Overhead Conductors & Devices | G30: =IF(E30=0,+'App.2-CC DepExp_2013 NewCGAAP'!P30,+'App.2-CC DepExp_2013 NewCGAAP'!P30+((D30*0.5)/E30)) -> 0 | I30: 0 | J30: 0 | L30: =IF(ISERROR(+J30+'App.2-CC DepExp_2013 NewCGAAP'!P30-K30), 0, +J30+'App.2-CC DepExp_2013 NewCGAAP'!P30-K30) -> 0
B31: 1835 | C31: Overhead Conductors & Devices | F31: 0 | G31: =IF(E31=0,+'App.2-CC DepExp_2013 NewCGAAP'!P31,+'App.2-CC DepExp_2013 NewCGAAP'!P31+((D31*0.5)/E31)) -> 0 | I31: 0 | J31: 0 | L31: =IF(ISERROR(+J31+'App.2-CC DepExp_2013 NewCGAAP'!P31-K31), 0, +J31+'App.2-CC DepExp_2013 NewCGAAP'!P31-K31) -> 0
B32: 1835 | C32: Overhead Conductors & Devices | D32: 13750 | E32: 45 | F32: 0.02222222222 | G32: =IF(E32=0,+'App.2-CC DepExp_2013 NewCGAAP'!P32,+'App.2-CC DepExp_2013 NewCGAAP'!P32+((D32*0.5)/E32)) -> 18960.71224 | H32: 18961 | I32: -0.2877644349 | J32: 305.5555556 | L32: =IF(ISERROR(+J32+'App.2-CC DepExp_2013 NewCGAAP'!P32-K32), 0, +J32+'App.2-CC DepExp_2013 NewCGAAP'!P32-K32) -> 19113.49001
B33: 1835 | C33: Overhead Conductors & Devices | F33: 0 | G33: =IF(E33=0,+'App.2-CC DepExp_2013 NewCGAAP'!P33,+'App.2-CC DepExp_2013 NewCGAAP'!P33+((D33*0.5)/E33)) -> 0 | I33: 0 | J33: 0 | L33: =IF(ISERROR(+J33+'App.2-CC DepExp_2013 NewCGAAP'!P33-K33), 0, +J33+'App.2-CC DepExp_2013 NewCGAAP'!P33-K33) -> 0
B34: 1840 | C34: Underground Conduit | F34: 0 | G34: =IF(E34=0,+'App.2-CC DepExp_2013 NewCGAAP'!P34,+'App.2-CC DepExp_2013 NewCGAAP'!P34+((D34*0.5)/E34)) -> 284.6145208 | H34: 285 | I34: -0.3854791554 | J34: 0 | L34: =IF(ISERROR(+J34+'App.2-CC DepExp_2013 NewCGAAP'!P34-K34), 0, +J34+'App.2-CC DepExp_2013 NewCGAAP'!P34-K34) -> 284.6145208
B35: 1840 | C35: Underground Conduit | F35: 0 | G35: =IF(E35=0,+'App.2-CC DepExp_2013 NewCGAAP'!P35,+'App.2-CC DepExp_2013 NewCGAAP'!P35+((D35*0.5)/E35)) -> 0 | I35: 0 | J35: 0 | L35: =IF(ISERROR(+J35+'App.2-CC DepExp_2013 NewCGAAP'!P35-K35), 0, +J35+'App.2-CC DepExp_2013 NewCGAAP'!P35-K35) -> 0
B36: 1845 | C36: Underground Conductors & Devices | D36: 10161 | E36: 40 | F36: 0.025 | G36: =IF(E36=0,+'App.2-CC DepExp_2013 NewCGAAP'!P36,+'App.2-CC DepExp_2013 NewCGAAP'!P36+((D36*0.5)/E36)) -> 2311.59511 | H36: 2311 | I36: 0.5951096688 | J36: 254.025 | L36: =IF(ISERROR(+J36+'App.2-CC DepExp_2013 NewCGAAP'!P36-K36), 0, +J36+'App.2-CC DepExp_2013 NewCGAAP'!P36-K36) -> 2438.60761
B37: 1845 | C37: Underground Conductors & Devices | F37: 0 | G37: =IF(E37=0,+'App.2-CC DepExp_2013 NewCGAAP'!P37,+'App.2-CC DepExp_2013 NewCGAAP'!P37+((D37*0.5)/E37)) -> 0 | I37: 0 | J37: 0 | L37: =IF(ISERROR(+J38+'App.2-CC DepExp_2013 NewCGAAP'!P37-K37), 0, +J38+'App.2-CC DepExp_2013 NewCGAAP'!P37-K37) -> 278
B38: 1850 | C38: Line Transformers | D38: 11120 | E38: 40 | F38: 0.025 | G38: =IF(E38=0,+'App.2-CC DepExp_2013 NewCGAAP'!P38,+'App.2-CC DepExp_2013 NewCGAAP'!P38+((D38*0.5)/E38)) -> 2654.407449 | H38: 2654 | I38: 0.4074490474 | J38: 278 | L38: =IF(ISERROR(+J38+'App.2-CC DepExp_2013 NewCGAAP'!P38-K38), 0, +J38+'App.2-CC DepExp_2013 NewCGAAP'!P38-K38) -> 2793.407449
B39: 1850 | C39: Line Transformers | F39: 0 | G39: =IF(E39=0,+'App.2-CC DepExp_2013 NewCGAAP'!P39,+'App.2-CC DepExp_2013 NewCGAAP'!P39+((D39*0.5)/E39)) -> 0 | I39: 0 | J39: 0 | L39: =IF(ISERROR(+J39+'App.2-CC DepExp_2013 NewCGAAP'!P39-K39), 0, +J39+'App.2-CC DepExp_2013 NewCGAAP'!P39-K39) -> 0
B40: 1855 | C40: Services (Overhead & Underground) | F40: 0 | G40: =IF(E40=0,+'App.2-CC DepExp_2013 NewCGAAP'!P40,+'App.2-CC DepExp_2013 NewCGAAP'!P40+((D40*0.5)/E40)) -> 539.2105263 | H40: 539 | I40: 0.2105263158 | J40: 0 | L40: =IF(ISERROR(+J40+'App.2-CC DepExp_2013 NewCGAAP'!P40-K40), 0, +J40+'App.2-CC DepExp_2013 NewCGAAP'!P40-K40) -> 539.2105263
B41: 1855 | C41: Services (Overhead & Underground) | F41: 0 | G41: =IF(E41=0,+'App.2-CC DepExp_2013 NewCGAAP'!P41,+'App.2-CC DepExp_2013 NewCGAAP'!P41+((D41*0.5)/E41)) -> 0 | I41: 0 | J41: 0 | L41: =IF(ISERROR(+J41+'App.2-CC DepExp_2013 NewCGAAP'!P41-K41), 0, +J41+'App.2-CC DepExp_2013 NewCGAAP'!P41-K41) -> 0
B42: 1855 | C42: Services (Overhead & Underground) | F42: 0 | G42: =IF(E42=0,+'App.2-CC DepExp_2013 NewCGAAP'!P42,+'App.2-CC DepExp_2013 NewCGAAP'!P42+((D42*0.5)/E42)) -> 0 | I42: 0 | J42: 0 | L42: =IF(ISERROR(+J42+'App.2-CC DepExp_2013 NewCGAAP'!P42-K42), 0, +J42+'App.2-CC DepExp_2013 NewCGAAP'!P42-K42) -> 0
B43: 1860 | C43: Meters | F43: 0 | G43: =IF(E43=0,+'App.2-CC DepExp_2013 NewCGAAP'!P43,+'App.2-CC DepExp_2013 NewCGAAP'!P43+((D43*0.5)/E43)) -> 9332.796215 | H43: 9333 | I43: -0.2037848662 | J43: 0 | L43: =IF(ISERROR(+J43+'App.2-CC DepExp_2013 NewCGAAP'!P43-K43), 0, +J43+'App.2-CC DepExp_2013 NewCGAAP'!P43-K43) -> 9332.796215
B44: 1860 | C44: Meters | F44: 0 | G44: =IF(E44=0,+'App.2-CC DepExp_2013 NewCGAAP'!P44,+'App.2-CC DepExp_2013 NewCGAAP'!P44+((D44*0.5)/E44)) -> 0 | I44: 0 | J44: 0 | L44: =IF(ISERROR(+J44+'App.2-CC DepExp_2013 NewCGAAP'!P44-K44), 0, +J44+'App.2-CC DepExp_2013 NewCGAAP'!P44-K44) -> 0
B45: 1860 | C45: Meters (Smart Meters) | F45: 0 | G45: =IF(E45=0,+'App.2-CC DepExp_2013 NewCGAAP'!P45,+'App.2-CC DepExp_2013 NewCGAAP'!P45+((D45*0.5)/E45)) -> 0 | I45: 0 | J45: 0 | L45: =IF(ISERROR(+J45+'App.2-CC DepExp_2013 NewCGAAP'!P45-K45), 0, +J45+'App.2-CC DepExp_2013 NewCGAAP'!P45-K45) -> 0
B46: 1905 | C46: Land | F46: 0 | G46: =IF(E46=0,+'App.2-CC DepExp_2013 NewCGAAP'!P46,+'App.2-CC DepExp_2013 NewCGAAP'!P46+((D46*0.5)/E46)) -> 0 | I46: 0 | J46: 0 | L46: =IF(ISERROR(+J46+'App.2-CC DepExp_2013 NewCGAAP'!P46-K46), 0, +J46+'App.2-CC DepExp_2013 NewCGAAP'!P46-K46) -> 0
B47: 1908 | C47: Buildings & Fixtures | D47: 70000 | E47: 70 | F47: 0.01428571429 | G47: =IF(E47=0,+'App.2-CC DepExp_2013 NewCGAAP'!P47,+'App.2-CC DepExp_2013 NewCGAAP'!P47+((D47*0.5)/E47)) -> 6031.510712 | H47: 6032 | I47: -0.4892875328 | J47: 1000 | L47: =IF(ISERROR(+J47+'App.2-CC DepExp_2013 NewCGAAP'!P47-K47), 0, +J47+'App.2-CC DepExp_2013 NewCGAAP'!P47-K47) -> 6531.510712
B48: 1910 | C48: Leasehold Improvements | F48: 0 | G48: =IF(E48=0,+'App.2-CC DepExp_2013 NewCGAAP'!P48,+'App.2-CC DepExp_2013 NewCGAAP'!P48+((D48*0.5)/E48)) -> 0 | I48: 0 | J48: 0 | L48: =IF(ISERROR(+J48+'App.2-CC DepExp_2013 NewCGAAP'!P48-K48), 0, +J48+'App.2-CC DepExp_2013 NewCGAAP'!P48-K48) -> 0
B49: 1915 | C49: Office Furniture & Equipment (10 years) | D49: 2500 | E49: 10 | F49: 0.1 | G49: =IF(E49=0,+'App.2-CC DepExp_2013 NewCGAAP'!P49,+'App.2-CC DepExp_2013 NewCGAAP'!P49+((D49*0.5)/E49)) -> 439.5 | H49: 440 | I49: -0.5 | J49: 250 | L49: =IF(ISERROR(+J49+'App.2-CC DepExp_2013 NewCGAAP'!P49-K49), 0, +J49+'App.2-CC DepExp_2013 NewCGAAP'!P49-K49) -> 564.5
B50: 1915 | C50: Office Furniture & Equipment (5 years) | F50: 0 | G50: =IF(E50=0,+'App.2-CC DepExp_2013 NewCGAAP'!P50,+'App.2-CC DepExp_2013 NewCGAAP'!P50+((D50*0.5)/E50)) -> 0 | I50: 0 | J50: 0 | L50: =IF(ISERROR(+J50+'App.2-CC DepExp_2013 NewCGAAP'!P50-K50), 0, +J50+'App.2-CC DepExp_2013 NewCGAAP'!P50-K50) -> 0
B51: 1920 | C51: Computer Equipment - Hardware | F51: 0 | G51: =IF(E51=0,+'App.2-CC DepExp_2013 NewCGAAP'!P51,+'App.2-CC DepExp_2013 NewCGAAP'!P51+((D51*0.5)/E51)) -> 0 | I51: 0 | J51: 0 | L51: =IF(ISERROR(+J51+'App.2-CC DepExp_2013 NewCGAAP'!P51-K51), 0, +J51+'App.2-CC DepExp_2013 NewCGAAP'!P51-K51) -> 0
B52: 1920 | C52: Computer Equip.-Hardware(Post Mar. 22/04) | F52: 0 | G52: =IF(E52=0,+'App.2-CC DepExp_2013 NewCGAAP'!P52,+'App.2-CC DepExp_2013 NewCGAAP'!P52+((D52*0.5)/E52)) -> 0 | I52: 0 | J52: 0 | L52: =IF(ISERROR(+J52+'App.2-CC DepExp_2013 NewCGAAP'!P52-K52), 0, +J52+'App.2-CC DepExp_2013 NewCGAAP'!P52-K52) -> 0
B53: 1920 | C53: Computer Equip.-Hardware(Post Mar. 19/07) | D53: 11250 | E53: 5 | F53: 0.2 | G53: =IF(E53=0,+'App.2-CC DepExp_2013 NewCGAAP'!P53,+'App.2-CC DepExp_2013 NewCGAAP'!P53+((D53*0.5)/E53)) -> 3765.280673 | H53: 3765 | I53: 0.2806725994 | J53: 2250 | K53: 1136 | L53: =IF(ISERROR(+J53+'App.2-CC DepExp_2013 NewCGAAP'!P53-K53), 0, +J53+'App.2-CC DepExp_2013 NewCGAAP'!P53-K53) -> 3754.280673
B54: 1930 | C54: Transportation Equipment | F54: 0 | G54: =IF(E54=0,+'App.2-CC DepExp_2013 NewCGAAP'!P54,+'App.2-CC DepExp_2013 NewCGAAP'!P54+((D54*0.5)/E54)) -> 0 | I54: 0 | J54: 0 | L54: =IF(ISERROR(+J54+'App.2-CC DepExp_2013 NewCGAAP'!P54-K54), 0, +J54+'App.2-CC DepExp_2013 NewCGAAP'!P54-K54) -> 0
B55: 1930 | C55: Transportation Equipment | F55: 0 | G55: =IF(E55=0,+'App.2-CC DepExp_2013 NewCGAAP'!P55,+'App.2-CC DepExp_2013 NewCGAAP'!P55+((D55*0.5)/E55)) -> 30668.39703 | H55: 30668 | I55: 0.397028197 | J55: 0 | L55: =IF(ISERROR(+J55+'App.2-CC DepExp_2013 NewCGAAP'!P55-K55), 0, +J55+'App.2-CC DepExp_2013 NewCGAAP'!P55-K55) -> 30668.39703
B56: 1930 | C56: Transportation Equipment | F56: 0 | G56: =IF(E56=0,+'App.2-CC DepExp_2013 NewCGAAP'!P56,+'App.2-CC DepExp_2013 NewCGAAP'!P56+((D56*0.5)/E56)) -> 0 | I56: 0 | J56: 0 | L56: =IF(ISERROR(+J56+'App.2-CC DepExp_2013 NewCGAAP'!P56-K56), 0, +J56+'App.2-CC DepExp_2013 NewCGAAP'!P56-K56) -> 0
B57: 1935 | C57: Stores Equipment | D57: 0 | F57: 0 | G57: =IF(E57=0,+'App.2-CC DepExp_2013 NewCGAAP'!P57,+'App.2-CC DepExp_2013 NewCGAAP'!P57+((D57*0.5)/E57)) -> 0 | I57: 0 | J57: 0 | L57: =IF(ISERROR(+J57+'App.2-CC DepExp_2013 NewCGAAP'!P57-K57), 0, +J57+'App.2-CC DepExp_2013 NewCGAAP'!P57-K57) -> 0
B58: 1940 | C58: Tools, Shop & Garage Equipment | D58: 8450 | E58: 10 | F58: 0.1 | G58: =IF(E58=0,+'App.2-CC DepExp_2013 NewCGAAP'!P58,+'App.2-CC DepExp_2013 NewCGAAP'!P58+((D58*0.5)/E58)) -> 2652.811615 | H58: 2653 | I58: -0.1883852691 | J58: 845 | K58: 1597 | L58: =IF(ISERROR(+J58+'App.2-CC DepExp_2013 NewCGAAP'!P58-K58), 0, +J58+'App.2-CC DepExp_2013 NewCGAAP'!P58-K58) -> 1478.311615
B59: 1945 | C59: Measurement & Testing Equipment | F59: 0 | G59: =IF(E59=0,+'App.2-CC DepExp_2013 NewCGAAP'!P59,+'App.2-CC DepExp_2013 NewCGAAP'!P59+((D59*0.5)/E59)) -> 0 | I59: 0 | J59: 0 | L59: =IF(ISERROR(+J59+'App.2-CC DepExp_2013 NewCGAAP'!P59-K59), 0, +J59+'App.2-CC DepExp_2013 NewCGAAP'!P59-K59) -> 0
B60: 1950 | C60: Power Operated Equipment | F60: 0 | G60: =IF(E60=0,+'App.2-CC DepExp_2013 NewCGAAP'!P60,+'App.2-CC DepExp_2013 NewCGAAP'!P60+((D60*0.5)/E60)) -> 0 | I60: 0 | J60: 0 | L60: =IF(ISERROR(+J60+'App.2-CC DepExp_2013 NewCGAAP'!P60-K60), 0, +J60+'App.2-CC DepExp_2013 NewCGAAP'!P60-K60) -> 0
B61: 1955 | C61: Communications Equipment | F61: 0 | G61: =IF(E61=0,+'App.2-CC DepExp_2013 NewCGAAP'!P61,+'App.2-CC DepExp_2013 NewCGAAP'!P61+((D61*0.5)/E61)) -> 354 | H61: 354 | I61: 0 | J61: 0 | K61: 354 | L61: =IF(ISERROR(+J61+'App.2-CC DepExp_2013 NewCGAAP'!P61-K61), 0, +J61+'App.2-CC DepExp_2013 NewCGAAP'!P61-K61) -> 0
B62: 1955 | C62: Communication Equipment (Smart Meters) | F62: 0 | G62: =IF(E62=0,+'App.2-CC DepExp_2013 NewCGAAP'!P62,+'App.2-CC DepExp_2013 NewCGAAP'!P62+((D62*0.5)/E62)) -> 0 | I62: 0 | J62: 0 | L62: =IF(ISERROR(+J62+'App.2-CC DepExp_2013 NewCGAAP'!P62-K62), 0, +J62+'App.2-CC DepExp_2013 NewCGAAP'!P62-K62) -> 0
B63: 1960 | C63: Miscellaneous Equipment | F63: 0 | G63: =IF(E63=0,+'App.2-CC DepExp_2013 NewCGAAP'!P63,+'App.2-CC DepExp_2013 NewCGAAP'!P63+((D63*0.5)/E63)) -> 0 | I63: 0 | J63: 0 | L63: =IF(ISERROR(+J63+'App.2-CC DepExp_2013 NewCGAAP'!P63-K63), 0, +J63+'App.2-CC DepExp_2013 NewCGAAP'!P63-K63) -> 0
B64: 1970 | C64: Load Management Controls Customer Premises | F64: 0 | G64: =IF(E64=0,+'App.2-CC DepExp_2013 NewCGAAP'!P64,+'App.2-CC DepExp_2013 NewCGAAP'!P64+((D64*0.5)/E64)) -> 0 | I64: 0 | J64: 0 | L64: =IF(ISERROR(+J64+'App.2-CC DepExp_2013 NewCGAAP'!P64-K64), 0, +J64+'App.2-CC DepExp_2013 NewCGAAP'!P64-K64) -> 0
B65: 1975 | C65: Load Management Controls Utility Premises | F65: 0 | G65: =IF(E65=0,+'App.2-CC DepExp_2013 NewCGAAP'!P65,+'App.2-CC DepExp_2013 NewCGAAP'!P65+((D65*0.5)/E65)) -> 0 | I65: 0 | J65: 0 | L65: =IF(ISERROR(+J65+'App.2-CC DepExp_2013 NewCGAAP'!P65-K65), 0, +J65+'App.2-CC DepExp_2013 NewCGAAP'!P65-K65) -> 0
B66: 1980 | C66: System Supervisor Equipment | F66: 0 | G66: =IF(E66=0,+'App.2-CC DepExp_2013 NewCGAAP'!P66,+'App.2-CC DepExp_2013 NewCGAAP'!P66+((D66*0.5)/E66)) -> 0 | I66: 0 | J66: 0 | L66: =IF(ISERROR(+J66+'App.2-CC DepExp_2013 NewCGAAP'!P66-K66), 0, +J66+'App.2-CC DepExp_2013 NewCGAAP'!P66-K66) -> 0 | M66: =D66/2*F66 -> 0
B67: 1985 | C67: Miscellaneous Fixed Assets | F67: 0 | G67: =IF(E67=0,+'App.2-CC DepExp_2013 NewCGAAP'!P67,+'App.2-CC DepExp_2013 NewCGAAP'!P67+((D67*0.5)/E67)) -> 0 | I67: 0 | J67: 0 | L67: =IF(ISERROR(+J67+'App.2-CC DepExp_2013 NewCGAAP'!P67-K67), 0, +J67+'App.2-CC DepExp_2013 NewCGAAP'!P67-K67) -> 0
B68: 1990 | C68: Other Tangible Property | F68: 0 | G68: =IF(E68=0,+'App.2-CC DepExp_2013 NewCGAAP'!P68,+'App.2-CC DepExp_2013 NewCGAAP'!P68+((D68*0.5)/E68)) -> 0 | I68: 0 | J68: 0 | L68: =IF(ISERROR(+J68+'App.2-CC DepExp_2013 NewCGAAP'!P68-K68), 0, +J68+'App.2-CC DepExp_2013 NewCGAAP'!P68-K68) -> 0
B69: 1995 | C69: Contributions & Grants | F69: 0 | G69: =IF(E69=0,+'App.2-CC DepExp_2013 NewCGAAP'!P69,+'App.2-CC DepExp_2013 NewCGAAP'!P69+((D69*0.5)/E69)) -> 0 | I69: 0 | J69: 0 | L69: =IF(ISERROR(+J69+'App.2-CC DepExp_2013 NewCGAAP'!P69-K69), 0, +J69+'App.2-CC DepExp_2013 NewCGAAP'!P69-K69) -> 0
B70: 4245 | C70: Other Operating Revenues | F70: 0 | G70: =+H70 -> 0 | L70: =+H70*2 -> 0
C72: Total | D72: =SUM(D17:D71) -> 151195 | G72: =SUM(G17:G71) -> 84146.10642 | H72: 84146 | I72: 0.1064155394 | J72: 7759.558333 | K72: 3087 | L72: 85396.88558
C73: Depreciation exp. adj. from gain or loss on the retirement of assets (pool of like assets) | G73: 0
C74: Total Depreciation Expense | G74: =+G73+G72 -> 84146.10642
B76: Notes:
B77: 1 | C77: Board policy of the "half-year" rule - the applicant must ensure that additions in the year attract a half-year depreciation expense in the first year. Deviations from this standard practice must be supported in the application.
B78: 2 | C78: The applicant must provide an explanation of material variances in evidence.
B79: 3 | C79: This column refers to the calculated full year depreciation but excludes the depreciation expense on assets fully depreciated during the year. This column is used for the purpose of calculating depreciation expense in the following year on the next worksheet.
B81: General: | C81: Applicants must provide a breakdown of depreciation and amortization expense in the above format for all relevant accounts. Asset Retirement Obligations (AROs), depreciation and accretion expense should be disclosed separately consistent with the Notes of historical Audited Financial Statements.

Sheet App.2-BA_FA Cont_2015_MIFRS
B10: Fixed Asset Continuity Schedule
F12: Accounting Standard | G12: MIFRS
F13: Year | G13: 2015
E15: Cost | K15: Accumulated Depreciation
B16: CCA Class | C16: OEB | D16: Description | E16: Opening Balance | F16: Additions | G16: Disposals | H16: Closing Balance | J16: Opening Balance | K16: Additions | L16: Disposals | M16: Closing Balance | N16: Net Book Value
B17: 12 | C17: 1611 | D17: Computer Software (Formally known as Account 1925) | E17: ='App.2-BA_FA Cont_2014_MIFRS'!H17 -> 133252.33 | F17: 5000 | H17: =E17+F17+G17 -> 138252.33 | J17: ='App.2-BA_FA Cont_2014_MIFRS'!M17 -> -120583 | K17: -3959 | M17: =J17+K17+L17 -> -124542 | N17: =H17+M17 -> 13710.33 | P17: =AVERAGE(E17,H17) -> 135752.33 | Q17: =AVERAGE(J17,M17) -> -122562.5
B18: CEC | C18: 1612 | D18: Land Rights (Formally known as Account 1906) | E18: ='App.2-BA_FA Cont_2014_MIFRS'!H18 -> 4232 | H18: =E18+F18+G18 -> 4232 | J18: ='App.2-BA_FA Cont_2014_MIFRS'!M18 -> -4232 | M18: =J18+K18+L18 -> -4232 | N18: =H18+M18 -> 0 | P18: =AVERAGE(E18,H18) -> 4232 | Q18: =AVERAGE(J18,M18) -> -4232
B19: N/A | C19: 1805 | D19: Land | E19: ='App.2-BA_FA Cont_2014_MIFRS'!H19 -> 0 | H19: =E19+F19+G19 -> 0 | J19: ='App.2-BA_FA Cont_2014_MIFRS'!M19 -> 0 | M19: =J19+K19+L19 -> 0 | N19: =H19+M19 -> 0 | P19: 0 | Q19: 0
B20: 47 | C20: 1808 | D20: Buildings | E20: ='App.2-BA_FA Cont_2014_MIFRS'!H20 -> 0 | H20: =E20+F20+G20 -> 0 | J20: ='App.2-BA_FA Cont_2014_MIFRS'!M20 -> 0 | M20: =J20+K20+L20 -> 0 | N20: =H20+M20 -> 0 | P20: 0 | Q20: 0
B21: 13 | C21: 1810 | D21: Leasehold Improvements | E21: ='App.2-BA_FA Cont_2014_MIFRS'!H21 -> 0 | H21: 0 | J21: ='App.2-BA_FA Cont_2014_MIFRS'!M21 -> 0 | M21: 0 | N21: 0 | P21: 0 | Q21: 0
B22: 47 | C22: 1815 | D22: Transformer Station Equipment >50 kV | E22: ='App.2-BA_FA Cont_2014_MIFRS'!H22 -> 0 | H22: 0 | J22: ='App.2-BA_FA Cont_2014_MIFRS'!M22 -> 0 | M22: 0 | N22: 0 | P22: 0 | Q22: 0
B23: 47 | C23: 1820 | D23: Distribution Station Equipment <50 kV | E23: ='App.2-BA_FA Cont_2014_MIFRS'!H23 -> 0 | H23: 0 | J23: ='App.2-BA_FA Cont_2014_MIFRS'!M23 -> 0 | M23: 0 | N23: 0 | P23: 0 | Q23: 0
B24: 47 | C24: 1825 | D24: Storage Battery Equipment | E24: ='App.2-BA_FA Cont_2014_MIFRS'!H24 -> 0 | H24: 0 | J24: ='App.2-BA_FA Cont_2014_MIFRS'!M24 -> 0 | M24: 0 | N24: 0 | P24: 0 | Q24: 0
B25: 47 | C25: 1830 | D25: Poles, Towers & Fixtures | E25: ='App.2-BA_FA Cont_2014_MIFRS'!H25 -> 702510.32 | F25: 70000 | H25: 772510.32 | J25: ='App.2-BA_FA Cont_2014_MIFRS'!M25 -> -564622 | K25: -4758 | M25: -569380 | N25: 203130.32 | P25: 737510.32 | Q25: -567001
B26: 47 | C26: 1835 | D26: Overhead Conductors & Devices | E26: ='App.2-BA_FA Cont_2014_MIFRS'!H26 -> 982489 | F26: 21000 | H26: 1003489 | J26: ='App.2-BA_FA Cont_2014_MIFRS'!M26 -> -818012 | K26: -19347 | M26: -837359 | N26: 166130 | P26: 992989 | Q26: -827685.5
B27: 47 | C27: 1840 | D27: Underground Conduit | E27: ='App.2-BA_FA Cont_2014_MIFRS'!H27 -> 7681 | H27: 7681 | J27: ='App.2-BA_FA Cont_2014_MIFRS'!M27 -> -2588 | K27: -285 | M27: -2873 | N27: 4808 | P27: 7681 | Q27: -2730.5
B28: 47 | C28: 1845 | D28: Underground Conductors & Devices | E28: ='App.2-BA_FA Cont_2014_MIFRS'!H28 -> 444960 | F28: 5431 | H28: 450391 | J28: ='App.2-BA_FA Cont_2014_MIFRS'!M28 -> -386222 | K28: -2506 | M28: -388728 | N28: 61663 | P28: 447675.5 | Q28: -387475
B29: 47 | C29: 1850 | D29: Line Transformers | E29: ='App.2-BA_FA Cont_2014_MIFRS'!H29 -> 569037 | F29: 6017 | H29: 575054 | J29: ='App.2-BA_FA Cont_2014_MIFRS'!M29 -> -489701 | K29: -2869 | M29: -492570 | N29: 82484 | P29: 572045.5 | Q29: -491135.5
B30: 47 | C30: 1855 | D30: Services (Overhead & Underground) | E30: ='App.2-BA_FA Cont_2014_MIFRS'!H30 -> 13529 | H30: 13529 | J30: ='App.2-BA_FA Cont_2014_MIFRS'!M30 -> -4362 | K30: -539 | M30: -4901 | N30: 8628 | P30: 13529 | Q30: -4631.5
B31: 47 | C31: 1860 | D31: Meters | E31: ='App.2-BA_FA Cont_2014_MIFRS'!H31 -> 144973 | H31: 144973 | J31: ='App.2-BA_FA Cont_2014_MIFRS'!M31 -> -108541 | K31: -9333 | M31: -117874 | N31: 27099 | P31: 144973 | Q31: -113207.5
B32: 47 | C32: 1860 | D32: Meters (Smart Meters) | E32: 666914 | F32: 2625 | H32: 669539 | J32: -162513 | K32: -45475 | M32: -207988 | N32: 461551 | P32: 668226.5 | Q32: -185250.5
B33: N/A | C33: 1905 | D33: Land | E33: ='App.2-BA_FA Cont_2014_MIFRS'!H33 -> 7600 | H33: 7600 | J33: ='App.2-BA_FA Cont_2014_MIFRS'!M33 -> 0 | M33: 0 | N33: 7600 | P33: 7600 | Q33: 0
B34: 47 | C34: 1908 | D34: Buildings & Fixtures | E34: ='App.2-BA_FA Cont_2014_MIFRS'!H34 -> 302469 | F34: 7500 | H34: 309969 | J34: ='App.2-BA_FA Cont_2014_MIFRS'!M34 -> -102808 | K34: -6698 | M34: -109506 | N34: 200463 | P34: 306219 | Q34: -106157
B35: 13 | C35: 1910 | D35: Leasehold Improvements | E35: ='App.2-BA_FA Cont_2014_MIFRS'!H35 -> 0 | H35: 0 | J35: ='App.2-BA_FA Cont_2014_MIFRS'!M35 -> 0 | M35: 0 | N35: 0 | P35: 0 | Q35: 0
B36: 8 | C36: 1915 | D36: Office Furniture & Equipment (10 years) | E36: ='App.2-BA_FA Cont_2014_MIFRS'!H36 -> 44614 | F36: 2500 | H36: 47114 | J36: ='App.2-BA_FA Cont_2014_MIFRS'!M36 -> -40982 | K36: -690 | M36: -41672 | N36: 5442 | P36: 45864 | Q36: -41327
B37: 8 | C37: 1915 | D37: Office Furniture & Equipment (5 years) | E37: ='App.2-BA_FA Cont_2014_MIFRS'!H37 -> 0 | H37: 0 | J37: ='App.2-BA_FA Cont_2014_MIFRS'!M37 -> 0 | M37: 0 | N37: 0 | P37: 0 | Q37: 0
B38: 10 | C38: 1920 | D38: Computer Equipment - Hardware | E38: ='App.2-BA_FA Cont_2014_MIFRS'!H38 -> 77302 | H38: 77302 | J38: ='App.2-BA_FA Cont_2014_MIFRS'!M38 -> -77302 | M38: -77302 | N38: 0 | P38: 77302 | Q38: -77302
B39: 45 | C39: 1920 | D39: Computer Equip.-Hardware(Post Mar. 22/04) | E39: ='App.2-BA_FA Cont_2014_MIFRS'!H39 -> 2220 | H39: 2220 | J39: ='App.2-BA_FA Cont_2014_MIFRS'!M39 -> -2220 | M39: -2220 | N39: 0 | P39: 2220 | Q39: -2220
B40: 45.1 | C40: 1920 | D40: Computer Equip.-Hardware(Post Mar. 19/07) | E40: ='App.2-BA_FA Cont_2014_MIFRS'!H40 -> 40340 | F40: 10000 | H40: 50340 | J40: ='App.2-BA_FA Cont_2014_MIFRS'!M40 -> -25898 | K40: -4754 | M40: -30652 | N40: 19688 | P40: 45340 | Q40: -28275
B41: 10 | C41: 1930 | D41: Transportation Equipment | E41: ='App.2-BA_FA Cont_2014_MIFRS'!H41 -> 732200.62 | F41: 28000 | H41: 760200.62 | J41: ='App.2-BA_FA Cont_2014_MIFRS'!M41 -> -548599.54 | K41: -33468 | M41: -582067.54 | N41: 178133.08 | P41: 746200.62 | Q41: -565333.54
B42: 8 | C42: 1935 | D42: Stores Equipment | E42: ='App.2-BA_FA Cont_2014_MIFRS'!H42 -> 1855 | H42: 1855 | J42: ='App.2-BA_FA Cont_2014_MIFRS'!M42 -> -1855 | M42: -1855 | N42: 0 | P42: 1855 | Q42: -1855
B43: 8 | C43: 1940 | D43: Tools, Shop & Garage Equipment | E43: ='App.2-BA_FA Cont_2014_MIFRS'!H43 -> 106872 | F43: 7000 | H43: 113872 | J43: ='App.2-BA_FA Cont_2014_MIFRS'!M43 -> -95432 | K43: -1828 | M43: -97260 | N43: 16612 | P43: 110372 | Q43: -96346
B44: 8 | C44: 1945 | D44: Measurement & Testing Equipment | E44: ='App.2-BA_FA Cont_2014_MIFRS'!H44 -> 0 | H44: 0 | J44: ='App.2-BA_FA Cont_2014_MIFRS'!M44 -> 0 | M44: 0 | N44: 0 | P44: 0 | Q44: 0
B45: 8 | C45: 1950 | D45: Power Operated Equipment | E45: ='App.2-BA_FA Cont_2014_MIFRS'!H45 -> 0 | H45: 0 | J45: ='App.2-BA_FA Cont_2014_MIFRS'!M45 -> 0 | M45: 0 | N45: 0 | P45: 0 | Q45: 0
B46: 8 | C46: 1955 | D46: Communications Equipment | E46: ='App.2-BA_FA Cont_2014_MIFRS'!H46 -> 3546 | H46: 3546 | J46: ='App.2-BA_FA Cont_2014_MIFRS'!M46 -> -3546 | M46: -3546 | N46: 0 | P46: 3546 | Q46: -3546
B47: 8 | C47: 1955 | D47: Communication Equipment (Smart Meters) | E47: ='App.2-BA_FA Cont_2014_MIFRS'!H47 -> 0 | H47: 0 | J47: ='App.2-BA_FA Cont_2014_MIFRS'!M47 -> 0 | M47: 0 | N47: 0 | P47: 0 | Q47: 0
B48: 8 | C48: 1960 | D48: Miscellaneous Equipment | E48: ='App.2-BA_FA Cont_2014_MIFRS'!H48 -> 0 | H48: 0 | J48: ='App.2-BA_FA Cont_2014_MIFRS'!M48 -> 0 | M48: 0 | N48: 0 | P48: 0 | Q48: 0
B49: 47 | C49: 1970 | D49: Load Management Controls Customer Premises | E49: ='App.2-BA_FA Cont_2014_MIFRS'!H49 -> 0 | H49: 0 | J49: ='App.2-BA_FA Cont_2014_MIFRS'!M49 -> 0 | M49: 0 | N49: 0 | P49: 0 | Q49: 0
B50: 47 | C50: 1975 | D50: Load Management Controls Utility Premises | E50: ='App.2-BA_FA Cont_2014_MIFRS'!H50 -> 0 | H50: 0 | J50: ='App.2-BA_FA Cont_2014_MIFRS'!M50 -> 0 | M50: 0 | N50: 0 | P50: 0 | Q50: 0
B51: 47 | C51: 1980 | D51: System Supervisor Equipment | E51: ='App.2-BA_FA Cont_2014_MIFRS'!H51 -> 0 | H51: 0 | J51: ='App.2-BA_FA Cont_2014_MIFRS'!M51 -> 0 | M51: 0 | N51: 0 | P51: 0 | Q51: 0
B52: 47 | C52: 1985 | D52: Miscellaneous Fixed Assets | E52: ='App.2-BA_FA Cont_2014_MIFRS'!H52 -> 0 | H52: 0 | J52: ='App.2-BA_FA Cont_2014_MIFRS'!M52 -> 0 | M52: 0 | N52: 0 | P52: 0 | Q52: 0
B53: 47 | C53: 1990 | D53: Other Tangible Property | E53: ='App.2-BA_FA Cont_2014_MIFRS'!H53 -> 0 | H53: 0 | J53: ='App.2-BA_FA Cont_2014_MIFRS'!M53 -> 0 | M53: 0 | N53: 0 | P53: 0 | Q53: 0
B54: 47 | C54: 1995 | D54: Contributions & Grants | E54: ='App.2-BA_FA Cont_2014_MIFRS'!H54 -> 0 | H54: 0 | J54: ='App.2-BA_FA Cont_2014_MIFRS'!M54 -> 0 | M54: 0 | N54: 0 | P54: 0 | Q54: 0
B55: 47 | C55: 2440 | D55: Deferred Revenue5 | E55: ='App.2-BA_FA Cont_2014_MIFRS'!H55 -> 0 | H55: 0 | J55: ='App.2-BA_FA Cont_2014_MIFRS'!M55 -> 0 | M55: 0 | N55: 0 | P55: 0 | Q55: 0
E56: ='App.2-BA_FA Cont_2014_MIFRS'!H56 -> 0 | H56: 0 | J56: ='App.2-BA_FA Cont_2014_MIFRS'!M56 -> 0 | M56: 0 | N56: 0 | P56: 0 | Q56: 0
D57: Sub-Total | E57: =SUM(E17:E56) -> 4988596.27 | F57: =SUM(F17:F56) -> 165073 | G57: =SUM(G17:G56) -> 0 | H57: =SUM(H17:H56) -> 5153669.27 | J57: =SUM(J17:J56) -> -3560018.54 | K57: =SUM(K17:K56) -> -136509 | L57: =SUM(L17:L56) -> 0 | M57: =SUM(M17:M56) -> -3696527.54 | N57: =SUM(N17:N56) -> 1457141.73 | P57: =SUM(P17:P56) -> 5071132.77 | Q57: =SUM(Q17:Q56) -> -3628273.04
D58: Less Socialized Renewable Energy Generation Investments (input as negative) | H58: =E58+F58+G58 -> 0 | M58: =J58+K58+L58 -> 0 | N58: =H58+M58 -> 0
D59: Less Other Non Rate-Regulated Utility Assets (input as negative) | H59: 0 | M59: =J59+K59+L59 -> 0 | N59: 0
D60: Total PP&E | E60: =SUM(E57:E59) -> 4988596.27 | F60: =SUM(F57:F59) -> 165073 | G60: =SUM(G57:G59) -> 0 | H60: =SUM(H57:H59) -> 5153669.27 | J60: =SUM(J57:J59) -> -3560018.54 | K60: =SUM(K57:K59) -> -136509 | L60: =SUM(L57:L59) -> 0 | M60: =SUM(M57:M59) -> -3696527.54 | N60: =SUM(N57:N59) -> 1457141.73
D61: Depreciation Expense adj. from gain or loss on the retirement of assets (pool of like assets), if applicable6
D62: Total | K62: =K60+K61 -> -136509
J64: Less: Fully Allocated Depreciation
B65: 10 | D65: Transportation | J65: Transportation
B66: 8 | D66: Stores Equipment | J66: Stores Equipment
J67: Net Depreciation | L67: =K62-L65-L66 -> -136509
B69: Notes:
B71: 1 | C71: Tables in the format outlined above covering all fixed asset accounts should be submitted for the Test Year, Bridge Year and all relevant historical years. At a minimum , the applicant must provide data for the earlier of: 1) all historical years back to its last rebasing; or 2) at least three years of historical actuals, in addition to Bridge Year and Test Year forecasts.
B74: 2 | C74: The "CCA Class" for fixed assets should agree with the CCA Class used for tax purposes in Tax Returns. Fixed Assets sub-components may be used where the underlying asset components are classified under multiple CCA Classes for tax purposes. If an applicant uses any different classes from those shown in the table, an explanation should be provided. (also see note 3 below).
B77: 3 | C77: The table may need to be customized for a utility's asset categories or for any new asset accounts announced or authorized by the Board.
B79: 4 | C79: The additions column (E) must not include construction work in progress (CWIP).
B81: 5 | C81: Effective on the date of IFRS adoption, customer contributions will no longer be recorded in Account 1995 Contributions & Grants, but will be recorded in Account 2440, Deferred Revenues.
B83: 6 | C83: Where a distributor for general financial reporting purposes under IFRS has accounted for the amount of gain or loss on the retirement of assets in a pool of like assets as a charge or credit to income, for reporting and rate application filings the distributor shall reclassify such gains and losses as depreciation expense, and disclose the amount separately.

Sheet App.2-CE_MIFRS_DepExp_2015
B10: Depreciation and Amortization Expense
B11: Assumes the applicant made capitalization and depreciation expense accounting policy changes under CGAAP effective January 1, 2013 and will adopt IFRS for financial reporting purposes effective January 1, 2015.
D13: 2015 | E13: MIFRS
B15: Account | C15: Description | D15: Additions | E15: Years (new additions only) | F15: Depreciation Rate on New Additions | G15: 2015 Depreciation Expense 1 | H15: 2015 Depreciation Expense per Appendix 2-BA Fixed Assets, Column J (l) | I15: Variance 2
D16: (d) | E16: (f) | F16: (g) = 1 / (f) | G16: (h)=2014 Full Year Depreciation + ((d)*0.5)/(f) | I16: (m) = (h) - (l)
B17: 1611 | C17: Computer Software (Formally known as Account 1925) | D17: 5000 | E17: 5 | F17: =IF(E17=0,0,1/E17) -> 0.2 | G17: =IF(E17=0,' App.2-CD_MIFRS_DepExp_2014'!L17,+' App.2-CD_MIFRS_DepExp_2014'!L17+((D17*0.5)/E17)) -> 3959.25 | H17: 3959 | I17: =IF(ISERROR(+G17-H17), 0, +G17-H17) -> 0.25
B18: 1612 | C18: Land Rights (Formally known as Account 1906) | F18: 0 | G18: 0 | I18: 0
B19: 1805 | C19: Land | F19: 0 | G19: =IF(E19=0,' App.2-CD_MIFRS_DepExp_2014'!L19,+' App.2-CD_MIFRS_DepExp_2014'!L19+((D19*0.5)/E19)) -> 0 | I19: 0
B20: 1808 | C20: Buildings | E20: 25 | F20: 0.04 | G20: =IF(E20=0,' App.2-CD_MIFRS_DepExp_2014'!L20,+' App.2-CD_MIFRS_DepExp_2014'!L20+((D20*0.5)/E20)) -> 0 | I20: 0
B21: 1808 | C21: Buildings | F21: 0 | G21: =IF(E21=0,' App.2-CD_MIFRS_DepExp_2014'!L21,+' App.2-CD_MIFRS_DepExp_2014'!L21+((D21*0.5)/E21)) -> 0 | I21: 0
B22: 1810 | C22: Leasehold Improvements | F22: 0 | G22: =IF(E22=0,' App.2-CD_MIFRS_DepExp_2014'!L22,+' App.2-CD_MIFRS_DepExp_2014'!L22+((D22*0.5)/E22)) -> 0 | I22: 0
B23: 1815 | C23: Transformer Station Equipment >50 kV | F23: 0 | G23: =IF(E23=0,' App.2-CD_MIFRS_DepExp_2014'!L23,+' App.2-CD_MIFRS_DepExp_2014'!L23+((D23*0.5)/E23)) -> 0 | I23: 0
B24: 1820 | C24: Distribution Station Equipment <50 kV | E24: 30 | F24: 0.03333333333 | G24: =IF(E24=0,' App.2-CD_MIFRS_DepExp_2014'!L24,+' App.2-CD_MIFRS_DepExp_2014'!L24+((D24*0.5)/E24)) -> 0 | I24: 0
B25: 1820 | C25: Distribution Station Equipment <50 kV | F25: 0 | G25: =IF(E25=0,' App.2-CD_MIFRS_DepExp_2014'!L25,+' App.2-CD_MIFRS_DepExp_2014'!L25+((D25*0.5)/E25)) -> 0 | I25: 0
B26: 1820 | C26: Distribution Station Equipment <50 kV | F26: 0 | G26: =IF(E26=0,' App.2-CD_MIFRS_DepExp_2014'!L26,+' App.2-CD_MIFRS_DepExp_2014'!L26+((D26*0.5)/E26)) -> 0 | I26: 0
B27: 1825 | C27: Storage Battery Equipment | F27: 0 | G27: =IF(E27=0,' App.2-CD_MIFRS_DepExp_2014'!L27,+' App.2-CD_MIFRS_DepExp_2014'!L27+((D27*0.5)/E27)) -> 0 | I27: 0
B28: 1830 | C28: Poles, Towers & Fixtures | E28: 45 | F28: 0.02222222222 | G28: =IF(E28=0,' App.2-CD_MIFRS_DepExp_2014'!L28,+' App.2-CD_MIFRS_DepExp_2014'!L28+((D28*0.5)/E28)) -> 0 | I28: 0
B29: 1830 | C29: Poles, Towers & Fixtures | D29: 70000 | E29: 45 | F29: 0.02222222222 | G29: =IF(E29=0,' App.2-CD_MIFRS_DepExp_2014'!L29,+' App.2-CD_MIFRS_DepExp_2014'!L29+((D29*0.5)/E29)) -> 4758.286998 | H29: 4758 | I29: 0.2869976359
B30: 1835 | C30: Overhead Conductors & Devices | F30: 0 | G30: =IF(E30=0,' App.2-CD_MIFRS_DepExp_2014'!L30,+' App.2-CD_MIFRS_DepExp_2014'!L30+((D30*0.5)/E30)) -> 0 | I30: 0
B31: 1836 | C31: Overhead Conductors & Devices | E31: 60 | F31: 0.01666666667 | G31: =IF(E31=0,' App.2-CD_MIFRS_DepExp_2014'!L31,+' App.2-CD_MIFRS_DepExp_2014'!L31+((D31*0.5)/E31)) -> 0 | I31: 0
B32: 1837 | C32: Overhead Conductors & Devices | D32: 21000 | E32: 45 | F32: 0.02222222222 | G32: =IF(E32=0,' App.2-CD_MIFRS_DepExp_2014'!L32,+' App.2-CD_MIFRS_DepExp_2014'!L32+((D32*0.5)/E32)) -> 19346.82335 | H32: 19347 | I32: -0.1766533238
B33: 1838 | C33: Overhead Conductors & Devices | E33: 40 | F33: 0.025 | G33: =IF(E33=0,' App.2-CD_MIFRS_DepExp_2014'!L33,+' App.2-CD_MIFRS_DepExp_2014'!L33+((D33*0.5)/E33)) -> 0 | I33: 0
B34: 1840 | C34: Underground Conduit | E34: 50 | F34: 0.02 | G34: =IF(E34=0,' App.2-CD_MIFRS_DepExp_2014'!L34,+' App.2-CD_MIFRS_DepExp_2014'!L34+((D34*0.5)/E34)) -> 284.6145208 | H34: 285 | I34: -0.3854791554
B35: 1840 | C35: Underground Conduit | F35: 0 | G35: =IF(E35=0,' App.2-CD_MIFRS_DepExp_2014'!L35,+' App.2-CD_MIFRS_DepExp_2014'!L35+((D35*0.5)/E35)) -> 0 | I35: 0
B36: 1845 | C36: Underground Conductors & Devices | D36: 5431 | E36: 40 | F36: 0.025 | G36: =IF(E36=0,' App.2-CD_MIFRS_DepExp_2014'!L36,+' App.2-CD_MIFRS_DepExp_2014'!L36+((D36*0.5)/E36)) -> 2506.49511 | H36: 2506 | I36: 0.4951096688
B37: 1845 | C37: Underground Conductors & Devices | E37: 40 | F37: 0.025 | G37: 0 | I37: 0
B38: 1850 | C38: Line Transformers | D38: 6017 | E38: 40 | F38: 0.025 | G38: =IF(E38=0,' App.2-CD_MIFRS_DepExp_2014'!L38,+' App.2-CD_MIFRS_DepExp_2014'!L38+((D38*0.5)/E38)) -> 2868.619949 | H38: 2868 | I38: 0.6199490474
B39: 1850 | C39: Line Transformers | E39: 40 | F39: 0.025 | G39: =IF(E39=0,' App.2-CD_MIFRS_DepExp_2014'!L39,+' App.2-CD_MIFRS_DepExp_2014'!L39+((D39*0.5)/E39)) -> 0 | I39: 0
B40: 1855 | C40: Services (Overhead & Underground) | F40: 0 | G40: =IF(E40=0,' App.2-CD_MIFRS_DepExp_2014'!L40,+' App.2-CD_MIFRS_DepExp_2014'!L40+((D40*0.5)/E40)) -> 539.2105263 | H40: 539 | I40: 0.2105263158
B41: 1855 | C41: Services (Overhead & Underground) | E41: 60 | F41: 0.01666666667 | G41: =IF(E41=0,' App.2-CD_MIFRS_DepExp_2014'!L41,+' App.2-CD_MIFRS_DepExp_2014'!L41+((D41*0.5)/E41)) -> 0 | I41: 0
B42: 1855 | C42: Services (Overhead & Underground) | E42: 40 | F42: 0.025 | G42: =IF(E42=0,' App.2-CD_MIFRS_DepExp_2014'!L42,+' App.2-CD_MIFRS_DepExp_2014'!L42+((D42*0.5)/E42)) -> 0 | I42: 0
B43: 1860 | C43: Meters | F43: 0 | G43: =IF(E43=0,' App.2-CD_MIFRS_DepExp_2014'!L43,+' App.2-CD_MIFRS_DepExp_2014'!L43+((D43*0.5)/E43)) -> 9332.796215 | H43: 9333 | I43: -0.2037848662
B44: 1860 | C44: Meters | F44: 0 | G44: =IF(E44=0,' App.2-CD_MIFRS_DepExp_2014'!L44,+' App.2-CD_MIFRS_DepExp_2014'!L44+((D44*0.5)/E44)) -> 0 | I44: 0
B45: 1860 | C45: Meters (Smart Meters) | D45: 2625 | E45: 15 | F45: 0.06666666667 | G45: 45475 | H45: 45475 | I45: 0
B46: 1905 | C46: Land | F46: 0 | G46: =IF(E46=0,' App.2-CD_MIFRS_DepExp_2014'!L46,+' App.2-CD_MIFRS_DepExp_2014'!L46+((D46*0.5)/E46)) -> 0 | I46: 0
B47: 1908 | C47: Buildings & Fixtures | D47: 7500 | E47: 22.5 | F47: 0.04444444444 | G47: =IF(E47=0,' App.2-CD_MIFRS_DepExp_2014'!L47,+' App.2-CD_MIFRS_DepExp_2014'!L47+((D47*0.5)/E47)) -> 6698.177379 | H47: 6698 | I47: 0.1773791339
B48: 1910 | C48: Leasehold Improvements | F48: 0 | G48: =IF(E48=0,' App.2-CD_MIFRS_DepExp_2014'!L48,+' App.2-CD_MIFRS_DepExp_2014'!L48+((D48*0.5)/E48)) -> 0 | I48: 0
B49: 1915 | C49: Office Furniture & Equipment (10 years) | D49: 2500 | E49: 10 | F49: 0.1 | G49: =IF(E49=0,' App.2-CD_MIFRS_DepExp_2014'!L49,+' App.2-CD_MIFRS_DepExp_2014'!L49+((D49*0.5)/E49)) -> 689.5 | H49: 690 | I49: -0.5
B50: 1915 | C50: Office Furniture & Equipment (5 years) | F50: 0 | G50: =IF(E50=0,' App.2-CD_MIFRS_DepExp_2014'!L50,+' App.2-CD_MIFRS_DepExp_2014'!L50+((D50*0.5)/E50)) -> 0 | I50: 0
B51: 1920 | C51: Computer Equipment - Hardware | F51: 0 | G51: =IF(E51=0,' App.2-CD_MIFRS_DepExp_2014'!L51,+' App.2-CD_MIFRS_DepExp_2014'!L51+((D51*0.5)/E51)) -> 0 | I51: 0
B52: 1920 | C52: Computer Equip.-Hardware(Post Mar. 22/04) | F52: 0 | G52: =IF(E52=0,' App.2-CD_MIFRS_DepExp_2014'!L52,+' App.2-CD_MIFRS_DepExp_2014'!L52+((D52*0.5)/E52)) -> 0 | I52: 0
B53: 1920 | C53: Computer Equip.-Hardware(Post Mar. 19/07) | D53: 10000 | E53: 5 | F53: 0.2 | G53: =IF(E53=0,' App.2-CD_MIFRS_DepExp_2014'!L53,+' App.2-CD_MIFRS_DepExp_2014'!L53+((D53*0.5)/E53)) -> 4754.280673 | H53: 4754 | I53: 0.2806725994
B54: 1930 | C54: Transportation Equipment | E54: 8 | F54: 0.125 | G54: =IF(E54=0,' App.2-CD_MIFRS_DepExp_2014'!L54,+' App.2-CD_MIFRS_DepExp_2014'!L54+((D54*0.5)/E54)) -> 0 | I54: 0
B55: 1930 | C55: Transportation Equipment | D55: 28000 | E55: 5 | F55: 0.2 | G55: =IF(E55=0,' App.2-CD_MIFRS_DepExp_2014'!L55,+' App.2-CD_MIFRS_DepExp_2014'!L55+((D55*0.5)/E55)) -> 33468.39703 | H55: 33468 | I55: 0.397028197
B56: 1930 | C56: Transportation Equipment | E56: 8 | F56: 0.125 | G56: =IF(E56=0,' App.2-CD_MIFRS_DepExp_2014'!L56,+' App.2-CD_MIFRS_DepExp_2014'!L56+((D56*0.5)/E56)) -> 0 | I56: 0
B57: 1935 | C57: Stores Equipment | F57: 0 | G57: =IF(E57=0,' App.2-CD_MIFRS_DepExp_2014'!L57,+' App.2-CD_MIFRS_DepExp_2014'!L57+((D57*0.5)/E57)) -> 0 | I57: 0
B58: 1940 | C58: Tools, Shop & Garage Equipment | D58: 7000 | E58: 10 | F58: 0.1 | G58: =IF(E58=0,' App.2-CD_MIFRS_DepExp_2014'!L58,+' App.2-CD_MIFRS_DepExp_2014'!L58+((D58*0.5)/E58)) -> 1828.311615 | H58: 1828 | I58: 0.3116147309
B59: 1945 | C59: Measurement & Testing Equipment | E59: 10 | F59: 0.1 | G59: =IF(E59=0,' App.2-CD_MIFRS_DepExp_2014'!L59,+' App.2-CD_MIFRS_DepExp_2014'!L59+((D59*0.5)/E59)) -> 0 | I59: 0
B60: 1950 | C60: Power Operated Equipment | F60: 0 | G60: =IF(E60=0,' App.2-CD_MIFRS_DepExp_2014'!L60,+' App.2-CD_MIFRS_DepExp_2014'!L60+((D60*0.5)/E60)) -> 0 | I60: 0
B61: 1955 | C61: Communications Equipment | E61: 5 | F61: 0.2 | G61: =IF(E61=0,' App.2-CD_MIFRS_DepExp_2014'!L61,+' App.2-CD_MIFRS_DepExp_2014'!L61+((D61*0.5)/E61)) -> 0 | I61: 0
B62: 1955 | C62: Communication Equipment (Smart Meters) | F62: 0 | G62: =IF(E62=0,' App.2-CD_MIFRS_DepExp_2014'!L62,+' App.2-CD_MIFRS_DepExp_2014'!L62+((D62*0.5)/E62)) -> 0 | I62: 0
B63: 1960 | C63: Miscellaneous Equipment | F63: 0 | G63: =IF(E63=0,' App.2-CD_MIFRS_DepExp_2014'!L63,+' App.2-CD_MIFRS_DepExp_2014'!L63+((D63*0.5)/E63)) -> 0 | I63: 0
B64: 1970 | C64: Load Management Controls Customer Premises | F64: 0 | G64: =IF(E64=0,' App.2-CD_MIFRS_DepExp_2014'!L64,+' App.2-CD_MIFRS_DepExp_2014'!L64+((D64*0.5)/E64)) -> 0 | I64: 0
B65: 1975 | C65: Load Management Controls Utility Premises | F65: 0 | G65: =IF(E65=0,' App.2-CD_MIFRS_DepExp_2014'!L65,+' App.2-CD_MIFRS_DepExp_2014'!L65+((D65*0.5)/E65)) -> 0 | I65: 0
B66: 1980 | C66: System Supervisor Equipment | E66: 3 | F66: 0.3333333333 | G66: =IF(E66=0,' App.2-CD_MIFRS_DepExp_2014'!L66,+' App.2-CD_MIFRS_DepExp_2014'!L66+((D66*0.5)/E66)) -> 0 | I66: 0
B67: 1985 | C67: Miscellaneous Fixed Assets | F67: 0 | G67: =IF(E67=0,' App.2-CD_MIFRS_DepExp_2014'!L67,+' App.2-CD_MIFRS_DepExp_2014'!L67+((D67*0.5)/E67)) -> 0 | I67: 0
B68: 1990 | C68: Other Tangible Property | F68: 0 | G68: =IF(E68=0,' App.2-CD_MIFRS_DepExp_2014'!L68,+' App.2-CD_MIFRS_DepExp_2014'!L68+((D68*0.5)/E68)) -> 0 | I68: 0
B69: 1995 | C69: Contributions & Grants | F69: 0 | G69: =IF(E69=0,' App.2-CD_MIFRS_DepExp_2014'!L69,+' App.2-CD_MIFRS_DepExp_2014'!L69+((D69*0.5)/E69)) -> 0 | I69: 0
B70: 4245 | C70: Other Operating Revenues | E70: 40 | F70: 0.025 | G70: =IF(E70=0,' App.2-CD_MIFRS_DepExp_2014'!L70,+' App.2-CD_MIFRS_DepExp_2014'!L70+((D70*0.5)/E70)) -> 0 | I70: 0
F71: 0 | G71: =IF(E71=0,' App.2-CD_MIFRS_DepExp_2014'!L71,+' App.2-CD_MIFRS_DepExp_2014'!L71+((D71*0.5)/E71)) -> 0 | I71: 0
C72: Total | D72: =SUM(D17:D71) -> 165073 | G72: =SUM(G17:G71) -> 136509.7634 | H72: =SUM(H17:H71) -> 136508 | I72: =SUM(I17:I71) -> 1.763359984
C73: Depreciation exp. adj. from gain or loss on the retirement of assets (pool of like assets)
C74: Total Depreciation expense to be included in the test year revenue requirement | G74: =SUM(G72:G73) -> 136509.7634
B75: Notes:
B76: 1 | C76: Board policy of the "half-year" rule - the applicant must ensure that additions in the year attract a half-year depreciation expense in the first year. Deviations from this standard practice must be supported in the application.
B77: 2 | C77: The applicant must provide an explanation of material variances in evidence.
B80: General: | C80: Applicants must provide a breakdown of depreciation and amortization expense in the above format for all relevant accounts. Asset Retirement Obligations (AROs), depreciation and accretion expense should be disclosed separately consistent with the Notes of historical Audited Financial Statements.

Sheet Appendix 2-BB Service Life
M1: File Number: | O1: 0
M2: Exhibit:
M3: Tab:
M4: Schedule:
M5: Page:
M7: Date:
A9: Appendix 2-BB
A10: Service Life Comparison
A11: Table F-1 from Kinetrics Report1
D15: Asset Details | G15: Useful Life | K15: USoA Account Number | L15: USoA Account Description | M15: Current | O15: Proposed | Q15: Outside Range of Min, Max TUL?
B16: Parent* | C16: # | D16: Category| Component | Type | G16: MIN UL | H16: TUL | I16: MAX UL | M16: Years | N16: Rate | O16: Years | P16: Rate | Q16: Below Min TUL | R16: Above Max TUL
B17: OH | C17: 1 | D17: Fully Dressed Wood Poles | E17: Overall | G17: 35 | H17: 45 | I17: 75 | K17: 1830 | L17: Poles, Towers & Fixtures | M17: 25 | N17: =IF(ISERROR(1/M17), "", 1/M17) -> 0.04 | O17: 45 | P17: =IF(ISERROR(1/O17), "", 1/O17) -> 0.02222222222 | Q17: =IF(ISBLANK(O17),"",IF(O17<G17,"Yes","No")) -> No | R17: =IF(ISBLANK(O17),"",IF(O17>I17,"Yes","No")) -> No
E18: Cross Arm | F18: Wood | G18: 20 | H18: 40 | I18: 55 | N18: =IF(ISERROR(1/M18), "", 1/M18) ->  | P18: =IF(ISERROR(1/O18), "", 1/O18) ->  | Q18: =IF(ISBLANK(O18),"",IF(O18<G18,"Yes","No")) ->  | R18: =IF(ISBLANK(O18),"",IF(O18>I18,"Yes","No")) -> 
F19: Steel | G19: 30 | H19: 70 | I19: 95
C20: 2 | D20: Fully Dressed Concrete Poles | E20: Overall | G20: 50 | H20: 60 | I20: 80
E21: Cross Arm | F21: Wood | G21: 20 | H21: 40 | I21: 55
F22: Steel | G22: 30 | H22: 70 | I22: 95
C23: 3 | D23: Fully Dressed Steel Poles | E23: Overall | G23: 60 | H23: 60 | I23: 80
E24: Cross Arm | F24: Wood | G24: 20 | H24: 40 | I24: 55
F25: Steel | G25: 30 | H25: 70 | I25: 95
C26: 4 | D26: OH Line Switch | G26: 30 | H26: 45 | I26: 55 | K26: 1835 | L26: OH Conductor and devices | M26: 25 | N26: 0.04 | O26: 45 | P26: 0.02222222222 | Q26: No | R26: No
C27: 5 | D27: OH Line Switch Motor | G27: 15 | H27: 25 | I27: 25
C28: 6 | D28: OH Line Switch RTU | G28: 15 | H28: 20 | I28: 20
C29: 7 | D29: OH Integral Switches | G29: 35 | H29: 45 | I29: 60
C30: 8 | D30: OH Conductors | G30: 50 | H30: 60 | I30: 75
C31: 9 | D31: OH Transformers & Voltage Regulators | G31: 30 | H31: 40 | I31: 60 | K31: 1850 | L31: Line Transformers | M31: 25 | N31: 0.04 | O31: 40 | P31: 0.025 | Q31: No | R31: No
C32: 10 | D32: OH Shunt Capacitor Banks | G32: 25 | H32: 30 | I32: 40
C33: 11 | D33: Reclosers | G33: 25 | H33: 40 | I33: 55
B34: TS & MS | C34: 12 | D34: Power Transformers | E34: Overall | G34: 30 | H34: 45 | I34: 60 | M34: 45 | N34: 0.02222222222
E35: Bushing | G35: 10 | H35: 20 | I35: 30
E36: Tap Changer | G36: 20 | H36: 30 | I36: 60
C37: 13 | D37: Station Service Transformer | G37: 30 | H37: 45 | I37: 55
C38: 14 | D38: Station Grounding Transformer | G38: 30 | H38: 40 | I38: 40
C39: 15 | D39: Station DC System | E39: Overall | G39: 10 | H39: 20 | I39: 30
E40: Battery Bank | G40: 10 | H40: 15 | I40: 15
E41: Charger | G41: 20 | H41: 20 | I41: 30
C42: 16 | D42: Station Metal Clad Switchgear | E42: Overall | G42: 30 | H42: 40 | I42: 60 | M42: 40 | N42: 0.025
E43: Removable Breaker | G43: 25 | H43: 40 | I43: 60
C44: 17 | D44: Station Independent Breakers | G44: 35 | H44: 45 | I44: 65
C45: 18 | D45: Station Switch | G45: 30 | H45: 50 | I45: 60
C46: 19 | D46: Electromechanical Relays | G46: 25 | H46: 35 | I46: 50 | M46: 30 | N46: 0.03333333333
C47: 20 | D47: Solid State Relays | G47: 10 | H47: 30 | I47: 45
C48: 21 | D48: Digital & Numeric Relays | G48: 15 | H48: 20 | I48: 20
C49: 22 | D49: Rigid Busbars | G49: 30 | H49: 55 | I49: 60
C50: 23 | D50: Steel Structure | G50: 35 | H50: 50 | I50: 90
B51: UG | C51: 24 | D51: Primary Paper Insulated Lead Covered (PILC) Cables | G51: 60 | H51: 65 | I51: 75
C52: 25 | D52: Primary Ethylene-Propylene Rubber (EPR) Cables | G52: 20 | H52: 25 | I52: 25 | K52: 1845 | L52: UG conductor and devices | M52: 25 | N52: 0.04 | O52: 25 | P52: 0.04 | Q52: No | R52: No
C53: 26 | D53: Primary Non-Tree Retardant (TR) Cross Linked Polyethylene (XLPE) Cables Direct Buried | G53: 20 | H53: 25 | I53: 30
C54: 27 | D54: Primary Non-TR XLPE Cables in Duct | G54: 20 | H54: 25 | I54: 30
C55: 30 | D55: Secondary PILC Cables | G55: 70 | H55: 75 | I55: 80
C56: 31 | D56: Secondary Cables Direct Buried | G56: 25 | H56: 35 | I56: 40
C57: 32 | D57: Secondary Cables in Duct | G57: 35 | H57: 40 | I57: 60
C58: 33 | D58: Network Tranformers | E58: Overall | G58: 20 | H58: 35 | I58: 50
E59: Protector | G59: 20 | H59: 35 | I59: 40
C60: 34 | D60: Pad-Mounted Transformers | G60: 25 | H60: 40 | I60: 45 | M60: 40 | N60: 0.025
C61: 35 | D61: Submersible/Vault Transformers | G61: 25 | H61: 35 | I61: 45
C62: 36 | D62: UG Foundation | G62: 35 | H62: 55 | I62: 70 | K62: 1840 | L62: UG Conduit and Foundations | M62: 25 | N62: 0.04 | O62: 50 | P62: 0.02 | Q62: No | R62: No
C63: 37 | D63: UG Vaults | E63: Overall | G63: 40 | H63: 60 | I63: 80
E64: Roof | G64: 20 | H64: 30 | I64: 45
C65: 38 | D65: UG Vault Switches | G65: 20 | H65: 35 | I65: 50
C66: 39 | D66: Pad-Mounted Switchgear | G66: 20 | H66: 30 | I66: 45
C67: 40 | D67: Ducts | G67: 30 | H67: 50 | I67: 85
C68: 41 | D68: Concrete Encased Duct Banks | G68: 35 | H68: 55 | I68: 80
C69: 42 | D69: Cable Chambers | G69: 50 | H69: 60 | I69: 80
B70: S | C70: 43 | D70: Remote SCADA | G70: 15 | H70: 20 | I70: 30 | M70: 15 | N70: 0.06666666667
B73: Table F-2 from Kinetrics Report1
D75: Asset Details | G75: Useful Life Range | K75: USoA Account Number | L75: USoA Account Description | M75: Current | O75: Proposed | Q75: Outside Range of Min, Max TUL?
C76: # | D76: Category| Component | Type | M76: Years | N76: Rate | O76: Years | P76: Rate | Q76: Below Min Range | R76: Above Max Range
C77: 1 | D77: Office Equipment | G77: 5 | H77: 15 | K77: 1915 | L77: Office furniture / equipment | M77: 10 | N77: =IF(ISERROR(1/M77), "", 1/M77) -> 0.1 | O77: 10 | P77: =IF(ISERROR(1/O77), "", 1/O77) -> 0.1 | Q77: =IF(ISBLANK(O77),"",IF(O77<G77,"Yes","No")) -> No | R77: =IF(ISBLANK(O77),"",IF(O77>H77,"Yes","No")) -> No
C78: 2 | D78: Vehicles | E78: Trucks & Buckets | G78: 5 | H78: 15 | K78: 1930 | L78: Boom Truck and Heavy trucks | M78: 5 | N78: =IF(ISERROR(1/M78), "", 1/M78) -> 0.2 | O78: 10 | P78: =IF(ISERROR(1/O78), "", 1/O78) -> 0.1 | Q78: =IF(ISBLANK(O78),"",IF(O78<G78,"Yes","No")) -> No | R78: =IF(ISBLANK(O78),"",IF(O78>H78,"Yes","No")) -> No
E79: Trailers | G79: 5 | H79: 20 | K79: 1930 | L79: Trailers | M79: 5 | N79: 0.2 | O79: 10 | P79: 0.1 | Q79: No | R79: No
E80: Vans | G80: 5 | H80: 10 | K80: 1930 | L80: Pick up | M80: 5 | N80: 0.2 | O80: 5 | P80: 0.2 | Q80: No | R80: No
C81: 3 | D81: Administrative Buildings | G81: 50 | H81: 75 | M81: 50 | N81: 0.02 | O81: 50 | P81: 0.02 | Q81: No | R81: No
C82: 4 | D82: Leasehold Improvements | G82: Lease dependent | M82: 25 | N82: 0.04
C83: 5 | D83: Station Buildings | E83: Station Buildings | G83: 50 | H83: 75 | K83: 1908 | L83: Building - Structure | M83: 50 | N83: 0.02 | O83: 70 | P83: 0.01428571429 | Q83: No | R83: No
E84: Parking | G84: 25 | H84: 30 | K84: 1908 | L84: Building Outside / Fence | M84: 50 | N84: 0.02 | O84: 30 | P84: 0.03333333333 | Q84: No | R84: No
E85: Fence | G85: 25 | H85: 60 | K85: 1908 | L85: Interior | M85: 50 | N85: 0.02 | O85: 20 | P85: 0.05 | Q85: Yes | R85: No | S85: Interior is fixed regularly per manager of HPDC
E86: Roof | G86: 20 | H86: 30 | K86: 1908 | L86: Roof | M86: 50 | N86: 0.02 | O86: 25 | P86: 0.04 | Q86: No | R86: No
C87: 6 | D87: Computer Equipment | E87: Hardware | G87: 3 | H87: 5 | K87: 1920 | L87: Computer equipment | M87: 5 | N87: 0.2 | O87: 5 | P87: 0.2 | Q87: No | R87: No
E88: Software | G88: 2 | H88: 5 | M88: 3 | N88: 0.3333333333 | O88: 3 | P88: 0.3333333333 | Q88: No | R88: No
C89: 7 | D89: Equipment | E89: Power Operated | G89: 5 | H89: 10
E90: Stores | G90: 5 | H90: 10 | K90: 1935 | L90: Store equipment | M90: 10 | N90: 0.1 | O90: 10 | P90: 0.1 | Q90: No | R90: No
E91: Tools, Shop, Garage Equipment | G91: 5 | H91: 10 | K91: 1940 | L91: Tools, Shop and Garage equipment | M91: 10 | N91: 0.1 | O91: 10 | P91: 0.1 | Q91: No | R91: No
E92: Measurement & Testing Equipment | G92: 5 | H92: 10 | M92: 10 | N92: 0.1
C93: 8 | D93: Communication | E93: Towers | G93: 60 | H93: 70
E94: Wireless | G94: 2 | H94: 10 | K94: 1955 | L94: Communication Equimeent | M94: 10 | N94: 0.1 | O94: 10 | P94: 0.1 | Q94: No | R94: No
C95: 9 | D95: Residential Energy Meters | G95: 25 | H95: 35
C96: 10 | D96: Industrial/Commercial Energy Meters | G96: 25 | H96: 35 | M96: 25 | N96: 0.04
C97: 11 | D97: Wholesale Energy Meters | G97: 15 | H97: 30 | K97: 1860 | L97: Old meters | M97: 25 | N97: 0.04 | O97: 15 | P97: 0.06666666667 | Q97: No | R97: No
C98: 12 | D98: Current & Potential Transformer (CT & PT) | G98: 35 | H98: 50
C99: 13 | D99: Smart Meters | G99: 5 | H99: 15 | K99: 1860 | L99: Smart meters | M99: 15 | N99: 0.06666666667 | O99: 15 | P99: 0.06666666667 | Q99: No | R99: No
C100: 14 | D100: Repeaters - Smart Metering | G100: 10 | H100: 15 | M100: 15 | N100: 0.06666666667
C101: 15 | D101: Data Collectors - Smart Metering | G101: 15 | H101: 20 | M101: 15 | N101: 0.06666666667

Sheet App.2-D_Overhead
A1: NOT APPLICABLE | F1: File Number: | G1: =EBNUMBER -> EB-2014-0080
F2: Exhibit:
F3: Tab:
F4: Schedule:
F5: Page:
F7: Date:
A9: Appendix 2-D
A10: Overhead Expense
A12: Applicants are to provide a breakdown of OM&A before capitalization in the below table. OM&A before capitalization may be broken down by cost center, program, drivers or another format best suited to focus on capitalized vs. uncapitalized OM&A.
A14: OM&A Before Capitalization
B15: 2011 | C15: 2012 | D15: 2013 | E15: 2014 | F15: 2015
B16: Historical Year | C16: Historical Year | D16: Historical Year | E16: Bridge Year | F16: Test Year
A27: Total OM&A Before Capitalization (B) | B27: =SUM(B17:B26) -> 0 | C27: =SUM(C17:C26) -> 0 | D27: 0 | E27: 0 | F27: 0
A29: Applicants are to provide a breakdown of capitalized OM&A in the below table. Capitalized OM&A may be broken down using the categories listed in the table below if possible. Otherwise, applicants are to provide its own break down of capitalized OM&A.
A31: Capitalized OM&A | G31: Directly | H31: Explanation for Change in Overhead Capitalized
B32: 2011 | C32: 2012 | D32: 2013 | E32: 2014 | F32: 2015 | G32: Attributable?
B33: Historical Year | C33: Historical Year | D33: Historical Year | E33: Bridge Year | F33: Test Year | G33: (Y/N)
A34: employee benefits
A35: costs of site preparation
A36: initial delivery and handling costs
A37: costs of testing whether the asset is functioning properly
A38: professional fees
A40: costs of opening a new facility
A41: costs of introducing a new product or service (including costs of advertising and promotional activities)
A42: costs of conducting business in a new location or with a new class of customer (including costs of staff training)
A43: administration and other general overhead costs
A45: Insert description of additional item(s) and new rows if needed
A47: Total Capitalized OM&A (A) | B47: =SUM(B34:B46) -> 0 | C47: =SUM(C34:C46) -> 0 | D47: =SUM(D34:D46) -> 0 | E47: =SUM(E34:E46) -> 0 | F47: =SUM(F34:F46) -> 0
A49: % of Capitalized OM&A (=A/B) | B49: =IF(ISERROR(B47/B27),"0%",B47/B27) -> 0% | C49: =IF(ISERROR(C47/C27),"0%",C47/C27) -> 0% | D49: 0% | E49: 0% | F49: 0%

Sheet App.2-EA_1575 (2015)
I1: File Number: | J1: =EBNUMBER -> EB-2014-0080
I2: Exhibit:
I3: Tab:
I4: Schedule:
I5: Page:
I7: Date:
A9: Appendix 2-EA
A10: Account 1575 - IFRS-CGAAP Transitional PP&E Amounts
A11: 2015 Adopters of IFRS for Financial Reporting Purposes
A13: For applicants that will adopt IFRS on January 1, 2015 for financial reporting purposes
B17: =RebaseYear &" Rebasing Year" -> 2010 Rebasing Year | C17: 2011 | D17: 2012 | E17: 2013 | F17: 2014 | G17: 2015 Rebasing Year
A18: Reporting Basis | B18: CGAAP | C18: IRM | D18: IRM | E18: IRM | F18: IRM | G18: MIFRS
B19: Forecast | C19: Actual | D19: Actual | E19: Actual | F19: Forecast | G19: Forecast
F20: $ | G20: $
A21: PP&E Values under CGAAP
A22: Opening net PP&E - Note 1 | F22: 4170487.27
A23: Net Additions - Note 4 | F23: 151195
A24: Net Depreciation (amounts should be negative) - Note 4 | F24: -84146
A25: Closing net PP&E (1) | F25: 4237536.27
A27: PP&E Values under MIFRS (Starts from 2014, the transition year)
A28: Opening net PP&E - Note 1 | F28: 4170487.27
A29: Net Additions - Note 4 | F29: 151195
A30: Net Depreciation (amounts should be negative) - Note 4 | F30: -84146
A31: Closing net PP&E (2) | F31: 4237536.27
A33: Difference in Closing net PP&E, CGAAP vs. MIFRS | F33: =F25-F31 -> 0
A36: Effect on Deferral and Variance Account Rate Riders
A37: Closing balance in deferral account | G37: =IF(ISERROR(F33), 0, F33) -> 0 | I37: WACC
A38: Return on Rate Base Associated with deferred PP&E balance at WACC - Note 2 | G38: =F33*J37*J38 -> 0 | H38: # of years of rate rider disposition period
A39: Amount included in Deferral and Variance Account Rate Rider Calculation | G39: =G37+G38 -> 0
A41: Notes:
A42: 1 For an applicant that adopts IFRS on January 1, 2015, the PP&E values as of January 1, 2014 under both CGAAP and MIFRS should be the same.
A43: 2 Return on rate base associated with deferred balance is calculated as:
A44: the deferral account opening balance as of 2015 rebasing year x WACC X # of years of rate rider disposition period
A45: * Please note that the calculation should be adjusted once WACC is updated and finalized in the rate application.
A46: 3 The PP&E deferral account is cleared by including the total balance in the deferral and variance account rate rider calculation.
A47: 4 Net additions are additions net of disposals; Net depreciation is additions to depreciation net of disposals.

Sheet App.2-EB_Account 1576 (2012)
I1: File Number: | J1: =EBNUMBER -> EB-2014-0080
I2: Exhibit:
I3: Tab:
I4: Schedule:
I5: Page:
I7: Date:
A9: Appendix 2-EB
A10: Account 1576 - Accounting Changes under CGAAP
A11: 2012 Changes in Accounting Policies under CGAAP
A13: For applicants that made capitalization and depreciation expense accounting policy changes under CGAAP effective January 1, 2012
B17: =RebaseYear &" Rebasing Year" -> 2010 Rebasing Year | C17: 2011 | D17: 2012 | E17: 2013 | F17: 2014 | G17: 2015 Rebasing Year
A18: Reporting Basis | B18: CGAAP | C18: IRM | D18: IRM | E18: IRM | F18: IRM | G18: MIFRS
B19: Forecast | C19: Actual | D19: Actual | E19: Actual | F19: Forecast | G19: Forecast
D20: $ | F20: $ | G20: $
A21: PP&E Values under former CGAAP
A22: Opening net PP&E - Note 1 | E22: =+D25 -> 0 | F22: =+E25 -> 0
A23: Net Additions - Note 4
A24: Net Depreciation (amounts should be negative) - Note 4
A25: Closing net PP&E (1) | D25: =D22+D23+D24 -> 0 | E25: =E22+E23+E24 -> 0 | F25: =F22+F23+F24 -> 0
A27: PP&E Values under revised CGAAP (Starts from 2012)
A28: Opening net PP&E - Note 1 | E28: =+D31 -> 0 | F28: =+E31 -> 0
A29: Net Additions - Note 4
A30: Net Depreciation (amounts should be negative) - Note 4
A31: Closing net PP&E (2) | D31: =SUM(D28:D30) -> 0 | E31: =SUM(E28:E30) -> 0 | F31: =SUM(F28:F30) -> 0
A33: Difference in Closing net PP&E, former CGAAP vs. revised CGAAP | D33: =D25-D31 -> 0 | E33: =E25-E31 -> 0 | F33: =F25-F31 -> 0
A36: Effect on Deferral and Variance Account Rate Riders
A37: Closing balance in Account 1576 | G37: =IF(ISERROR(F33), 0, F33) -> 0 | I37: WACC
A38: Return on Rate Base Associated with Account 1576 balance at WACC - Note 2 | G38: =F33*J37*J38 -> 0 | H38: # of years of rate rider disposition period
A39: Amount included in Deferral and Variance Account Rate Rider Calculation | G39: =G37+G38 -> 0
A41: Notes:
A42: 1 For an applicant that made the capitalization and depreciation expense accounting policy changes on January 1, 2012, the PP&E values as of January 1, 2012 under both former CGAAP and revised CGAAP should be the same.
A43: 2 Return on rate base associated with Account 1576 balance is calculated as:
A44: the variance account opening balance as of 2015 rebasing year x WACC X # of years of rate rider disposition period
A45: * Please note that the calculation should be adjusted once WACC is updated and finalized in the rate application.
A46: 3 Account 1576 is cleared by including the total balance in the deferral and variance account rate rider calculation.
A47: 4 Net additions are additions net of disposals; Net depreciation is additions to depreciation net of disposals.

Sheet App.2-EC_Account 1576 (2013)
I1: File Number: | J1: =EBNUMBER -> EB-2014-0080
I2: Exhibit:
I3: Tab:
I4: Schedule:
I5: Page:
A7: NOT APPLICABLE | I7: Date:
A9: Appendix 2-EC
A10: Account 1576 - Accounting Changes under CGAAP
A11: 2013 Changes in Accounting Policies under CGAAP
A13: For applicants that made capitalization and depreciation expense accounting policy changes under CGAAP effective January 1, 2013
B17: =RebaseYear &" Rebasing Year" -> 2010 Rebasing Year | C17: 2011 | D17: 2012 | E17: 2013 | F17: 2014 | G17: 2015 Rebasing Year
A18: Reporting Basis | B18: CGAAP | C18: IRM | D18: IRM | E18: IRM | F18: IRM | G18: MIFRS
B19: Forecast | C19: Actual | D19: Actual | E19: Actual | F19: Forecast | G19: Forecast
F20: $ | G20: $
A21: PP&E Values under former CGAAP
A22: Opening net PP&E - Note 1 | E22: 818171.73 | F22: 760099.73
A23: Net Additions - Note 4 | E23: 58962 | F23: 151195
A24: Net Depreciation (amounts should be negative) - Note 4 | E24: -117034 | F24: -84146
A25: Closing net PP&E (1) | E25: 760099.73 | F25: 827148.73
A27: PP&E Values under revised CGAAP (Starts from 2013)
A28: Opening net PP&E - Note 1 | E28: 818171.73 | F28: 799055.73
A29: Net Additions - Note 4 | E29: 58962 | F29: 151195
A30: Net Depreciation (amounts should be negative) - Note 4 | E30: -78078 | F30: -84146
A31: Closing net PP&E (2) | E31: 799055.73 | F31: 866104.73
A33: Difference in Closing net PP&E, former CGAAP vs. revised CGAAP | E33: =E25-E31 -> -38956 | F33: =F25-F31 -> -38956
A36: Effect on Deferral and Variance Account Rate Riders
A37: Closing balance in Account 1576 | G37: =IF(ISERROR(F33), 0, F33) -> -38956 | I37: WACC | J37: 0.0648
A38: Return on Rate Base Associated with Account 1576 balance at WACC - Note 2 | G38: =F33*J37*J38 -> -2524.3488 | H38: # of years of rate rider disposition period | J38: 1
A39: Amount included in Deferral and Variance Account Rate Rider Calculation | G39: =G37+G38 -> -41480.3488
A41: Notes:
A42: 1 For an applicant that made the capitalization and depreciation expense accounting policy changes on January 1, 2013, the PP&E values as of January 1, 2013 under both former CGAAP and revised CGAAP should be the same.
A43: 2 Return on rate base associated with Account 1576 balance is calculated as:
A44: the variance account opening balance as of 2015 rebasing year x WACC X # of years of rate rider disposition period
A45: * Please note that the calculation should be adjusted once WACC is updated and finalized in the rate application.
A46: 3 Account 1576 is cleared by including the total balance in the deferral and variance account rate rider calculation.
A47: 4 Net additions are additions net of disposals; Net depreciation is additions to depreciation net of disposals.

Sheet App.2-FA Proposed REG Invest.
A1: NOT APPLICABLE | J1: File Number: | K1: =EBNUMBER -> EB-2014-0080
J2: Exhibit:
J3: Tab:
J4: Schedule:
J5: Page:
J7: Date:
A9: Appendix 2-FA
A10: Renewable Generation Connection Investment Summary (past investments or over the future rate setting period)
A12: Enter the details of the Renewable Generation Connection projects as described in the appropriate section of the Filing Requirements.
A13: All costs entered on this page will be transferred to the appropriate cells in the appendices that follow.
A14: For Part A, Renewable Enabling Improvements (REI), these amounts will be transferred to Appendix 2 - FB
A15: For Part B, Expansions, these amounts will be transferred to Appendix 2 - FC
A17: If there are more than five projects proposed to be in-service in a certain year, please amend the tables below and ensure that the formulae for the Total Amounts in any given rate year are updated.
A18: Based on the current methodology and allocation, amounts allocated represent 6% for REI Connection Investments and 17% for Expansion Investments. (pg 15, EB-2009-0349)
A20: There are two scenarios described below. Separate sets of spreadsheets (2-FA, 2-FB, 2-FC) should be submited for each scenario as required.
A21: Scenario 1: Past Investments with No Recovery. The distributor has made investments in the past (during the IRM Years), but has not received approval for these projects and therefore did not receive
A22: revenue from the IESO under Regulation 330/09 and did not receive ratepayer revenue for the direct benefit portion of the investment.
A23: The WCA percentage, debt percentages, interest rates, kWh, tax rates, amortization period, CCA Class and percentage should correspond to the distributor's last Cost of Service approval.
A24: The Direct Benefit portion of the calculated Revenue Requirement for each year should be summed and can be applied for recovery from the distributor's ratepayers through a rate rider.
A25: The Provincial Recovery portion of the calculated Revenue Requirement for each year should be summed and can be applied for recovery from the IESO through a separate order.
A27: Scenario 2: Investments in the Test Year and Beyond. Distributor plans to make investments in 2015 and/or beyond. These investments should be added to 2-FA in the appropriate year.
A28: The WCA percentage, debt percentages, interest rates, kWh, tax rates, amortization period, CCA Class and percentage should correspond to the distributor's current application.
A30: Part A
A31: REI Investments (Direct Benefit at 6%) | C31: 2011 | D31: 2012 | E31: 2013 | F31: 2014 | G31: 2015 | H31: =G31+1 -> 2016 | I31: =H31+1 -> 2017 | J31: 2018 | K31: 2019
A32: Project 1
A33: Name: REI Connection Project
A34: Capital Costs | C34: 0 | D34: 0 | E34: 0 | F34: 0 | G34: 0 | H34: 0 | I34: 0 | J34: 0 | K34: 0
A35: OM&A (Start-Up) | C35: 0 | D35: 0 | E35: 0 | F35: 0 | G35: 0 | H35: 0 | I35: 0 | J35: 0 | K35: 0
A36: OM&A (Ongoing) | C36: 0 | D36: 0 | E36: 0 | F36: 0 | G36: 0 | H36: 0 | I36: 0 | J36: 0 | K36: 0
A38: Project 2
A39: Name: REI Connection Project
A40: Capital Costs | C40: 0 | D40: 0 | E40: 0 | F40: 0 | G40: 0 | H40: 0 | I40: 0 | J40: 0 | K40: 0
A41: OM&A (Start-Up) | C41: 0 | D41: 0 | E41: 0 | F41: 0 | G41: 0 | H41: 0 | I41: 0 | J41: 0 | K41: 0
A42: OM&A (Ongoing) | C42: 0 | D42: 0 | E42: 0 | F42: 0 | G42: 0 | H42: 0 | I42: 0 | J42: 0 | K42: 0
A44: Project 3
A45: Name: REI Connection Project
A46: Capital Costs | C46: 0 | D46: 0 | E46: 0 | F46: 0 | G46: 0 | H46: 0 | I46: 0 | J46: 0 | K46: 0
A47: OM&A (Start-Up) | C47: 0 | D47: 0 | E47: 0 | F47: 0 | G47: 0 | H47: 0 | I47: 0 | J47: 0 | K47: 0
A48: OM&A (Ongoing) | C48: 0 | D48: 0 | E48: 0 | F48: 0 | G48: 0 | H48: 0 | I48: 0 | J48: 0 | K48: 0
A50: Project 4
A51: Name: REI Connection Project
A52: Capital Costs | C52: 0 | D52: 0 | E52: 0 | F52: 0 | G52: 0 | H52: 0 | I52: 0 | J52: 0 | K52: 0
A53: OM&A (Start-Up) | C53: 0 | D53: 0 | E53: 0 | F53: 0 | G53: 0 | H53: 0 | I53: 0 | J53: 0 | K53: 0
A54: OM&A (Ongoing) | C54: 0 | D54: 0 | E54: 0 | F54: 0 | G54: 0 | H54: 0 | I54: 0 | J54: 0 | K54: 0
A56: Project 5
A57: Name: REI Connection Project
A58: Capital Costs | C58: 0 | D58: 0 | E58: 0 | F58: 0 | G58: 0 | H58: 0 | I58: 0 | J58: 0 | K58: 0
A59: OM&A (Start-Up) | C59: 0 | D59: 0 | E59: 0 | F59: 0 | G59: 0 | H59: 0 | I59: 0 | J59: 0 | K59: 0
A60: OM&A (Ongoing) | C60: 0 | D60: 0 | E60: 0 | F60: 0 | G60: 0 | H60: 0 | I60: 0 | J60: 0 | K60: 0
A62: Total Capital Costs | C62: =SUM(C58,C52,C46,C40,C34) -> 0 | D62: 0 | E62: 0 | F62: 0 | G62: =SUM(G58,G52,G46,G40,G34) -> 0 | H62: =SUM(H58,H52,H46,H40,H34) -> 0 | I62: 0 | J62: 0 | K62: 0
A63: Total OM&A (Start-Up) | C63: 0 | D63: 0 | E63: 0 | F63: 0 | G63: =SUM(G59,G53,G47,G41,G35) -> 0 | H63: 0 | I63: 0 | J63: 0 | K63: 0
A64: Total OM&A (Ongoing) | C64: 0 | D64: 0 | E64: 0 | F64: 0 | G64: =SUM(G60,G54,G48,G42,G36) -> 0 | H64: 0 | I64: 0 | J64: 0 | K64: 0
A67: Part B
A68: Expansion Investments (Direct Benefit at 17%) | C68: 2011 | D68: 2012 | E68: 2013 | F68: 2014 | G68: 2015 | H68: =G68+1 -> 2016 | I68: =H68+1 -> 2017 | J68: 2018 | K68: 2019
A69: Project 1
A70: Name: Expansion Connection Project
A71: Capital Costs | C71: 0 | D71: 0 | E71: 0 | F71: 0 | G71: 0 | H71: 0 | I71: 0 | J71: 0 | K71: 0
A72: OM&A (Start-Up) | C72: 0 | D72: 0 | E72: 0 | F72: 0 | G72: 0 | H72: 0 | I72: 0 | J72: 0 | K72: 0
A73: OM&A (Ongoing) | C73: 0 | D73: 0 | E73: 0 | F73: 0 | G73: 0 | H73: 0 | I73: 0 | J73: 0 | K73: 0
A75: Project 2
A76: Name: Expansion Connection Project
A77: Capital Costs | C77: 0 | D77: 0 | E77: 0 | F77: 0 | G77: 0 | H77: 0 | I77: 0 | J77: 0 | K77: 0
A78: OM&A (Start-Up) | C78: 0 | D78: 0 | E78: 0 | F78: 0 | G78: 0 | H78: 0 | I78: 0 | J78: 0 | K78: 0
A79: OM&A (Ongoing) | C79: 0 | D79: 0 | E79: 0 | F79: 0 | G79: 0 | H79: 0 | I79: 0 | J79: 0 | K79: 0
A81: Project 3
A82: Name: Expansion Connection Project
A83: Capital Costs | C83: 0 | D83: 0 | E83: 0 | F83: 0 | G83: 0 | H83: 0 | I83: 0 | J83: 0 | K83: 0
A84: OM&A (Start-Up) | C84: 0 | D84: 0 | E84: 0 | F84: 0 | G84: 0 | H84: 0 | I84: 0 | J84: 0 | K84: 0
A85: OM&A (Ongoing) | C85: 0 | D85: 0 | E85: 0 | F85: 0 | G85: 0 | H85: 0 | I85: 0 | J85: 0 | K85: 0
A87: Project 4
A88: Name: Expansion Connection Project
A89: Capital Costs | C89: 0 | D89: 0 | E89: 0 | F89: 0 | G89: 0 | H89: 0 | I89: 0 | J89: 0 | K89: 0
A90: OM&A (Start-Up) | C90: 0 | D90: 0 | E90: 0 | F90: 0 | G90: 0 | H90: 0 | I90: 0 | J90: 0 | K90: 0
A91: OM&A (Ongoing) | C91: 0 | D91: 0 | E91: 0 | F91: 0 | G91: 0 | H91: 0 | I91: 0 | J91: 0 | K91: 0
A93: Project 5
A94: Name: Expansion Connection Project
A95: Capital Costs | C95: 0 | D95: 0 | E95: 0 | F95: 0 | G95: 0 | H95: 0 | I95: 0 | J95: 0 | K95: 0
A96: OM&A (Start-Up) | C96: 0 | D96: 0 | E96: 0 | F96: 0 | G96: 0 | H96: 0 | I96: 0 | J96: 0 | K96: 0
A97: OM&A (Ongoing) | C97: 0 | D97: 0 | E97: 0 | F97: 0 | G97: 0 | H97: 0 | I97: 0 | J97: 0 | K97: 0
A99: Total Capital Costs | C99: =SUM(C95,C89,C83,C77,C71) -> 0 | D99: 0 | E99: 0 | F99: 0 | G99: =SUM(G95,G89,G83,G77,G71) -> 0 | H99: =SUM(H95,H89,H83,H77,H71) -> 0 | I99: 0 | J99: 0 | K99: 0
A100: Total OM&A (Start-Up) | C100: 0 | D100: 0 | E100: 0 | F100: 0 | G100: =SUM(G96,G90,G84,G78,G72) -> 0 | H100: 0 | I100: 0 | J100: 0 | K100: 0
A101: Total OM&A (Ongoing) | C101: 0 | D101: 0 | E101: 0 | F101: 0 | G101: =SUM(G97,G91,G85,G79,G73) -> 0 | H101: 0 | I101: 0 | J101: 0 | K101: 0

Sheet App.2-FB Calc of REG Improvemnt
B1: NOT APPLICABLE | N1: File Number: | O1: =EBNUMBER -> EB-2014-0080
N2: Exhibit:
N3: Tab:
N4: Schedule:
N5: Page:
N7: Date:
A9: Appendix 2-FB
A10: Calculation of Renewable Generation Connection Direct Benefits/Provincial Amount: Renewable Enabling Improvement Investments
A12: This table will calculate the distributor/provincial shares of the investments entered in Part A of Appendix 2-FA.
A13: Enter values in green shaded cells: WCA percentage, debt percentages, interest rates, kWh, tax rates, amortization period, CCA Class and percentage.
A14: For historical investments, enter these variables for your last cost of service test year. For 2015 and beyond, enter variables as in the application.
A15: Rate Riders are not calculated for Test Year as these assets and costs are already in the distributor's rate base/revenue requirement.
C17: 2011 | F17: 2012 | I17: 2013 | L17: 2014 | O17: 2015 Test Year | R17: 2016 | U17: 2017 | V17: 2016 | X17: 2018 | AA17: 2019
D18: Direct Benefit | E18: Provincial | G18: Direct Benefit | H18: Provincial | J18: Direct Benefit | K18: Provincial | M18: Direct Benefit | N18: Provincial | P18: Direct Benefit | Q18: Provincial | S18: Direct Benefit | T18: Provincial | V18: Direct Benefit | W18: Provincial | Y18: Direct Benefit | Z18: Provincial | AB18: Direct Benefit | AC18: Provincial
C19: Total | D19: 0.06 | E19: 0.94 | F19: Total | G19: 0.06 | H19: 0.94 | I19: Total | J19: 0.06 | K19: 0.94 | L19: Total | M19: 0.06 | N19: 0.94 | O19: Total | P19: 0.06 | Q19: 0.94 | R19: Total | S19: 0.06 | T19: 0.94 | U19: Total | V19: 0.06 | W19: 0.94 | X19: Total | Y19: 0.06 | Z19: 0.94 | AA19: Total | AB19: 0.06 | AC19: 0.94
A20: Net Fixed Assets (average) | C20: =D82 -> 0 | D20: =C20*D19 -> 0 | E20: =C20*E19 -> 0 | F20: =E82 -> 0 | G20: =F20*G19 -> 0 | H20: =F20*H19 -> 0 | I20: =F82 -> 0 | J20: =I20*J19 -> 0 | K20: =I20*K19 -> 0 | L20: =G82 -> 0 | M20: =L20*M19 -> 0 | N20: =L20*N19 -> 0 | O20: =H82 -> 0 | P20: =O20*P19 -> 0 | Q20: =O20*Q19 -> 0 | R20: =I82 -> 0 | S20: =R20*S19 -> 0 | T20: =R20*T19 -> 0 | U20: =J82 -> 0 | V20: =U20*V19 -> 0 | W20: =U20*W19 -> 0 | X20: =K82 -> 0 | Y20: =X20*Y19 -> 0 | Z20: =X20*Z19 -> 0 | AA20: =L82 -> 0 | AB20: =AA20*AB19 -> 0 | AC20: =AA20*AC19 -> 0
A21: Incremental OM&A (on-going, N/A for Provincial Recovery) | C21: ='App.2-FA Proposed REG Invest.'!C64 -> 0 | D21: =C21 -> 0 | F21: ='App.2-FA Proposed REG Invest.'!D64 -> 0 | G21: =F21 -> 0 | I21: ='App.2-FA Proposed REG Invest.'!E64 -> 0 | J21: =I21 -> 0 | L21: ='App.2-FA Proposed REG Invest.'!F64 -> 0 | M21: =L21 -> 0 | O21: ='App.2-FA Proposed REG Invest.'!G64 -> 0 | P21: =O21 -> 0 | R21: ='App.2-FA Proposed REG Invest.'!H64 -> 0 | S21: =R21 -> 0 | U21: ='App.2-FA Proposed REG Invest.'!I64 -> 0 | V21: =U21 -> 0 | X21: ='App.2-FA Proposed REG Invest.'!J64 -> 0 | Y21: =X21 -> 0 | AA21: ='App.2-FA Proposed REG Invest.'!K64 -> 0 | AB21: =AA21 -> 0
A22: Incremental OM&A (start-up, applicable for Provincial Recovery) | C22: ='App.2-FA Proposed REG Invest.'!C63 -> 0 | D22: =C22*D19 -> 0 | E22: =C22*E19 -> 0 | F22: ='App.2-FA Proposed REG Invest.'!D63 -> 0 | G22: =F22*G19 -> 0 | H22: =F22*H19 -> 0 | I22: ='App.2-FA Proposed REG Invest.'!E63 -> 0 | J22: =I22*J19 -> 0 | K22: =I22*K19 -> 0 | L22: ='App.2-FA Proposed REG Invest.'!F63 -> 0 | M22: =L22*M19 -> 0 | N22: =L22*N19 -> 0 | O22: ='App.2-FA Proposed REG Invest.'!G63 -> 0 | P22: =O22*P19 -> 0 | Q22: =O22*Q19 -> 0 | R22: ='App.2-FA Proposed REG Invest.'!H63 -> 0 | S22: =R22*S19 -> 0 | T22: =R22*T19 -> 0 | U22: ='App.2-FA Proposed REG Invest.'!I63 -> 0 | V22: =U22*V19 -> 0 | W22: =U22*W19 -> 0 | X22: ='App.2-FA Proposed REG Invest.'!J63 -> 0 | Y22: =X22*Y19 -> 0 | Z22: =X22*Z19 -> 0 | AA22: ='App.2-FA Proposed REG Invest.'!K63 -> 0 | AB22: =AA22*AB19 -> 0 | AC22: =AA22*AC19 -> 0
A23: WCA | D23: =(D21+D22)*$B$23 -> 0 | E23: =E22*$B$23 -> 0 | G23: =(G21+G22)*$B$23 -> 0 | H23: =H22*$B$23 -> 0 | J23: =(J21+J22)*$B$23 -> 0 | K23: =K22*$B$23 -> 0 | M23: =(M21+M22)*$B$23 -> 0 | N23: =N22*$B$23 -> 0 | P23: =(P21+P22)*$B$23 -> 0 | Q23: =Q22*$B$23 -> 0 | S23: =(S21+S22)*$B$23 -> 0 | T23: =T22*$B$23 -> 0 | V23: =(V21+V22)*$B$23 -> 0 | W23: =W22*$B$23 -> 0 | Y23: =(Y21+Y22)*$B$23 -> 0 | Z23: =Z22*$B$23 -> 0 | AB23: =(AB21+AB22)*$B$23 -> 0 | AC23: =AC22*$B$23 -> 0
A24: Rate Base | D24: =SUM(D20+D23) -> 0 | E24: =SUM(E20+E23) -> 0 | G24: =SUM(G20+G23) -> 0 | H24: =SUM(H20+H23) -> 0 | J24: =SUM(J20+J23) -> 0 | K24: =SUM(K20+K23) -> 0 | M24: =SUM(M20+M23) -> 0 | N24: =SUM(N20+N23) -> 0 | P24: =SUM(P20+P23) -> 0 | Q24: =SUM(Q20+Q23) -> 0 | S24: =SUM(S20+S23) -> 0 | T24: =SUM(T20+T23) -> 0 | V24: =SUM(V20+V23) -> 0 | W24: =SUM(W20+W23) -> 0 | Y24: =SUM(Y20+Y23) -> 0 | Z24: =SUM(Z20+Z23) -> 0 | AB24: =SUM(AB20+AB23) -> 0 | AC24: =SUM(AC20+AC23) -> 0
A27: Deemed ST Debt | D27: =D24*$B$27 -> 0 | E27: =E24*$B$27 -> 0 | G27: =G24*$B$27 -> 0 | H27: =H24*$B$27 -> 0 | J27: =J24*$B$27 -> 0 | K27: =K24*$B$27 -> 0 | M27: =M24*$B$27 -> 0 | N27: =N24*$B$27 -> 0 | P27: =P24*$B$27 -> 0 | Q27: =Q24*$B$27 -> 0 | S27: =S24*$B$27 -> 0 | T27: =T24*$B$27 -> 0 | V27: =V24*$B$27 -> 0 | W27: =W24*$B$27 -> 0 | Y27: =Y24*$B$27 -> 0 | Z27: =Z24*$B$27 -> 0 | AB27: =AB24*$B$27 -> 0 | AC27: =AC24*$B$27 -> 0
A28: Deemed LT Debt | D28: =D24*$B$28 -> 0 | E28: =E24*$B$28 -> 0 | G28: =G24*$B$28 -> 0 | H28: =H24*$B$28 -> 0 | J28: =J24*$B$28 -> 0 | K28: =K24*$B$28 -> 0 | M28: =M24*$B$28 -> 0 | N28: =N24*$B$28 -> 0 | P28: =P24*$B$28 -> 0 | Q28: =Q24*$B$28 -> 0 | S28: =S24*$B$28 -> 0 | T28: =T24*$B$28 -> 0 | V28: =V24*$B$28 -> 0 | W28: =W24*$B$28 -> 0 | Y28: =Y24*$B$28 -> 0 | Z28: =Z24*$B$28 -> 0 | AB28: =AB24*$B$28 -> 0 | AC28: =AC24*$B$28 -> 0
A29: Deemed Equity | D29: =D24*$B$29 -> 0 | E29: =E24*$B$29 -> 0 | G29: =G24*$B$29 -> 0 | H29: =H24*$B$29 -> 0 | J29: =J24*$B$29 -> 0 | K29: =K24*$B$29 -> 0 | M29: =M24*$B$29 -> 0 | N29: =N24*$B$29 -> 0 | P29: =P24*$B$29 -> 0 | Q29: =Q24*$B$29 -> 0 | S29: =S24*$B$29 -> 0 | T29: =T24*$B$29 -> 0 | V29: =V24*$B$29 -> 0 | W29: =W24*$B$29 -> 0 | Y29: =Y24*$B$29 -> 0 | Z29: =Z24*$B$29 -> 0 | AB29: =AB24*$B$29 -> 0 | AC29: =AC24*$B$29 -> 0
A31: ST Interest | D31: =D27*$B31 -> 0 | E31: =E27*$B31 -> 0 | G31: =G27*$B31 -> 0 | H31: =H27*$B31 -> 0 | J31: =J27*$B31 -> 0 | K31: =K27*$B31 -> 0 | M31: =M27*$B31 -> 0 | N31: =N27*$B31 -> 0 | P31: =P27*$B31 -> 0 | Q31: =Q27*$B31 -> 0 | S31: =S27*$B31 -> 0 | T31: =T27*$B31 -> 0 | V31: =V27*$B31 -> 0 | W31: =W27*$B31 -> 0 | Y31: =Y27*$B31 -> 0 | Z31: =Z27*$B31 -> 0 | AB31: =AB27*$B31 -> 0 | AC31: =AC27*$B31 -> 0
A32: LT Interest | D32: =D28*$B32 -> 0 | E32: 0 | G32: =G28*$B32 -> 0 | H32: 0 | J32: =J28*$B32 -> 0 | K32: 0 | M32: =M28*$B32 -> 0 | N32: 0 | P32: =P28*$B32 -> 0 | Q32: 0 | S32: =S28*$B32 -> 0 | T32: 0 | V32: =V28*$B32 -> 0 | W32: 0 | Y32: =Y28*$B32 -> 0 | Z32: 0 | AB32: =AB28*$B32 -> 0 | AC32: 0
A33: ROE | D33: 0 | E33: 0 | G33: 0 | H33: 0 | J33: 0 | K33: 0 | M33: 0 | N33: 0 | P33: 0 | Q33: 0 | S33: 0 | T33: 0 | V33: 0 | W33: 0 | Y33: 0 | Z33: 0 | AB33: 0 | AC33: 0
A34: Cost of Capital Total | D34: =SUM(D31:D33) -> 0 | E34: =SUM(E31:E33) -> 0 | G34: =SUM(G31:G33) -> 0 | H34: =SUM(H31:H33) -> 0 | J34: =SUM(J31:J33) -> 0 | K34: =SUM(K31:K33) -> 0 | M34: =SUM(M31:M33) -> 0 | N34: =SUM(N31:N33) -> 0 | P34: =SUM(P31:P33) -> 0 | Q34: =SUM(Q31:Q33) -> 0 | S34: =SUM(S31:S33) -> 0 | T34: =SUM(T31:T33) -> 0 | V34: =SUM(V31:V33) -> 0 | W34: =SUM(W31:W33) -> 0 | Y34: =SUM(Y31:Y33) -> 0 | Z34: =SUM(Z31:Z33) -> 0 | AB34: =SUM(AB31:AB33) -> 0 | AC34: =SUM(AC31:AC33) -> 0
A36: OM&A | D36: =D21+D22 -> 0 | E36: =E22 -> 0 | G36: =G21+G22 -> 0 | H36: =H22 -> 0 | J36: =J21+J22 -> 0 | K36: =K22 -> 0 | M36: =M21+M22 -> 0 | N36: =N22 -> 0 | P36: =P21+P22 -> 0 | Q36: =Q22 -> 0 | S36: =S21+S22 -> 0 | T36: =T22 -> 0 | V36: =V21+V22 -> 0 | W36: =W22 -> 0 | Y36: =Y21+Y22 -> 0 | Z36: =Z22 -> 0 | AB36: =AB21+AB22 -> 0 | AC36: =AC22 -> 0
A37: Amortization | C37: =D77 -> 0 | D37: =C37*D$19 -> 0 | E37: =C37*E$19 -> 0 | F37: =E77 -> 0 | G37: =F37*G$19 -> 0 | H37: =F37*H$19 -> 0 | I37: =F77 -> 0 | J37: =I37*J$19 -> 0 | K37: =I37*K$19 -> 0 | L37: =G77 -> 0 | M37: =L37*M$19 -> 0 | N37: =L37*N$19 -> 0 | O37: =H77 -> 0 | P37: =O37*P$19 -> 0 | Q37: =O37*Q$19 -> 0 | R37: =I76+I77 -> 0 | S37: =R37*S$19 -> 0 | T37: =R37*T$19 -> 0 | U37: =J76+J77 -> 0 | V37: =U37*V$19 -> 0 | W37: =U37*W$19 -> 0 | X37: =K76+K77 -> 0 | Y37: =X37*Y$19 -> 0 | Z37: =X37*Z$19 -> 0 | AA37: =L76+L77 -> 0 | AB37: =AA37*AB$19 -> 0 | AC37: =AA37*AC$19 -> 0
A38: Grossed-up PILs | D38: =D65 -> 0 | E38: =E65 -> 0 | G38: =G65 -> 0 | H38: =H65 -> 0 | J38: =J65 -> 0 | K38: =K65 -> 0 | M38: =M65 -> 0 | N38: =N65 -> 0 | P38: =P65 -> 0 | Q38: =Q65 -> 0 | S38: =S65 -> 0 | T38: =T65 -> 0 | V38: =V65 -> 0 | W38: =W65 -> 0 | Y38: =Y65 -> 0 | Z38: =Z65 -> 0 | AB38: =AB65 -> 0 | AC38: =AC65 -> 0
A40: Revenue Requirement | D40: =SUM(D34:D38) -> 0 | E40: =SUM(E34:E38) -> 0 | G40: =SUM(G34:G38) -> 0 | H40: =SUM(H34:H38) -> 0 | J40: =SUM(J34:J38) -> 0 | K40: =SUM(K34:K38) -> 0 | M40: =SUM(M34:M38) -> 0 | N40: =SUM(N34:N38) -> 0 | P40: =SUM(P34:P38) -> 0 | Q40: =SUM(Q34:Q38) -> 0 | S40: =SUM(S34:S38) -> 0 | T40: =SUM(T34:T38) -> 0 | V40: =SUM(V34:V38) -> 0 | W40: =SUM(W34:W38) -> 0 | Y40: =SUM(Y34:Y38) -> 0 | Z40: =SUM(Z34:Z38) -> 0 | AB40: =SUM(AB34:AB38) -> 0 | AC40: =SUM(AC34:AC38) -> 0
A43: Provincial Rate Protection | E43: =E40 -> 0 | H43: =H40 -> 0 | K43: =K40 -> 0 | N43: =N40 -> 0 | Q43: =Q40 -> 0 | T43: =T40 -> 0 | W43: =W40 -> 0 | Z43: =Z40 -> 0 | AC43: =AC40 -> 0
A45: Monthly Amount Paid by IESO | E45: =E43/12 -> 0 | H45: =H43/12 -> 0 | K45: =K43/12 -> 0 | N45: =N43/12 -> 0 | Q45: =Q43/12 -> 0 | T45: =T43/12 -> 0 | W45: =W43/12 -> 0 | Z45: =Z43/12 -> 0 | AC45: =AC43/12 -> 0
A47: Note 1: The difference between the actual costs of approved eligible investments and revenue received from the IESO should be recorded in a variance account. The Board may provide
A48: regulatory accounting guidance regarding a variance account either in an individual proceeding or on a generic basis.
A49: Note 2: For the 2015 Test Year, Costs and Revenues of the Direct Benefit are to be included in the test year applicant Rate Base and Revenues.
A51: PILs Calculation
D52: 2011 | G52: 2012 | J52: 2013 | M52: 2014 | P52: 2015 | S52: =P52+1 -> 2016 | V52: =S52+1 -> 2017 | Y52: =V52+1 -> 2018 | AB52: =Y52+1 -> 2019
A53: Income Tax | D53: Direct Benefit | E53: Provincial | G53: Direct Benefit | H53: Provincial | J53: Direct Benefit | K53: Provincial | M53: Direct Benefit | N53: Provincial | P53: Direct Benefit | Q53: Provincial | S53: Direct Benefit | T53: Provincial | V53: Direct Benefit | W53: Provincial | Y53: Direct Benefit | Z53: Provincial | AB53: Direct Benefit | AC53: Provincial
X54: Total | AA54: Total
A55: Net Income - ROE on Rate Base | D55: =D33 -> 0 | E55: =E33 -> 0 | G55: =G33 -> 0 | H55: =H33 -> 0 | J55: =J33 -> 0 | K55: =K33 -> 0 | M55: =M33 -> 0 | N55: =N33 -> 0 | P55: =P33 -> 0 | Q55: =Q33 -> 0 | S55: =S33 -> 0 | T55: =T33 -> 0 | V55: =V33 -> 0 | W55: =W33 -> 0 | Y55: =Y33 -> 0 | Z55: =Z33 -> 0 | AB55: =AB33 -> 0 | AC55: =AC33 -> 0
A56: Amortization (6% DB and 94% P) | D56: =D37 -> 0 | E56: =E37 -> 0 | G56: =G37 -> 0 | H56: =H37 -> 0 | J56: =J37 -> 0 | K56: =K37 -> 0 | M56: =M37 -> 0 | N56: =N37 -> 0 | P56: =P37 -> 0 | Q56: =Q37 -> 0 | S56: =S37 -> 0 | T56: =T37 -> 0 | V56: =V37 -> 0 | W56: =W37 -> 0 | Y56: =Y37 -> 0 | Z56: =Z37 -> 0 | AB56: =AB37 -> 0 | AC56: =AC37 -> 0
A57: CCA (6% DB and 94% P) | D57: =-D94*D$19 -> 0 | E57: =-D94*E$19 -> 0 | G57: =-E94*G19 -> 0 | H57: =-E94*H$19 -> 0 | J57: =-F94*J$19 -> 0 | K57: =-F94*K$19 -> 0 | M57: =-G94*M$19 -> 0 | N57: =-G94*N$19 -> 0 | P57: =-H94*P$19 -> 0 | Q57: =-H94*Q$19 -> 0 | S57: =-I94*S$19 -> 0 | T57: =-I94*T$19 -> 0 | V57: =-J94*V$19 -> 0 | W57: =-J94*W$19 -> 0 | Y57: =-K94*Y$19 -> 0 | Z57: =-K94*Z$19 -> 0 | AB57: =-L94*AB$19 -> 0 | AC57: =-L94*AC$19 -> 0
A58: Taxable income | D58: =SUM(D55:D57) -> 0 | E58: =SUM(E55:E57) -> 0 | G58: =SUM(G55:G57) -> 0 | H58: =SUM(H55:H57) -> 0 | J58: =SUM(J55:J57) -> 0 | K58: =SUM(K55:K57) -> 0 | M58: =SUM(M55:M57) -> 0 | N58: =SUM(N55:N57) -> 0 | P58: =SUM(P55:P57) -> 0 | Q58: =SUM(Q55:Q57) -> 0 | S58: =SUM(S55:S57) -> 0 | T58: =SUM(T55:T57) -> 0 | V58: =SUM(V55:V57) -> 0 | W58: =SUM(W55:W57) -> 0 | Y58: =SUM(Y55:Y57) -> 0 | Z58: =SUM(Z55:Z57) -> 0 | AB58: =SUM(AB55:AB57) -> 0 | AC58: =SUM(AC55:AC57) -> 0
A60: Tax Rate (to be entered)
A62: Income Taxes Payable | D62: =D58*D60 -> 0 | E62: =E58*E60 -> 0 | G62: =G58*G60 -> 0 | H62: =H58*H60 -> 0 | J62: =J58*J60 -> 0 | K62: =K58*K60 -> 0 | M62: =M58*M60 -> 0 | N62: =N58*N60 -> 0 | P62: =P58*P60 -> 0 | Q62: =Q58*Q60 -> 0 | S62: =S58*S60 -> 0 | T62: =T58*T60 -> 0 | V62: =V58*V60 -> 0 | W62: =W58*W60 -> 0 | Y62: =Y58*Y60 -> 0 | Z62: =Z58*Z60 -> 0 | AB62: =AB58*AB60 -> 0 | AC62: =AC58*AC60 -> 0
A63: Gross Up
A64: Income Taxes Payable | D64: =D62/(1-D60) -> 0 | E64: =E62/(1-E60) -> 0 | G64: =G62/(1-G60) -> 0 | H64: =H62/(1-H60) -> 0 | J64: =J62/(1-J60) -> 0 | K64: =K62/(1-K60) -> 0 | M64: =M62/(1-M60) -> 0 | N64: =N62/(1-N60) -> 0 | P64: =P62/(1-P60) -> 0 | Q64: =Q62/(1-Q60) -> 0 | S64: =S62/(1-S60) -> 0 | T64: =T62/(1-T60) -> 0 | V64: =V62/(1-V60) -> 0 | W64: =W62/(1-W60) -> 0 | Y64: =Y62/(1-Y60) -> 0 | Z64: =Z62/(1-Z60) -> 0 | AB64: =AB62/(1-AB60) -> 0 | AC64: =AC62/(1-AC60) -> 0
A65: Grossed Up PILs | D65: =SUM(D64:D64) -> 0 | E65: =SUM(E64:E64) -> 0 | G65: =SUM(G64:G64) -> 0 | H65: =SUM(H64:H64) -> 0 | J65: =SUM(J64:J64) -> 0 | K65: =SUM(K64:K64) -> 0 | M65: =SUM(M64:M64) -> 0 | N65: =SUM(N64:N64) -> 0 | P65: =SUM(P64:P64) -> 0 | Q65: =SUM(Q64:Q64) -> 0 | S65: =SUM(S64:S64) -> 0 | T65: =SUM(T64:T64) -> 0 | V65: =SUM(V64:V64) -> 0 | W65: =SUM(W64:W64) -> 0 | Y65: =SUM(Y64:Y64) -> 0 | Z65: =SUM(Z64:Z64) -> 0 | AB65: =SUM(AB64:AB64) -> 0 | AC65: =SUM(AC64:AC64) -> 0
D68: 2011 | E68: 2012 | F68: 2013 | G68: 2014 | H68: 2015 | I68: =H68+1 -> 2016 | J68: =I68+1 -> 2017 | K68: 2018 | L68: 2019
A69: Net Fixed Assets
B70: Enter applicable amortization in years: | C70: 25
A71: Opening Gross Fixed Assets | E71: =D73 -> 0 | F71: 0 | G71: 0 | H71: 0 | I71: =H73 -> 0 | J71: =I73 -> 0 | K71: =J73 -> 0 | L71: =K73 -> 0
A72: Gross Capital Additions | D72: ='App.2-FA Proposed REG Invest.'!C62 -> 0 | E72: ='App.2-FA Proposed REG Invest.'!D62 -> 0 | F72: ='App.2-FA Proposed REG Invest.'!E62 -> 0 | G72: ='App.2-FA Proposed REG Invest.'!F62 -> 0 | H72: ='App.2-FA Proposed REG Invest.'!G62 -> 0 | I72: ='App.2-FA Proposed REG Invest.'!H62 -> 0 | J72: ='App.2-FA Proposed REG Invest.'!I62 -> 0 | K72: ='App.2-FA Proposed REG Invest.'!J62 -> 0 | L72: ='App.2-FA Proposed REG Invest.'!K62 -> 0
A73: Closing Gross Fixed Assets | D73: =SUM(D71:D72) -> 0 | E73: 0 | F73: 0 | G73: 0 | H73: =SUM(H71:H72) -> 0 | I73: =SUM(I71:I72) -> 0 | J73: 0 | K73: 0 | L73: 0
A75: Opening Accumulated Amortization | E75: =+D78 -> 0 | F75: =E78 -> 0 | G75: 0 | H75: 0 | I75: 0 | J75: 0 | K75: 0 | L75: 0
A76: Current Year Amortization (before additions) | D76: =IF(ISERROR(D71/$C$70), 0, D71/$C$70) -> 0 | E76: 0 | F76: 0 | G76: 0 | H76: 0 | I76: =IF(ISERROR(I71/$C$70), 0, I71/$C$70) -> 0 | J76: =IF(ISERROR(J71/$C$70), 0, J71/$C$70) -> 0 | K76: =IF(ISERROR(K71/$C$70), 0, K71/$C$70) -> 0 | L76: =IF(ISERROR(L71/$C$70), 0, L71/$C$70) -> 0
A77: Additions (half year) | D77: =D72/$C$70/2 -> 0 | E77: =E72/$C$70/2 -> 0 | F77: =F72/$C$70/2 -> 0 | G77: 0 | H77: =H72/$C$70/2 -> 0 | I77: =I72/C70/2 -> 0 | J77: =J72/C70/2 -> 0 | K77: =K72/C70/2 -> 0 | L77: =L72/C70/2 -> 0
A78: Closing Accumulated Amortization | D78: =SUM(D75+D76+D77) -> 0 | E78: =SUM(E75+E76+E77) -> 0 | F78: =SUM(F75+F76+F77) -> 0 | G78: =SUM(G75+G76+G77) -> 0 | H78: =SUM(H75+H76+H77) -> 0 | I78: =SUM(I75:I77) -> 0 | J78: =SUM(J75:J77) -> 0 | K78: =SUM(K75:K77) -> 0 | L78: =SUM(L75:L77) -> 0
A80: Opening Net Fixed Assets | D80: =D71-D75 -> 0 | E80: 0 | F80: =F71-F75 -> 0 | G80: 0 | H80: =H71-H75 -> 0 | I80: =H81 -> 0 | J80: =I81 -> 0 | K80: =J81 -> 0 | L80: =K81 -> 0
A81: Closing Net Fixed Assets | D81: =D73-D78 -> 0 | E81: =E73-E78 -> 0 | F81: 0 | G81: 0 | H81: =H73-H78 -> 0 | I81: =I73-I78 -> 0 | J81: =J73-J78 -> 0 | K81: =K73-K78 -> 0 | L81: =L73-L78 -> 0
A82: Average Net Fixed Assets | D82: =SUM(D80:D81)/2 -> 0 | E82: 0 | F82: 0 | G82: 0 | H82: =SUM(H80:H81)/2 -> 0 | I82: =SUM(I80:I81)/2 -> 0 | J82: =SUM(J80:J81)/2 -> 0 | K82: =SUM(K80:K81)/2 -> 0 | L82: =SUM(L80:L81)/2 -> 0
A84: UCC for PILs Calculation
D85: 2011 | E85: 2012 | F85: 2013 | G85: 2014 | H85: 2015 | I85: =H85+1 -> 2016 | J85: =I85+1 -> 2017 | K85: 2018 | L85: 2019
A87: Opening UCC | E87: =D95 -> 0 | F87: 0 | G87: 0 | H87: 0 | I87: 0 | J87: 0 | K87: 0 | L87: 0
A88: Capital Additions (from Appendix 2-FA) | D88: =D72 -> 0 | E88: 0 | F88: 0 | G88: 0 | H88: =H72 -> 0 | I88: ='App.2-FA Proposed REG Invest.'!H40 -> 0 | J88: ='App.2-FA Proposed REG Invest.'!I40 -> 0 | K88: ='App.2-FA Proposed REG Invest.'!J40 -> 0 | L88: ='App.2-FA Proposed REG Invest.'!K40 -> 0
A89: UCC Before Half Year Rule | D89: =SUM(D87:D88) -> 0 | E89: 0 | F89: 0 | G89: 0 | H89: =SUM(H87:H88) -> 0 | I89: =SUM(I87:I88) -> 0 | J89: =SUM(J87:J88) -> 0 | K89: =SUM(K87:K88) -> 0 | L89: =SUM(L87:L88) -> 0
A90: Half Year Rule (1/2 Additions - Disposals) | D90: =D88/2 -> 0 | E90: 0 | F90: 0 | G90: 0 | H90: =H88/2 -> 0 | I90: =I88/2 -> 0 | J90: =J88/2 -> 0 | K90: =K88/2 -> 0 | L90: =L88/2 -> 0
A91: Reduced UCC | D91: =D89-D90 -> 0 | E91: 0 | F91: 0 | G91: 0 | H91: =H89-H90 -> 0 | I91: =I89-I90 -> 0 | J91: =J89-J90 -> 0 | K91: =K89-K90 -> 0 | L91: =L89-L90 -> 0
A92: CCA Rate Class (to be entered) | C92: 47 | D92: =C92 -> 47 | E92: =D92 -> 47 | F92: 47 | G92: 47 | H92: 47 | I92: 47 | J92: 47 | K92: 47 | L92: 47
A93: CCA Rate (to be entered) | C93: 0.08 | D93: =C93 -> 0.08 | E93: 0.08 | F93: 0.08 | G93: 0.08 | H93: 0.08 | I93: 0.08 | J93: 0.08 | K93: 0.08 | L93: 0.08
A94: CCA | D94: =D91*D93 -> 0 | E94: 0 | F94: 0 | G94: 0 | H94: =H91*H93 -> 0 | I94: =I91*I93 -> 0 | J94: 0 | K94: 0 | L94: =L91*L93 -> 0
A95: Closing UCC | D95: =D89-D94 -> 0 | E95: 0 | F95: 0 | G95: 0 | H95: =H89-H94 -> 0 | I95: =I89-I94 -> 0 | J95: =J89-J94 -> 0 | K95: =K89-K94 -> 0 | L95: =L89-L94 -> 0

Sheet App.2-FC Calc of REG Expansion
A1: NOT APPLICABLE | N1: File Number: | O1: =EBNUMBER -> EB-2014-0080
N2: Exhibit:
N3: Tab:
N4: Schedule:
N5: Page:
N7: Date:
A9: Appendix 2-FC
A10: Calculation of Renewable Generation Connection Direct Benefits/Provincial Amount: Renewable Expansion Investments
A12: This table will calculate the distributor/provincial shares of the investments entered in Part B of Appendix 2-FA.
A13: Enter values in green shaded cells: WCA percentage, debt percentages, interest rates, kWh, tax rates, amortization period, CCA Class and percentage.
A14: For historical investments, enter these variables for your last cost of service test year. For 2015 and beyond, enter vaiables as in the application.
A15: Rate Riders are not calculated for Test Year as these assets and costs are already in the distributors rate base.
D18: 2011 | G18: 2012 | J18: 2013 | M18: 2014 | P18: 2015 TEST YEAR | S18: 2016 | T18: 2016 | V18: 2017 | Y18: 2018 | AB18: 2019
E19: Direct Benefit | F19: Provincial | H19: Direct Benefit | I19: Provincial | K19: Direct Benefit | L19: Provincial | N19: Direct Benefit | O19: Provincial | Q19: Direct Benefit | R19: Provincial | T19: Direct Benefit | U19: Provincial | W19: Direct Benefit | X19: Provincial | Z19: Direct Benefit | AA19: Provincial | AC19: Direct Benefit | AD19: Provincial
D20: Total | E20: 0.17 | F20: 0.83 | G20: Total | H20: 0.17 | I20: 0.83 | J20: Total | K20: 0.17 | L20: 0.83 | M20: Total | N20: 0.17 | O20: 0.83 | P20: Total | Q20: 0.17 | R20: 0.83 | S20: Total | T20: 0.17 | U20: 0.83 | V20: Total | W20: 0.17 | X20: 0.83 | Y20: Total | Z20: 0.17 | AA20: 0.83 | AB20: Total | AC20: 0.17 | AD20: 0.83
A21: Net Fixed Assets (average) | D21: =D82 -> 0 | E21: =D21*E20 -> 0 | F21: =D21*F20 -> 0 | G21: =E82 -> 0 | H21: =G21*H20 -> 0 | I21: =G21*I20 -> 0 | J21: =F82 -> 0 | K21: =J21*K20 -> 0 | L21: =J21*L20 -> 0 | M21: =G82 -> 0 | N21: =M21*N20 -> 0 | O21: =M21*O20 -> 0 | P21: =H82 -> 0 | Q21: =P21*Q20 -> 0 | R21: =P21*R20 -> 0 | S21: =I82 -> 0 | T21: =S21*T20 -> 0 | U21: =S21*U20 -> 0 | V21: =J82 -> 0 | W21: =V21*W20 -> 0 | X21: =V21*X20 -> 0 | Y21: =K82 -> 0 | Z21: =Y21*Z20 -> 0 | AA21: =Y21*AA20 -> 0 | AB21: =L82 -> 0 | AC21: =AB21*AC20 -> 0 | AD21: =AB21*AD20 -> 0
A22: Incremental OM&A (on-going, N/A for Provincial Recovery) | D22: ='App.2-FA Proposed REG Invest.'!C101 -> 0 | E22: =D22 -> 0 | G22: ='App.2-FA Proposed REG Invest.'!D$101 -> 0 | H22: =G22 -> 0 | J22: ='App.2-FA Proposed REG Invest.'!E$101 -> 0 | K22: =J22 -> 0 | M22: ='App.2-FA Proposed REG Invest.'!F$101 -> 0 | N22: =M22 -> 0 | P22: ='App.2-FA Proposed REG Invest.'!G$101 -> 0 | Q22: =P22 -> 0 | S22: ='App.2-FA Proposed REG Invest.'!H$101 -> 0 | T22: =S22 -> 0 | V22: ='App.2-FA Proposed REG Invest.'!I$101 -> 0 | W22: =V22 -> 0 | Y22: ='App.2-FA Proposed REG Invest.'!J$101 -> 0 | Z22: =Y22 -> 0 | AB22: ='App.2-FA Proposed REG Invest.'!K$101 -> 0 | AC22: =AB22 -> 0
A23: Incremental OM&A (start-up, applicable for Provincial Recovery) | D23: ='App.2-FA Proposed REG Invest.'!C100 -> 0 | E23: =D23*E20 -> 0 | F23: =D23*F20 -> 0 | G23: ='App.2-FA Proposed REG Invest.'!D$100 -> 0 | H23: =G23*H20 -> 0 | I23: =G23*I20 -> 0 | J23: ='App.2-FA Proposed REG Invest.'!E$100 -> 0 | K23: =J23*K20 -> 0 | L23: =J23*L20 -> 0 | M23: ='App.2-FA Proposed REG Invest.'!F$100 -> 0 | N23: =M23*N20 -> 0 | O23: =M23*O20 -> 0 | P23: ='App.2-FA Proposed REG Invest.'!G$100 -> 0 | Q23: =P23*Q20 -> 0 | R23: =P23*R20 -> 0 | S23: ='App.2-FA Proposed REG Invest.'!H$100 -> 0 | T23: =S23*T20 -> 0 | U23: =S23*U20 -> 0 | V23: ='App.2-FA Proposed REG Invest.'!I$100 -> 0 | W23: =V23*W20 -> 0 | X23: =V23*X20 -> 0 | Y23: ='App.2-FA Proposed REG Invest.'!J$100 -> 0 | Z23: =Y23*Z20 -> 0 | AA23: =Y23*AA20 -> 0 | AB23: ='App.2-FA Proposed REG Invest.'!K$100 -> 0 | AC23: =AB23*AC20 -> 0 | AD23: =AB23*AD20 -> 0
A24: WCA | E24: =(E22+E23)*$B$24 -> 0 | F24: =F23*$B$24 -> 0 | H24: =(H22+H23)*$B$24 -> 0 | I24: =I23*$B$24 -> 0 | K24: =(K22+K23)*$B$24 -> 0 | L24: =L23*$B$24 -> 0 | N24: =(N22+N23)*$B$24 -> 0 | O24: =O23*$B$24 -> 0 | Q24: =(Q22+Q23)*$B$24 -> 0 | R24: =R23*$B$24 -> 0 | T24: =(T22+T23)*$B$24 -> 0 | U24: =U23*$B$24 -> 0 | W24: =(W22+W23)*$B$24 -> 0 | X24: =X23*$B$24 -> 0 | Z24: =(Z22+Z23)*$B$24 -> 0 | AA24: =AA23*$B$24 -> 0 | AC24: =(AC22+AC23)*$B$24 -> 0 | AD24: =AD23*$B$24 -> 0
A25: Rate Base | E25: =SUM(E21+E24) -> 0 | F25: =SUM(F21+F24) -> 0 | H25: =SUM(H21+H24) -> 0 | I25: =SUM(I21+I24) -> 0 | K25: =SUM(K21+K24) -> 0 | L25: =SUM(L21+L24) -> 0 | N25: =SUM(N21+N24) -> 0 | O25: =SUM(O21+O24) -> 0 | Q25: =SUM(Q21+Q24) -> 0 | R25: =SUM(R21+R24) -> 0 | T25: =SUM(T21+T24) -> 0 | U25: =SUM(U21+U24) -> 0 | W25: =SUM(W21+W24) -> 0 | X25: =SUM(X21+X24) -> 0 | Z25: =SUM(Z21+Z24) -> 0 | AA25: =SUM(AA21+AA24) -> 0 | AC25: =SUM(AC21+AC24) -> 0 | AD25: =SUM(AD21+AD24) -> 0
A28: Deemed ST Debt | E28: =E25*$B$28 -> 0 | F28: =F25*$B$28 -> 0 | H28: =H25*$B$28 -> 0 | I28: =I25*$B$28 -> 0 | K28: =K25*$B$28 -> 0 | L28: =L25*$B$28 -> 0 | N28: =N25*$B$28 -> 0 | O28: =O25*$B$28 -> 0 | Q28: =Q25*$B$28 -> 0 | R28: =R25*$B$28 -> 0 | T28: =T25*$B$28 -> 0 | U28: =U25*$B$28 -> 0 | W28: =W25*$B$28 -> 0 | X28: =X25*$B$28 -> 0 | Z28: =Z25*$B$28 -> 0 | AA28: =AA25*$B$28 -> 0 | AC28: =AC25*$B$28 -> 0 | AD28: =AD25*$B$28 -> 0
A29: Deemed LT Debt | E29: =E25*$B$29 -> 0 | F29: =F25*$B$29 -> 0 | H29: =H25*$B$29 -> 0 | I29: =I25*$B$29 -> 0 | K29: =K25*$B$29 -> 0 | L29: =L25*$B$29 -> 0 | N29: =N25*$B$29 -> 0 | O29: =O25*$B$29 -> 0 | Q29: =Q25*$B$29 -> 0 | R29: =R25*$B$29 -> 0 | T29: =T25*$B$29 -> 0 | U29: =U25*$B$29 -> 0 | W29: =W25*$B$29 -> 0 | X29: =X25*$B$29 -> 0 | Z29: =Z25*$B$29 -> 0 | AA29: =AA25*$B$29 -> 0 | AC29: =AC25*$B$29 -> 0 | AD29: =AD25*$B$29 -> 0
A30: Deemed Equity | E30: =E25*$B$30 -> 0 | F30: =F25*$B$30 -> 0 | H30: =H25*$B$30 -> 0 | I30: =I25*$B$30 -> 0 | K30: =K25*$B$30 -> 0 | L30: =L25*$B$30 -> 0 | N30: =N25*$B$30 -> 0 | O30: =O25*$B$30 -> 0 | Q30: =Q25*$B$30 -> 0 | R30: =R25*$B$30 -> 0 | T30: =T25*$B$30 -> 0 | U30: =U25*$B$30 -> 0 | W30: =W25*$B$30 -> 0 | X30: =X25*$B$30 -> 0 | Z30: =Z25*$B$30 -> 0 | AA30: =AA25*$B$30 -> 0 | AC30: =AC25*$B$30 -> 0 | AD30: =AD25*$B$30 -> 0
A32: ST Interest | E32: =E28*$B$32 -> 0 | F32: =F28*$B$32 -> 0 | H32: =H28*$B$32 -> 0 | I32: =I28*$B$32 -> 0 | K32: =K28*$B$32 -> 0 | L32: =L28*$B$32 -> 0 | N32: =N28*$B$32 -> 0 | O32: =O28*$B$32 -> 0 | Q32: =Q28*$B$32 -> 0 | R32: =R28*$B$32 -> 0 | T32: =T28*$B$32 -> 0 | U32: =U28*$B$32 -> 0 | W32: =W28*$B$32 -> 0 | X32: =X28*$B$32 -> 0 | Z32: =Z28*$B$32 -> 0 | AA32: =AA28*$B$32 -> 0 | AC32: =AC28*$B$32 -> 0 | AD32: =AD28*$B$32 -> 0
A33: LT Interest | E33: =E29*$B$33 -> 0 | F33: =F29*$B$33 -> 0 | H33: =H29*$B$33 -> 0 | I33: =I29*$B$33 -> 0 | K33: =K29*$B$33 -> 0 | L33: =L29*$B$33 -> 0 | N33: =N29*$B$33 -> 0 | O33: =O29*$B$33 -> 0 | Q33: =Q29*$B$33 -> 0 | R33: =R29*$B$33 -> 0 | T33: =T29*$B$33 -> 0 | U33: =U29*$B$33 -> 0 | W33: =W29*$B$33 -> 0 | X33: =X29*$B$33 -> 0 | Z33: =Z29*$B$33 -> 0 | AA33: =AA29*$B$33 -> 0 | AC33: =AC29*$B$33 -> 0 | AD33: =AD29*$B$33 -> 0
A34: ROE | E34: =E30*$B$34 -> 0 | F34: =F30*$B$34 -> 0 | H34: =H30*$B$34 -> 0 | I34: =I30*$B$34 -> 0 | K34: =K30*$B$34 -> 0 | L34: =L30*$B$34 -> 0 | N34: =N30*$B$34 -> 0 | O34: =O30*$B$34 -> 0 | Q34: =Q30*$B$34 -> 0 | R34: =R30*$B$34 -> 0 | T34: =T30*$B$34 -> 0 | U34: =U30*$B$34 -> 0 | W34: =W30*$B$34 -> 0 | X34: =X30*$B$34 -> 0 | Z34: =Z30*$B$34 -> 0 | AA34: =AA30*$B$34 -> 0 | AC34: =AC30*$B$34 -> 0 | AD34: =AD30*$B$34 -> 0
A35: Cost of Capital Total | E35: =SUM(E32:E34) -> 0 | F35: =SUM(F32:F34) -> 0 | H35: =SUM(H32:H34) -> 0 | I35: =SUM(I32:I34) -> 0 | K35: =SUM(K32:K34) -> 0 | L35: =SUM(L32:L34) -> 0 | N35: =SUM(N32:N34) -> 0 | O35: =SUM(O32:O34) -> 0 | Q35: =SUM(Q32:Q34) -> 0 | R35: =SUM(R32:R34) -> 0 | T35: =SUM(T32:T34) -> 0 | U35: =SUM(U32:U34) -> 0 | W35: =SUM(W32:W34) -> 0 | X35: =SUM(X32:X34) -> 0 | Z35: =SUM(Z32:Z34) -> 0 | AA35: =SUM(AA32:AA34) -> 0 | AC35: =SUM(AC32:AC34) -> 0 | AD35: =SUM(AD32:AD34) -> 0
A37: OM&A | E37: =E22+E23 -> 0 | F37: =F23 -> 0 | H37: =H22+H23 -> 0 | I37: =I23 -> 0 | K37: =K22+K23 -> 0 | L37: =L23 -> 0 | N37: =N22+N23 -> 0 | O37: =O23 -> 0 | Q37: =Q22+Q23 -> 0 | R37: =R23 -> 0 | T37: =T22+T23 -> 0 | U37: =U23 -> 0 | W37: =W22+W23 -> 0 | X37: =X23 -> 0 | Z37: =Z22+Z23 -> 0 | AA37: =AA23 -> 0 | AC37: =AC22+AC23 -> 0 | AD37: =AD23 -> 0
A38: Amortization | D38: =D78 -> 0 | E38: =D38*E$20 -> 0 | F38: =D38*F$20 -> 0 | G38: =E78 -> 0 | H38: =G38*H$20 -> 0 | I38: =G38*I$20 -> 0 | J38: =F78 -> 0 | K38: =J38*K$20 -> 0 | L38: =J38*L$20 -> 0 | M38: =G78 -> 0 | N38: =M38*N$20 -> 0 | O38: =M38*O$20 -> 0 | P38: =H76+H77 -> 0 | Q38: =P38*Q$20 -> 0 | R38: =P38*R$20 -> 0 | S38: =I76+I77 -> 0 | T38: =S38*T$20 -> 0 | U38: =S38*U$20 -> 0 | V38: =J76+J77 -> 0 | W38: =V38*W$20 -> 0 | X38: =V38*X$20 -> 0 | Y38: =K76+K77 -> 0 | Z38: =Y38*Z$20 -> 0 | AA38: =Y38*AA$20 -> 0 | AB38: =L76+L77 -> 0 | AC38: =AB38*AC$20 -> 0 | AD38: =AB38*AD$20 -> 0
A39: Grossed-up PILs | E39: =E66 -> 0 | F39: =F66 -> 0 | H39: =H66 -> 0 | I39: =I66 -> 0 | K39: =K66 -> 0 | L39: =L66 -> 0 | N39: =N66 -> 0 | O39: =O66 -> 0 | Q39: =Q66 -> 0 | R39: =R66 -> 0 | T39: =T66 -> 0 | U39: =U66 -> 0 | W39: =W66 -> 0 | X39: =X66 -> 0 | Z39: =Z66 -> 0 | AA39: =AA66 -> 0 | AC39: =AC66 -> 0 | AD39: =AD66 -> 0
A41: Revenue Requirement | E41: =SUM(E35:E39) -> 0 | F41: =SUM(F35:F39) -> 0 | H41: =SUM(H35:H39) -> 0 | I41: =SUM(I35:I39) -> 0 | K41: =SUM(K35:K39) -> 0 | L41: =SUM(L35:L39) -> 0 | N41: =SUM(N35:N39) -> 0 | O41: =SUM(O35:O39) -> 0 | Q41: =SUM(Q35:Q39) -> 0 | R41: =SUM(R35:R39) -> 0 | T41: =SUM(T35:T39) -> 0 | U41: =SUM(U35:U39) -> 0 | W41: =SUM(W35:W39) -> 0 | X41: =SUM(X35:X39) -> 0 | Z41: =SUM(Z35:Z39) -> 0 | AA41: =SUM(AA35:AA39) -> 0 | AC41: =SUM(AC35:AC39) -> 0 | AD41: =SUM(AD35:AD39) -> 0
A44: Provincial Rate Protection | F44: =F41 -> 0 | I44: =I41 -> 0 | L44: =L41 -> 0 | O44: =O41 -> 0 | R44: =R41 -> 0 | U44: =U41 -> 0 | X44: =X41 -> 0 | AA44: =AA41 -> 0 | AD44: =AD41 -> 0
A46: Monthly Amount Paid by IESO | F46: =F44/12 -> 0 | I46: =I44/12 -> 0 | L46: =L44/12 -> 0 | O46: =O44/12 -> 0 | R46: =R44/12 -> 0 | U46: =U44/12 -> 0 | X46: =X44/12 -> 0 | AA46: =AA44/12 -> 0 | AD46: =AD44/12 -> 0
A48: Note 1: The difference between the actual costs of approved eligible investments and revenue received from the IESO should be recorded in a variance account. The Board may provide
A49: regulatory accounting guidance regarding a variance account either in an individual proceeding or on a generic basis.
A50: Note 2: For the 2015 Test Year, Costs and Revenues of the Direct Benefit are to be included in the test year applicant Rate Base and Revenues.
A52: PILs Calculation
E53: 2011 | H53: 2012 | K53: 2013 | N53: 2014 | Q53: 2015 TEST YEAR | T53: 2016 | W53: 2017 | Z53: 2018 | AC53: 2019
A54: Income Tax | E54: Direct Benefit | F54: Provincial | H54: Direct Benefit | I54: Provincial | K54: Direct Benefit | L54: Provincial | N54: Direct Benefit | O54: Provincial | Q54: Direct Benefit | R54: Provincial | T54: Direct Benefit | U54: Provincial | W54: Direct Benefit | X54: Provincial | Z54: Direct Benefit | AA54: Provincial | AC54: Direct Benefit | AD54: Provincial
V55: Total | Y55: Total | AB55: Total
A56: Net Income - ROE on Rate Base | E56: =E34 -> 0 | F56: =F34 -> 0 | H56: =H34 -> 0 | I56: =I34 -> 0 | K56: =K34 -> 0 | L56: =L34 -> 0 | N56: =N34 -> 0 | O56: =O34 -> 0 | Q56: =Q34 -> 0 | R56: =R34 -> 0 | T56: =T34 -> 0 | U56: =U34 -> 0 | W56: =W34 -> 0 | X56: =X34 -> 0 | Z56: =Z34 -> 0 | AA56: =AA34 -> 0 | AC56: =AC34 -> 0 | AD56: =AD34 -> 0
A57: Amortization (17% DB and 83% P) | E57: =E38 -> 0 | F57: =F38 -> 0 | H57: =H38 -> 0 | I57: =I38 -> 0 | K57: =K38 -> 0 | L57: =L38 -> 0 | N57: =N38 -> 0 | O57: =O38 -> 0 | Q57: =Q38 -> 0 | R57: =R38 -> 0 | T57: =T38 -> 0 | U57: =U38 -> 0 | W57: =W38 -> 0 | X57: =X38 -> 0 | Z57: =Z38 -> 0 | AA57: =AA38 -> 0 | AC57: =AC38 -> 0 | AD57: =AD38 -> 0
A58: CCA (17% DB and 83% P) | E58: =-D94*E$20 -> 0 | F58: =-D94*F$20 -> 0 | H58: =-E94*H$20 -> 0 | I58: =-E94*I$20 -> 0 | K58: =-F94*K$20 -> 0 | L58: =-F94*L$20 -> 0 | N58: =-G94*N$20 -> 0 | O58: =-G94*O$20 -> 0 | Q58: =-H94*Q$20 -> 0 | R58: =-H94*R$20 -> 0 | T58: =-I94*T$20 -> 0 | U58: =-I94*U$20 -> 0 | W58: =-J94*W$20 -> 0 | X58: =-J94*X$20 -> 0 | Z58: =-K94*Z$20 -> 0 | AA58: =-K94*AA$20 -> 0 | AC58: =-L94*AC$20 -> 0 | AD58: =-L94*AD$20 -> 0
A59: Taxable income | E59: =SUM(E56:E58) -> 0 | F59: =SUM(F56:F58) -> 0 | H59: =SUM(H56:H58) -> 0 | I59: =SUM(I56:I58) -> 0 | K59: =SUM(K56:K58) -> 0 | L59: =SUM(L56:L58) -> 0 | N59: =SUM(N56:N58) -> 0 | O59: =SUM(O56:O58) -> 0 | Q59: =SUM(Q56:Q58) -> 0 | R59: =SUM(R56:R58) -> 0 | T59: =SUM(T56:T58) -> 0 | U59: =SUM(U56:U58) -> 0 | W59: =SUM(W56:W58) -> 0 | X59: =SUM(X56:X58) -> 0 | Z59: =SUM(Z56:Z58) -> 0 | AA59: =SUM(AA56:AA58) -> 0 | AC59: =SUM(AC56:AC58) -> 0 | AD59: =SUM(AD56:AD58) -> 0
A61: Tax Rate (to be entered)
A63: Income Taxes Payable | E63: =E59*E61 -> 0 | F63: =F59*F61 -> 0 | H63: =H59*H61 -> 0 | I63: =I59*I61 -> 0 | K63: =K59*K61 -> 0 | L63: =L59*L61 -> 0 | N63: =N59*N61 -> 0 | O63: =O59*O61 -> 0 | Q63: =Q59*Q61 -> 0 | R63: =R59*R61 -> 0 | T63: =T59*T61 -> 0 | U63: =U59*U61 -> 0 | W63: =W59*W61 -> 0 | X63: =X59*X61 -> 0 | Z63: =Z59*Z61 -> 0 | AA63: =AA59*AA61 -> 0 | AC63: =AC59*AC61 -> 0 | AD63: =AD59*AD61 -> 0
A64: Gross Up
A65: Income Taxes Payable | E65: =E63/(1-E61) -> 0 | F65: =F63/(1-F61) -> 0 | H65: =H63/(1-H61) -> 0 | I65: =I63/(1-I61) -> 0 | K65: =K63/(1-K61) -> 0 | L65: =L63/(1-L61) -> 0 | N65: =N63/(1-N61) -> 0 | O65: =O63/(1-O61) -> 0 | Q65: =Q63/(1-Q61) -> 0 | R65: =R63/(1-R61) -> 0 | T65: =T63/(1-T61) -> 0 | U65: =U63/(1-U61) -> 0 | W65: =W63/(1-W61) -> 0 | X65: =X63/(1-X61) -> 0 | Z65: =Z63/(1-Z61) -> 0 | AA65: =AA63/(1-AA61) -> 0 | AC65: =AC63/(1-AC61) -> 0 | AD65: =AD63/(1-AD61) -> 0
A66: Grossed Up PILs | E66: =SUM(E65:E65) -> 0 | F66: =SUM(F65:F65) -> 0 | H66: =SUM(H65:H65) -> 0 | I66: =SUM(I65:I65) -> 0 | K66: =SUM(K65:K65) -> 0 | L66: =SUM(L65:L65) -> 0 | N66: =SUM(N65:N65) -> 0 | O66: =SUM(O65:O65) -> 0 | Q66: =SUM(Q65:Q65) -> 0 | R66: =SUM(R65:R65) -> 0 | T66: =SUM(T65:T65) -> 0 | U66: =SUM(U65:U65) -> 0 | W66: =SUM(W65:W65) -> 0 | X66: =SUM(X65:X65) -> 0 | Z66: =SUM(Z65:Z65) -> 0 | AA66: =SUM(AA65:AA65) -> 0 | AC66: =SUM(AC65:AC65) -> 0 | AD66: =SUM(AD65:AD65) -> 0
A69: Net Fixed Assets | D69: 2011 | E69: 2012 | F69: 2013 | G69: 2014 | H69: 2015 | I69: 2016 | J69: 2017 | K69: 2018 | L69: 2019
B70: Enter applicable amortization in years: | C70: 25
A71: Opening Gross Fixed Assets | E71: =D73 -> 0 | F71: 0 | G71: 0 | H71: 0 | I71: 0 | J71: 0 | K71: 0 | L71: 0
A72: Gross Capital Additions | D72: ='App.2-FA Proposed REG Invest.'!C99 -> 0 | E72: ='App.2-FA Proposed REG Invest.'!D99 -> 0 | F72: ='App.2-FA Proposed REG Invest.'!E99 -> 0 | G72: ='App.2-FA Proposed REG Invest.'!F99 -> 0 | H72: ='App.2-FA Proposed REG Invest.'!G99 -> 0 | I72: ='App.2-FA Proposed REG Invest.'!H99 -> 0 | J72: ='App.2-FA Proposed REG Invest.'!I99 -> 0 | K72: ='App.2-FA Proposed REG Invest.'!J99 -> 0 | L72: ='App.2-FA Proposed REG Invest.'!K99 -> 0
A73: Closing Gross Fixed Assets | D73: =SUM(D71:D72) -> 0 | E73: 0 | F73: 0 | G73: 0 | H73: 0 | I73: 0 | J73: 0 | K73: 0 | L73: 0
A75: Opening Accumulated Amortization | E75: =+D78 -> 0 | F75: =E78 -> 0 | G75: 0 | H75: =G78 -> 0 | I75: =H78 -> 0 | J75: =I78 -> 0 | K75: =J78 -> 0 | L75: =K78 -> 0
A76: Current Year Amortization (before additions) | E76: =IF(ISERROR(E71/$C$70), 0, E71/$C$70) -> 0 | F76: 0 | G76: 0 | H76: =H71/$C$70 -> 0 | I76: =I71/$C$70 -> 0 | J76: =J71/$C$70 -> 0 | K76: =K71/$C$70 -> 0 | L76: =L71/$C$70 -> 0
A77: Additions (half year) | D77: =D72/C70/2 -> 0 | E77: =E72/C70/2 -> 0 | F77: =F72/C70/2 -> 0 | G77: =G72/C70/2 -> 0 | H77: =H72/C70/2 -> 0 | I77: =I72/C70/2 -> 0 | J77: =J72/C70/2 -> 0 | K77: =K72/C70/2 -> 0 | L77: =L72/C70/2 -> 0
A78: Closing Accumulated Amortization | D78: =SUM(D75+D77) -> 0 | E78: =SUM(E75:E77) -> 0 | F78: 0 | G78: 0 | H78: 0 | I78: 0 | J78: 0 | K78: 0 | L78: 0
A80: Opening Net Fixed Assets | D80: =D71-D75 -> 0 | E80: =E71-E75 -> 0 | F80: =F71-F75 -> 0 | G80: =G71-G75 -> 0 | H80: =G81 -> 0 | I80: =H81 -> 0 | J80: =I81 -> 0 | K80: =J81 -> 0 | L80: =K81 -> 0
A81: Closing Net Fixed Assets | D81: =D73-D78 -> 0 | E81: 0 | F81: 0 | G81: 0 | H81: 0 | I81: 0 | J81: 0 | K81: 0 | L81: 0
A82: Average Net Fixed Assets | D82: =SUM(D80:D81)/2 -> 0 | E82: 0 | F82: 0 | G82: 0 | H82: 0 | I82: 0 | J82: 0 | K82: 0 | L82: 0
A84: UCC for PILs Calculation
D85: 2014 | E85: 2014 | F85: 2014 | G85: 2014 | H85: 2015 | I85: 2016 | J85: 2017 | K85: 2018 | L85: 2019
A87: Opening UCC | E87: =D95 -> 0 | F87: 0 | G87: 0 | H87: 0 | I87: 0 | J87: 0 | K87: 0 | L87: 0
A88: Capital Additions (from Appendix 2-FA) | D88: =D72 -> 0 | E88: 0 | F88: 0 | G88: 0 | H88: 0 | I88: 0 | J88: 0 | K88: 0 | L88: 0
A89: UCC Before Half Year Rule | D89: =SUM(D87:D88) -> 0 | E89: 0 | F89: 0 | G89: 0 | H89: 0 | I89: 0 | J89: 0 | K89: 0 | L89: 0
A90: Half Year Rule (1/2 Additions - Disposals) | D90: =D88/2 -> 0 | E90: 0 | F90: 0 | G90: 0 | H90: 0 | I90: 0 | J90: 0 | K90: 0 | L90: 0
A91: Reduced UCC | D91: =D89-D90 -> 0 | E91: 0 | F91: 0 | G91: 0 | H91: 0 | I91: 0 | J91: 0 | K91: 0 | L91: 0
A92: CCA Rate Class (to be entered) | C92: 47 | D92: =$C$92 -> 47 | E92: =$C$92 -> 47 | F92: 47 | G92: 47 | H92: 47 | I92: 47 | J92: 47 | K92: 47 | L92: 47
A93: CCA Rate (to be entered) | C93: 0.08 | D93: =$C$93 -> 0.08 | E93: =$C$93 -> 0.08 | F93: 0.08 | G93: 0.08 | H93: 0.08 | I93: 0.08 | J93: 0.08 | K93: 0.08 | L93: 0.08
A94: CCA | D94: =D91*D$93 -> 0 | E94: =E91*E$93 -> 0 | F94: =F91*F$93 -> 0 | G94: =G91*G$93 -> 0 | H94: =H91*H$93 -> 0 | I94: 0 | J94: 0 | K94: 0 | L94: 0
A95: Closing UCC | D95: =D89-D94 -> 0 | E95: 0 | F95: 0 | G95: 0 | H95: 0 | I95: 0 | J95: 0 | K95: 0 | L95: 0

Sheet App.2-FA Proposed REG Inves (2 (hidden)
F1: File Number: | G1: =EBNUMBER -> EB-2014-0080
F2: Exhibit:
F3: Tab:
F4: Schedule:
F5: Page:
F7: Date:
A9: Appendix 2-FA
A10: Renewable Generation Connection Investment Summary (over the rate setting period)
A12: Enter the details of the Renewable Generation Connection projects as described in Section 2.5.2.5 of the Filing Requirements.
A13: All costs entered on this page will be transferred to the appropriate cells in the appendices that follow.
A14: For Part A, Renewable Enabling Improvements (REI), these amounts will be transferred to Appendix 2 - FB
A15: For Part B, Expansions, these amounts will be transferred to Appendix 2 - FC
A17: If there are more than five projects proposed to be in-service in a certain year, please amend the tables below and ensure that the formulae for the Total Amounts in any given rate year are updated.
A18: Based on the current methodology and allocation, amounts allocated represent 6% for REI Connection Investments and 17% for Expansion Investments. (pg 15, EB-2009-0349)
A21: Part A
A22: REI Investments (Direct Benefit at 6%) | C22: 2015 | D22: =C22+1 -> 2016 | E22: =D22+1 -> 2017 | F22: 2018 | G22: 2019
A23: Project 1
A24: Name: REI Connection Project
A25: Capital Costs | C25: 1000 | D25: 0 | E25: 1000 | F25: 0 | G25: 0
A26: OM&A (Start-Up) | C26: 0 | D26: 0 | E26: 0 | F26: 0 | G26: 0
A27: OM&A (Ongoing) | C27: 0 | D27: 0 | E27: 0 | F27: 0 | G27: 0
A29: Project 2
A30: Name: REI Connection Project
A31: Capital Costs | C31: 0 | D31: 0 | E31: 0 | F31: 0 | G31: 0
A32: OM&A (Start-Up) | C32: 0 | D32: 0 | E32: 0 | F32: 0 | G32: 0
A33: OM&A (Ongoing) | C33: 0 | D33: 0 | E33: 0 | F33: 0 | G33: 0
A35: Project 3
A36: Name: REI Connection Project
A37: Capital Costs | C37: 0 | D37: 0 | E37: 0 | F37: 0 | G37: 0
A38: OM&A (Start-Up) | C38: 0 | D38: 0 | E38: 0 | F38: 0 | G38: 0
A39: OM&A (Ongoing) | C39: 0 | D39: 0 | E39: 0 | F39: 0 | G39: 0
A41: Project 4
A42: Name: REI Connection Project
A43: Capital Costs | C43: 0 | D43: 0 | E43: 0 | F43: 0 | G43: 0
A44: OM&A (Start-Up) | C44: 0 | D44: 0 | E44: 0 | F44: 0 | G44: 0
A45: OM&A (Ongoing) | C45: 0 | D45: 0 | E45: 0 | F45: 0 | G45: 0
A47: Project 5
A48: Name: REI Connection Project
A49: Capital Costs | C49: 0 | D49: 0 | E49: 0 | F49: 0 | G49: 0
A50: OM&A (Start-Up) | C50: 0 | D50: 0 | E50: 0 | F50: 0 | G50: 0
A51: OM&A (Ongoing) | C51: 0 | D51: 0 | E51: 0 | F51: 0 | G51: 0
A53: Total Capital Costs | C53: =SUM(C49,C43,C37,C31,C25) -> 1000 | D53: =SUM(D49,D43,D37,D31,D25) -> 0 | E53: 1000 | F53: 0 | G53: 0
A54: Total OM&A (Start-Up) | C54: =SUM(C50,C44,C38,C32,C26) -> 0 | D54: 0 | E54: 0 | F54: 0 | G54: 0
A55: Total OM&A (Ongoing) | C55: =SUM(C51,C45,C39,C33,C27) -> 0 | D55: 0 | E55: 0 | F55: 0 | G55: 0
A58: Part B
A59: Expansion Investments (Direct Benefit at 17%) | C59: 2015 | D59: =C59+1 -> 2016 | E59: =D59+1 -> 2017 | F59: 2018 | G59: 2019
A60: Project 1
A61: Name: Expansion Connection Project
A62: Capital Costs | C62: 0 | D62: 0 | E62: 0 | F62: 0 | G62: 0
A63: OM&A (Start-Up) | C63: 0 | D63: 0 | E63: 0 | F63: 0 | G63: 0
A64: OM&A (Ongoing) | C64: 0 | D64: 0 | E64: 0 | F64: 0 | G64: 0
A66: Project 2
A67: Name: Expansion Connection Project
A68: Capital Costs | C68: 0 | D68: 0 | E68: 0 | F68: 0 | G68: 0
A69: OM&A (Start-Up) | C69: 0 | D69: 0 | E69: 0 | F69: 0 | G69: 0
A70: OM&A (Ongoing) | C70: 0 | D70: 0 | E70: 0 | F70: 0 | G70: 0
A72: Project 3
A73: Name: Expansion Connection Project
A74: Capital Costs | C74: 0 | D74: 0 | E74: 0 | F74: 0 | G74: 0
A75: OM&A (Start-Up) | C75: 0 | D75: 0 | E75: 0 | F75: 0 | G75: 0
A76: OM&A (Ongoing) | C76: 0 | D76: 0 | E76: 0 | F76: 0 | G76: 0
A78: Project 4
A79: Name: Expansion Connection Project
A80: Capital Costs | C80: 0 | D80: 0 | E80: 0 | F80: 0 | G80: 0
A81: OM&A (Start-Up) | C81: 0 | D81: 0 | E81: 0 | F81: 0 | G81: 0
A82: OM&A (Ongoing) | C82: 0 | D82: 0 | E82: 0 | F82: 0 | G82: 0
A84: Project 5
A85: Name: Expansion Connection Project
A86: Capital Costs | C86: 0 | D86: 0 | E86: 0 | F86: 0 | G86: 0
A87: OM&A (Start-Up) | C87: 0 | D87: 0 | E87: 0 | F87: 0 | G87: 0
A88: OM&A (Ongoing) | C88: 0 | D88: 0 | E88: 0 | F88: 0 | G88: 0
A90: Total Capital Costs | C90: =SUM(C86,C80,C74,C68,C62) -> 0 | D90: =SUM(D86,D80,D74,D68,D62) -> 0 | E90: 0 | F90: 0 | G90: 0
A91: Total OM&A (Start-Up) | C91: =SUM(C87,C81,C75,C69,C63) -> 0 | D91: 0 | E91: 0 | F91: 0 | G91: 0
A92: Total OM&A (Ongoing) | C92: =SUM(C88,C82,C76,C70,C64) -> 0 | D92: 0 | E92: 0 | F92: 0 | G92: 0

Sheet App.2-FB Calc of REG Improv (2 (hidden)
F1: File Number: | G1: =EBNUMBER -> EB-2014-0080
F2: Exhibit:
F3: Tab:
F4: Schedule:
F5: Page:
F7: Date:
A9: Appendix 2-FB
A10: Calculation of Renewable Generation Connection Direct Benefits/Provincial Amount: Renewable Enabling Improvement Investments
A12: This table will calculate the distributor/provincial shares of the investments entered in Part A of Appendix 2-FA.
A13: Enter values in green shaded cells: WCA percentage, debt percentages, interest rates, kWh, tax rates, amortization period, CCA Class and percentage.
A14: Rate Riders are not calculated for Test Year as these assets and costs are already in the distributor's rate base/revenue requirement.
D17: 2015 Test Year | G17: 2016 | J17: 2017 | K17: 2016 | M17: 2018 | P17: 2019
E18: Direct Benefit | F18: Provincial | H18: Direct Benefit | I18: Provincial | K18: Direct Benefit | L18: Provincial | N18: Direct Benefit | O18: Provincial | Q18: Direct Benefit | R18: Provincial
D19: Total | E19: 0.06 | F19: 0.94 | G19: Total | H19: 0.06 | I19: 0.94 | J19: Total | K19: 0.06 | L19: 0.94 | M19: Total | N19: 0.06 | O19: 0.94 | P19: Total | Q19: 0.06 | R19: 0.94
A20: Net Fixed Assets (average) | D20: =D82 -> 490 | E20: =D20*E19 -> 29.4 | F20: =D20*F19 -> 460.6 | G20: =E82 -> 960 | H20: =G20*H19 -> 57.6 | I20: =G20*I19 -> 902.4 | J20: =F82 -> 1410 | K20: =J20*K19 -> 84.6 | L20: =J20*L19 -> 1325.4 | M20: =G82 -> 1840 | N20: =M20*N19 -> 110.4 | O20: =M20*O19 -> 1729.6 | P20: =H82 -> 1760 | Q20: =P20*Q19 -> 105.6 | R20: =P20*R19 -> 1654.4
A21: Incremental OM&A (on-going, N/A for Provincial Recovery) | D21: ='App.2-FA Proposed REG Inves (2'!C55 -> 0 | E21: =D21 -> 0 | G21: ='App.2-FA Proposed REG Inves (2'!D55 -> 0 | H21: =G21 -> 0 | J21: ='App.2-FA Proposed REG Inves (2'!E55 -> 0 | K21: =J21 -> 0 | M21: ='App.2-FA Proposed REG Inves (2'!F55 -> 0 | N21: =M21 -> 0 | P21: ='App.2-FA Proposed REG Inves (2'!G55 -> 0 | Q21: =P21 -> 0
A22: Incremental OM&A (start-up, applicable for Provincial Recovery) | D22: ='App.2-FA Proposed REG Inves (2'!C54 -> 0 | E22: =D22*E19 -> 0 | F22: =D22*F19 -> 0 | G22: ='App.2-FA Proposed REG Inves (2'!D54 -> 0 | H22: =G22*H19 -> 0 | I22: =G22*I19 -> 0 | J22: ='App.2-FA Proposed REG Inves (2'!E54 -> 0 | K22: =J22*K19 -> 0 | L22: =J22*L19 -> 0 | M22: ='App.2-FA Proposed REG Inves (2'!F54 -> 0 | N22: =M22*N19 -> 0 | O22: =M22*O19 -> 0 | P22: ='App.2-FA Proposed REG Inves (2'!G54 -> 0 | Q22: =P22*Q19 -> 0 | R22: =P22*R19 -> 0
A23: WCA | B23: 0.13 | E23: =(E21+E22)*$B$23 -> 0 | F23: =F22*$B$23 -> 0 | H23: =(H21+H22)*$B$23 -> 0 | I23: =I22*$B$23 -> 0 | K23: =(K21+K22)*$B$23 -> 0 | L23: =L22*$B$23 -> 0 | N23: =(N21+N22)*$B$23 -> 0 | O23: =O22*$B$23 -> 0 | Q23: =(Q21+Q22)*$B$23 -> 0 | R23: =R22*$B$23 -> 0
A24: Rate Base | E24: =SUM(E20+E23) -> 29.4 | F24: =SUM(F20+F23) -> 460.6 | H24: =SUM(H20+H23) -> 57.6 | I24: =SUM(I20+I23) -> 902.4 | K24: =SUM(K20+K23) -> 84.6 | L24: =SUM(L20+L23) -> 1325.4 | N24: =SUM(N20+N23) -> 110.4 | O24: =SUM(O20+O23) -> 1729.6 | Q24: =SUM(Q20+Q23) -> 105.6 | R24: =SUM(R20+R23) -> 1654.4
A27: Deemed ST Debt | B27: 0.04 | E27: =E24*$B$27 -> 1.176 | F27: =F24*$B$27 -> 18.424 | H27: =H24*$B$27 -> 2.304 | I27: =I24*$B$27 -> 36.096 | K27: =K24*$B$27 -> 3.384 | L27: =L24*$B$27 -> 53.016 | N27: =N24*$B$27 -> 4.416 | O27: =O24*$B$27 -> 69.184 | Q27: =Q24*$B$27 -> 4.224 | R27: =R24*$B$27 -> 66.176
A28: Deemed LT Debt | B28: 0.56 | E28: =E24*$B$28 -> 16.464 | F28: =F24*$B$28 -> 257.936 | H28: =H24*$B$28 -> 32.256 | I28: =I24*$B$28 -> 505.344 | K28: =K24*$B$28 -> 47.376 | L28: =L24*$B$28 -> 742.224 | N28: =N24*$B$28 -> 61.824 | O28: =O24*$B$28 -> 968.576 | Q28: =Q24*$B$28 -> 59.136 | R28: =R24*$B$28 -> 926.464
A29: Deemed Equity | B29: 0.4 | E29: =E24*$B$29 -> 11.76 | F29: =F24*$B$29 -> 184.24 | H29: =H24*$B$29 -> 23.04 | I29: =I24*$B$29 -> 360.96 | K29: =K24*$B$29 -> 33.84 | L29: =L24*$B$29 -> 530.16 | N29: =N24*$B$29 -> 44.16 | O29: =O24*$B$29 -> 691.84 | Q29: =Q24*$B$29 -> 42.24 | R29: =R24*$B$29 -> 661.76
A31: ST Interest | B31: 0.024 | E31: =E27*$B31 -> 0.028224 | F31: =F27*$B31 -> 0.442176 | H31: =H27*$B31 -> 0.055296 | I31: =I27*$B31 -> 0.866304 | K31: =K27*$B31 -> 0.081216 | L31: =L27*$B31 -> 1.272384 | N31: =N27*$B31 -> 0.105984 | O31: =O27*$B31 -> 1.660416 | Q31: =Q27*$B31 -> 0.101376 | R31: =R27*$B31 -> 1.588224
A32: LT Interest | B32: 0.056 | E32: =E28*$B32 -> 0.921984 | F32: 14.444416 | H32: =H28*$B32 -> 1.806336 | I32: 28.299264 | K32: =K28*$B32 -> 2.653056 | L32: 41.564544 | N32: =N28*$B32 -> 3.462144 | O32: 54.240256 | Q32: =Q28*$B32 -> 3.311616 | R32: 51.881984
A33: ROE | B33: 0.085 | E33: 0.9996 | F33: 15.6604 | H33: 1.9584 | I33: 30.6816 | K33: 2.8764 | L33: 45.0636 | N33: 3.7536 | O33: 58.8064 | Q33: 3.5904 | R33: 56.2496
A34: Cost of Capital Total | E34: =SUM(E31:E33) -> 1.949808 | F34: =SUM(F31:F33) -> 30.546992 | H34: =SUM(H31:H33) -> 3.820032 | I34: =SUM(I31:I33) -> 59.847168 | K34: =SUM(K31:K33) -> 5.610672 | L34: =SUM(L31:L33) -> 87.900528 | N34: =SUM(N31:N33) -> 7.321728 | O34: =SUM(O31:O33) -> 114.707072 | Q34: =SUM(Q31:Q33) -> 7.003392 | R34: =SUM(R31:R33) -> 109.719808
A36: OM&A | E36: =E21+E22 -> 0 | F36: =F22 -> 0 | H36: =H21+H22 -> 0 | I36: =I22 -> 0 | K36: =K21+K22 -> 0 | L36: =L22 -> 0 | N36: =N21+N22 -> 0 | O36: =O22 -> 0 | Q36: =Q21+Q22 -> 0 | R36: =R22 -> 0
A37: Amortization | D37: =D77 -> 20 | E37: =D37*E$19 -> 1.2 | F37: =D37*F$19 -> 18.8 | G37: =E76+E77 -> 40 | H37: =G37*H$19 -> 2.4 | I37: =G37*I$19 -> 37.6 | J37: =F76+F77 -> 60 | K37: =J37*K$19 -> 3.6 | L37: =J37*L$19 -> 56.4 | M37: =G76+G77 -> 80 | N37: =M37*N$19 -> 4.8 | O37: =M37*O$19 -> 75.2 | P37: =H76+H77 -> 80 | Q37: =P37*Q$19 -> 4.8 | R37: =P37*R$19 -> 75.2
A38: Grossed-up PILs | E38: =E65 -> 0 | F38: =F65 -> 0 | H38: =H65 -> 0 | I38: =I65 -> 0 | K38: =K65 -> 0 | L38: =L65 -> 0 | N38: =N65 -> 0 | O38: =O65 -> 0 | Q38: =Q65 -> 0 | R38: =R65 -> 0
A40: Revenue Requirement | E40: =SUM(E34:E38) -> 3.149808 | F40: =SUM(F34:F38) -> 49.346992 | H40: =SUM(H34:H38) -> 6.220032 | I40: =SUM(I34:I38) -> 97.447168 | K40: =SUM(K34:K38) -> 9.210672 | L40: =SUM(L34:L38) -> 144.300528 | N40: =SUM(N34:N38) -> 12.121728 | O40: =SUM(O34:O38) -> 189.907072 | Q40: =SUM(Q34:Q38) -> 11.803392 | R40: =SUM(R34:R38) -> 184.919808
A43: Provincial Rate Protection | F43: =F40 -> 49.346992 | I43: =I40 -> 97.447168 | L43: =L40 -> 144.300528 | O43: =O40 -> 189.907072 | R43: =R40 -> 184.919808
A45: Monthly Amount Paid by IESO | F45: =F43/12 -> 4.112249333 | I45: =I43/12 -> 8.120597333 | L45: =L43/12 -> 12.025044 | O45: =O43/12 -> 15.82558933 | R45: =R43/12 -> 15.409984
A47: Note 1: The difference between the actual costs of approved eligible investments and revenue received from the IESO should be recorded in a variance account. The Board may provide
A48: regulatory accounting guidance regarding a variance account either in an individual proceeding or on a generic basis.
A49: Note 2: For the 2014 Test Year, Costs and Revenues of the Direct Benefit are to be included in the test year applicant Rate Base and Revenues.
A51: PILs Calculation
E52: 2015 | H52: =E52+1 -> 2016 | K52: =H52+1 -> 2017 | N52: =K52+1 -> 2018 | Q52: =N52+1 -> 2019
A53: Income Tax | E53: Direct Benefit | F53: Provincial | H53: Direct Benefit | I53: Provincial | K53: Direct Benefit | L53: Provincial | N53: Direct Benefit | O53: Provincial | Q53: Direct Benefit | R53: Provincial
M54: Total | P54: Total
A55: Net Income - ROE on Rate Base | E55: =E33 -> 0.9996 | F55: =F33 -> 15.6604 | H55: =H33 -> 1.9584 | I55: =I33 -> 30.6816 | K55: =K33 -> 2.8764 | L55: =L33 -> 45.0636 | N55: =N33 -> 3.7536 | O55: =O33 -> 58.8064 | Q55: =Q33 -> 3.5904 | R55: =R33 -> 56.2496
A56: Amortization (6% DB and 94% P) | E56: =E37 -> 1.2 | F56: =F37 -> 18.8 | H56: =H37 -> 2.4 | I56: =I37 -> 37.6 | K56: =K37 -> 3.6 | L56: =L37 -> 56.4 | N56: =N37 -> 4.8 | O56: =O37 -> 75.2 | Q56: =Q37 -> 4.8 | R56: =R37 -> 75.2
A57: CCA (6% DB and 94% P) | E57: =-D94*E$19 -> -2.4 | F57: =-D94*F$19 -> -37.6 | H57: =-E94*H$19 -> -4.608 | I57: =-E94*I$19 -> -72.192 | K57: =-F94*K$19 -> -4.23936 | L57: =-F94*L$19 -> -66.41664 | N57: =-G94*N$19 -> -3.9002112 | O57: =-G94*O$19 -> -61.1033088 | Q57: =-H94*Q$19 -> -3.588194304 | R57: =-H94*R$19 -> -56.2150441
A58: Taxable income | E58: =SUM(E55:E57) -> -0.2004 | F58: =SUM(F55:F57) -> -3.1396 | H58: =SUM(H55:H57) -> -0.2496 | I58: =SUM(I55:I57) -> -3.9104 | K58: =SUM(K55:K57) -> 2.23704 | L58: =SUM(L55:L57) -> 35.04696 | N58: =SUM(N55:N57) -> 4.6533888 | O58: =SUM(O55:O57) -> 72.9030912 | Q58: =SUM(Q55:Q57) -> 4.802205696 | R58: =SUM(R55:R57) -> 75.2345559
A60: Tax Rate (to be entered)
A62: Income Taxes Payable | E62: =E58*E60 -> 0 | F62: =F58*F60 -> 0 | H62: =H58*H60 -> 0 | I62: =I58*I60 -> 0 | K62: =K58*K60 -> 0 | L62: =L58*L60 -> 0 | N62: =N58*N60 -> 0 | O62: =O58*O60 -> 0 | Q62: =Q58*Q60 -> 0 | R62: =R58*R60 -> 0
A63: Gross Up
A64: Income Taxes Payable | E64: =E62/(1-E60) -> 0 | F64: =F62/(1-F60) -> 0 | H64: =H62/(1-H60) -> 0 | I64: =I62/(1-I60) -> 0 | K64: =K62/(1-K60) -> 0 | L64: =L62/(1-L60) -> 0 | N64: =N62/(1-N60) -> 0 | O64: =O62/(1-O60) -> 0 | Q64: =Q62/(1-Q60) -> 0 | R64: =R62/(1-R60) -> 0
A65: Grossed Up PILs | E65: =SUM(E64:E64) -> 0 | F65: =SUM(F64:F64) -> 0 | H65: =SUM(H64:H64) -> 0 | I65: =SUM(I64:I64) -> 0 | K65: =SUM(K64:K64) -> 0 | L65: =SUM(L64:L64) -> 0 | N65: =SUM(N64:N64) -> 0 | O65: =SUM(O64:O64) -> 0 | Q65: =SUM(Q64:Q64) -> 0 | R65: =SUM(R64:R64) -> 0
D68: 2015 | E68: =D68+1 -> 2016 | F68: =E68+1 -> 2017 | G68: 2018 | H68: 2019
A69: Net Fixed Assets
B70: Enter applicable amortization in years: | C70: 25
A71: Opening Gross Fixed Assets | E71: =D73 -> 1000 | F71: =E73 -> 1000 | G71: =F73 -> 2000 | H71: =G73 -> 2000
A72: Gross Capital Additions | D72: ='App.2-FA Proposed REG Inves (2'!C53 -> 1000 | E72: ='App.2-FA Proposed REG Inves (2'!D53 -> 0 | F72: ='App.2-FA Proposed REG Inves (2'!E53 -> 1000 | G72: ='App.2-FA Proposed REG Inves (2'!F53 -> 0 | H72: ='App.2-FA Proposed REG Inves (2'!G53 -> 0
A73: Closing Gross Fixed Assets | D73: =SUM(D71:D72) -> 1000 | E73: =SUM(E71:E72) -> 1000 | F73: 2000 | G73: 2000 | H73: 2000
A75: Opening Accumulated Amortization | E75: =D78 -> 20 | F75: =E78 -> 60 | G75: =F78 -> 120 | H75: =G78 -> 200
A76: Current Year Amortization (before additions) | E76: =IF(ISERROR(E71/$C$70), 0, E71/$C$70) -> 40 | F76: =IF(ISERROR(F71/$C$70), 0, F71/$C$70) -> 40 | G76: =IF(ISERROR(G71/$C$70), 0, G71/$C$70) -> 80 | H76: =IF(ISERROR(H71/$C$70), 0, H71/$C$70) -> 80
A77: Additions (half year) | D77: =D72/C70/2 -> 20 | E77: =E72/C70/2 -> 0 | F77: =F72/C70/2 -> 20 | G77: =G72/C70/2 -> 0 | H77: =H72/C70/2 -> 0
A78: Closing Accumulated Amortization | D78: =SUM(D75+D77) -> 20 | E78: =SUM(E75:E77) -> 60 | F78: =SUM(F75:F77) -> 120 | G78: =SUM(G75:G77) -> 200 | H78: =SUM(H75:H77) -> 280
A80: Opening Net Fixed Assets | D80: =D71-D75 -> 0 | E80: =D81 -> 980 | F80: =E81 -> 940 | G80: =F81 -> 1880 | H80: =G81 -> 1800
A81: Closing Net Fixed Assets | D81: =D73-D78 -> 980 | E81: =E73-E78 -> 940 | F81: =F73-F78 -> 1880 | G81: =G73-G78 -> 1800 | H81: =H73-H78 -> 1720
A82: Average Net Fixed Assets | D82: =SUM(D80:D81)/2 -> 490 | E82: =SUM(E80:E81)/2 -> 960 | F82: =SUM(F80:F81)/2 -> 1410 | G82: =SUM(G80:G81)/2 -> 1840 | H82: =SUM(H80:H81)/2 -> 1760
A84: UCC for PILs Calculation
D85: 2015 | E85: =D85+1 -> 2016 | F85: =E85+1 -> 2017 | G85: 2018 | H85: 2019
A87: Opening UCC | E87: =D95 -> 960 | F87: =E95 -> 883.2 | G87: =F95 -> 812.544 | H87: =G95 -> 747.54048
A88: Capital Additions (from Appendix 2-FA) | D88: =D72 -> 1000 | E88: ='App.2-FA Proposed REG Inves (2'!D31 -> 0 | F88: ='App.2-FA Proposed REG Inves (2'!E31 -> 0 | G88: ='App.2-FA Proposed REG Inves (2'!F31 -> 0 | H88: ='App.2-FA Proposed REG Inves (2'!G31 -> 0
A89: UCC Before Half Year Rule | D89: =SUM(D87:D88) -> 1000 | E89: =SUM(E87:E88) -> 960 | F89: =SUM(F87:F88) -> 883.2 | G89: =SUM(G87:G88) -> 812.544 | H89: =SUM(H87:H88) -> 747.54048
A90: Half Year Rule (1/2 Additions - Disposals) | D90: =D88/2 -> 500 | E90: =E88/2 -> 0 | F90: =F88/2 -> 0 | G90: =G88/2 -> 0 | H90: =H88/2 -> 0
A91: Reduced UCC | D91: =D89-D90 -> 500 | E91: =E89-E90 -> 960 | F91: =F89-F90 -> 883.2 | G91: =G89-G90 -> 812.544 | H91: =H89-H90 -> 747.54048
A92: CCA Rate Class (to be entered) | C92: 47 | D92: =C92 -> 47 | E92: =C92 -> 47 | F92: =C92 -> 47 | G92: =C92 -> 47 | H92: =C92 -> 47
A93: CCA Rate (to be entered) | C93: 0.08 | D93: =C93 -> 0.08 | E93: =C93 -> 0.08 | F93: =C93 -> 0.08 | G93: =C93 -> 0.08 | H93: =C93 -> 0.08
A94: CCA | D94: =D91*D93 -> 40 | E94: =E91*E93 -> 76.8 | F94: 70.656 | G94: 65.00352 | H94: =H91*H93 -> 59.8032384
A95: Closing UCC | D95: =D89-D94 -> 960 | E95: =E89-E94 -> 883.2 | F95: =F89-F94 -> 812.544 | G95: =G89-G94 -> 747.54048 | H95: =H89-H94 -> 687.7372416

Sheet App.2-FC Calc of REG Expans (2 (hidden)
E1: File Number: | F1: =EBNUMBER -> EB-2014-0080
E2: Exhibit:
E3: Tab:
E4: Schedule:
E5: Page:
E7: Date:
A9: Appendix 2-FC
A10: Calculation of Renewable Generation Connection Direct Benefits/Provincial Amount: Renewable Expansion Investments
A12: This table will calculate the distributor/provincial shares of the investments entered in Part B of Appendix 2-FA.
A13: Enter values in green shaded cells: WCA percentage, debt percentages, interest rates, kWh, tax rates, amortization period, CCA Class and percentage.
A14: Rate Riders are not calculated for Test Year as these assets and costs are already in the distributors rate base.
D17: 2014 Test Year | G17: 2015 | J17: 2016 | K17: 2016 | M17: 2017 | P17: 2018
E18: Direct Benefit | F18: Provincial | H18: Direct Benefit | I18: Provincial | K18: Direct Benefit | L18: Provincial | N18: Direct Benefit | O18: Provincial | Q18: Direct Benefit | R18: Provincial
D19: Total | E19: 0.17 | F19: 0.83 | G19: Total | H19: 0.17 | I19: 0.83 | J19: Total | K19: 0.17 | L19: 0.83 | M19: Total | N19: 0.17 | O19: 0.83 | P19: Total | Q19: 0.17 | R19: 0.83
A20: Net Fixed Assets (average) | D20: =D81 -> 0 | E20: =D20*E19 -> 0 | F20: =D20*F19 -> 0 | G20: =E81 -> 0 | H20: =G20*H19 -> 0 | I20: =G20*I19 -> 0 | J20: =F81 -> 0 | K20: =J20*K19 -> 0 | L20: =J20*L19 -> 0 | M20: =G81 -> 0 | N20: =M20*N19 -> 0 | O20: =M20*O19 -> 0 | P20: =H81 -> 0 | Q20: =P20*Q19 -> 0 | R20: =P20*R19 -> 0
A21: Incremental OM&A (on-going, N/A for Provincial Recovery) | D21: ='App.2-FA Proposed REG Inves (2'!C$92 -> 0 | E21: =D21 -> 0 | G21: ='App.2-FA Proposed REG Inves (2'!D$92 -> 0 | H21: =G21 -> 0 | J21: ='App.2-FA Proposed REG Inves (2'!E$92 -> 0 | K21: =J21 -> 0 | M21: ='App.2-FA Proposed REG Inves (2'!F$92 -> 0 | N21: =M21 -> 0 | P21: ='App.2-FA Proposed REG Inves (2'!G$92 -> 0 | Q21: =P21 -> 0
A22: Incremental OM&A (start-up, applicable for Provincial Recovery) | D22: ='App.2-FA Proposed REG Inves (2'!C$91 -> 0 | E22: =D22*E19 -> 0 | F22: =D22*F19 -> 0 | G22: ='App.2-FA Proposed REG Inves (2'!D$91 -> 0 | H22: =G22*H19 -> 0 | I22: =G22*I19 -> 0 | J22: ='App.2-FA Proposed REG Inves (2'!E$91 -> 0 | K22: =J22*K19 -> 0 | L22: =J22*L19 -> 0 | M22: ='App.2-FA Proposed REG Inves (2'!F$91 -> 0 | N22: =M22*N19 -> 0 | O22: =M22*O19 -> 0 | P22: ='App.2-FA Proposed REG Inves (2'!G$91 -> 0 | Q22: =P22*Q19 -> 0 | R22: =P22*R19 -> 0
A23: WCA | E23: =(E21+E22)*$B$23 -> 0 | F23: =F22*$B$23 -> 0 | H23: =(H21+H22)*$B$23 -> 0 | I23: =I22*$B$23 -> 0 | K23: =(K21+K22)*$B$23 -> 0 | L23: =L22*$B$23 -> 0 | N23: =(N21+N22)*$B$23 -> 0 | O23: =O22*$B$23 -> 0 | Q23: =(Q21+Q22)*$B$23 -> 0 | R23: =R22*$B$23 -> 0
A24: Rate Base | E24: =SUM(E20+E23) -> 0 | F24: =SUM(F20+F23) -> 0 | H24: =SUM(H20+H23) -> 0 | I24: =SUM(I20+I23) -> 0 | K24: =SUM(K20+K23) -> 0 | L24: =SUM(L20+L23) -> 0 | N24: =SUM(N20+N23) -> 0 | O24: =SUM(O20+O23) -> 0 | Q24: =SUM(Q20+Q23) -> 0 | R24: =SUM(R20+R23) -> 0
A27: Deemed ST Debt | E27: =E24*$B$27 -> 0 | F27: =F24*$B$27 -> 0 | H27: =H24*$B$27 -> 0 | I27: =I24*$B$27 -> 0 | K27: =K24*$B$27 -> 0 | L27: =L24*$B$27 -> 0 | N27: =N24*$B$27 -> 0 | O27: =O24*$B$27 -> 0 | Q27: =Q24*$B$27 -> 0 | R27: =R24*$B$27 -> 0
A28: Deemed LT Debt | E28: =E24*$B$28 -> 0 | F28: =F24*$B$28 -> 0 | H28: =H24*$B$28 -> 0 | I28: =I24*$B$28 -> 0 | K28: =K24*$B$28 -> 0 | L28: =L24*$B$28 -> 0 | N28: =N24*$B$28 -> 0 | O28: =O24*$B$28 -> 0 | Q28: =Q24*$B$28 -> 0 | R28: =R24*$B$28 -> 0
A29: Deemed Equity | E29: =E24*$B$29 -> 0 | F29: =F24*$B$29 -> 0 | H29: =H24*$B$29 -> 0 | I29: =I24*$B$29 -> 0 | K29: =K24*$B$29 -> 0 | L29: =L24*$B$29 -> 0 | N29: =N24*$B$29 -> 0 | O29: =O24*$B$29 -> 0 | Q29: =Q24*$B$29 -> 0 | R29: =R24*$B$29 -> 0
A31: ST Interest | E31: =E27*$B$31 -> 0 | F31: =F27*$B$31 -> 0 | H31: =H27*$B$31 -> 0 | I31: =I27*$B$31 -> 0 | K31: =K27*$B$31 -> 0 | L31: =L27*$B$31 -> 0 | N31: =N27*$B$31 -> 0 | O31: =O27*$B$31 -> 0 | Q31: =Q27*$B$31 -> 0 | R31: =R27*$B$31 -> 0
A32: LT Interest | E32: =E28*$B$32 -> 0 | F32: =F28*$B$32 -> 0 | H32: =H28*$B$32 -> 0 | I32: =I28*$B$32 -> 0 | K32: =K28*$B$32 -> 0 | L32: =L28*$B$32 -> 0 | N32: =N28*$B$32 -> 0 | O32: =O28*$B$32 -> 0 | Q32: =Q28*$B$32 -> 0 | R32: =R28*$B$32 -> 0
A33: ROE | E33: =E29*$B$33 -> 0 | F33: =F29*$B$33 -> 0 | H33: =H29*$B$33 -> 0 | I33: =I29*$B$33 -> 0 | K33: =K29*$B$33 -> 0 | L33: =L29*$B$33 -> 0 | N33: =N29*$B$33 -> 0 | O33: =O29*$B$33 -> 0 | Q33: =Q29*$B$33 -> 0 | R33: =R29*$B$33 -> 0
A34: Cost of Capital Total | E34: =SUM(E31:E33) -> 0 | F34: =SUM(F31:F33) -> 0 | H34: =SUM(H31:H33) -> 0 | I34: =SUM(I31:I33) -> 0 | K34: =SUM(K31:K33) -> 0 | L34: =SUM(L31:L33) -> 0 | N34: =SUM(N31:N33) -> 0 | O34: =SUM(O31:O33) -> 0 | Q34: =SUM(Q31:Q33) -> 0 | R34: =SUM(R31:R33) -> 0
A36: OM&A | E36: =E21+E22 -> 0 | F36: =F22 -> 0 | H36: =H21+H22 -> 0 | I36: =I22 -> 0 | K36: =K21+K22 -> 0 | L36: =L22 -> 0 | N36: =N21+N22 -> 0 | O36: =O22 -> 0 | Q36: =Q21+Q22 -> 0 | R36: =R22 -> 0
A37: Amortization | D37: =D77 -> 0 | E37: =D37*E$19 -> 0 | F37: =D37*F$19 -> 0 | G37: =E75+E76 -> 0 | H37: =G37*H$19 -> 0 | I37: =G37*I$19 -> 0 | J37: =F75+F76 -> 0 | K37: =J37*K$19 -> 0 | L37: =J37*L$19 -> 0 | M37: =G75+G76 -> 0 | N37: =M37*N$19 -> 0 | O37: =M37*O$19 -> 0 | P37: =H75+H76 -> 0 | Q37: =P37*Q$19 -> 0 | R37: =P37*R$19 -> 0
A38: Grossed-up PILs | E38: =E65 -> 0 | F38: =F65 -> 0 | H38: =H65 -> 0 | I38: =I65 -> 0 | K38: =K65 -> 0 | L38: =L65 -> 0 | N38: =N65 -> 0 | O38: =O65 -> 0 | Q38: =Q65 -> 0 | R38: =R65 -> 0
A40: Revenue Requirement | E40: =SUM(E34:E38) -> 0 | F40: =SUM(F34:F38) -> 0 | H40: =SUM(H34:H38) -> 0 | I40: =SUM(I34:I38) -> 0 | K40: =SUM(K34:K38) -> 0 | L40: =SUM(L34:L38) -> 0 | N40: =SUM(N34:N38) -> 0 | O40: =SUM(O34:O38) -> 0 | Q40: =SUM(Q34:Q38) -> 0 | R40: =SUM(R34:R38) -> 0
A43: Provincial Rate Protection | F43: =F40 -> 0 | I43: =I40 -> 0 | L43: =L40 -> 0 | O43: =O40 -> 0 | R43: =R40 -> 0
A45: Monthly Amount Paid by IESO | F45: =F43/12 -> 0 | I45: =I43/12 -> 0 | L45: =L43/12 -> 0 | O45: =O43/12 -> 0 | R45: =R43/12 -> 0
A47: Note 1: The difference between the actual costs of approved eligible investments and revenue received from the IESO should be recorded in a variance account. The Board may provide
A48: regulatory accounting guidance regarding a variance account either in an individual proceeding or on a generic basis.
A49: Note 2: For the 2014 Test Year, Costs and Revenues of the Direct Benefit are to be included in the test year applicant Rate Base and Revenues.
A51: PILs Calculation
E52: 2014 | H52: 2015 | K52: 2016 | N52: 2017 | Q52: 2018
A53: Income Tax | E53: Direct Benefit | F53: Provincial | H53: Direct Benefit | I53: Provincial | K53: Direct Benefit | L53: Provincial | N53: Direct Benefit | O53: Provincial | Q53: Direct Benefit | R53: Provincial
M54: Total | P54: Total
A55: Net Income - ROE on Rate Base | E55: =E33 -> 0 | F55: =F33 -> 0 | H55: =H33 -> 0 | I55: =I33 -> 0 | K55: =K33 -> 0 | L55: =L33 -> 0 | N55: =N33 -> 0 | O55: =O33 -> 0 | Q55: =Q33 -> 0 | R55: =R33 -> 0
A56: Amortization (17% DB and 83% P) | E56: =E37 -> 0 | F56: =F37 -> 0 | H56: =H37 -> 0 | I56: =I37 -> 0 | K56: =K37 -> 0 | L56: =L37 -> 0 | N56: =N37 -> 0 | O56: =O37 -> 0 | Q56: =Q37 -> 0 | R56: =R37 -> 0
A57: CCA (17% DB and 83% P) | E57: =-D93*E$19 -> 0 | F57: =-D93*F$19 -> 0 | H57: =-E93*H$19 -> 0 | I57: =-E93*I$19 -> 0 | K57: =-F93*K$19 -> 0 | L57: =-F93*L$19 -> 0 | N57: =-G93*N$19 -> 0 | O57: =-G93*O$19 -> 0 | Q57: =-H93*Q$19 -> 0 | R57: =-H93*R$19 -> 0
A58: Taxable income | E58: =SUM(E55:E57) -> 0 | F58: =SUM(F55:F57) -> 0 | H58: =SUM(H55:H57) -> 0 | I58: =SUM(I55:I57) -> 0 | K58: =SUM(K55:K57) -> 0 | L58: =SUM(L55:L57) -> 0 | N58: =SUM(N55:N57) -> 0 | O58: =SUM(O55:O57) -> 0 | Q58: =SUM(Q55:Q57) -> 0 | R58: =SUM(R55:R57) -> 0
A60: Tax Rate (to be entered)
A62: Income Taxes Payable | E62: =E58*E60 -> 0 | F62: =F58*F60 -> 0 | H62: =H58*H60 -> 0 | I62: =I58*I60 -> 0 | K62: =K58*K60 -> 0 | L62: =L58*L60 -> 0 | N62: =N58*N60 -> 0 | O62: =O58*O60 -> 0 | Q62: =Q58*Q60 -> 0 | R62: =R58*R60 -> 0
A63: Gross Up
A64: Income Taxes Payable | E64: =E62/(1-E60) -> 0 | F64: =F62/(1-F60) -> 0 | H64: =H62/(1-H60) -> 0 | I64: =I62/(1-I60) -> 0 | K64: =K62/(1-K60) -> 0 | L64: =L62/(1-L60) -> 0 | N64: =N62/(1-N60) -> 0 | O64: =O62/(1-O60) -> 0 | Q64: =Q62/(1-Q60) -> 0 | R64: =R62/(1-R60) -> 0
A65: Grossed Up PILs | E65: =SUM(E64:E64) -> 0 | F65: =SUM(F64:F64) -> 0 | H65: =SUM(H64:H64) -> 0 | I65: =SUM(I64:I64) -> 0 | K65: =SUM(K64:K64) -> 0 | L65: =SUM(L64:L64) -> 0 | N65: =SUM(N64:N64) -> 0 | O65: =SUM(O64:O64) -> 0 | Q65: =SUM(Q64:Q64) -> 0 | R65: =SUM(R64:R64) -> 0
A68: Net Fixed Assets | D68: 2014 | E68: 2015 | F68: 2016 | G68: 2017 | H68: 2018
B69: Enter applicable amortization in years: | C69: 25
A70: Opening Gross Fixed Assets | E70: =D72 -> 0 | F70: =E72 -> 0 | G70: =F72 -> 0 | H70: =G72 -> 0
A71: Gross Capital Additions | D71: ='App.2-FA Proposed REG Inves (2'!C90 -> 0 | E71: ='App.2-FA Proposed REG Inves (2'!D90 -> 0 | F71: ='App.2-FA Proposed REG Inves (2'!E90 -> 0 | G71: ='App.2-FA Proposed REG Inves (2'!F90 -> 0 | H71: ='App.2-FA Proposed REG Inves (2'!G90 -> 0
A72: Closing Gross Fixed Assets | D72: =SUM(D70:D71) -> 0 | E72: =SUM(E70:E71) -> 0 | F72: =SUM(F70:F71) -> 0 | G72: =SUM(G70:G71) -> 0 | H72: =SUM(H70:H71) -> 0
A74: Opening Accumulated Amortization | E74: =D77 -> 0 | F74: =E77 -> 0 | G74: =F77 -> 0 | H74: =G77 -> 0
A75: Current Year Amortization (before additions) | E75: =E70/$C$69 -> 0 | F75: =F70/$C$69 -> 0 | G75: =G70/$C$69 -> 0 | H75: =H70/$C$69 -> 0
A76: Additions (half year) | D76: =D71/C69/2 -> 0 | E76: =E71/C69/2 -> 0 | F76: =F71/C69/2 -> 0 | G76: =G71/C69/2 -> 0 | H76: =H71/C69/2 -> 0
A77: Closing Accumulated Amortization | D77: =SUM(D74+D76) -> 0 | E77: =SUM(E74:E76) -> 0 | F77: =SUM(F74:F76) -> 0 | G77: =SUM(G74:G76) -> 0 | H77: =SUM(H74:H76) -> 0
A79: Opening Net Fixed Assets | D79: =D70-D74 -> 0 | E79: =D80 -> 0 | F79: =E80 -> 0 | G79: =F80 -> 0 | H79: =G80 -> 0
A80: Closing Net Fixed Assets | D80: =D72-D77 -> 0 | E80: =E72-E77 -> 0 | F80: =F72-F77 -> 0 | G80: =G72-G77 -> 0 | H80: =H72-H77 -> 0
A81: Average Net Fixed Assets | D81: =SUM(D79:D80)/2 -> 0 | E81: =SUM(E79:E80)/2 -> 0 | F81: =SUM(F79:F80)/2 -> 0 | G81: =SUM(G79:G80)/2 -> 0 | H81: =SUM(H79:H80)/2 -> 0
A83: UCC for PILs Calculation
D84: 2014 | E84: 2015 | F84: 2016 | G84: 2017 | H84: 2018
A86: Opening UCC | E86: =D94 -> 0 | F86: =E94 -> 0 | G86: =F94 -> 0 | H86: =G94 -> 0
A87: Capital Additions (from Appendix 2-FA) | D87: =D71 -> 0 | E87: =E71 -> 0 | F87: =F71 -> 0 | G87: =G71 -> 0 | H87: =H71 -> 0
A88: UCC Before Half Year Rule | D88: =SUM(D86:D87) -> 0 | E88: =SUM(E86:E87) -> 0 | F88: =SUM(F86:F87) -> 0 | G88: =SUM(G86:G87) -> 0 | H88: =SUM(H86:H87) -> 0
A89: Half Year Rule (1/2 Additions - Disposals) | D89: =D87/2 -> 0 | E89: =E87/2 -> 0 | F89: =F87/2 -> 0 | G89: =G87/2 -> 0 | H89: =H87/2 -> 0
A90: Reduced UCC | D90: =D88-D89 -> 0 | E90: =E88-E89 -> 0 | F90: =F88-F89 -> 0 | G90: =G88-G89 -> 0 | H90: =H88-H89 -> 0
A91: CCA Rate Class (to be entered) | C91: 47 | D91: =C91 -> 47 | E91: =C91 -> 47 | F91: =C91 -> 47 | G91: =C91 -> 47 | H91: =C91 -> 47
A92: CCA Rate (to be entered) | C92: 0.08 | D92: =C92 -> 0.08 | E92: =C92 -> 0.08 | F92: =C92 -> 0.08 | G92: =C92 -> 0.08 | H92: =C92 -> 0.08
A93: CCA | D93: =D90*D$92 -> 0 | E93: =E90*E$92 -> 0 | F93: 0 | G93: 0 | H93: 0
A94: Closing UCC | D94: =D88-D93 -> 0 | E94: =E88-E93 -> 0 | F94: =F88-F93 -> 0 | G94: =G88-G93 -> 0 | H94: =H88-H93 -> 0

Sheet App.2-G SQI
I1: File Number: | K1: =EBNUMBER -> EB-2014-0080
I2: Exhibit:
I3: Tab:
I4: Schedule:
I5: Page:
I7: Date:
A9: Appendix 2-G
A10: Service Reliability Indicators
A11: 2009 - 2013
A13: Index | B13: Includes outages caused by loss of supply | G13: Excludes outages caused by loss of supply
B14: 2009 | C14: 2010 | D14: 2011 | E14: 2012 | F14: 2013 | G14: 2009 | H14: 2010 | I14: 2011 | J14: 2012 | K14: 2013
A15: SAIDI | B15: 6.06 | C15: 2.88 | D15: 3.02 | E15: 4.9 | F15: 1.11 | G15: 0.64 | H15: 0.27 | I15: 2.80 | J15: 1.25 | K15: 0.65
A16: SAIFI | B16: 3.1 | C16: 0.95 | D16: 1.16 | E16: 2.06 | F16: 2.45 | G16: 0.76 | H16: 0.21 | I16: 1.03 | J16: 0.87 | K16: 0.29
A18: 5 Year Historical Average
A19: SAIDI | F19: =IF(ISERROR(AVERAGE(B15:F15)), "", AVERAGE(B15:F15)) -> 3.594 | K19: =IF(ISERROR(AVERAGE(G15:K15)), "", AVERAGE(G15:K15)) -> 0.455
A20: SAIFI | F20: =IF(ISERROR(AVERAGE(B16:F16)), "", AVERAGE(B16:F16)) -> 1.944 | K20: =IF(ISERROR(AVERAGE(G16:K16)), "", AVERAGE(G16:K16)) -> 0.632
A22: SAIDI = System Average Interruption Duration Index
A23: SAIFI = System Average Interruption Frequency Index
A26: Indicator | C26: OEB Minimum Standard | D26: 2009 | E26: 2010 | F26: 2011 | G26: 2012 | H26: 2013
A27: Low Voltage Connections | C27: 0.9
A28: High Voltage Connections | C28: 0.9
A29: Telephone Accessibility | C29: 0.65 | D29: 0.953 | E29: 0.967 | F29: 0.95 | G29: 0.925 | H29: 1
A30: Appointments Met | C30: 0.9 | D30: 1 | E30: 1 | F30: 1 | G30: 1 | H30: 1
A31: Written Response to Enquires | C31: 0.8
A32: Emergency Urban Response | C32: 0.8
A33: Emergency Rural Response | C33: 0.8 | D33: 1 | E33: 1 | F33: 1 | G33: 1 | H33: 1
A34: Telephone Call Abandon Rate | C34: 0.1
A35: Appointment Scheduling | C35: 0.9
A36: Rescheduling a Missed Appointment | C36: 1 | D36: 1 | E36: 1 | F36: 1 | G36: 1 | H36: 1
A37: Reconnection Performance Standard | C37: 0.85 | D37: 1 | E37: 1 | F37: 1 | G37: 1 | H37: 1

Sheet App.2-H_Other_Oper_Rev
G1: File Number: | H1: =EBNUMBER -> EB-2014-0080
G2: Exhibit:
G3: Tab:
G4: Schedule:
G5: Page:
G7: Date:
A9: Appendix 2-H
A10: Other Operating Revenue
B12: USoA # | C12: USoA Description | D12: 2010 | E12: 2011 | F12: 2012 | G12: 2013 | H12: 2014 | I12: 2015
I13: Test
C14: Reporting Basis | D14: CGAAP | E14: CGAAP | F14: CGAAP | G14: CGAAP | H14: CGAAP | I14: CGAAP
C15: ='[1]1.4 TB Historical'!C311 -> 4082-Retail Services Revenues | D15: ='[1]1.4 TB Historical'!H311 -> -4796.15 | E15: ='[1]1.4 TB Historical'!K311 -> -4104.6 | F15: ='[1]1.4 TB Historical'!N311 -> -4110.1 | G15: ='[1]1.4 TB Historical'!Q311 -> -3157.9 | H15: ='[1]1.5 TB Projected Balances'!H311 -> -3189.479 | I15: ='[1]1.5 TB Projected Balances'!I311 -> -3269.215975
C16: ='[1]1.4 TB Historical'!C312 -> 4084-Service Transaction Requests (STR) Revenues | D16: ='[1]1.4 TB Historical'!H312 -> -50.25 | E16: ='[1]1.4 TB Historical'!K312 -> -23.75 | F16: ='[1]1.4 TB Historical'!N312 -> -21.25 | G16: ='[1]1.4 TB Historical'!Q312 -> -31.75 | H16: ='[1]1.5 TB Projected Balances'!H312 -> -32.0675 | I16: ='[1]1.5 TB Projected Balances'!I312 -> -32.8691875
C17: ='[1]1.4 TB Historical'!C313 -> 4086-SSS Administration Revenue | D17: ='[1]1.4 TB Historical'!H313 -> -7689.75 | E17: ='[1]1.4 TB Historical'!K313 -> -7899 | F17: ='[1]1.4 TB Historical'!N313 -> -8140.25 | G17: ='[1]1.4 TB Historical'!Q313 -> -9817 | H17: ='[1]1.5 TB Projected Balances'!H313 -> -10955 | I17: ='[1]1.5 TB Projected Balances'!I313 -> -10956
C18: ='[1]1.4 TB Historical'!C320 -> 4210-Rent from Electric Property | D18: ='[1]1.4 TB Historical'!H320 -> -29298.84 | E18: ='[1]1.4 TB Historical'!K320 -> -22413.21 | F18: ='[1]1.4 TB Historical'!N320 -> -22182.57 | G18: ='[1]1.4 TB Historical'!Q320 -> -22965.36 | H18: ='[1]1.5 TB Projected Balances'!H320 -> -29676 | I18: ='[1]1.5 TB Projected Balances'!I320 -> -29676
C19: ='[1]1.4 TB Historical'!C323 -> 4225-Late Payment Charges | D19: ='[1]1.4 TB Historical'!H323 -> -11439 | E19: ='[1]1.4 TB Historical'!K323 -> -10406.92 | F19: ='[1]1.4 TB Historical'!N323 -> -9656.83 | G19: ='[1]1.4 TB Historical'!Q323 -> -12982.56 | H19: ='[1]1.5 TB Projected Balances'!H323 -> -13242.2112 | I19: ='[1]1.5 TB Projected Balances'!I323 -> -13507.05542
C20: ='[1]1.4 TB Historical'!C325 -> 4235-Miscellaneous Service Revenues | D20: ='[1]1.4 TB Historical'!H325 -> -21681.88 | E20: ='[1]1.4 TB Historical'!K325 -> -22118.68 | F20: ='[1]1.4 TB Historical'!N325 -> -17050 | G20: ='[1]1.4 TB Historical'!Q325 -> -15990 | H20: ='[1]1.5 TB Projected Balances'!H325 -> -16629.6 | I20: ='[1]1.5 TB Projected Balances'!I325 -> -17294.784
C21: ='[1]1.4 TB Historical'!C334 -> 4324-Special Purpose Charge Recovery | D21: ='[1]1.4 TB Historical'!H334 -> -15738.87 | E21: ='[1]1.4 TB Historical'!K334 -> -23465.13 | F21: ='[1]1.4 TB Historical'!N334 -> 0 | G21: ='[1]1.4 TB Historical'!Q334 -> 0 | H21: ='[1]1.5 TB Projected Balances'!H334 -> 0 | I21: ='[1]1.5 TB Projected Balances'!I334 -> 0
C22: ='[1]1.4 TB Historical'!C335 -> 4325-Revenues from Merchandise Jobbing, Etc. | D22: ='[1]1.4 TB Historical'!H335 -> -62035.76 | E22: ='[1]1.4 TB Historical'!K335 -> -62163.88 | F22: ='[1]1.4 TB Historical'!N335 -> -102824.1 | G22: ='[1]1.4 TB Historical'!Q335 -> -95252.05 | H22: ='[1]1.5 TB Projected Balances'!H335 -> -99062.132 | I22: ='[1]1.5 TB Projected Balances'!I335 -> -100000
C23: ='[1]1.4 TB Historical'!C350 -> 4390-Miscellaneous Non-Operating Income | D23: ='[1]1.4 TB Historical'!H350 -> 0 | E23: ='[1]1.4 TB Historical'!K350 -> 32751 | F23: ='[1]1.4 TB Historical'!N350 -> 2729.15 | G23: ='[1]1.4 TB Historical'!Q350 -> 0 | H23: ='[1]1.5 TB Projected Balances'!H350 -> 0 | I23: ='[1]1.5 TB Projected Balances'!I350 -> 0
C24: ='[1]1.4 TB Historical'!C355 -> 4405-Interest and Dividend Income | D24: ='[1]1.4 TB Historical'!H355 -> -40905.66 | E24: ='[1]1.4 TB Historical'!K355 -> -51965.13 | F24: ='[1]1.4 TB Historical'!N355 -> -53634.31 | G24: ='[1]1.4 TB Historical'!Q355 -> -51805.49 | H24: ='[1]1.5 TB Projected Balances'!H355 -> -44250 | I24: ='[1]1.5 TB Projected Balances'!I355 -> -44250
E26: 0 | F26: 0 | G26: 0 | H26: 0 | I26: 0
B28: Specific Service Charges | D28: =D20 -> -21681.88 | E28: -22118.68 | F28: -17050 | G28: -15990 | H28: -16629.6 | I28: -17294.784
B29: Late Payment Charges | D29: =D19 -> -11439 | E29: -10406.92 | F29: -9656.83 | G29: -12982.56 | H29: -13242.2112 | I29: -13507.05542
B30: Other Operating Revenues | D30: =SUM(D15:D18) -> -41834.99 | E30: -34440.56 | F30: -34454.17 | G30: -35972.01 | H30: -43852.5465 | I30: -43934.08516
B31: Other Income or Deductions | D31: =SUM(D21:D24) -> -118680.29 | E31: -104843.14 | F31: -153729.26 | G31: -147057.54 | H31: -143312.132 | I31: -144250
B32: Total | D32: =SUM(D28:D31) -> -193636.16 | E32: -171809.3 | F32: -214890.26 | G32: -212002.11 | H32: -217036.4897 | I32: -218985.9246
B34: Description | D34: Account(s)
B35: Specific Service Charges: | D35: 4235
B36: Late Payment Charges: | D36: 4225
B37: Other Distribution Revenues: | D37: 4080, 4082, 4084, 4090, 4205, 4210, 4215, 4220, 4240, 4245
B38: Other Income and Expenses: | D38: 4305, 4310, 4315, 4320, 4325, 4330, 4335, 4340, 4345, 4350, 4355, 4360, 4365, 4370, 4375, 4380, 4385, 4390, 4395, 4398, 4405, 4415
B41: Note: Add all applicable accounts listed above to the table and include all relevant information.
B43: Account Breakdown Details
B45: For each "Other Operating Revenue" and "Other Income or Deductions" Account, a detailed breakdown of the account components is required. See the example below for Account 4405, Interest and Dividend Income.
B48: Account 4405 - Interest and Dividend Income
D49: =D12 -> 2010 | E49: 2011 | F49: 2012 | G49: 2013 | H49: 2014 | I49: 2015
B50: Reporting Basis | D50: =IF(ISBLANK(D14), "", D14) -> CGAAP | E50: CGAAP | F50: CGAAP | G50: CGAAP | H50: CGAAP | I50: CGAAP
B51: Short-term Investment Interest | D51: =D24 -> -40905.66 | E51: -51965.13 | F51: -53634.31 | G51: -51805.49 | H51: -44250 | I51: -44250
B52: Bank Deposit Interest
B53: Miscellaneous Interest Revenue
B54: etc.1
B56: Total | D56: =SUM(D51:D55) -> -40905.66 | E56: -51965.13 | F56: -53634.31 | G56: -51805.49 | H56: -44250 | I56: -44250

Sheet App.2-I LF_CDM_WF_OLD (hidden)
E1: File Number: | F1: =EBNUMBER -> EB-2014-0080 | H1: ='LDC Info'!$E$16 -> EB-2014-0080
E2: Exhibit:
E3: Tab:
E4: Schedule:
E5: Page:
E7: Date:
A9: Appendix 2-I
A10: Load Forecast CDM Adjustment Work Form (2015)
A12: Input the 2011-2014 CDM target in Cell B21.
A14: Input the measured results for 2011 CDM programs for each of the years 2011 and persistence into 2012, 2013 and 2014 into cells B29 to E29. These results are taken from the final 2011 CDM Report issued by the OPA for that distributor in the fall of 2012.
A16: Measured results for 2012 CDM programs for each of the years 2012 and persistence into 2013 and 2014 are input into cells C30 to E30. These results are taken from the final 2012 CDM Report issued by the OPA for that distributor in the fall of 2013. Until that report is issued, the distributor should use the results from the preliminary 2012 CDM Report issued in the spring of 2013.
A18: Based on these inputs, the residual kWh to achieve the 4 year CDM target is allocated so that there is an equal incremental increase in each of the years 2012, 2013 and 2014.
A20: 4 Year (2011-2014) kWh Target:
A21: 100000
B22: 2011 | C22: 2012 | D22: 2013 | E22: 2014 | F22: Total | I22: =B22 -> 2011 | J22: =C22 -> 2012 | K22: =D22 -> 2013 | L22: =E22 -> 2014
A23: 2011 CDM Programs | B23: =B29/$F$33 -> 0.1 | C23: =C29/$F$33 -> 0.1 | D23: 0.1 | E23: 0.095 | F23: =SUM(B23:E23) -> 0.395 | H23: =A23 -> 2011 CDM Programs | I23: =50% -> 0.5 | J23: 1 | K23: 1 | L23: 1
A24: 2012 CDM Programs | C24: 0.12 | D24: 0.1195 | E24: 0.11 | F24: =SUM(B24:E24) -> 0.3495 | H24: =A24 -> 2012 CDM Programs | J24: 0.5 | K24: 1 | L24: 1
A25: 2013 CDM Programs | D25: 0.08516666667 | E25: 0.08516666667 | F25: 0.1703333333 | H25: =A25 -> 2013 CDM Programs | K25: 0.5 | L25: 1
A26: 2014 CDM Programs | E26: 0.08516666667 | F26: 0.08516666667 | H26: =A26 -> 2014 CDM Programs | L26: 0.5
A27: Total in Year | B27: =SUM(B23:B26) -> 0.1 | C27: =SUM(C23:C26) -> 0.22 | D27: 0.3046666667 | E27: 0.3753333333 | F27: =SUM(B27:E27) -> 1
A28: kWh
A29: 2011 CDM Programs | B29: 10000 | C29: 10000 | D29: 10000 | E29: 9500 | F29: =SUM(B29:E29) -> 39500
A30: 2012 CDM Programs | C30: 12000 | D30: 11950 | E30: 11000 | F30: =SUM(B30:E30) -> 34950
A31: 2013 CDM Programs | D31: =(A21-SUM(F29:F30))/3 -> 8516.666667 | E31: =D31 -> 8516.666667 | F31: 17033.33333
A32: 2014 CDM Programs | E32: =D31 -> 8516.666667 | F32: 8516.666667
A33: Total in Year | B33: =SUM(B29:B32) -> 10000 | C33: =SUM(C29:C32) -> 22000 | D33: 30466.66667 | E33: 37533.33333 | F33: =A21 -> 100000
E35: Check | F35: =SUM(F29:F32) -> 100000
A36: From each of the 2006-2010 CDM Final Report, 2011 CDM Final Report, and the 2012 CDM Final Report, issued by the OPA for the distributor, the distributor should input the "gross" and "net" results of the cumulative CDM savings for 2014 into cells D31 to E33. The model will calculate the cumulative savings for all programs from 2006 to 2012 and determine the "net" to "gross" factor "g".
A37: The Board has determined that the "net" number should be used in its Decision and Order with respect to Centre Wellington Hydro Ltd.'s 2013 Cost of Service rates (EB-2012-0113). This approach has also been used in Settlement Agreements accepted by the Board in other 2013 applications. The distributor should select whether the adjustment is done on a "net" or "gross" basis, but must support a proposal for the adjustment being done on a "gross" basis.
A39: Net-to-Gross Conversion
A41: Is CDM adjustment being done on a "net" or "gross" basis? | F41: net
C43: "Gross" | D43: "Net" | E43: Difference | F43: "Net-to-Gross" Conversion Factor
A44: Persistence of Historical CDM programs to 2014 | C44: kWh | D44: kWh | E44: kWh | F44: ('g')
A45: 2006-2010 CDM programs
A46: 2011 CDM program
A47: 2012 CDM program
A48: 2006 to 2011 OPA CDM programs: Persistence to 2014 | C48: =SUM(C45:C47) -> 0 | D48: =SUM(D45:D47) -> 0 | E48: =C48-D48 -> 0 | F48: =IF(D48=0,0,IF(F41="net",0,E48/D48)) -> 0
A50: The default values represent the factor that each year's CDM program is factored into the manual CDM adjustment. Distributors can choose alternative weights of "0", "0.5" or "1" from the drop-down menu for each cell, but must support its alternatives.
A51: These factors do not mean that CDM programs are excluded, but also reflect the assumption that impacts of 2011 and 2012 programs are already implicitly reflected in the actual data for those years that are the basis for the load forecast prior to any manual CDM adjustment.
A53: Weight Factor for Inclusion in CDM Adjustment to 2014 Load Forecast
B54: 2011 | C54: 2012 | D54: 2013 | E54: 2014
A55: Weight Factor for each year's CDM program impact on 2014 load forecast | B55: 0 | C55: 0 | D55: 1 | E55: 0.5 | F55: Utility can select "0", "0.5", or "1" from drop-down list
A56: Default Value selection rationale. | B56: Persistence of 2011 CDM programs for the full year of 2012 means that all of 2011 CDM impact is assumed to be in the base forecast before the CDM Adjustment | C56: 50% of 2012 CDM impact is assumed reflected in base forecast based on 1/2 year rule. | D56: Full year impact of 2013 CDM programs on adjustment for 2014 load forecast | E56: Only 50% of 2014 CDM impact is used based on a half year rule
A59: The Amount used for the CDM threshold of the LRAMVA is the kWh that will be used to determine the base amount for the LRAMVA balance for 2014, for assessing performance against the four-year target. The base amount for 2011-2013 is 0 (zero) for 2014 Cost of Service applications, as the utility rebased prior to the 2011-2014 CDM programs, and there was no adjustment to reflect the impacts of the 2011-2014 programs on the load forecast used to determine their last cost of service-based rates.
A61: The proposed loss factor should correspond with the loss factor calculated in Appendix 2-R
A63: The Manual Adjustment for the 2014 Load Forecast is the amount manually subtracted from the load forecast derived from the base forecast from historical data, and is intended to reflect the further CDM savings that the distributor needs to achieve assuming that they meet 100% of the 2011-2014 CDM target that is a condition of their target.
A65: If the distributor has developed their load forecast on a system purchased basis, then the manual adjustment should be on system purchased basis, including the adjustment for losses. If the load forecast has been developed on a billed basis, either on a system basis or on a class-specific basis, the manual adjustment should be on a billed basis, excluding losses.
A67: The distributor should determine the allocation of the savings to all customer classes in a reasonable manner, for both the LRAMVA and for the load forecast adjustment.
B69: 2011 | C69: 2012 | D69: 2013 | E69: 2014 | F69: Total for 2014
B70: kWh
A71: Amount used for CDM threshold for LRAMVA (2014) | B71: =E29 -> 9500 | C71: =E30 -> 11000 | D71: =E31 -> 8516.666667 | E71: =E32 -> 8516.666667 | F71: =SUM(B71:E71) -> 37533.33333
A73: Manual Adjustment for 2014 Load Forecast (billed basis) | B73: =B71*(1+F48)*B55 -> 0 | C73: =C71*(1+F48)*C55 -> 0 | D73: =D71*(1+F48)*D55 -> 8516.666667 | E73: =E71*(1+F48)*E55 -> 4258.333333 | F73: =SUM(B73:E73) -> 12775
A75: Proposed Loss Factor (TLF) | B75: 0.0479 | C75: Format: X.XX%
A76: Manual Adjustment for 2014 Load Forecast (system purchased basis) | B76: =B73*(1+$B75) -> 0 | C76: =C73*(1+$B75) -> 0 | D76: 8924.615 | E76: 4462.3075 | F76: =SUM(B76:E76) -> 13386.9225
A77: Manual adjustment uses "gross" versus "net" (i.e. numbers multiplied by (1 + g). The Weight factor is also used calculate the impact of each year's program on the CDM adjustment to the 2014 load forecast.

Sheet App.2-I LF_CDM_WF
G1: File Number: | H1: =EBNUMBER -> EB-2014-0080
G2: Exhibit:
G3: Tab:
G4: Schedule:
G5: Page:
G7: Date:
A9: Appendix 2-I
A10: Load Forecast CDM Adjustment Work Form (2015)
A12: The 2014 bridge year is the last year of the current four year (2011-2014) CDM program, and 2015 is the first year of a new six year (2015-2020) CDM program, per the Ministirial directives of March 31, 2014. Thus, with 2015, there is a need to recognize the final year of the current 2011-2014 CDM program, as well as to estimate reasonable impacts each year for the new 2015-2020 CDM program. These are combined to estimate the adjustment for CDM program impacts on the 2015 load forecast.
